Workbook

Sheet Титул
A2: Наименование инвестора / ОГРН | Q2: Содержание | V2: Данные для диспетчера имен
Q3: 1 | R3: Руководство | V3: One | Y3: 1
Q4: 2 | R4: Результаты | V4: Thousand | Y4: 1000
A5: Полное наименование инвестиционного проекта | Q5: 3 | R5: Предпосылки | V5: Количество кварталов | Y5: 4
Q6: 4 | R6: График инвестирования | V6: НДС_общая | Y6: =MAX(Предпосылки!H294:AB294) -> 0.22
Q7: 5 | R7: График финансирования | V7: Условные обозначения
A8: Данная финансово-экономическая модель подготовлена в рамках пакета документов в целях заключения специального инвестиционного контракта (СПИК) и является неотъемлемым приложением к бизнес-плану инвестиционного проекта | Q8: 6 | R8: График локализации | V8: Вводимые значения | Y8: 1
Q9: 7 | R9: Текущая деятельность | V9: Расчетные показатели | Y9: 1
Q10: 8 | R10: WACC | V10: Итоговые показатели | Y10: 1
Q11: 9 | R11: Для БП | V11: Смена формулы в ячейке | Y11: 1
A12: Примечание: | Q12: 10 | R12: DataBook
A13: 1) Данный шаблон финансовой модели является одним из возможных вариантов оформления финансовой модели и содержит полный набор расчетных и итоговых листов, показателей в соответствии с методическими рекомендациями ФРП, ПП РФ №708 от 16.07.2015; | Q13: 11 | R13: Капитальные вложения
A14: 2) Отдельные блоки данной финансовой модели и формулы к ним могут быть модифицированы с учетом специфики конкретного инвестиционного проекта. Допускается добавление дополнительных и удаление незадействованных в расчете блоков; | Q14: 12 | R14: Выручка и себестоимость
A15: 3) Ячейки для ввода исходных данных проекта выделены серым цветом в соответствии с условными обозначениями. Такие ячейки предусмотрены на листах "Предпосылки", "График инвестирования", "Операционные затраты" и "Финансирование" | Q15: 13 | R15: Операционные затраты
A16: 4) Дополнительно к расчету отдельных показателей финансовой модели приведены пояснения в примечаниях к соответствующим ячейкам; | Q16: 14 | R16: Оборотный капитал
A17: 5) На листе Финансирование реализована возможность разрыва циклических ссылок при помощи макроса. Макрос рекомендуется запускать исключительно в случае дополнительной потребности в краткосрочном финансировании операционной деятельности. Запуск макроса осуществляется нажатием на кнопку напротив соответствующего расчета с столбце Е. Привлечение долгосрочного кредита заносится в финансовую модель вручную, исходя из предпосылок | Q17: 15 | R17: Налоги
Q18: 16 | R18: Финансирование
Q19: 17 | R19: Отчетность (СПИК)
Q20: 18 | R20: Эффективность (СПИК)
A21: Полезные ссылки: | Q21: 19 | R21: Анализ чувствительности (СПИК)
A22: Методические рекомендации СПИК 2.0 по подготовке и оформлению финансовой модели (раздел 12) | Q22: 20 | R22: Отчетность (Без СПИК)
A23: Методические рекомендации СПИК 1.0 по подготовке и оформлению финансовой модели (раздел 3) | Q23: 21 | R23: Эффективность (без СПИК)
A24: Раздел СПИК официального сайта Фонда развития промышленности
A26: Контактное лицо по вопросам работы с шаблоном финансовой модели: Герасимук Андрей (e-mail: gerasimuk@frprf.ru )
A27: Версия №18, дата обновления: 24.06.2026

Sheet Руководство
A2: Руководство по заполнению финансовой модели
A4: Лист "Титул"
A6: Содержангие проекта
A7: Пункт | B7: Комментарии | C7: Тип данных
A8: Наименование инвестора | B8: Указывается полное наименование инвестора в соответсвтии с заявлением на заключение СПИК | C8: Исходные данные
A9: Полное наименование инвестиционного проекта | B9: Указывается наименование инвестиционного проекта в соответсвтии с заявлением на заключение СПИК | C9: Расчетные значения
A11: Лист "Результаты"
A12: Целевые показатели и эффективность проекта
A13: Пункт | B13: Комментарии | C13: Тип данных
A14: Общая информация о проекте | B14: Указываются основные сведения о проекте, инвесторе, типе СПИК и его ключевых параметрах | C14: Исходные данные
A15: Итоговые показатели | B15: Выводятся целевые показатели реализации СПИК (приложение "Сведения о результатах (показателях), которые планируется достигнуть в ходе реализации инвестиционного проекта") | C15: Расчетные значения
A16: Источники привлечения средств для финансирования инвестиционного проекта | B16: Выводится структура финансирования проекта в целом | C16: Расчетные значения
A17: Показатели эффективности проекта | B17: Выводятся показатели инвестиционной привлекательности проекта, а также объем налогов к уплате | C17: Расчетные значения
A18: Проверка корректности финансовой модели | B18: Выводятся результаты ключевых проверой финансовой модели | C18: Расчетные значения
A20: Лист "Предпосылки"
A22: Исходные параметры и общие сведения
A23: Пункт | B23: Комментарии | C23: Тип данных
A24: Общие допущения
A25: Дата оценки | B25: Указывается дата, на которую была составлена финансовая модель | C25: Исходные данные
A26: Срок СПИК | B26: Указываются периоды, в течение которых предлагается действие СПИК | C26: Исходные данные
A27: Инвестиционная фаза проекта | B27: Указываются периоды, в течение которых будут осуществляться инвестиции в проект | C27: Исходные данные
A28: Эксплуатационная фаза проекта | B28: Указываются периоды, в течение которых будет осуществляться производство и реализация продукции в рамках СПИК после осуществления плановых инвестиций | C28: Исходные данные
A29: Действие налоговых льгот | B29: Выводятся периоды, в течение которых допускается применение налоговых льгот в соответствии с расчетом объема недополученных доходов по проекту. | C29: Расчетные значения
A30: Дней в отчетном периоде | B30: Выводится количество дней в году для каждого отчетного периода. | C30: Расчетные значения
A31: Ставка дисконтирования (WACC) | B31: Выводится ставка дисконтирования по проекту, рассчитанная на листе "WACC" | C31: Расчетные значения
A32: Ставка дисконтирования для расчета бюджетной эффективности | B32: Указывается ставка для расчета BNPV (рекомендуется использовать ключевую ставка ЦБ РФ на дату составления финансовой модели) | C32: Исходные данные
A33: Темп роста денежных потоков в постпрогнозном периоде (g) | B33: Указывается предполагаемый темп роста денежных потоков в долгосрочном периоде, необходимый для расчета терминальной стоимости. | C33: Исходные данные
A34: Макроэкономические допущения
A35: Инфляция в России (ИПЦ) | B35: Указываются предпосылки по инфляции для индексации цен реализации продукции (с указанием источника информации) | C35: Исходные данные
A36: Рост оплаты труда | B36: Указываются предпосылки по индексации заработной платы персонала, задействованного в проекте (с указанием источника информации) | C36: Исходные данные
A37: Индекс цен производителей | B37: Указываются предпосылки по индексации цен на сырье и материалы (с указанием источника информации) | C37: Исходные данные
A38: Курс доллара США | B38: Указываются предпосылки по курсу иностранной валюты (в случае наличия доходов/расходов в иностранной валюте). Можно указать информацию о любой валютной паре, задействованной в проекте | C38: Исходные данные
A39: Предпосылки по расчету выручки
A40: Среднегодовые цены на реализуемую продукцию | B40: Указываются исходные цены реализации продукции СПИК | C40: Исходные данные
A41: Объем производства продукции | B41: Указывается плановый объем производства продукции в рамках СПИК в натуральном выражении | C41: Исходные данные
A42: Объем реализации продукции | B42: Рассчитывается объем реализации продукции в рамках СПИК в натуральном выражении (по умолчанию объем реализации продукции равен объему производства) | C42: Расчетные значения
A43: Изменение объема реализации продукции | B43: Рассчитывается относительная динамика объема реализации продукции. | C43: Расчетные значения
A44: Предпосылки по расчету себестоимости
A45: Среднегодовые цены удельных расходов | B45: Указываются начальные цены 1 единицы удельных расходов. | C45: Исходные данные
A46: Удельные расходы в расчете на единицу продукции | B46: Указывается норма расхода статей удельных затрат на 1 единицу готовой продукции | C46: Исходные данные
A47: Общехозяйственные расходы
A48: Общепроизводственные расходы | B48: Указываются общепроизводственные расходы по проекту | C48: Исходные данные
A49: Коммерческие расходы | B49: Указываются коммерческие расходы по проекту | C49: Исходные данные
A50: Управленческие расходы | B50: Указываются управленческие расходы по проекту | C50: Исходные данные
A51: Прочие расходы
A52: Прочие расходы | B52: Вводятся прочие расходы по проекту | C52: Исходные данные
A53: Статьи, подлержащие обложению | B53: Указывается, подлежат ли прочие расходы обложению НДС или нет | C53: Исходные данные
A54: Расходы на персонал
A55: Численность рабочих мест в соответствии со штатным расписанием | B55: Указывается количество работников, планируемых к привлечению в рамках СПИК. | C55: Исходные данные
A56: Фонд оплаты трудна (на 1 сотрудника) | B56: Указывается сумма расходов в год, выделяемая на 1 работника. | C56: Исходные данные
A57: Ранее осуществленные инвестиции
A58: В рамках СПИК планируется реализация… | B58: Укзываются, планируется ли в рамках СПИК реализация инвестиционного проекта или нового этапа инвестиционного проекта | C58: Исходные данные
A59: Ранее понесенные расходы | B59: Указывается сумма расходов, понесенных инвестором за 12 месяцев до подачи заявления либо в календарный год подачи заявления (в случае реализации нового этапа инвестиционного проекта) | C59: Исходные данные
A60: Параметры нового этапа инвестиционного проекта (заполяется в случае реализации нового эатпа инвестиционного проекта) | B60: Указываются расходы, осуществленные ранее чем за 12 месяцев до даты подачи заявления,и рассчитывается доля, которую новый этап инвестиционного проекта составляет от совокупной стоимости проекта | C60: Исходные данные
A61: Капитальные затраты и амортизация
A62: Затраты на создание / модернизацию | B62: Приводятся капитальные вложения на создание/приобретение/модернизацию основных средств (заполняются на листе "График инвестирования") | C62: Расчетные значения
A63: Затраты на поддержание | B63: Указываются планируемые капитальные вложения на поддержание | C63: Исходные данные
A64: Принятие к учету объектов капитальных вложений | B64: Указываются порядок принятия капитальных вложений к учета на бухгалтерском балансе | C64: Исходные данные
A65: Срок полезного использования | B65: Указывается срока полезного использования основных средств в зависимости от категории основных средств | C65: Исходные данные
A66: Норма амортизации | B66: Рассчитывается норма амортизации, используемая для расчета величины амортизации за период. | C66: Расчетные значения
A67: Оборотный капитал
A68: Период оборачиваемости | B68: Указывается период оборачиваемости запасов в днях | C68: Исходные данные
A69: Источники финансирования проекта
A70: Ранее привлечено в проект | B70: Указывается сумма собственных и заемных средств, которые были привлечены в проект до подачи заявки на СПИК | C70: Исходные данные
A71: Финансирование в течение срока действия СПИК | B71: Указывается график привлечения собственных средств, а также условия привлечения заемного финансирования в рамках СПИК | C71: Исходные данные
A72: Получение государственных субсидий
A73: Получение государственных субсидий | B73: Указывается плановое получение субсидий в рамках инвестиционного проекта по СПИК | C73: Исходные данные
A74: Предпосылки по налогам и взносам в внебюджетные фонды
A75: Запрашиваемые по СПИК льготы по налогам | B75: Указываются налоги, по которым планируется применение льгот в рамках СПИК | C75: Исходные данные
A76: Стандартные налоговые ставки | B76: Указываются налоговые ставки, применяемые инвестором без учета мер поддержки СПИК | C76: Исходные данные
A77: Льготные налоговые ставки в сценарии Со СПИК | B77: Указываются льготные налоговые ставки, планируемые к применению в сценарии "Со СПИК" | C77: Исходные данные
A78: Перенос убытков на будущее | B78: Указывается планируемое уменьшение налоговой базы по налогу | C78: Исходные данные
A79: Отчисления с ФОТ во внебюджетные фонды | B79: Приводится единая предельная величина базы для исчисления страховых взносов | C79: Расчетные значения
A80: Тарифы страховых взносов
A81: Тарифы страховых взносов | B81: Указываются ставки страховых взносов без учета мер поддержки СПИК | C81: Исходные данные
A82: Льготный тариф страховых взносов для участников СПИК 1.0, являющихся участниками промышленных кластеров
A83: Единый пониженный тариф | B83: Указывается пониженная ставка по страховым взносам для участников СПИК 1.0 | C83: Исходные данные
A84: Единый пониженный тариф (свыше предельной величины базы) | B84: Указываются льготная ставка по страховым взносам для участников СПИК 1.0 свыше предельной базы | C84: Исходные данные
A85: Перечисление налогов по уровням бюджетов бюджетной системы РФ
A86: Перечисление налогов по уровням бюджетов бюджетной системы РФ | B86: Указывается распределение налогов по уровням бюджетов бюджетной системы РФ | C86: Исходные данные
A87: Предпосылки по расчетам с контрагентами
A88: Сотрудники (заработная плата) | B88: Указываются процент уплаты начисленной заработной платы в отчетном периоде | C88: Исходные данные
A89: Бюджетная система РФ | B89: Указываются предпосылки по срокам уплаты/возмещения налогов | C89: Исходные данные
A90: Расчеты с покупателями | B90: Указываются предпосылки по авансам/постоплатам с покупателями | C90: Исходные данные
A91: Расчеты по кредитам и займам | B91: Указывается период отсрочки платежей по кредитам и займам в каждом отчетном периоде | C91: Исходные данные
A92: Расчеты с поставщиками и подрядчиками | B92: Указываются предпосылки, касающиеся сроков расчетов по запасам, прямым расходам, общехозяйственным затратам, прочим расходам и капитальным вложениям | C92: Исходные данные
A94: Лист "График инвестирования"
A96: Структура инвестиционных затрат в рамках СПИК
A97: Пункт | B97: Комментарии | C97: Тип данных
A98: График инвестирования (расходования) | B98: Указывается распределение инвестиций по СПИК в соответствии с направлениями расходования, предусмотренными Правилами заключения СПИК | C98: Исходные данные
A99: Приложение к СПИК | B99: Выводится график финансирования проекта в соответствии с аналогичным приложением к СПИК | C99: Расчетные значения
A101: Лист "График финансирования"
A103: Структура финансирования инвестиционных затрат проекта
A104: Пункт | B104: Комментарии | C104: Тип данных
A105: Источники финансирования проекта | B105: Указывается структура финансирования проекта по отчетным периодам СПИК. | C105: Исходные данные
A106: График финансирования | B106: Выводится график финансирования проекта в соответствии с аналогичным приложением к СПИК | C106: Расчетные значения
A107: Проверки | B107: Проводятся проверки достаточности финансирования для покрытия капитальных вложений и соответствия информации в Графике финансирования структуре финансирования проекта по иным расчетам финансовой модели | C107: Расчетные значения
A109: Лист "График локализации"
A111: Прогноз выполнения требований по локализации продукции СПИК
A112: Пункт | B112: Комментарии | C112: Тип данных
A113: Доля стоимости иностранных комплектующих в цене промышленной продукции (Таблица №1) | B113: Указывается стоимость используемых материалов и компонентов иностранного происхождения и на её основе рассчитывается доля стоимости иностранных материалов и компонентов в цене промышленной продукции (при наличии соответствующего требования по локализации для продукции проекта) | C113: Исходные данные
A114: Баллы локализации (Таблица №2) | B114: Указываются планируемые к выполнению на территории Российской Федерации технологические и производственные операции и начисляемые за них баллы локализации (при наличии соответствующего требования по локализации для продукции проекта) | C114: Исходные данные
A115: Процент от максимально возможного количества баллов локализации (Таблица №3) | B115: Приводится расчет доли, которую планируемые баллы локализации составят от максимально возможного количества (при наличии соответствующего требования по локализации для продукции проекта) | C115: Расчетные значения
A117: Лист "Текущая деятельность"
A119: Финансовый анализ текущей деятельности инвестора
A120: Пункт | B120: Комментарии | C120: Тип данных
A121: Отчетность Инвестора | B121: Указываются сведения из бухгалтерской (финансовой) отчетности Инвестора для расчета основных аналитических показателей. | C121: Исходные данные
A123: Лист "WACC"
A125: Расчет средневзвешенной стоимости капитала
A126: Пункт | B126: Комментарии | C126: Тип данных
A127: Расчет ставки дисконтирования | B127: Приводится расчёт ставки дисконтирования по методу WACC | C127: Расчетные значения
A128: Справочная информация | B128: Приводятся предпосылки по расчету беты, премии за размер и инфляции | C128: Расчетные значения
A130: Лист "Для БП"
A132: Раскрытие информации, требуемой для отражения в бизнес-плане в соответсвтии с п. 16 Правил
A133: Пункт | B133: Комментарии | C133: Тип данных
A134: Планируемый размер ежегодной проектной операционной прибыли в течение реализации инвестиционного проекта (пп. "з") | B134: Указывается планируемый размер проектной операционной прибыли за каждый год реализации СПИК | C134: Расчетные значения
A135: Общая планируемая стоимость реализации инвестционного проекта (пп. "м") | B135: Указывается общий планируемый объем инвестиций в проект | C135: Расчетные значения
A136: Планируемый объем финансирования с выделением источников финансирования (пп. "н") | B136: Указывается общий объем финансирования проекта с разбивкой на собственные и заемные средства, а также бюджетные инвестиции | C136: Расчетные значения
A137: Планируемые основные показатели инвестиционного проекта (пп. "о") | B137: Указываются показатели, требуемые в соответствии с пп. "о" п. 16 Правил | C137: Расчетные значения
A138: Динамика целевых результатов (показателей) инвестиционного проекта (пп. "р") | B138: Указываются целевые показатели проекта за каждый год реализации СПИК | C138: Расчетные значения
A139: Анализ чувствительности инвестиционного проекта (пп. "с") | B139: Указываются результаты анализа чувствительности показателей эффективности проекта к осонвным парамтерам | C139: Расчетные значения
A141: Лист "DataBook"
A143: Справочные расчеты предпосылок проекта
A144: Пункт | B144: Комментарии | C144: Тип данных
A145: DataBook | B145: Приводятся расчеты, необходимые для обоснования используемых в проекте предпосылок (при необходимости) | C145: Исходные данные
A147: Лист "Капитальные вложения"
A149: Учет объектов капитальных вложений на балансе и их амортизация
A150: Пункт | B150: Комментарии | C150: Тип данных
A151: Капитальные вложения (без НДС) | B151: Приводятся затраты по капитальным вложениям без учета НДС | C151: Расчетные значения
A152: Капитальные вложения (с НДС) | B152: Приводятся затраты по капитальным вложениям с учетом НДС | C152: Расчетные значения
A153: Расчеты по капитальным вложениям | B153: Приводятся расчеты по капитальным вложениям с учетом периода оплаты | C153: Расчетные значения
A154: Входящий НДС по капитальным вложениям | B154: Приводятся расчеты входящего НДС по капитальным вложениям | C154: Расчетные значения
A155: Расчет амортизации | B155: Приводятся расчет амортизации основных средств в рамках проекта | C155: Расчетные значения
A157: Лист "Выручка и себестоимость"
A158: Параметры реализуемой продукции
A159: Пункт | B159: Комментарии | C159: Тип данных
A160: Выручка от продаж без НДС | B160: Рассчитывается выручка от продаж продукции СПИК без НДС | C160: Расчетные значения
A161: Исходящий НДС | B161: Рассчитывается исходящий НДС по доходам от продаж продукции СПИК | C161: Расчетные значения
A162: Выручка от продаж с НДС | B162: Рассчитывается выручка от продаж с НДС | C162: Расчетные значения
A163: Себестоимость продаж | B163: Приводится расчет себестоимости производимой в рамках СПИК продукции с учетом применения льготного тарифа страховых взносов и без | C163: Расчетные значения
A165: Лист "Операционные затраты"
A166: Прямые затраты
A167: Пункт | B167: Комментарии | C167: Тип данных
A168: Объем производства продукции в натуральном выражении | B168: Рассчитывается объем производства продукции в натуральном выражении | C168: Расчетные значения
A169: Прямые расходы на производство продукции | B169: Рассчитывается расход прямых затрат на производство продукции в рамках СПИК в денежном выражении | C169: Расчетные значения
A170: Расходы на ФОТ | B170: Рассчитываются начисленные расходы по заработным платам работников, задействованных в СПИК | C170: Расчетные значения
A171: Взносы во внебюджетные фонды | B171: Рассчитывается начисленный объем страховых взносов по работникам, задействованным в СПИК | C171: Расчетные значения
A172: Расчеты с сотрудниками по заработной плате | B172: Рассчитывается оплата заработной платы по сотрудникам, задействованным в СПИК | C172: Расчетные значения
A173: Расчеты по страховым взносам во внебюджетные фонды | B173: Рассчитывается оплата страховых взносов по работникам, задействованным в СПИК | C173: Расчетные значения
A175: Лист "Оборотный капитал"
A177: Пункт | B177: Комментарии | C177: Тип данных
A178: Запасы (без НДС) | B178: Рассчитывается величина запасов по продукции проекта | C178: Расчетные значения
A179: Расчеты с покупателями | B179: Рассчитываются поступления от покупателей с учетом авансовых платежей и постоплаты | C179: Расчетные значения
A180: Расчеты с поставщиками и подрядчиками | B180: Рассчитываются платежи от поставщиков и подрядчиков с учётомv авансов и постоплаты | C180: Расчетные значения
A181: Дебиторская задолженность | B181: Рассчитывается величина дебиторской задолженности на конец периода | C181: Расчетные значения
A182: Кредиторская задолженность | B182: Рассчитывается величина кредиторской задолженности на конец периода | C182: Расчетные значения
A184: Лист "Налоги"
A186: Расчет налоговой базы со СПИК и без СПИК, срока действия льгот
A187: Пункт | B187: Комментарии | C187: Тип данных
A188: НДС | B188: Рассчитываются платежи по НДС | C188: Расчетные значения
A189: НДФЛ | B189: Рассчитываются платежи по НДФЛ | C189: Расчетные значения
A190: Налог на прибыль | B190: Рассчитываются платежи по налогу на прибыль | C190: Расчетные значения
A191: Налог на имущество организаций | B191: Рассчитываются платежи по налогу на имущество организаций | C191: Расчетные значения
A192: Транспортный налог | B192: Рассчитываются платежи по транспортному налогу с учетом мощности и количества транспортных средств | C192: Исходные данные
A193: Земельный налог | B193: Рассчитываются платежи по земельному налогу | C193: Расчетные значения
A194: Минимальный объем налогов, сборов, страховых взносов, которые будут уплачены инвестором с учетом применения мер стимулирования деятельности в сфере промышленности, предусмотренных СПИК | B194: Производится разбивка уплачиваемых в рамках СПИК налогов по бюджетам бюджетной системы РФ. | C194: Расчетные значения
A195: Объем недополученных доходов и расходов бюджетов бюджетной системы РФ | B195: Рассчитывается объем недополученных доходов и расходов бюджетов бюджетной системы РФ с целью определения возможного срока применения льгот по СПИК | C195: Расчетные значения
A196: Расчет срока действия налоговых льгот | B196: Производится расчет периода действия налоговых льгот в рамках СПИК | C196: Расчетные значения
A197: Действие налоговых льгот по отдельным налогам | B197: Производится расчет периодов действия налоговх льгот по каждому налогу в рамках СПИК | C197: Расчетные значения
A199: Лист "Финансирование"
A201: Представление и расчет потребности финансирования проекта
A202: Пункт | B202: Комментарии | C202: Тип данных
A203: Долгосрочные кредиты и займы | B203: Указываются условия привлекаемого заемного финансирования с графиком погашения тела долга | C203: Исходные данные
A204: Потребность в финансировании | B204: Рассчитывается итоговая потребность в денежных средствах на конец отчетного периода | C204: Расчетные значения
A205: Краткосрочные кредиты и займы | B205: Указываются условия привлекаемого краткосрочного заемного финансирования с возможностью автоматического подбора величины краткосрочного кредита, требуемого для покрытия потребности в финансировании. | C205: Исходные данные
A206: Расчеты по кредитам и займам | B206: Приводятся расчеты по уплате процентов по заемным источникам финансирования | C206: Расчетные значения
A208: Листы "Отчетность (СПИК)" и "Отчетность (Без СПИК)"
A210: Прогнозная отчетность проекта со СПИК и без СПИК
A211: Пункт | B211: Комментарии | C211: Тип данных
A212: Бухгалтерский баланс | B212: Формируется прогнозный Бухгалтерский баланс проекта в рамках СПИК | C212: Расчетные значения
A213: Приложение к балансу | B213: Приводится расчет чистого оборотного капитала и чистого долга | C213: Расчетные значения
A214: Отчет о финансовых результатах | B214: Формируется прогнозный Отчет о финансовых результатах проекта в рамках СПИК | C214: Расчетные значения
A215: Приложение к отчету о финансовых результатах | B215: Приводится расчет проектной операционной прибыли | C215: Расчетные значения
A216: Отчет о движении денежных средств | B216: Формируется прогнозный Отчет о движении денежных средств проекта в рамках СПИК | C216: Расчетные значения
A218: Листы "Эффективность (СПИК)" и "Эффективность (Без СПИК)"
A220: Расчет показателей эффективности проекта со СПИК и без СПИК
A221: Пункт | B221: Комментарии | C221: Тип данных
A222: Дисконтирование | B222: Приводится расчет дисконт-фактора для показателей инвестиционной и бюджетной эффективности | C222: Расчетные значения
A223: Расчет свободного денежного потока | B223: Приводится расчет FCFF | C223: Расчетные значения
A224: Показатели эффективности инвестиционного проекта | B224: Приводится расчет ключевых показателей эффективности инвестиционного проекта (NPV, IRR, PBP, DPBP, PI) | C224: Расчетные значения
A225: Показатели бюджетной эффективности инвестиционного проекта | B225: Приводится расчет BNPV | C225: Расчетные значения
A226: Показатели финансовой устойчивости | B226: Приводится расчет ICR, CFADS, DSCR, LLCR, Долг/Собственный капитал, Долг/EBIT, Чистый долг/EBITDA | C226: Расчетные значения
A227: Показатели ликвидности (платежеспособности) | B227: Приводится расчет коэффициентов текущей и быстрой ликвидности | C227: Расчетные значения
A228: Показатели рентабельности | B228: Приводится расчет ROA, ROE, ROIC, рентабельности по валовой прибыли, ROS, рентабельности по EBIT, EBITDA и чистой прибыли | C228: Расчетные значения
A229: Показатели оборачиваемости | B229: Приводится расчет показателей оборачиваемости дебиторской задолженности, кредиторской задолженности и запасов | C229: Расчетные значения
A231: Лист "Анализ чувствительности"
A233: Анализ чувствительности основных показателей эффективности инвестиционного проекта (NPV, IRR, PBP, DPBP и BNPV) к изменению параметров
A234: Пункт | B234: Комментарии | C234: Тип данных
A235: Однофакторный анализ | B235: Заполняется таблица с результатами однофакторного анализа чувствительности | C235: Формируется инвестором
A236: Двухфакторный анализ | B236: Формируется двухфакторный анализ чувствительности параметров проекта (при необходимости) | C236: Формируется инвестором

Sheet Результаты
E1: ="Лист: " & RIGHT(CELL("filename",A1),LEN(CELL("filename",A1))-SEARCH("]",CELL("filename",A1))) -> Лист: Результаты | J1: Проверка: | L1: =IF(AND(E72="Верно",E73="Верно",E74="Верно",E75="Верно",E76="Верно",E77="Верно"), "Верно", "Имеются некорректные данные") -> Имеются некорректные данные
C2: Параметр | D2: Ед. изм. | E2: Источник | F2: Итоговое значение | H2: =Предпосылки!H2 -> 2026 | I2: =Предпосылки!I2 -> 2027 | J2: =Предпосылки!J2 -> 2028 | K2: =Предпосылки!K2 -> 2029 | L2: =Предпосылки!L2 -> 2030 | M2: =Предпосылки!M2 -> 2031 | N2: =Предпосылки!N2 -> 2032 | O2: =Предпосылки!O2 -> 2033 | P2: =Предпосылки!P2 -> 2034 | Q2: =Предпосылки!Q2 -> 2035 | R2: =Предпосылки!R2 -> 2036 | S2: =Предпосылки!S2 -> 2037 | T2: =Предпосылки!T2 -> 2038 | U2: =Предпосылки!U2 -> 2039 | V2: =Предпосылки!V2 -> 2040 | W2: =Предпосылки!W2 -> 2041 | X2: =Предпосылки!X2 -> 2042 | Y2: =Предпосылки!Y2 -> 2043 | Z2: =Предпосылки!Z2 -> 2044 | AA2: =Предпосылки!AA2 -> 2045 | AB2: =Предпосылки!AB2 -> 2046
H3: 1 | I3: 2 | J3: 3 | K3: 4 | L3: 5 | M3: 6 | N3: 7 | O3: 8 | P3: 9 | Q3: 10 | R3: 11 | S3: 12 | T3: 13 | U3: 14 | V3: 15 | W3: 16 | X3: 17 | Y3: 18 | Z3: 19 | AA3: 20 | AB3: 21
B5: Общая информация о проекте
C7: Наименование проекта | D7: =Титул!A6 -> 0
C8: Местонахождение производственной площадки
C9: Заявитель | D9: =Титул!A3 -> 0
C10: Тип СПИК | D10: СПИК 1.0
C11: Срок СПИК | D11: =Предпосылки!F8 & " лет" -> 1 лет
C12: Срок выхода на проектную операционную прибыль | D12: =INDEX(H2:AB2,,MATCH(1,'Отчетность (СПИК)'!H86:AA86,0))&" год" -> 
C13: Дата анализа | D13: =Предпосылки!F7 -> 2026-01-01
C14: Денежная единица | D14: тыс. руб.
B16: Итоговые показатели
B18: Объем произведенной промышленной продукции в денежном выражении: | F18: =SUM( H18:AA18) -> 0 | H18: =SUM(H19:H20) -> 0 | I18: =SUM(I19:I20) -> 0 | J18: 0 | K18: 0 | L18: 0 | M18: 0 | N18: 0 | O18: 0 | P18: 0 | Q18: 0 | R18: 0 | S18: 0 | T18: 0 | U18: 0 | V18: 0 | W18: 0 | X18: 0 | Y18: 0 | Z18: 0 | AA18: 0 | AB18: =SUM(AB19:AB20) -> 0
C19: =Предпосылки!C35 -> Продукция 1 | D19: ='Выручка и себестоимость'!D14 -> тыс. руб. | F19: =SUM( H19:AA19) -> 0 | H19: =IF(Предпосылки!H$8=1, H23*Предпосылки!H35,0) -> 0 | I19: =IF(Предпосылки!I$8=1, I23*Предпосылки!I35,0) -> 0 | J19: =IF(Предпосылки!J$8=1, J23*Предпосылки!J35,0) -> 0 | K19: =IF(Предпосылки!K$8=1, K23*Предпосылки!K35,0) -> 0 | L19: =IF(Предпосылки!L$8=1, L23*Предпосылки!L35,0) -> 0 | M19: =IF(Предпосылки!M$8=1, M23*Предпосылки!M35,0) -> 0 | N19: =IF(Предпосылки!N$8=1, N23*Предпосылки!N35,0) -> 0 | O19: =IF(Предпосылки!O$8=1, O23*Предпосылки!O35,0) -> 0 | P19: =IF(Предпосылки!P$8=1, P23*Предпосылки!P35,0) -> 0 | Q19: =IF(Предпосылки!Q$8=1, Q23*Предпосылки!Q35,0) -> 0 | R19: =IF(Предпосылки!R$8=1, R23*Предпосылки!R35,0) -> 0 | S19: =IF(Предпосылки!S$8=1, S23*Предпосылки!S35,0) -> 0 | T19: =IF(Предпосылки!T$8=1, T23*Предпосылки!T35,0) -> 0 | U19: =IF(Предпосылки!U$8=1, U23*Предпосылки!U35,0) -> 0 | V19: =IF(Предпосылки!V$8=1, V23*Предпосылки!V35,0) -> 0 | W19: =IF(Предпосылки!W$8=1, W23*Предпосылки!W35,0) -> 0 | X19: =IF(Предпосылки!X$8=1, X23*Предпосылки!X35,0) -> 0 | Y19: =IF(Предпосылки!Y$8=1, Y23*Предпосылки!Y35,0) -> 0 | Z19: =IF(Предпосылки!Z$8=1, Z23*Предпосылки!Z35,0) -> 0 | AA19: =IF(Предпосылки!AA$8=1, AA23*Предпосылки!AA35,0) -> 0 | AB19: =IF(Предпосылки!AB$8=1, AB23*Предпосылки!AB35,0) -> 0
C20: =Предпосылки!C36 -> Продукция 2 | D20: ='Выручка и себестоимость'!D15 -> тыс. руб. | F20: =SUM( H20:AA20) -> 0 | H20: =IF(Предпосылки!H$8=1, H24*Предпосылки!H36,0) -> 0 | I20: =IF(Предпосылки!I$8=1, I24*Предпосылки!I36,0) -> 0 | J20: =IF(Предпосылки!J$8=1, J24*Предпосылки!J36,0) -> 0 | K20: =IF(Предпосылки!K$8=1, K24*Предпосылки!K36,0) -> 0 | L20: =IF(Предпосылки!L$8=1, L24*Предпосылки!L36,0) -> 0 | M20: =IF(Предпосылки!M$8=1, M24*Предпосылки!M36,0) -> 0 | N20: =IF(Предпосылки!N$8=1, N24*Предпосылки!N36,0) -> 0 | O20: =IF(Предпосылки!O$8=1, O24*Предпосылки!O36,0) -> 0 | P20: =IF(Предпосылки!P$8=1, P24*Предпосылки!P36,0) -> 0 | Q20: =IF(Предпосылки!Q$8=1, Q24*Предпосылки!Q36,0) -> 0 | R20: =IF(Предпосылки!R$8=1, R24*Предпосылки!R36,0) -> 0 | S20: =IF(Предпосылки!S$8=1, S24*Предпосылки!S36,0) -> 0 | T20: =IF(Предпосылки!T$8=1, T24*Предпосылки!T36,0) -> 0 | U20: =IF(Предпосылки!U$8=1, U24*Предпосылки!U36,0) -> 0 | V20: =IF(Предпосылки!V$8=1, V24*Предпосылки!V36,0) -> 0 | W20: =IF(Предпосылки!W$8=1, W24*Предпосылки!W36,0) -> 0 | X20: =IF(Предпосылки!X$8=1, X24*Предпосылки!X36,0) -> 0 | Y20: =IF(Предпосылки!Y$8=1, Y24*Предпосылки!Y36,0) -> 0 | Z20: =IF(Предпосылки!Z$8=1, Z24*Предпосылки!Z36,0) -> 0 | AA20: =IF(Предпосылки!AA$8=1, AA24*Предпосылки!AA36,0) -> 0 | AB20: =IF(Предпосылки!AB$8=1, AB24*Предпосылки!AB36,0) -> 0
B22: Объем произведенной промышленной продукции в натуральном выражении: | F22: =SUM( H22:AA22) -> 0 | H22: =SUM(H23:H24) -> 0 | I22: =SUM(I23:I24) -> 0 | J22: 0 | K22: 0 | L22: 0 | M22: 0 | N22: 0 | O22: 0 | P22: 0 | Q22: 0 | R22: 0 | S22: 0 | T22: 0 | U22: 0 | V22: 0 | W22: 0 | X22: 0 | Y22: 0 | Z22: 0 | AA22: 0 | AB22: =SUM(AB23:AB24) -> 0
C23: =C19 -> Продукция 1 | D23: =Предпосылки!D41 -> ед. | E23: Лист: Предпосылки | F23: =SUM( H23:AA23) -> 0 | H23: =IF(Предпосылки!H$8=1, Предпосылки!H41,0) -> 0 | I23: =IF(Предпосылки!I$8=1, Предпосылки!I41,0) -> 0 | J23: =IF(Предпосылки!J$8=1, Предпосылки!J41,0) -> 0 | K23: =IF(Предпосылки!K$8=1, Предпосылки!K41,0) -> 0 | L23: =IF(Предпосылки!L$8=1, Предпосылки!L41,0) -> 0 | M23: =IF(Предпосылки!M$8=1, Предпосылки!M41,0) -> 0 | N23: =IF(Предпосылки!N$8=1, Предпосылки!N41,0) -> 0 | O23: =IF(Предпосылки!O$8=1, Предпосылки!O41,0) -> 0 | P23: =IF(Предпосылки!P$8=1, Предпосылки!P41,0) -> 0 | Q23: =IF(Предпосылки!Q$8=1, Предпосылки!Q41,0) -> 0 | R23: =IF(Предпосылки!R$8=1, Предпосылки!R41,0) -> 0 | S23: =IF(Предпосылки!S$8=1, Предпосылки!S41,0) -> 0 | T23: =IF(Предпосылки!T$8=1, Предпосылки!T41,0) -> 0 | U23: =IF(Предпосылки!U$8=1, Предпосылки!U41,0) -> 0 | V23: =IF(Предпосылки!V$8=1, Предпосылки!V41,0) -> 0 | W23: =IF(Предпосылки!W$8=1, Предпосылки!W41,0) -> 0 | X23: =IF(Предпосылки!X$8=1, Предпосылки!X41,0) -> 0 | Y23: =IF(Предпосылки!Y$8=1, Предпосылки!Y41,0) -> 0 | Z23: =IF(Предпосылки!Z$8=1, Предпосылки!Z41,0) -> 0 | AA23: =IF(Предпосылки!AA$8=1, Предпосылки!AA41,0) -> 0 | AB23: =IF(Предпосылки!AB$8=1, Предпосылки!AB41,0) -> 0
C24: =C20 -> Продукция 2 | D24: =Предпосылки!D42 -> ед. | E24: Лист: Предпосылки | F24: =SUM( H24:AA24) -> 0 | H24: =IF(Предпосылки!H$8=1, Предпосылки!H42,0) -> 0 | I24: =IF(Предпосылки!I$8=1, Предпосылки!I42,0) -> 0 | J24: =IF(Предпосылки!J$8=1, Предпосылки!J42,0) -> 0 | K24: =IF(Предпосылки!K$8=1, Предпосылки!K42,0) -> 0 | L24: =IF(Предпосылки!L$8=1, Предпосылки!L42,0) -> 0 | M24: =IF(Предпосылки!M$8=1, Предпосылки!M42,0) -> 0 | N24: =IF(Предпосылки!N$8=1, Предпосылки!N42,0) -> 0 | O24: =IF(Предпосылки!O$8=1, Предпосылки!O42,0) -> 0 | P24: =IF(Предпосылки!P$8=1, Предпосылки!P42,0) -> 0 | Q24: =IF(Предпосылки!Q$8=1, Предпосылки!Q42,0) -> 0 | R24: =IF(Предпосылки!R$8=1, Предпосылки!R42,0) -> 0 | S24: =IF(Предпосылки!S$8=1, Предпосылки!S42,0) -> 0 | T24: =IF(Предпосылки!T$8=1, Предпосылки!T42,0) -> 0 | U24: =IF(Предпосылки!U$8=1, Предпосылки!U42,0) -> 0 | V24: =IF(Предпосылки!V$8=1, Предпосылки!V42,0) -> 0 | W24: =IF(Предпосылки!W$8=1, Предпосылки!W42,0) -> 0 | X24: =IF(Предпосылки!X$8=1, Предпосылки!X42,0) -> 0 | Y24: =IF(Предпосылки!Y$8=1, Предпосылки!Y42,0) -> 0 | Z24: =IF(Предпосылки!Z$8=1, Предпосылки!Z42,0) -> 0 | AA24: =IF(Предпосылки!AA$8=1, Предпосылки!AA42,0) -> 0 | AB24: =IF(Предпосылки!AB$8=1, Предпосылки!AB42,0) -> 0
B26: Объем реализованной промышленной продукции в денежном выражении: | F26: =SUM( H26:AA26) -> 0 | H26: =SUM(H27:H28) -> 0 | I26: =SUM(I27:I28) -> 0 | J26: 0 | K26: 0 | L26: 0 | M26: 0 | N26: 0 | O26: 0 | P26: 0 | Q26: 0 | R26: 0 | S26: 0 | T26: 0 | U26: 0 | V26: 0 | W26: 0 | X26: 0 | Y26: 0 | Z26: 0 | AA26: 0 | AB26: =SUM(AB27:AB28) -> 0
C27: =C23 -> Продукция 1 | D27: ='Выручка и себестоимость'!D14 -> тыс. руб. | E27: Лист: Выручка и себестоимость | F27: =SUM( H27:AA27) -> 0 | H27: =IF(Предпосылки!H$8=1, 'Выручка и себестоимость'!H14,0) -> 0 | I27: =IF(Предпосылки!I$8=1, 'Выручка и себестоимость'!I14,0) -> 0 | J27: =IF(Предпосылки!J$8=1, 'Выручка и себестоимость'!J14,0) -> 0 | K27: =IF(Предпосылки!K$8=1, 'Выручка и себестоимость'!K14,0) -> 0 | L27: =IF(Предпосылки!L$8=1, 'Выручка и себестоимость'!L14,0) -> 0 | M27: =IF(Предпосылки!M$8=1, 'Выручка и себестоимость'!M14,0) -> 0 | N27: =IF(Предпосылки!N$8=1, 'Выручка и себестоимость'!N14,0) -> 0 | O27: =IF(Предпосылки!O$8=1, 'Выручка и себестоимость'!O14,0) -> 0 | P27: =IF(Предпосылки!P$8=1, 'Выручка и себестоимость'!P14,0) -> 0 | Q27: =IF(Предпосылки!Q$8=1, 'Выручка и себестоимость'!Q14,0) -> 0 | R27: =IF(Предпосылки!R$8=1, 'Выручка и себестоимость'!R14,0) -> 0 | S27: =IF(Предпосылки!S$8=1, 'Выручка и себестоимость'!S14,0) -> 0 | T27: =IF(Предпосылки!T$8=1, 'Выручка и себестоимость'!T14,0) -> 0 | U27: =IF(Предпосылки!U$8=1, 'Выручка и себестоимость'!U14,0) -> 0 | V27: =IF(Предпосылки!V$8=1, 'Выручка и себестоимость'!V14,0) -> 0 | W27: =IF(Предпосылки!W$8=1, 'Выручка и себестоимость'!W14,0) -> 0 | X27: =IF(Предпосылки!X$8=1, 'Выручка и себестоимость'!X14,0) -> 0 | Y27: =IF(Предпосылки!Y$8=1, 'Выручка и себестоимость'!Y14,0) -> 0 | Z27: =IF(Предпосылки!Z$8=1, 'Выручка и себестоимость'!Z14,0) -> 0 | AA27: =IF(Предпосылки!AA$8=1, 'Выручка и себестоимость'!AA14,0) -> 0 | AB27: =IF(Предпосылки!AB$8=1, 'Выручка и себестоимость'!AB14,0) -> 0
C28: =C24 -> Продукция 2 | D28: ='Выручка и себестоимость'!D15 -> тыс. руб. | E28: Лист: Выручка и себестоимость | F28: =SUM( H28:AA28) -> 0 | H28: =IF(Предпосылки!H$8=1, 'Выручка и себестоимость'!H15,0) -> 0 | I28: =IF(Предпосылки!I$8=1, 'Выручка и себестоимость'!I15,0) -> 0 | J28: =IF(Предпосылки!J$8=1, 'Выручка и себестоимость'!J15,0) -> 0 | K28: =IF(Предпосылки!K$8=1, 'Выручка и себестоимость'!K15,0) -> 0 | L28: =IF(Предпосылки!L$8=1, 'Выручка и себестоимость'!L15,0) -> 0 | M28: =IF(Предпосылки!M$8=1, 'Выручка и себестоимость'!M15,0) -> 0 | N28: =IF(Предпосылки!N$8=1, 'Выручка и себестоимость'!N15,0) -> 0 | O28: =IF(Предпосылки!O$8=1, 'Выручка и себестоимость'!O15,0) -> 0 | P28: =IF(Предпосылки!P$8=1, 'Выручка и себестоимость'!P15,0) -> 0 | Q28: =IF(Предпосылки!Q$8=1, 'Выручка и себестоимость'!Q15,0) -> 0 | R28: =IF(Предпосылки!R$8=1, 'Выручка и себестоимость'!R15,0) -> 0 | S28: =IF(Предпосылки!S$8=1, 'Выручка и себестоимость'!S15,0) -> 0 | T28: =IF(Предпосылки!T$8=1, 'Выручка и себестоимость'!T15,0) -> 0 | U28: =IF(Предпосылки!U$8=1, 'Выручка и себестоимость'!U15,0) -> 0 | V28: =IF(Предпосылки!V$8=1, 'Выручка и себестоимость'!V15,0) -> 0 | W28: =IF(Предпосылки!W$8=1, 'Выручка и себестоимость'!W15,0) -> 0 | X28: =IF(Предпосылки!X$8=1, 'Выручка и себестоимость'!X15,0) -> 0 | Y28: =IF(Предпосылки!Y$8=1, 'Выручка и себестоимость'!Y15,0) -> 0 | Z28: =IF(Предпосылки!Z$8=1, 'Выручка и себестоимость'!Z15,0) -> 0 | AA28: =IF(Предпосылки!AA$8=1, 'Выручка и себестоимость'!AA15,0) -> 0 | AB28: =IF(Предпосылки!AB$8=1, 'Выручка и себестоимость'!AB15,0) -> 0
B30: Объем реализованной промышленной продукции в натуральном выражении: | F30: =SUM( H30:AA30) -> 0 | H30: =SUM(H31:H32) -> 0 | I30: =SUM(I31:I32) -> 0 | J30: 0 | K30: 0 | L30: 0 | M30: 0 | N30: 0 | O30: 0 | P30: 0 | Q30: 0 | R30: 0 | S30: 0 | T30: 0 | U30: 0 | V30: 0 | W30: 0 | X30: 0 | Y30: 0 | Z30: 0 | AA30: 0 | AB30: =SUM(AB31:AB32) -> 0
C31: =C27 -> Продукция 1 | D31: =Предпосылки!D47 -> ед. | E31: Лист: Предпосылки | F31: =SUM( H31:AA31) -> 0 | H31: =IF(Предпосылки!H$8=1, Предпосылки!H47,0) -> 0 | I31: =IF(Предпосылки!I$8=1, Предпосылки!I47,0) -> 0 | J31: =IF(Предпосылки!J$8=1, Предпосылки!J47,0) -> 0 | K31: =IF(Предпосылки!K$8=1, Предпосылки!K47,0) -> 0 | L31: =IF(Предпосылки!L$8=1, Предпосылки!L47,0) -> 0 | M31: =IF(Предпосылки!M$8=1, Предпосылки!M47,0) -> 0 | N31: =IF(Предпосылки!N$8=1, Предпосылки!N47,0) -> 0 | O31: =IF(Предпосылки!O$8=1, Предпосылки!O47,0) -> 0 | P31: =IF(Предпосылки!P$8=1, Предпосылки!P47,0) -> 0 | Q31: =IF(Предпосылки!Q$8=1, Предпосылки!Q47,0) -> 0 | R31: =IF(Предпосылки!R$8=1, Предпосылки!R47,0) -> 0 | S31: =IF(Предпосылки!S$8=1, Предпосылки!S47,0) -> 0 | T31: =IF(Предпосылки!T$8=1, Предпосылки!T47,0) -> 0 | U31: =IF(Предпосылки!U$8=1, Предпосылки!U47,0) -> 0 | V31: =IF(Предпосылки!V$8=1, Предпосылки!V47,0) -> 0 | W31: =IF(Предпосылки!W$8=1, Предпосылки!W47,0) -> 0 | X31: =IF(Предпосылки!X$8=1, Предпосылки!X47,0) -> 0 | Y31: =IF(Предпосылки!Y$8=1, Предпосылки!Y47,0) -> 0 | Z31: =IF(Предпосылки!Z$8=1, Предпосылки!Z47,0) -> 0 | AA31: =IF(Предпосылки!AA$8=1, Предпосылки!AA47,0) -> 0 | AB31: =IF(Предпосылки!AB$8=1, Предпосылки!AB47,0) -> 0
C32: =C28 -> Продукция 2 | D32: =Предпосылки!D48 -> ед. | E32: Лист: Предпосылки | F32: =SUM( H32:AA32) -> 0 | H32: =IF(Предпосылки!H$8=1, Предпосылки!H48,0) -> 0 | I32: =IF(Предпосылки!I$8=1, Предпосылки!I48,0) -> 0 | J32: =IF(Предпосылки!J$8=1, Предпосылки!J48,0) -> 0 | K32: =IF(Предпосылки!K$8=1, Предпосылки!K48,0) -> 0 | L32: =IF(Предпосылки!L$8=1, Предпосылки!L48,0) -> 0 | M32: =IF(Предпосылки!M$8=1, Предпосылки!M48,0) -> 0 | N32: =IF(Предпосылки!N$8=1, Предпосылки!N48,0) -> 0 | O32: =IF(Предпосылки!O$8=1, Предпосылки!O48,0) -> 0 | P32: =IF(Предпосылки!P$8=1, Предпосылки!P48,0) -> 0 | Q32: =IF(Предпосылки!Q$8=1, Предпосылки!Q48,0) -> 0 | R32: =IF(Предпосылки!R$8=1, Предпосылки!R48,0) -> 0 | S32: =IF(Предпосылки!S$8=1, Предпосылки!S48,0) -> 0 | T32: =IF(Предпосылки!T$8=1, Предпосылки!T48,0) -> 0 | U32: =IF(Предпосылки!U$8=1, Предпосылки!U48,0) -> 0 | V32: =IF(Предпосылки!V$8=1, Предпосылки!V48,0) -> 0 | W32: =IF(Предпосылки!W$8=1, Предпосылки!W48,0) -> 0 | X32: =IF(Предпосылки!X$8=1, Предпосылки!X48,0) -> 0 | Y32: =IF(Предпосылки!Y$8=1, Предпосылки!Y48,0) -> 0 | Z32: =IF(Предпосылки!Z$8=1, Предпосылки!Z48,0) -> 0 | AA32: =IF(Предпосылки!AA$8=1, Предпосылки!AA48,0) -> 0 | AB32: =IF(Предпосылки!AB$8=1, Предпосылки!AB48,0) -> 0
B34: Минимальный объем налогов, сборов, страховых взносов к уплате:
C35: С учетом применения мер стимулирования деятельности в сфере промышленности, предусмотренных СПИК: | F35: =SUM( H35:AA35) -> 0 | H35: =SUM(H36:H39) -> 0 | I35: =SUM(I36:I39) -> 0 | J35: 0 | K35: 0 | L35: 0 | M35: 0 | N35: 0 | O35: 0 | P35: 0 | Q35: 0 | R35: 0 | S35: 0 | T35: 0 | U35: 0 | V35: 0 | W35: 0 | X35: 0 | Y35: 0 | Z35: 0 | AA35: 0 | AB35: =SUM(AB36:AB39) -> 0
C36: в федеральный бюджет | D36: =Налоги!D231 -> тыс. руб. | E36: Лист: Налоги | F36: =SUM( H36:AA36) -> 0 | H36: =IF(Предпосылки!H$8=1, -Налоги!H231,0) -> 0 | I36: =IF(Предпосылки!I$8=1, -Налоги!I231,0) -> 0 | J36: =IF(Предпосылки!J$8=1, -Налоги!J231,0) -> 0 | K36: =IF(Предпосылки!K$8=1, -Налоги!K231,0) -> 0 | L36: =IF(Предпосылки!L$8=1, -Налоги!L231,0) -> 0 | M36: =IF(Предпосылки!M$8=1, -Налоги!M231,0) -> 0 | N36: =IF(Предпосылки!N$8=1, -Налоги!N231,0) -> 0 | O36: =IF(Предпосылки!O$8=1, -Налоги!O231,0) -> 0 | P36: =IF(Предпосылки!P$8=1, -Налоги!P231,0) -> 0 | Q36: =IF(Предпосылки!Q$8=1, -Налоги!Q231,0) -> 0 | R36: =IF(Предпосылки!R$8=1, -Налоги!R231,0) -> 0 | S36: =IF(Предпосылки!S$8=1, -Налоги!S231,0) -> 0 | T36: =IF(Предпосылки!T$8=1, -Налоги!T231,0) -> 0 | U36: =IF(Предпосылки!U$8=1, -Налоги!U231,0) -> 0 | V36: =IF(Предпосылки!V$8=1, -Налоги!V231,0) -> 0 | W36: =IF(Предпосылки!W$8=1, -Налоги!W231,0) -> 0 | X36: =IF(Предпосылки!X$8=1, -Налоги!X231,0) -> 0 | Y36: =IF(Предпосылки!Y$8=1, -Налоги!Y231,0) -> 0 | Z36: =IF(Предпосылки!Z$8=1, -Налоги!Z231,0) -> 0 | AA36: =IF(Предпосылки!AA$8=1, -Налоги!AA231,0) -> 0 | AB36: =IF(Предпосылки!AB$8=1, -Налоги!AB231,0) -> 0
C37: в региональный бюджет | D37: =Налоги!D232 -> тыс. руб. | E37: Лист: Налоги | F37: =SUM( H37:AA37) -> 0 | H37: =IF(Предпосылки!H$8=1, -Налоги!H235,0) -> 0 | I37: =IF(Предпосылки!I$8=1, -Налоги!I235,0) -> 0 | J37: =IF(Предпосылки!J$8=1, -Налоги!J235,0) -> 0 | K37: =IF(Предпосылки!K$8=1, -Налоги!K235,0) -> 0 | L37: =IF(Предпосылки!L$8=1, -Налоги!L235,0) -> 0 | M37: =IF(Предпосылки!M$8=1, -Налоги!M235,0) -> 0 | N37: =IF(Предпосылки!N$8=1, -Налоги!N235,0) -> 0 | O37: =IF(Предпосылки!O$8=1, -Налоги!O235,0) -> 0 | P37: =IF(Предпосылки!P$8=1, -Налоги!P235,0) -> 0 | Q37: =IF(Предпосылки!Q$8=1, -Налоги!Q235,0) -> 0 | R37: =IF(Предпосылки!R$8=1, -Налоги!R235,0) -> 0 | S37: =IF(Предпосылки!S$8=1, -Налоги!S235,0) -> 0 | T37: =IF(Предпосылки!T$8=1, -Налоги!T235,0) -> 0 | U37: =IF(Предпосылки!U$8=1, -Налоги!U235,0) -> 0 | V37: =IF(Предпосылки!V$8=1, -Налоги!V235,0) -> 0 | W37: =IF(Предпосылки!W$8=1, -Налоги!W235,0) -> 0 | X37: =IF(Предпосылки!X$8=1, -Налоги!X235,0) -> 0 | Y37: =IF(Предпосылки!Y$8=1, -Налоги!Y235,0) -> 0 | Z37: =IF(Предпосылки!Z$8=1, -Налоги!Z235,0) -> 0 | AA37: =IF(Предпосылки!AA$8=1, -Налоги!AA235,0) -> 0 | AB37: =IF(Предпосылки!AB$8=1, -Налоги!AB235,0) -> 0
C38: в местный бюджет | D38: =Налоги!D235 -> тыс. руб. | E38: Лист: Налоги | F38: =SUM( H38:AA38) -> 0 | H38: =IF(Предпосылки!H$8=1, -Налоги!H240,0) -> 0 | I38: =IF(Предпосылки!I$8=1, -Налоги!I240,0) -> 0 | J38: =IF(Предпосылки!J$8=1, -Налоги!J240,0) -> 0 | K38: =IF(Предпосылки!K$8=1, -Налоги!K240,0) -> 0 | L38: =IF(Предпосылки!L$8=1, -Налоги!L240,0) -> 0 | M38: =IF(Предпосылки!M$8=1, -Налоги!M240,0) -> 0 | N38: =IF(Предпосылки!N$8=1, -Налоги!N240,0) -> 0 | O38: =IF(Предпосылки!O$8=1, -Налоги!O240,0) -> 0 | P38: =IF(Предпосылки!P$8=1, -Налоги!P240,0) -> 0 | Q38: =IF(Предпосылки!Q$8=1, -Налоги!Q240,0) -> 0 | R38: =IF(Предпосылки!R$8=1, -Налоги!R240,0) -> 0 | S38: =IF(Предпосылки!S$8=1, -Налоги!S240,0) -> 0 | T38: =IF(Предпосылки!T$8=1, -Налоги!T240,0) -> 0 | U38: =IF(Предпосылки!U$8=1, -Налоги!U240,0) -> 0 | V38: =IF(Предпосылки!V$8=1, -Налоги!V240,0) -> 0 | W38: =IF(Предпосылки!W$8=1, -Налоги!W240,0) -> 0 | X38: =IF(Предпосылки!X$8=1, -Налоги!X240,0) -> 0 | Y38: =IF(Предпосылки!Y$8=1, -Налоги!Y240,0) -> 0 | Z38: =IF(Предпосылки!Z$8=1, -Налоги!Z240,0) -> 0 | AA38: =IF(Предпосылки!AA$8=1, -Налоги!AA240,0) -> 0 | AB38: =IF(Предпосылки!AB$8=1, -Налоги!AB240,0) -> 0
C39: страховые взносы | D39: =Налоги!D236 -> тыс. руб. | E39: Лист: Налоги | F39: =SUM( H39:AA39) -> 0 | H39: =IF(Предпосылки!H$8=1, -Налоги!H243,0) -> 0 | I39: =IF(Предпосылки!I$8=1, -Налоги!I243,0) -> 0 | J39: =IF(Предпосылки!J$8=1, -Налоги!J243,0) -> 0 | K39: =IF(Предпосылки!K$8=1, -Налоги!K243,0) -> 0 | L39: =IF(Предпосылки!L$8=1, -Налоги!L243,0) -> 0 | M39: =IF(Предпосылки!M$8=1, -Налоги!M243,0) -> 0 | N39: =IF(Предпосылки!N$8=1, -Налоги!N243,0) -> 0 | O39: =IF(Предпосылки!O$8=1, -Налоги!O243,0) -> 0 | P39: =IF(Предпосылки!P$8=1, -Налоги!P243,0) -> 0 | Q39: =IF(Предпосылки!Q$8=1, -Налоги!Q243,0) -> 0 | R39: =IF(Предпосылки!R$8=1, -Налоги!R243,0) -> 0 | S39: =IF(Предпосылки!S$8=1, -Налоги!S243,0) -> 0 | T39: =IF(Предпосылки!T$8=1, -Налоги!T243,0) -> 0 | U39: =IF(Предпосылки!U$8=1, -Налоги!U243,0) -> 0 | V39: =IF(Предпосылки!V$8=1, -Налоги!V243,0) -> 0 | W39: =IF(Предпосылки!W$8=1, -Налоги!W243,0) -> 0 | X39: =IF(Предпосылки!X$8=1, -Налоги!X243,0) -> 0 | Y39: =IF(Предпосылки!Y$8=1, -Налоги!Y243,0) -> 0 | Z39: =IF(Предпосылки!Z$8=1, -Налоги!Z243,0) -> 0 | AA39: =IF(Предпосылки!AA$8=1, -Налоги!AA243,0) -> 0 | AB39: =IF(Предпосылки!AB$8=1, -Налоги!AB243,0) -> 0
C41: Без учета применения мер стимулирования деятельности в сфере промышленности, предусмотренных СПИК: | F41: =SUM( H41:AA41) -> 0 | H41: =SUM(H42:H45) -> 0 | I41: =SUM(I42:I45) -> 0 | J41: 0 | K41: 0 | L41: 0 | M41: 0 | N41: 0 | O41: 0 | P41: 0 | Q41: 0 | R41: 0 | S41: 0 | T41: 0 | U41: 0 | V41: 0 | W41: 0 | X41: 0 | Y41: 0 | Z41: 0 | AA41: 0 | AB41: =SUM(AB42:AB45) -> 0
C42: =C36 -> в федеральный бюджет | D42: тыс. руб. | E42: Лист: Налоги | F42: =SUM( H42:AA42) -> 0 | H42: =IF(Предпосылки!H$8=1, -Налоги!H249,0) -> 0 | I42: =IF(Предпосылки!I$8=1, -Налоги!I249,0) -> 0 | J42: =IF(Предпосылки!J$8=1, -Налоги!J249,0) -> 0 | K42: =IF(Предпосылки!K$8=1, -Налоги!K249,0) -> 0 | L42: =IF(Предпосылки!L$8=1, -Налоги!L249,0) -> 0 | M42: =IF(Предпосылки!M$8=1, -Налоги!M249,0) -> 0 | N42: =IF(Предпосылки!N$8=1, -Налоги!N249,0) -> 0 | O42: =IF(Предпосылки!O$8=1, -Налоги!O249,0) -> 0 | P42: =IF(Предпосылки!P$8=1, -Налоги!P249,0) -> 0 | Q42: =IF(Предпосылки!Q$8=1, -Налоги!Q249,0) -> 0 | R42: =IF(Предпосылки!R$8=1, -Налоги!R249,0) -> 0 | S42: =IF(Предпосылки!S$8=1, -Налоги!S249,0) -> 0 | T42: =IF(Предпосылки!T$8=1, -Налоги!T249,0) -> 0 | U42: =IF(Предпосылки!U$8=1, -Налоги!U249,0) -> 0 | V42: =IF(Предпосылки!V$8=1, -Налоги!V249,0) -> 0 | W42: =IF(Предпосылки!W$8=1, -Налоги!W249,0) -> 0 | X42: =IF(Предпосылки!X$8=1, -Налоги!X249,0) -> 0 | Y42: =IF(Предпосылки!Y$8=1, -Налоги!Y249,0) -> 0 | Z42: =IF(Предпосылки!Z$8=1, -Налоги!Z249,0) -> 0 | AA42: =IF(Предпосылки!AA$8=1, -Налоги!AA249,0) -> 0 | AB42: =IF(Предпосылки!AB$8=1, -Налоги!AB249,0) -> 0
C43: в региональный бюджет | D43: тыс. руб. | E43: Лист: Налоги | F43: =SUM( H43:AA43) -> 0 | H43: =IF(Предпосылки!H$8=1, -Налоги!H253,0) -> 0 | I43: =IF(Предпосылки!I$8=1, -Налоги!I253,0) -> 0 | J43: =IF(Предпосылки!J$8=1, -Налоги!J253,0) -> 0 | K43: =IF(Предпосылки!K$8=1, -Налоги!K253,0) -> 0 | L43: =IF(Предпосылки!L$8=1, -Налоги!L253,0) -> 0 | M43: =IF(Предпосылки!M$8=1, -Налоги!M253,0) -> 0 | N43: =IF(Предпосылки!N$8=1, -Налоги!N253,0) -> 0 | O43: =IF(Предпосылки!O$8=1, -Налоги!O253,0) -> 0 | P43: =IF(Предпосылки!P$8=1, -Налоги!P253,0) -> 0 | Q43: =IF(Предпосылки!Q$8=1, -Налоги!Q253,0) -> 0 | R43: =IF(Предпосылки!R$8=1, -Налоги!R253,0) -> 0 | S43: =IF(Предпосылки!S$8=1, -Налоги!S253,0) -> 0 | T43: =IF(Предпосылки!T$8=1, -Налоги!T253,0) -> 0 | U43: =IF(Предпосылки!U$8=1, -Налоги!U253,0) -> 0 | V43: =IF(Предпосылки!V$8=1, -Налоги!V253,0) -> 0 | W43: =IF(Предпосылки!W$8=1, -Налоги!W253,0) -> 0 | X43: =IF(Предпосылки!X$8=1, -Налоги!X253,0) -> 0 | Y43: =IF(Предпосылки!Y$8=1, -Налоги!Y253,0) -> 0 | Z43: =IF(Предпосылки!Z$8=1, -Налоги!Z253,0) -> 0 | AA43: =IF(Предпосылки!AA$8=1, -Налоги!AA253,0) -> 0 | AB43: =IF(Предпосылки!AB$8=1, -Налоги!AB253,0) -> 0
C44: в местный бюджет | D44: тыс. руб. | E44: Лист: Налоги | F44: =SUM( H44:AA44) -> 0 | H44: =IF(Предпосылки!H$8=1, -Налоги!H258,0) -> 0 | I44: =IF(Предпосылки!I$8=1, -Налоги!I258,0) -> 0 | J44: =IF(Предпосылки!J$8=1, -Налоги!J258,0) -> 0 | K44: =IF(Предпосылки!K$8=1, -Налоги!K258,0) -> 0 | L44: =IF(Предпосылки!L$8=1, -Налоги!L258,0) -> 0 | M44: =IF(Предпосылки!M$8=1, -Налоги!M258,0) -> 0 | N44: =IF(Предпосылки!N$8=1, -Налоги!N258,0) -> 0 | O44: =IF(Предпосылки!O$8=1, -Налоги!O258,0) -> 0 | P44: =IF(Предпосылки!P$8=1, -Налоги!P258,0) -> 0 | Q44: =IF(Предпосылки!Q$8=1, -Налоги!Q258,0) -> 0 | R44: =IF(Предпосылки!R$8=1, -Налоги!R258,0) -> 0 | S44: =IF(Предпосылки!S$8=1, -Налоги!S258,0) -> 0 | T44: =IF(Предпосылки!T$8=1, -Налоги!T258,0) -> 0 | U44: =IF(Предпосылки!U$8=1, -Налоги!U258,0) -> 0 | V44: =IF(Предпосылки!V$8=1, -Налоги!V258,0) -> 0 | W44: =IF(Предпосылки!W$8=1, -Налоги!W258,0) -> 0 | X44: =IF(Предпосылки!X$8=1, -Налоги!X258,0) -> 0 | Y44: =IF(Предпосылки!Y$8=1, -Налоги!Y258,0) -> 0 | Z44: =IF(Предпосылки!Z$8=1, -Налоги!Z258,0) -> 0 | AA44: =IF(Предпосылки!AA$8=1, -Налоги!AA258,0) -> 0 | AB44: =IF(Предпосылки!AB$8=1, -Налоги!AB258,0) -> 0
C45: страховые взносы | D45: тыс. руб. | E45: Лист: Налоги | F45: =SUM( H45:AA45) -> 0 | H45: =IF(Предпосылки!H$8=1, -Налоги!H261,0) -> 0 | I45: =IF(Предпосылки!I$8=1, -Налоги!I261,0) -> 0 | J45: =IF(Предпосылки!J$8=1, -Налоги!J261,0) -> 0 | K45: =IF(Предпосылки!K$8=1, -Налоги!K261,0) -> 0 | L45: =IF(Предпосылки!L$8=1, -Налоги!L261,0) -> 0 | M45: =IF(Предпосылки!M$8=1, -Налоги!M261,0) -> 0 | N45: =IF(Предпосылки!N$8=1, -Налоги!N261,0) -> 0 | O45: =IF(Предпосылки!O$8=1, -Налоги!O261,0) -> 0 | P45: =IF(Предпосылки!P$8=1, -Налоги!P261,0) -> 0 | Q45: =IF(Предпосылки!Q$8=1, -Налоги!Q261,0) -> 0 | R45: =IF(Предпосылки!R$8=1, -Налоги!R261,0) -> 0 | S45: =IF(Предпосылки!S$8=1, -Налоги!S261,0) -> 0 | T45: =IF(Предпосылки!T$8=1, -Налоги!T261,0) -> 0 | U45: =IF(Предпосылки!U$8=1, -Налоги!U261,0) -> 0 | V45: =IF(Предпосылки!V$8=1, -Налоги!V261,0) -> 0 | W45: =IF(Предпосылки!W$8=1, -Налоги!W261,0) -> 0 | X45: =IF(Предпосылки!X$8=1, -Налоги!X261,0) -> 0 | Y45: =IF(Предпосылки!Y$8=1, -Налоги!Y261,0) -> 0 | Z45: =IF(Предпосылки!Z$8=1, -Налоги!Z261,0) -> 0 | AA45: =IF(Предпосылки!AA$8=1, -Налоги!AA261,0) -> 0 | AB45: =IF(Предпосылки!AB$8=1, -Налоги!AB261,0) -> 0
B47: Количество создаваемых рабочих мест | D47: =Предпосылки!D127 -> чел. | E47: Лист: Предпосылки | F47: =SUM( H47:AA47) -> 0 | H47: =IF(Предпосылки!H$8=1, Предпосылки!H124-Предпосылки!G124,0) -> 0 | I47: =IF(Предпосылки!I$8=1, Предпосылки!I124-Предпосылки!H124,0) -> 0 | J47: =IF(Предпосылки!J$8=1, Предпосылки!J124-Предпосылки!I124,0) -> 0 | K47: =IF(Предпосылки!K$8=1, Предпосылки!K124-Предпосылки!J124,0) -> 0 | L47: =IF(Предпосылки!L$8=1, Предпосылки!L124-Предпосылки!K124,0) -> 0 | M47: =IF(Предпосылки!M$8=1, Предпосылки!M124-Предпосылки!L124,0) -> 0 | N47: =IF(Предпосылки!N$8=1, Предпосылки!N124-Предпосылки!M124,0) -> 0 | O47: =IF(Предпосылки!O$8=1, Предпосылки!O124-Предпосылки!N124,0) -> 0 | P47: =IF(Предпосылки!P$8=1, Предпосылки!P124-Предпосылки!O124,0) -> 0 | Q47: =IF(Предпосылки!Q$8=1, Предпосылки!Q124-Предпосылки!P124,0) -> 0 | R47: =IF(Предпосылки!R$8=1, Предпосылки!R124-Предпосылки!Q124,0) -> 0 | S47: =IF(Предпосылки!S$8=1, Предпосылки!S124-Предпосылки!R124,0) -> 0 | T47: =IF(Предпосылки!T$8=1, Предпосылки!T124-Предпосылки!S124,0) -> 0 | U47: =IF(Предпосылки!U$8=1, Предпосылки!U124-Предпосылки!T124,0) -> 0 | V47: =IF(Предпосылки!V$8=1, Предпосылки!V124-Предпосылки!U124,0) -> 0 | W47: =IF(Предпосылки!W$8=1, Предпосылки!W124-Предпосылки!V124,0) -> 0 | X47: =IF(Предпосылки!X$8=1, Предпосылки!X124-Предпосылки!W124,0) -> 0 | Y47: =IF(Предпосылки!Y$8=1, Предпосылки!Y124-Предпосылки!X124,0) -> 0 | Z47: =IF(Предпосылки!Z$8=1, Предпосылки!Z124-Предпосылки!Y124,0) -> 0 | AA47: =IF(Предпосылки!AA$8=1, Предпосылки!AA124-Предпосылки!Z124,0) -> 0 | AB47: =IF(Предпосылки!AB$8=1, Предпосылки!AB124-Предпосылки!AA124,0) -> 0
B49: Источники привлечения средств для финансирования инвестиционного проекта
E51: Доля, % | F51: Сумма, тыс. руб
C52: Собственные средства | E52: =IFERROR(F52/$F$55,) -> 0 | F52: =Предпосылки!F249+SUM(Предпосылки!H254:AB255) -> 0
C53: Заемные средства | E53: =IFERROR(F53/$F$55,0) -> 0 | F53: =SUM(Финансирование!H45:AA45,Финансирование!H84:AA84) -> 0
C54: Бюджетные инвестиции | E54: =IFERROR(F54/$F$55,0) -> 0 | F54: =Предпосылки!F281+Предпосылки!F282 -> 0
C55: Итого | E55: =SUM(E52:E54) -> 0 | F55: =SUM(F52:F54) -> 0
B57: Показатели эффективности проекта
E59: Со СПИК | F59: Без СПИК
C60: NPV (чистая приведенная стоимость), тыс. руб. | E60: ='Эффективность (СПИК)'!F54 -> 0 | F60: ='Эффективность (Без СПИК)'!F54 -> 0
C61: IRR (внутренняя норма доходности),% | E61: ='Эффективность (СПИК)'!F55 ->  | F61: ='Эффективность (Без СПИК)'!F55 -> 
C62: PI (индекс рентабельности инвестиций) | E62: ='Эффективность (СПИК)'!F62 ->  | F62: ='Эффективность (Без СПИК)'!F62 -> 
C63: PBP (простой период окупаемости), лет | E63: ='Эффективность (СПИК)'!F56 -> 15 | F63: ='Эффективность (Без СПИК)'!F56 -> 15
C64: DPBP (дисконтированный период окупаемости), лет | E64: ='Эффективность (СПИК)'!F57 -> 15 | F64: ='Эффективность (Без СПИК)'!F57 -> 15
C65: Объем налоговых отчислений (без НДС, акцизов), тыс. руб. | E65: ='Эффективность (СПИК)'!F67 -> 0 | F65: ='Эффективность (Без СПИК)'!F67 -> 0
C66: BNPV бюджетная эффективность, тыс. руб. | E66: ='Эффективность (СПИК)'!F72 -> 0 | F66: ='Эффективность (Без СПИК)'!F72 -> 0
C67: Ставка дисконтирования, % | E67: =WACC!D20 -> 0.2299935989
B69: Проверка корректности финансовой модели
C71: Проверка | E71: Результат
C72: Лист "Капитальные вложения" | E72: ='Капитальные вложения'!L1 -> Верно
C73: Лист "Финансирование" | E73: =Финансирование!L1 -> Верно
C74: Лист "Отчетность" (СПИК) | E74: ='Отчетность (СПИК)'!L1 -> Имеются некорректные данные
C75: Лист "Отчетность" (Без СПИК) | E75: ='Отчетность (Без СПИК)'!L1 -> Имеются некорректные данные
C76: Лист "График финансирования" | E76: ='График финансирования'!K1 -> Верно
C77: Лист "График инвестирования" | E77: ='График инвестирования'!L1 -> Имеются некорректные данные

Sheet Предпосылки
E1: ="Лист: " & RIGHT(CELL("filename",A1),LEN(CELL("filename",A1))-SEARCH("]",CELL("filename",A1))) -> Лист: Предпосылки
C2: Параметр | D2: Ед. изм. | E2: Источник | F2: Текущее значение | H2: =YEAR(F7) -> 2026 | I2: =$H$2+H3 -> 2027 | J2: 2028 | K2: 2029 | L2: 2030 | M2: 2031 | N2: 2032 | O2: 2033 | P2: 2034 | Q2: 2035 | R2: 2036 | S2: 2037 | T2: 2038 | U2: 2039 | V2: 2040 | W2: =$H$2+V3 -> 2041 | X2: 2042 | Y2: 2043 | Z2: 2044 | AA2: 2045 | AB2: 2046 | AC2: 2047
H3: 1 | I3: 2 | J3: 3 | K3: 4 | L3: 5 | M3: 6 | N3: 7 | O3: 8 | P3: 9 | Q3: 10 | R3: 11 | S3: 12 | T3: 13 | U3: 14 | V3: 15 | W3: 16 | X3: 17 | Y3: 18 | Z3: 19 | AA3: 20 | AB3: 21
B5: Общие допущения
C7: Дата оценки | D7: х | F7: 2026-01-01
C8: Срок СПИК | D8: лет | F8: =SUM(H8:AB8) -> 1 | H8: 1 | I8: 0 | J8: 0 | K8: 0 | L8: 0 | M8: 0 | N8: 0 | O8: 0 | P8: 0 | Q8: 0
C9: Инвестиционная фаза проекта | D9: х
C10: Эксплуатационная фаза проекта | D10: х
C11: Действие налоговых льгот | D11: лет | E11: Лист: Налоги | F11: =Налоги!F278 -> 1 | H11: =Налоги!H278 -> 1 | I11: =Налоги!I278 -> 0 | J11: =Налоги!J278 -> 0 | K11: =Налоги!K278 -> 0 | L11: =Налоги!L278 -> 0 | M11: =Налоги!M278 -> 0 | N11: =Налоги!N278 -> 0 | O11: =Налоги!O278 -> 0 | P11: =Налоги!P278 -> 0 | Q11: =Налоги!Q278 -> 0 | R11: =Налоги!R278 -> 0 | S11: =Налоги!S278 -> 0 | T11: =Налоги!T278 -> 0 | U11: =Налоги!U278 -> 0 | V11: =Налоги!V278 -> 0 | W11: =Налоги!W278 -> 0 | X11: =Налоги!X278 -> 0 | Y11: =Налоги!Y278 -> 0 | Z11: =Налоги!Z278 -> 0 | AA11: =Налоги!AA278 -> 0 | AB11: 0
C12: Дней в отчетном периоде | D12: дн | H12: =DATE(I2,1,1)-DATE(H2,1,1) -> 365 | I12: =DATE(J2,1,1)-DATE(I2,1,1) -> 365 | J12: 366 | K12: 365 | L12: 365 | M12: 365 | N12: 366 | O12: 365 | P12: 365 | Q12: 365 | R12: 366 | S12: 365 | T12: 365 | U12: 365 | V12: 366 | W12: =DATE(X2,1,1)-DATE(W2,1,1) -> 365 | X12: 365 | Y12: 365 | Z12: 366 | AA12: 365 | AB12: 365
C14: Ставка дисконтирования (WACC) | D14: % | F14: =WACC!D20 -> 0.2299935989
C15: Ставка дисконтирования для расчета бюджетной эффективности | D15: % | E15: Ключевая ставка ЦБ РФ | F15: 0.145
C16: Темп роста денежных потоков в постпрогнозном периоде (g) | D16: % | F16: =INDEX(H20:AB20,,MATCH(0,H8:AB8,0)-1) -> 0.051
B18: Макроэкономические допущения
C20: Инфляция в России (ИПЦ) | D20: % | E20: МЭР или иные источники | H20: 0.051 | I20: 0.04 | J20: 0.04 | K20: 0.04 | L20: 0.04 | M20: 0.04 | N20: 0.04 | O20: 0.04 | P20: 0.04 | Q20: 0.04 | R20: 0.04 | S20: 0.04 | T20: 0.04 | U20: 0.04 | V20: 0.04 | W20: 0.04 | X20: 0.04 | Y20: 0.04 | Z20: 0.04 | AA20: 0.04 | AB20: 0.04
C21: Рост оплаты труда | D21: % | E21: МЭР или иные источники | H21: 0.076 | I21: 0.08 | J21: 0.073 | K21: 0.073 | L21: 0.073 | M21: 0.073 | N21: 0.073 | O21: 0.073 | P21: 0.073 | Q21: 0.073 | R21: 0.073 | S21: 0.073 | T21: 0.073 | U21: 0.073 | V21: 0.073 | W21: 0.073 | X21: 0.073 | Y21: 0.073 | Z21: 0.073 | AA21: 0.073 | AB21: 0.073
C22: Индекс цен производителей (ИЦП) или темп прироста цен на каждый вид сырья отдельной строкой | D22: % | E22: МЭР или иные источники | H22: 0.061 | I22: 0.049 | J22: 0.043 | K22: 0.043 | L22: 0.043 | M22: 0.043 | N22: 0.043 | O22: 0.043 | P22: 0.043 | Q22: 0.043 | R22: 0.043 | S22: 0.043 | T22: 0.043 | U22: 0.043 | V22: 0.043 | W22: 0.043 | X22: 0.043 | Y22: 0.043 | Z22: 0.043 | AA22: 0.043 | AB22: 0.043
C23: Курс доллара США | D23: руб./долл. США
C24: …
B26: Индекс-дефлятор (цепной коэффициент):
C27: ИПЦ РФ | D27: х | H27: 1 | I27: =H27*(1+I20) -> 1.04 | J27: 1.0816 | K27: 1.124864 | L27: 1.16985856 | M27: 1.216652902 | N27: 1.265319018 | O27: 1.315931779 | P27: 1.36856905 | Q27: 1.423311812 | R27: 1.480244285 | S27: 1.539454056 | T27: 1.601032219 | U27: 1.665073507 | V27: 1.731676448 | W27: 1.800943506 | X27: 1.872981246 | Y27: 1.947900496 | Z27: 2.025816515 | AA27: 2.106849176 | AB27: 2.191123143
C28: Заработная плата персонала | D28: х | H28: 1 | I28: =H28*(1+I21) -> 1.08 | J28: 1.15884 | K28: 1.24343532 | L28: 1.334206098 | M28: 1.431603144 | N28: 1.536110173 | O28: 1.648246216 | P28: 1.768568189 | Q28: 1.897673667 | R28: 2.036203845 | S28: 2.184846726 | T28: 2.344340537 | U28: 2.515477396 | V28: 2.699107246 | W28: 2.896142075 | X28: 3.107560446 | Y28: 3.334412359 | Z28: 3.577824461 | AA28: 3.839005646 | AB28: 4.119253059
C29: ИЦП РФ | D29: х | H29: 1 | I29: =H29*(1+I22) -> 1.049 | J29: 1.094107 | K29: 1.141153601 | L29: 1.190223206 | M29: 1.241402804 | N29: 1.294783124 | O29: 1.350458799 | P29: 1.408528527 | Q29: 1.469095254 | R29: 1.532266349 | S29: 1.598153803 | T29: 1.666874416 | U29: 1.738550016 | V29: 1.813307667 | W29: 1.891279896 | X29: 1.972604932 | Y29: 2.057426944 | Z29: 2.145896302 | AA29: 2.238169843 | AB29: 2.334411147
C30: Валютный курс | D30: x | H30: =H23*(1+'Анализ чувствительности (СПИК)'!$D$63) -> 0 | I30: =I23*(1+'Анализ чувствительности (СПИК)'!$D$63) -> 0 | J30: =J23*(1+'Анализ чувствительности (СПИК)'!$D$63) -> 0 | K30: =K23*(1+'Анализ чувствительности (СПИК)'!$D$63) -> 0 | L30: =L23*(1+'Анализ чувствительности (СПИК)'!$D$63) -> 0 | M30: =M23*(1+'Анализ чувствительности (СПИК)'!$D$63) -> 0 | N30: =N23*(1+'Анализ чувствительности (СПИК)'!$D$63) -> 0 | O30: =O23*(1+'Анализ чувствительности (СПИК)'!$D$63) -> 0 | P30: =P23*(1+'Анализ чувствительности (СПИК)'!$D$63) -> 0 | Q30: =Q23*(1+'Анализ чувствительности (СПИК)'!$D$63) -> 0 | R30: =R23*(1+'Анализ чувствительности (СПИК)'!$D$63) -> 0 | S30: =S23*(1+'Анализ чувствительности (СПИК)'!$D$63) -> 0 | T30: =T23*(1+'Анализ чувствительности (СПИК)'!$D$63) -> 0 | U30: =U23*(1+'Анализ чувствительности (СПИК)'!$D$63) -> 0 | V30: =V23*(1+'Анализ чувствительности (СПИК)'!$D$63) -> 0 | W30: =W23*(1+'Анализ чувствительности (СПИК)'!$D$63) -> 0 | X30: =X23*(1+'Анализ чувствительности (СПИК)'!$D$63) -> 0 | Y30: =Y23*(1+'Анализ чувствительности (СПИК)'!$D$63) -> 0 | Z30: =Z23*(1+'Анализ чувствительности (СПИК)'!$D$63) -> 0 | AA30: =AA23*(1+'Анализ чувствительности (СПИК)'!$D$63) -> 0 | AB30: =AB23*(1+'Анализ чувствительности (СПИК)'!$D$63) -> 0
B32: Предпосылки по расчету выручки
B34: Среднегодовые цены на реализуемую продукцию (без учета НДС)
C35: Продукция 1 | D35: тыс. руб./ ед. | H35: =$F35*H27*(1+'Анализ чувствительности (СПИК)'!$D$39) -> 0 | I35: =$F35*I27*(1+'Анализ чувствительности (СПИК)'!$D$39) -> 0 | J35: =$F35*J27*(1+'Анализ чувствительности (СПИК)'!$D$39) -> 0 | K35: =$F35*K27*(1+'Анализ чувствительности (СПИК)'!$D$39) -> 0 | L35: =$F35*L27*(1+'Анализ чувствительности (СПИК)'!$D$39) -> 0 | M35: =$F35*M27*(1+'Анализ чувствительности (СПИК)'!$D$39) -> 0 | N35: =$F35*N27*(1+'Анализ чувствительности (СПИК)'!$D$39) -> 0 | O35: =$F35*O27*(1+'Анализ чувствительности (СПИК)'!$D$39) -> 0 | P35: =$F35*P27*(1+'Анализ чувствительности (СПИК)'!$D$39) -> 0 | Q35: =$F35*Q27*(1+'Анализ чувствительности (СПИК)'!$D$39) -> 0 | R35: =$F35*R27*(1+'Анализ чувствительности (СПИК)'!$D$39) -> 0 | S35: =$F35*S27*(1+'Анализ чувствительности (СПИК)'!$D$39) -> 0 | T35: =$F35*T27*(1+'Анализ чувствительности (СПИК)'!$D$39) -> 0 | U35: =$F35*U27*(1+'Анализ чувствительности (СПИК)'!$D$39) -> 0 | V35: =$F35*V27*(1+'Анализ чувствительности (СПИК)'!$D$39) -> 0 | W35: =$F35*W27*(1+'Анализ чувствительности (СПИК)'!$D$39) -> 0 | X35: =$F35*X27*(1+'Анализ чувствительности (СПИК)'!$D$39) -> 0 | Y35: =$F35*Y27*(1+'Анализ чувствительности (СПИК)'!$D$39) -> 0 | Z35: =$F35*Z27*(1+'Анализ чувствительности (СПИК)'!$D$39) -> 0 | AA35: =$F35*AA27*(1+'Анализ чувствительности (СПИК)'!$D$39) -> 0 | AB35: =$F35*AB27*(1+'Анализ чувствительности (СПИК)'!$D$39) -> 0
C36: Продукция 2 | D36: тыс. руб./ ед. | H36: =$F36*H28*(1+'Анализ чувствительности (СПИК)'!$D$39) -> 0 | I36: =$F36*I28*(1+'Анализ чувствительности (СПИК)'!$D$39) -> 0 | J36: =$F36*J28*(1+'Анализ чувствительности (СПИК)'!$D$39) -> 0 | K36: =$F36*K28*(1+'Анализ чувствительности (СПИК)'!$D$39) -> 0 | L36: =$F36*L28*(1+'Анализ чувствительности (СПИК)'!$D$39) -> 0 | M36: =$F36*M28*(1+'Анализ чувствительности (СПИК)'!$D$39) -> 0 | N36: =$F36*N28*(1+'Анализ чувствительности (СПИК)'!$D$39) -> 0 | O36: =$F36*O28*(1+'Анализ чувствительности (СПИК)'!$D$39) -> 0 | P36: =$F36*P28*(1+'Анализ чувствительности (СПИК)'!$D$39) -> 0 | Q36: =$F36*Q28*(1+'Анализ чувствительности (СПИК)'!$D$39) -> 0 | R36: =$F36*R28*(1+'Анализ чувствительности (СПИК)'!$D$39) -> 0 | S36: =$F36*S28*(1+'Анализ чувствительности (СПИК)'!$D$39) -> 0 | T36: =$F36*T28*(1+'Анализ чувствительности (СПИК)'!$D$39) -> 0 | U36: =$F36*U28*(1+'Анализ чувствительности (СПИК)'!$D$39) -> 0 | V36: =$F36*V28*(1+'Анализ чувствительности (СПИК)'!$D$39) -> 0 | W36: =$F36*W28*(1+'Анализ чувствительности (СПИК)'!$D$39) -> 0 | X36: =$F36*X28*(1+'Анализ чувствительности (СПИК)'!$D$39) -> 0 | Y36: =$F36*Y28*(1+'Анализ чувствительности (СПИК)'!$D$39) -> 0 | Z36: =$F36*Z28*(1+'Анализ чувствительности (СПИК)'!$D$39) -> 0 | AA36: =$F36*AA28*(1+'Анализ чувствительности (СПИК)'!$D$39) -> 0 | AB36: =$F36*AB28*(1+'Анализ чувствительности (СПИК)'!$D$39) -> 0
C37: … | D37: тыс. руб./ ед.
B40: Объем производства продукции
C41: =C35 -> Продукция 1 | D41: ед.
C42: =C36 -> Продукция 2 | D42: ед.
C43: =C37 -> … | D43: ед.
C44: Итого | D44: ед. | H44: =SUM(H41:H43) -> 0 | I44: 0 | J44: 0 | K44: 0 | L44: 0 | M44: 0 | N44: =SUM(N41:N43) -> 0 | O44: 0 | P44: 0 | Q44: 0 | R44: 0 | S44: 0 | T44: 0 | U44: 0 | V44: 0 | W44: 0 | X44: 0 | Y44: 0 | Z44: 0 | AA44: 0 | AB44: 0
B46: Объем реализации продукции
C47: =C35 -> Продукция 1 | D47: ед. | H47: =H41 -> 0 | I47: =I41 -> 0 | J47: 0 | K47: 0 | L47: 0 | M47: 0 | N47: 0 | O47: 0 | P47: 0 | Q47: 0 | R47: 0 | S47: 0 | T47: 0 | U47: 0 | V47: 0 | W47: 0 | X47: 0 | Y47: 0 | Z47: 0 | AA47: 0 | AB47: 0
C48: =C36 -> Продукция 2 | D48: ед. | H48: =H42 -> 0 | I48: =I42 -> 0 | J48: 0 | K48: 0 | L48: 0 | M48: 0 | N48: 0 | O48: 0 | P48: 0 | Q48: 0 | R48: 0 | S48: 0 | T48: 0 | U48: 0 | V48: 0 | W48: 0 | X48: 0 | Y48: 0 | Z48: 0 | AA48: 0 | AB48: 0
C49: =C37 -> … | D49: ед. | H49: =H43 -> 0 | I49: =I43 -> 0 | J49: 0 | K49: 0 | L49: 0 | M49: 0 | N49: 0 | O49: 0 | P49: 0 | Q49: 0 | R49: 0 | S49: 0 | T49: 0 | U49: 0 | V49: 0 | W49: 0 | X49: 0 | Y49: 0 | Z49: 0 | AA49: 0 | AB49: 0
C50: Итого | D50: ед. | H50: =SUM(H47:H49) -> 0 | I50: =SUM(I47:I49) -> 0 | J50: 0 | K50: 0 | L50: =SUM(L47:L49) -> 0 | M50: 0 | N50: 0 | O50: 0 | P50: 0 | Q50: 0 | R50: 0 | S50: 0 | T50: 0 | U50: 0 | V50: =SUM(V47:V49) -> 0 | W50: 0 | X50: 0 | Y50: 0 | Z50: 0 | AA50: 0 | AB50: 0
B52: Изменение объема реализации продукции
C53: =C35 -> Продукция 1 | D53: % | H53: =IFERROR((H47-G47)/G47,"-") -> - | I53: - | J53: - | K53: - | L53: - | M53: - | N53: - | O53: - | P53: - | Q53: - | R53: - | S53: =IFERROR((S47-R47)/R47,"-") -> - | T53: - | U53: - | V53: - | W53: - | X53: - | Y53: - | Z53: - | AA53: - | AB53: -
C54: =C36 -> Продукция 2 | D54: % | H54: =IFERROR((H48-G48)/G48,"-") -> - | I54: - | J54: - | K54: - | L54: - | M54: - | N54: - | O54: - | P54: - | Q54: - | R54: - | S54: =IFERROR((S48-R48)/R48,"-") -> - | T54: - | U54: - | V54: - | W54: - | X54: - | Y54: - | Z54: - | AA54: - | AB54: -
C55: =C37 -> … | D55: %
B57: Предпосылки по расчету себестоимости
B59: Среднегодовые цены удельных расходов (без учета НДС)
B61: =C35 -> Продукция 1
C62: Сырье/материалы 1 | D62: тыс. руб./ удел. ед. | H62: =$F62*H$29*(1+'Анализ чувствительности (СПИК)'!$D$55) -> 0 | I62: =$F62*I$29*(1+'Анализ чувствительности (СПИК)'!$D$55) -> 0 | J62: =$F62*J$29*(1+'Анализ чувствительности (СПИК)'!$D$55) -> 0 | K62: =$F62*K$29*(1+'Анализ чувствительности (СПИК)'!$D$55) -> 0 | L62: =$F62*L$29*(1+'Анализ чувствительности (СПИК)'!$D$55) -> 0 | M62: =$F62*M$29*(1+'Анализ чувствительности (СПИК)'!$D$55) -> 0 | N62: =$F62*N$29*(1+'Анализ чувствительности (СПИК)'!$D$55) -> 0 | O62: =$F62*O$29*(1+'Анализ чувствительности (СПИК)'!$D$55) -> 0 | P62: =$F62*P$29*(1+'Анализ чувствительности (СПИК)'!$D$55) -> 0 | Q62: =$F62*Q$29*(1+'Анализ чувствительности (СПИК)'!$D$55) -> 0 | R62: =$F62*R$29*(1+'Анализ чувствительности (СПИК)'!$D$55) -> 0 | S62: =$F62*S$29*(1+'Анализ чувствительности (СПИК)'!$D$55) -> 0 | T62: =$F62*T$29*(1+'Анализ чувствительности (СПИК)'!$D$55) -> 0 | U62: =$F62*U$29*(1+'Анализ чувствительности (СПИК)'!$D$55) -> 0 | V62: =$F62*V$29*(1+'Анализ чувствительности (СПИК)'!$D$55) -> 0 | W62: =$F62*W$29*(1+'Анализ чувствительности (СПИК)'!$D$55) -> 0 | X62: =$F62*X$29*(1+'Анализ чувствительности (СПИК)'!$D$55) -> 0 | Y62: =$F62*Y$29*(1+'Анализ чувствительности (СПИК)'!$D$55) -> 0 | Z62: =$F62*Z$29*(1+'Анализ чувствительности (СПИК)'!$D$55) -> 0 | AA62: =$F62*AA$29*(1+'Анализ чувствительности (СПИК)'!$D$55) -> 0 | AB62: =$F62*AB$29*(1+'Анализ чувствительности (СПИК)'!$D$55) -> 0
C63: Сырье/материалы 2 | D63: тыс. руб./ удел. ед. | H63: =$F63*H$29*(1+'Анализ чувствительности (СПИК)'!$D$55)*H30 -> 0 | I63: =$F63*I$29*(1+'Анализ чувствительности (СПИК)'!$D$55)*I30 -> 0 | J63: =$F63*J$29*(1+'Анализ чувствительности (СПИК)'!$D$55)*J30 -> 0 | K63: =$F63*K$29*(1+'Анализ чувствительности (СПИК)'!$D$55)*K30 -> 0 | L63: =$F63*L$29*(1+'Анализ чувствительности (СПИК)'!$D$55)*L30 -> 0 | M63: =$F63*M$29*(1+'Анализ чувствительности (СПИК)'!$D$55)*M30 -> 0 | N63: =$F63*N$29*(1+'Анализ чувствительности (СПИК)'!$D$55)*N30 -> 0 | O63: =$F63*O$29*(1+'Анализ чувствительности (СПИК)'!$D$55)*O30 -> 0 | P63: =$F63*P$29*(1+'Анализ чувствительности (СПИК)'!$D$55)*P30 -> 0 | Q63: =$F63*Q$29*(1+'Анализ чувствительности (СПИК)'!$D$55)*Q30 -> 0 | R63: =$F63*R$29*(1+'Анализ чувствительности (СПИК)'!$D$55)*R30 -> 0 | S63: =$F63*S$29*(1+'Анализ чувствительности (СПИК)'!$D$55)*S30 -> 0 | T63: =$F63*T$29*(1+'Анализ чувствительности (СПИК)'!$D$55)*T30 -> 0 | U63: =$F63*U$29*(1+'Анализ чувствительности (СПИК)'!$D$55)*U30 -> 0 | V63: =$F63*V$29*(1+'Анализ чувствительности (СПИК)'!$D$55)*V30 -> 0 | W63: =$F63*W$29*(1+'Анализ чувствительности (СПИК)'!$D$55)*W30 -> 0 | X63: =$F63*X$29*(1+'Анализ чувствительности (СПИК)'!$D$55)*X30 -> 0 | Y63: =$F63*Y$29*(1+'Анализ чувствительности (СПИК)'!$D$55)*Y30 -> 0 | Z63: =$F63*Z$29*(1+'Анализ чувствительности (СПИК)'!$D$55)*Z30 -> 0 | AA63: =$F63*AA$29*(1+'Анализ чувствительности (СПИК)'!$D$55)*AA30 -> 0 | AB63: =$F63*AB$29*(1+'Анализ чувствительности (СПИК)'!$D$55)*AB30 -> 0
C64: …
B66: =C36 -> Продукция 2
C67: Сырье/материалы 1 | D67: тыс. руб./ удел. ед. | H67: =$F67*H29 -> 0 | I67: 0 | J67: 0 | K67: 0 | L67: 0 | M67: 0 | N67: 0 | O67: 0 | P67: 0 | Q67: 0 | R67: 0 | S67: 0 | T67: 0 | U67: 0 | V67: 0 | W67: 0 | X67: 0 | Y67: 0 | Z67: 0 | AA67: 0 | AB67: 0
C68: Сырье/материалы 2 | D68: тыс. руб./ удел. ед. | H68: =$F68*H29 -> 0 | I68: 0 | J68: 0 | K68: 0 | L68: 0 | M68: 0 | N68: 0 | O68: 0 | P68: 0 | Q68: 0 | R68: 0 | S68: 0 | T68: 0 | U68: 0 | V68: 0 | W68: 0 | X68: 0 | Y68: 0 | Z68: 0 | AA68: 0 | AB68: 0
C69: …
B71: Удельные расходы в расчете на единицу продукции
B73: =B61 -> Продукция 1
C74: =C62 -> Сырье/материалы 1 | D74: удел. ед. / ед. продукции | H74: =$F$74 -> 0 | I74: =$F$74 -> 0 | J74: 0 | K74: 0 | L74: 0 | M74: 0 | N74: 0 | O74: 0 | P74: 0 | Q74: 0 | R74: 0 | S74: 0 | T74: 0 | U74: 0 | V74: 0 | W74: 0 | X74: 0 | Y74: 0 | Z74: 0 | AA74: 0 | AB74: 0
C75: =C63 -> Сырье/материалы 2 | D75: удел. ед. / ед. продукции | H75: =$F$75 -> 0 | I75: =$F$75 -> 0 | J75: 0 | K75: 0 | L75: 0 | M75: 0 | N75: 0 | O75: 0 | P75: 0 | Q75: 0 | R75: 0 | S75: 0 | T75: 0 | U75: 0 | V75: 0 | W75: 0 | X75: 0 | Y75: 0 | Z75: 0 | AA75: 0 | AB75: 0
C76: =C64 -> …
B78: =B66 -> Продукция 2
C79: =C67 -> Сырье/материалы 1 | D79: удел. ед. / ед. продукции | H79: =$F$79 -> 0 | I79: =$F$79 -> 0 | J79: 0 | K79: 0 | L79: 0 | M79: 0 | N79: 0 | O79: 0 | P79: 0 | Q79: 0 | R79: 0 | S79: 0 | T79: 0 | U79: 0 | V79: 0 | W79: 0 | X79: 0 | Y79: 0 | Z79: 0 | AA79: 0 | AB79: 0
C80: =C68 -> Сырье/материалы 2 | D80: удел. ед. / ед. продукции | H80: =$F$80 -> 0 | I80: =$F$80 -> 0 | J80: 0 | K80: 0 | L80: 0 | M80: 0 | N80: 0 | O80: 0 | P80: 0 | Q80: 0 | R80: 0 | S80: 0 | T80: 0 | U80: 0 | V80: 0 | W80: 0 | X80: 0 | Y80: 0 | Z80: 0 | AA80: 0 | AB80: 0
C81: =C69 -> …
B83: Общехозяйственные расходы (без НДС)
B85: Общепроизводственные расходы
C86: Статья расходов 1 | D86: тыс. руб.
C87: Статья расходов 2 | D87: тыс. руб.
C88: … | D88: тыс. руб.
C90: Итого | D90: тыс. руб. | H90: =SUM(H86:H88) -> 0 | I90: 0 | J90: 0 | K90: 0 | L90: 0 | M90: 0 | N90: 0 | O90: 0 | P90: 0 | Q90: 0 | R90: 0 | S90: 0 | T90: 0 | U90: 0 | V90: 0 | W90: 0 | X90: 0 | Y90: 0 | Z90: 0 | AA90: 0 | AB90: 0
C92: Аренда земельных участков | D92: =D86 -> тыс. руб. | H92: ='График инвестирования'!H9 -> 0 | I92: ='График инвестирования'!I9 -> 0 | J92: ='График инвестирования'!J9 -> 0 | K92: ='График инвестирования'!K9 -> 0 | L92: ='График инвестирования'!L9 -> 0 | M92: ='График инвестирования'!M9 -> 0 | N92: ='График инвестирования'!N9 -> 0 | O92: ='График инвестирования'!O9 -> 0 | P92: ='График инвестирования'!P9 -> 0 | Q92: ='График инвестирования'!Q9 -> 0 | R92: ='График инвестирования'!R9 -> 0 | S92: ='График инвестирования'!S9 -> 0 | T92: ='График инвестирования'!T9 -> 0 | U92: ='График инвестирования'!U9 -> 0 | V92: ='График инвестирования'!V9 -> 0 | W92: ='График инвестирования'!W9 -> 0 | X92: ='График инвестирования'!X9 -> 0 | Y92: ='График инвестирования'!Y9 -> 0 | Z92: ='График инвестирования'!Z9 -> 0 | AA92: ='График инвестирования'!AA9 -> 0 | AB92: ='График инвестирования'!AB9 -> 0
C93: ИТОГО с учетом аренды | D93: =D90 -> тыс. руб. | H93: =H90+H92 -> 0 | I93: =I90+I92 -> 0 | J93: 0 | K93: 0 | L93: 0 | M93: 0 | N93: 0 | O93: 0 | P93: 0 | Q93: 0 | R93: 0 | S93: 0 | T93: 0 | U93: 0 | V93: 0 | W93: 0 | X93: 0 | Y93: 0 | Z93: 0 | AA93: 0 | AB93: 0
B95: Коммерческие расходы
C96: Статья расходов 1 | D96: тыс. руб.
C97: Статья расходов 2 | D97: тыс. руб.
C98: … | D98: тыс. руб.
C99: Итого | D99: тыс. руб. | H99: =SUM(H96:H98) -> 0 | I99: 0 | J99: 0 | K99: 0 | L99: 0 | M99: 0 | N99: 0 | O99: 0 | P99: 0 | Q99: 0 | R99: 0 | S99: 0 | T99: 0 | U99: 0 | V99: 0 | W99: 0 | X99: 0 | Y99: 0 | Z99: 0 | AA99: 0 | AB99: 0
B101: Управленческие расходы
C102: Статья расходов 1 | D102: тыс. руб.
C103: Статья расходов 2 | D103: тыс. руб.
C104: … | D104: тыс. руб.
C105: Итого | D105: тыс. руб. | H105: =SUM(H102:H104) -> 0 | I105: 0 | J105: 0 | K105: 0 | L105: 0 | M105: 0 | N105: 0 | O105: 0 | P105: 0 | Q105: 0 | R105: 0 | S105: 0 | T105: 0 | U105: 0 | V105: 0 | W105: 0 | X105: 0 | Y105: 0 | Z105: 0 | AA105: 0 | AB105: 0
B107: Итого общехозяйственные расходы | D107: тыс. руб. | H107: =SUM(IF(SUM($H$93:$AB$93)=0,H90,H93), H99, H105) -> 0 | I107: =SUM(IF(SUM($H$93:$AB$93)=0,I90,I93), I99, I105) -> 0 | J107: 0 | K107: 0 | L107: 0 | M107: 0 | N107: 0 | O107: 0 | P107: 0 | Q107: 0 | R107: 0 | S107: 0 | T107: 0 | U107: 0 | V107: 0 | W107: 0 | X107: 0 | Y107: 0 | Z107: 0 | AA107: 0 | AB107: 0
B109: Прочие расходы (без НДС)
C111: Статья расходов 1 | D111: тыс. руб.
C112: Статья расходов 2 | D112: тыс. руб.
C113: … | D113: тыс. руб.
C114: Итого | D114: тыс. руб. | H114: =SUM(H111:H113) -> 0 | I114: 0 | J114: 0 | K114: 0 | L114: 0 | M114: 0 | N114: 0 | O114: 0 | P114: 0 | Q114: 0 | R114: 0 | S114: 0 | T114: 0 | U114: 0 | V114: 0 | W114: 0 | X114: 0 | Y114: 0 | Z114: 0 | AA114: 0 | AB114: 0
C116: Статьи, подлежащие обложению НДС (1 - да, 0 - нет)
C118: =C111 -> Статья расходов 1 | D118: тыс. руб. | F118: 1
C119: =C112 -> Статья расходов 2 | D119: тыс. руб. | F119: 0
C120: =C113 -> … | D120: тыс. руб. | F120: 0
B122: Расходы на персонал
B124: Численность рабочих мест в соответствии со штатным расписанием | H124: =SUM(H136,H148) -> 0 | I124: =SUM(I136,I148) -> 0 | J124: 0 | K124: 0 | L124: 0 | M124: 0 | N124: 0 | O124: 0 | P124: 0 | Q124: 0 | R124: 0 | S124: 0 | T124: 0 | U124: 0 | V124: 0 | W124: 0 | X124: 0 | Y124: 0 | Z124: 0 | AA124: 0 | AB124: 0
B126: ="Сотрудники с ФОТ менее " & F335 &" тыс. рублей/год" -> Сотрудники с ФОТ менее 2979 тыс. рублей/год
C127: Производственный персонал | D127: чел. | H127: =SUBTOTAL(9,H128:H129) -> 0 | I127: =SUBTOTAL(9,I128:I129) -> 0 | J127: 0 | K127: 0 | L127: 0 | M127: 0 | N127: 0 | O127: 0 | P127: 0 | Q127: 0 | R127: 0 | S127: 0 | T127: 0 | U127: 0 | V127: 0 | W127: 0 | X127: 0 | Y127: 0 | Z127: 0 | AA127: 0 | AB127: 0
C128: Категория 1 | D128: чел.
C129: … | D129: чел.
C130: Вспомогательный персонал | D130: чел. | H130: =SUBTOTAL(9,H131:H132) -> 0 | I130: =SUBTOTAL(9,I131:I132) -> 0 | J130: 0 | K130: 0 | L130: 0 | M130: 0 | N130: 0 | O130: 0 | P130: 0 | Q130: 0 | R130: 0 | S130: 0 | T130: 0 | U130: 0 | V130: 0 | W130: 0 | X130: 0 | Y130: 0 | Z130: 0 | AA130: 0 | AB130: 0
C131: Категория 1 | D131: чел.
C132: … | D132: чел.
C133: Административный персонал | D133: чел. | H133: =SUBTOTAL(9,H134:H135) -> 0 | I133: =SUBTOTAL(9,I134:I135) -> 0 | J133: 0 | K133: 0 | L133: 0 | M133: 0 | N133: 0 | O133: 0 | P133: 0 | Q133: 0 | R133: 0 | S133: 0 | T133: 0 | U133: 0 | V133: 0 | W133: 0 | X133: 0 | Y133: 0 | Z133: 0 | AA133: 0 | AB133: 0
C134: Категория 1 | D134: чел.
C135: … | D135: чел.
C136: Итого | D136: чел. | H136: =SUBTOTAL(9,H127:H135) -> 0 | I136: =SUBTOTAL(9,I127:I135) -> 0 | J136: 0 | K136: 0 | L136: 0 | M136: 0 | N136: 0 | O136: 0 | P136: 0 | Q136: 0 | R136: 0 | S136: 0 | T136: 0 | U136: 0 | V136: 0 | W136: 0 | X136: 0 | Y136: 0 | Z136: 0 | AA136: 0 | AB136: 0
B138: ="Сотрудники с ФОТ более или равно " & F335 &" тыс. рублей/год (каждый указывается отдельно)" -> Сотрудники с ФОТ более или равно 2979 тыс. рублей/год (каждый указывается отдельно)
C139: Производственный персонал | D139: чел. | H139: =SUBTOTAL(9,H140:H141) -> 0 | I139: =SUBTOTAL(9,I140:I141) -> 0 | J139: 0 | K139: 0 | L139: 0 | M139: 0 | N139: 0 | O139: 0 | P139: 0 | Q139: 0 | R139: 0 | S139: 0 | T139: 0 | U139: 0 | V139: 0 | W139: 0 | X139: 0 | Y139: 0 | Z139: 0 | AA139: 0 | AB139: 0
C140: Сотрудник 1 | D140: чел.
C141: … | D141: чел.
C142: Вспомогательный персонал | D142: чел. | H142: =SUBTOTAL(9,H143:H144) -> 0 | I142: =SUBTOTAL(9,I143:I144) -> 0 | J142: 0 | K142: 0 | L142: 0 | M142: 0 | N142: 0 | O142: 0 | P142: 0 | Q142: 0 | R142: 0 | S142: 0 | T142: 0 | U142: 0 | V142: 0 | W142: 0 | X142: 0 | Y142: 0 | Z142: 0 | AA142: 0 | AB142: 0
C143: Сотрудник 1 | D143: чел.
C144: … | D144: чел.
C145: Административный персонал | D145: чел. | H145: =SUBTOTAL(9,H146:H147) -> 0 | I145: =SUBTOTAL(9,I146:I147) -> 0 | J145: 0 | K145: 0 | L145: 0 | M145: 0 | N145: 0 | O145: 0 | P145: 0 | Q145: 0 | R145: 0 | S145: 0 | T145: 0 | U145: 0 | V145: 0 | W145: 0 | X145: 0 | Y145: 0 | Z145: 0 | AA145: 0 | AB145: 0
C146: Сотрудник 1 | D146: чел.
C147: … | D147: чел.
C148: Итого | D148: чел. | H148: =SUBTOTAL(9,H139:H147) -> 0 | I148: =SUBTOTAL(9,I139:I147) -> 0 | J148: 0 | K148: 0 | L148: 0 | M148: 0 | N148: 0 | O148: 0 | P148: 0 | Q148: 0 | R148: 0 | S148: 0 | T148: 0 | U148: 0 | V148: 0 | W148: 0 | X148: 0 | Y148: 0 | Z148: 0 | AA148: 0 | AB148: 0
B150: Фонд оплаты труда (на 1 сотрудника)
B152: =B126 -> Сотрудники с ФОТ менее 2979 тыс. рублей/год
C153: =C127 -> Производственный персонал | D153: тыс. руб. | H153: =SUBTOTAL(9,H154:H155) -> 0 | I153: =SUBTOTAL(9,I154:I155) -> 0 | J153: 0 | K153: 0 | L153: 0 | M153: 0 | N153: 0 | O153: 0 | P153: 0 | Q153: 0 | R153: 0 | S153: 0 | T153: 0 | U153: 0 | V153: 0 | W153: 0 | X153: 0 | Y153: 0 | Z153: 0 | AA153: 0 | AB153: 0
C154: =C128 -> Категория 1 | D154: тыс. руб.
C155: … | D155: тыс. руб.
C156: Вспомогательный персонал | D156: тыс. руб. | H156: =SUBTOTAL(9,H157:H158) -> 0 | I156: =SUBTOTAL(9,I157:I158) -> 0 | J156: 0 | K156: 0 | L156: 0 | M156: 0 | N156: 0 | O156: 0 | P156: 0 | Q156: 0 | R156: 0 | S156: 0 | T156: 0 | U156: 0 | V156: 0 | W156: 0 | X156: 0 | Y156: 0 | Z156: 0 | AA156: 0 | AB156: 0
C157: Категория 1 | D157: тыс. руб.
C158: … | D158: тыс. руб.
C159: Административный персонал | D159: тыс. руб. | H159: =SUBTOTAL(9,H160:H161) -> 0 | I159: =SUBTOTAL(9,I160:I161) -> 0 | J159: 0 | K159: 0 | L159: 0 | M159: 0 | N159: 0 | O159: 0 | P159: 0 | Q159: 0 | R159: 0 | S159: 0 | T159: 0 | U159: 0 | V159: 0 | W159: 0 | X159: 0 | Y159: 0 | Z159: 0 | AA159: 0 | AB159: 0
C160: Категория 1 | D160: тыс. руб.
C161: … | D161: тыс. руб.
C162: Итого | D162: тыс. руб. | H162: =SUBTOTAL(9,H153:H161) -> 0 | I162: =SUBTOTAL(9,I153:I161) -> 0 | J162: 0 | K162: 0 | L162: 0 | M162: 0 | N162: 0 | O162: 0 | P162: 0 | Q162: 0 | R162: 0 | S162: 0 | T162: 0 | U162: 0 | V162: 0 | W162: 0 | X162: 0 | Y162: 0 | Z162: 0 | AA162: 0 | AB162: 0
B164: =B138 -> Сотрудники с ФОТ более или равно 2979 тыс. рублей/год (каждый указывается отдельно)
C165: =C139 -> Производственный персонал | D165: тыс. руб. | H165: =SUBTOTAL(9,H166:H167) -> 0 | I165: 0 | J165: 0 | K165: 0 | L165: 0 | M165: 0 | N165: 0 | O165: 0 | P165: 0 | Q165: 0 | R165: 0 | S165: 0 | T165: 0 | U165: 0 | V165: =SUBTOTAL(9,V166:V167) -> 0 | W165: 0 | X165: 0 | Y165: 0 | Z165: 0 | AA165: 0 | AB165: 0
C166: =C140 -> Сотрудник 1 | D166: тыс. руб.
C167: … | D167: тыс. руб.
C168: Вспомогательный персонал | D168: тыс. руб. | H168: =SUBTOTAL(9,H169:H170) -> 0 | I168: 0 | J168: 0 | K168: 0 | L168: 0 | M168: 0 | N168: 0 | O168: 0 | P168: 0 | Q168: 0 | R168: 0 | S168: 0 | T168: 0 | U168: 0 | V168: =SUBTOTAL(9,V169:V170) -> 0 | W168: 0 | X168: 0 | Y168: 0 | Z168: 0 | AA168: 0 | AB168: 0
C169: Сотрудник 1 | D169: тыс. руб.
C170: … | D170: тыс. руб.
C171: Административный персонал | D171: тыс. руб. | H171: =SUBTOTAL(9,H172:H173) -> 0 | I171: 0 | J171: 0 | K171: 0 | L171: 0 | M171: 0 | N171: 0 | O171: 0 | P171: 0 | Q171: 0 | R171: 0 | S171: 0 | T171: 0 | U171: 0 | V171: =SUBTOTAL(9,V172:V173) -> 0 | W171: 0 | X171: 0 | Y171: 0 | Z171: 0 | AA171: 0 | AB171: 0
C172: Сотрудник 1 | D172: тыс. руб.
C173: … | D173: тыс. руб.
C174: Итого | D174: тыс. руб. | H174: =SUBTOTAL(9,H165:H173) -> 0 | I174: 0 | J174: 0 | K174: 0 | L174: 0 | M174: 0 | N174: 0 | O174: 0 | P174: 0 | Q174: 0 | R174: 0 | S174: 0 | T174: 0 | U174: 0 | V174: =SUBTOTAL(9,V165:V173) -> 0 | W174: 0 | X174: 0 | Y174: 0 | Z174: 0 | AA174: 0 | AB174: 0
B176: Ранее осуществленные инвестиции
C178: В рамках СПИК планируется реализация (инвестиционного проекта / нового этапа инвестиционного проекта) | F178: инвестиционного проекта
C180: Ранее понесенные расходы на реализацию проекта за 12 мес. до подачи Заявления или в календарный год подачи Заявки на заключение СПИК 1.0 (при реализации нового этапа инвестиционного проекта): | D180: тыс. руб.
C182: В случае реализации нового этапа инвестиционного проекта:
C183: Расходы, осуществленные ранее календарного года даты подачи заявки на СПИК | D183: тыс. руб.
C184: Общая сумма инвестиций по проекту | D184: тыс. руб. | F184: =F183+'График инвестирования'!F35 -> 0
C185: Доля, которую новый этап инвестиционного проекта составляет от совокупной стоимости проекта | D185: % | F185: =IFERROR('График инвестирования'!F35/Предпосылки!F184,0) -> 0
B187: Капитальные затраты и амортизация
H188: Затраты на создание/модернизацию в проекте заполняются на листе "График инвестирования"
B194: Затраты на создание/модернизацию (без НДС) | F194: Ранее осуществленные
C195: Здания и сооружения | D195: тыс. руб. | F195: ='График инвестирования'!E12+'График инвестирования'!E14+'График инвестирования'!E19+'График инвестирования'!E23+'График инвестирования'!E27 -> 0 | H195: ='График инвестирования'!H12+'График инвестирования'!H14+'График инвестирования'!H19+'График инвестирования'!H23+'График инвестирования'!H27 -> 0 | I195: ='График инвестирования'!I12+'График инвестирования'!I14+'График инвестирования'!I19+'График инвестирования'!I23+'График инвестирования'!I27 -> 0 | J195: ='График инвестирования'!J12+'График инвестирования'!J14+'График инвестирования'!J19+'График инвестирования'!J23+'График инвестирования'!J27 -> 0 | K195: ='График инвестирования'!K12+'График инвестирования'!K14+'График инвестирования'!K19+'График инвестирования'!K23+'График инвестирования'!K27 -> 0 | L195: ='График инвестирования'!L12+'График инвестирования'!L14+'График инвестирования'!L19+'График инвестирования'!L23+'График инвестирования'!L27 -> 0 | M195: ='График инвестирования'!M12+'График инвестирования'!M14+'График инвестирования'!M19+'График инвестирования'!M23+'График инвестирования'!M27 -> 0 | N195: ='График инвестирования'!N12+'График инвестирования'!N14+'График инвестирования'!N19+'График инвестирования'!N23+'График инвестирования'!N27 -> 0 | O195: ='График инвестирования'!O12+'График инвестирования'!O14+'График инвестирования'!O19+'График инвестирования'!O23+'График инвестирования'!O27 -> 0 | P195: ='График инвестирования'!P12+'График инвестирования'!P14+'График инвестирования'!P19+'График инвестирования'!P23+'График инвестирования'!P27 -> 0 | Q195: ='График инвестирования'!Q12+'График инвестирования'!Q14+'График инвестирования'!Q19+'График инвестирования'!Q23+'График инвестирования'!Q27 -> 0 | R195: ='График инвестирования'!R12+'График инвестирования'!R14+'График инвестирования'!R19+'График инвестирования'!R23+'График инвестирования'!R27 -> 0 | S195: ='График инвестирования'!S12+'График инвестирования'!S14+'График инвестирования'!S19+'График инвестирования'!S23+'График инвестирования'!S27 -> 0 | T195: ='График инвестирования'!T12+'График инвестирования'!T14+'График инвестирования'!T19+'График инвестирования'!T23+'График инвестирования'!T27 -> 0 | U195: ='График инвестирования'!U12+'График инвестирования'!U14+'График инвестирования'!U19+'График инвестирования'!U23+'График инвестирования'!U27 -> 0 | V195: ='График инвестирования'!V12+'График инвестирования'!V14+'График инвестирования'!V19+'График инвестирования'!V23+'График инвестирования'!V27 -> 0 | W195: ='График инвестирования'!W12+'График инвестирования'!W14+'График инвестирования'!W19+'График инвестирования'!W23+'График инвестирования'!W27 -> 0 | X195: ='График инвестирования'!X12+'График инвестирования'!X14+'График инвестирования'!X19+'График инвестирования'!X23+'График инвестирования'!X27 -> 0 | Y195: ='График инвестирования'!Y12+'График инвестирования'!Y14+'График инвестирования'!Y19+'График инвестирования'!Y23+'График инвестирования'!Y27 -> 0 | Z195: ='График инвестирования'!Z12+'График инвестирования'!Z14+'График инвестирования'!Z19+'График инвестирования'!Z23+'График инвестирования'!Z27 -> 0 | AA195: ='График инвестирования'!AA12+'График инвестирования'!AA14+'График инвестирования'!AA19+'График инвестирования'!AA23+'График инвестирования'!AA27 -> 0 | AB195: ='График инвестирования'!AB12+'График инвестирования'!AB14+'График инвестирования'!AB19+'График инвестирования'!AB23+'График инвестирования'!AB27 -> 0
C196: Машины и оборудование | D196: тыс. руб. | F196: ='График инвестирования'!E11+'График инвестирования'!E18+'График инвестирования'!E22+'График инвестирования'!E26 -> 0 | H196: ='График инвестирования'!H11+'График инвестирования'!H18+'График инвестирования'!H22+'График инвестирования'!H26 -> 0 | I196: ='График инвестирования'!I11+'График инвестирования'!I18+'График инвестирования'!I22+'График инвестирования'!I26 -> 0 | J196: ='График инвестирования'!J11+'График инвестирования'!J18+'График инвестирования'!J22+'График инвестирования'!J26 -> 0 | K196: ='График инвестирования'!K11+'График инвестирования'!K18+'График инвестирования'!K22+'График инвестирования'!K26 -> 0 | L196: ='График инвестирования'!L11+'График инвестирования'!L18+'График инвестирования'!L22+'График инвестирования'!L26 -> 0 | M196: ='График инвестирования'!M11+'График инвестирования'!M18+'График инвестирования'!M22+'График инвестирования'!M26 -> 0 | N196: ='График инвестирования'!N11+'График инвестирования'!N18+'График инвестирования'!N22+'График инвестирования'!N26 -> 0 | O196: ='График инвестирования'!O11+'График инвестирования'!O18+'График инвестирования'!O22+'График инвестирования'!O26 -> 0 | P196: ='График инвестирования'!P11+'График инвестирования'!P18+'График инвестирования'!P22+'График инвестирования'!P26 -> 0 | Q196: ='График инвестирования'!Q11+'График инвестирования'!Q18+'График инвестирования'!Q22+'График инвестирования'!Q26 -> 0 | R196: ='График инвестирования'!R11+'График инвестирования'!R18+'График инвестирования'!R22+'График инвестирования'!R26 -> 0 | S196: ='График инвестирования'!S11+'График инвестирования'!S18+'График инвестирования'!S22+'График инвестирования'!S26 -> 0 | T196: ='График инвестирования'!T11+'График инвестирования'!T18+'График инвестирования'!T22+'График инвестирования'!T26 -> 0 | U196: ='График инвестирования'!U11+'График инвестирования'!U18+'График инвестирования'!U22+'График инвестирования'!U26 -> 0 | V196: ='График инвестирования'!V11+'График инвестирования'!V18+'График инвестирования'!V22+'График инвестирования'!V26 -> 0 | W196: ='График инвестирования'!W11+'График инвестирования'!W18+'График инвестирования'!W22+'График инвестирования'!W26 -> 0 | X196: ='График инвестирования'!X11+'График инвестирования'!X18+'График инвестирования'!X22+'График инвестирования'!X26 -> 0 | Y196: ='График инвестирования'!Y11+'График инвестирования'!Y18+'График инвестирования'!Y22+'График инвестирования'!Y26 -> 0 | Z196: ='График инвестирования'!Z11+'График инвестирования'!Z18+'График инвестирования'!Z22+'График инвестирования'!Z26 -> 0 | AA196: ='График инвестирования'!AA11+'График инвестирования'!AA18+'График инвестирования'!AA22+'График инвестирования'!AA26 -> 0 | AB196: ='График инвестирования'!AB11+'График инвестирования'!AB18+'График инвестирования'!AB22+'График инвестирования'!AB26 -> 0
C197: Земля | D197: тыс. руб. | F197: ='График инвестирования'!E8 -> 0 | H197: ='График инвестирования'!H8 -> 0 | I197: ='График инвестирования'!I8 -> 0 | J197: ='График инвестирования'!J8 -> 0 | K197: ='График инвестирования'!K8 -> 0 | L197: ='График инвестирования'!L8 -> 0 | M197: ='График инвестирования'!M8 -> 0 | N197: ='График инвестирования'!N8 -> 0 | O197: ='График инвестирования'!O8 -> 0 | P197: ='График инвестирования'!P8 -> 0 | Q197: ='График инвестирования'!Q8 -> 0 | R197: ='График инвестирования'!R8 -> 0 | S197: ='График инвестирования'!S8 -> 0 | T197: ='График инвестирования'!T8 -> 0 | U197: ='График инвестирования'!U8 -> 0 | V197: ='График инвестирования'!V8 -> 0 | W197: ='График инвестирования'!W8 -> 0 | X197: ='График инвестирования'!X8 -> 0 | Y197: ='График инвестирования'!Y8 -> 0 | Z197: ='График инвестирования'!Z8 -> 0 | AA197: ='График инвестирования'!AA8 -> 0 | AB197: ='График инвестирования'!AB8 -> 0
C198: Транспортные средства | D198: тыс. руб. | F198: ='График инвестирования'!E20+'График инвестирования'!E24+'График инвестирования'!E28 -> 0 | H198: ='График инвестирования'!H20+'График инвестирования'!H24+'График инвестирования'!H28 -> 0 | I198: ='График инвестирования'!I20+'График инвестирования'!I24+'График инвестирования'!I28 -> 0 | J198: ='График инвестирования'!J20+'График инвестирования'!J24+'График инвестирования'!J28 -> 0 | K198: ='График инвестирования'!K20+'График инвестирования'!K24+'График инвестирования'!K28 -> 0 | L198: ='График инвестирования'!L20+'График инвестирования'!L24+'График инвестирования'!L28 -> 0 | M198: ='График инвестирования'!M20+'График инвестирования'!M24+'График инвестирования'!M28 -> 0 | N198: ='График инвестирования'!N20+'График инвестирования'!N24+'График инвестирования'!N28 -> 0 | O198: ='График инвестирования'!O20+'График инвестирования'!O24+'График инвестирования'!O28 -> 0 | P198: ='График инвестирования'!P20+'График инвестирования'!P24+'График инвестирования'!P28 -> 0 | Q198: ='График инвестирования'!Q20+'График инвестирования'!Q24+'График инвестирования'!Q28 -> 0 | R198: ='График инвестирования'!R20+'График инвестирования'!R24+'График инвестирования'!R28 -> 0 | S198: ='График инвестирования'!S20+'График инвестирования'!S24+'График инвестирования'!S28 -> 0 | T198: ='График инвестирования'!T20+'График инвестирования'!T24+'График инвестирования'!T28 -> 0 | U198: ='График инвестирования'!U20+'График инвестирования'!U24+'График инвестирования'!U28 -> 0 | V198: ='График инвестирования'!V20+'График инвестирования'!V24+'График инвестирования'!V28 -> 0 | W198: ='График инвестирования'!W20+'График инвестирования'!W24+'График инвестирования'!W28 -> 0 | X198: ='График инвестирования'!X20+'График инвестирования'!X24+'График инвестирования'!X28 -> 0 | Y198: ='График инвестирования'!Y20+'График инвестирования'!Y24+'График инвестирования'!Y28 -> 0 | Z198: ='График инвестирования'!Z20+'График инвестирования'!Z24+'График инвестирования'!Z28 -> 0 | AA198: ='График инвестирования'!AA20+'График инвестирования'!AA24+'График инвестирования'!AA28 -> 0 | AB198: ='График инвестирования'!AB20+'График инвестирования'!AB24+'График инвестирования'!AB28 -> 0
C199: Нематериальные активы с определенным СПИ | D199: тыс. руб. | F199: ='График инвестирования'!E30+'График инвестирования'!E33 -> 0 | H199: ='График инвестирования'!H30+'График инвестирования'!H33 -> 0 | I199: ='График инвестирования'!I30+'График инвестирования'!I33 -> 0 | J199: ='График инвестирования'!J30+'График инвестирования'!J33 -> 0 | K199: ='График инвестирования'!K30+'График инвестирования'!K33 -> 0 | L199: ='График инвестирования'!L30+'График инвестирования'!L33 -> 0 | M199: ='График инвестирования'!M30+'График инвестирования'!M33 -> 0 | N199: ='График инвестирования'!N30+'График инвестирования'!N33 -> 0 | O199: ='График инвестирования'!O30+'График инвестирования'!O33 -> 0 | P199: ='График инвестирования'!P30+'График инвестирования'!P33 -> 0 | Q199: ='График инвестирования'!Q30+'График инвестирования'!Q33 -> 0 | R199: ='График инвестирования'!R30+'График инвестирования'!R33 -> 0 | S199: ='График инвестирования'!S30+'График инвестирования'!S33 -> 0 | T199: ='График инвестирования'!T30+'График инвестирования'!T33 -> 0 | U199: ='График инвестирования'!U30+'График инвестирования'!U33 -> 0 | V199: ='График инвестирования'!V30+'График инвестирования'!V33 -> 0 | W199: ='График инвестирования'!W30+'График инвестирования'!W33 -> 0 | X199: ='График инвестирования'!X30+'График инвестирования'!X33 -> 0 | Y199: ='График инвестирования'!Y30+'График инвестирования'!Y33 -> 0 | Z199: ='График инвестирования'!Z30+'График инвестирования'!Z33 -> 0 | AA199: ='График инвестирования'!AA30+'График инвестирования'!AA33 -> 0 | AB199: ='График инвестирования'!AB30+'График инвестирования'!AB33 -> 0
C200: Нематериальные активы с неопределенным СПИ (не амортизируются) | D200: тыс. руб.
C201: Итого | D201: тыс. руб. | F201: =SUM(F195:F200) -> 0 | H201: 0 | I201: 0 | J201: 0 | K201: 0 | L201: 0 | M201: 0 | N201: 0 | O201: 0 | P201: 0 | Q201: 0 | R201: 0 | S201: 0 | T201: 0 | U201: 0 | V201: 0 | W201: 0 | X201: 0 | Y201: 0 | Z201: 0 | AA201: 0 | AB201: 0
B203: Затраты на поддержание (без НДС)
C204: =C195 -> Здания и сооружения | D204: тыс. руб.
C205: Машины и оборудование | D205: тыс. руб.
C206: Земля | D206: тыс. руб.
C207: Транспортные средства | D207: тыс. руб.
C208: Нематериальные активы с определенным СПИ | D208: тыс. руб.
C209: Нематериальные активы с неопределенным СПИ (не амортизируются) | D209: тыс. руб.
C210: Итого | D210: тыс. руб. | H210: =SUM(H204:H209) -> 0 | I210: 0 | J210: 0 | K210: 0 | L210: 0 | M210: 0 | N210: 0 | O210: 0 | P210: 0 | Q210: 0 | R210: 0 | S210: 0 | T210: 0 | U210: 0 | V210: 0 | W210: 0 | X210: 0 | Y210: 0 | Z210: 0 | AA210: 0 | AB210: 0
B212: Принятие к учету объектов капитальных вложений к учету (без НДС)
C213: =C204 -> Здания и сооружения | D213: тыс. руб.
C214: Машины и оборудование | D214: тыс. руб.
C215: Земля | D215: тыс. руб.
C216: Транспортные средства | D216: тыс. руб.
C217: Нематериальные активы с определенным СПИ | D217: тыс. руб.
C218: Нематериальные активы с неопределенным СПИ (не амортизируются) | D218: тыс. руб.
C219: Итого | D219: тыс. руб. | H219: =SUM(H213:H218) -> 0 | I219: 0 | J219: 0 | K219: 0 | L219: 0 | M219: 0 | N219: 0 | O219: 0 | P219: 0 | Q219: 0 | R219: 0 | S219: 0 | T219: 0 | U219: 0 | V219: 0 | W219: 0 | X219: 0 | Y219: 0 | Z219: 0 | AA219: 0 | AB219: 0
B221: Срок полезного использования:
C222: Здания и сооружения | D222: лет | F222: 20
C223: Машины и оборудование | D223: лет | F223: 10
C224: Транспортные средства | D224: лет | F224: 7
C225: Нематериальные активы с определенным СПИ | D225: лет | F225: 20
B227: Норма амортизации
C228: =C222 -> Здания и сооружения | D228: % | F228: =One/F222 -> 0.05
C229: =C223 -> Машины и оборудование | D229: % | F229: =One/F223 -> 0.1
C230: =C224 -> Транспортные средства | D230: % | F230: =One/F224 -> 0.1428571429
C231: =C225 -> Нематериальные активы с определенным СПИ | D231: % | F231: =One/F225 -> 0.05
B233: Оборотный капитал
B235: Период оборачиваемости:
B236: Запасы
B237: =B61 -> Продукция 1
C238: =C62 -> Сырье/материалы 1 | D238: дн. | H238: =$F238 -> 0 | I238: =$F238 -> 0 | J238: 0 | K238: 0 | L238: 0 | M238: 0 | N238: 0 | O238: 0 | P238: 0 | Q238: 0 | R238: 0 | S238: 0 | T238: 0 | U238: 0 | V238: 0 | W238: 0 | X238: 0 | Y238: =$F238 -> 0 | Z238: 0 | AA238: 0 | AB238: =$F238 -> 0
C239: =C63 -> Сырье/материалы 2 | D239: дн. | H239: =$F239 -> 0 | I239: 0 | J239: 0 | K239: 0 | L239: 0 | M239: 0 | N239: 0 | O239: 0 | P239: 0 | Q239: 0 | R239: 0 | S239: 0 | T239: 0 | U239: 0 | V239: 0 | W239: 0 | X239: 0 | Y239: 0 | Z239: 0 | AA239: 0 | AB239: 0
C240: =C64 -> …
B241: =B66 -> Продукция 2
C242: =C67 -> Сырье/материалы 1 | D242: дн. | H242: =$F$242 -> 0 | I242: =$F$242 -> 0 | J242: 0 | K242: 0 | L242: 0 | M242: 0 | N242: 0 | O242: 0 | P242: 0 | Q242: 0 | R242: 0 | S242: 0 | T242: 0 | U242: 0 | V242: 0 | W242: 0 | X242: 0 | Y242: =$F$242 -> 0 | Z242: 0 | AA242: 0 | AB242: 0
C243: =C68 -> Сырье/материалы 2 | D243: дн. | H243: =$F$242 -> 0 | I243: 0 | J243: 0 | K243: 0 | L243: 0 | M243: 0 | N243: 0 | O243: 0 | P243: 0 | Q243: 0 | R243: 0 | S243: 0 | T243: 0 | U243: 0 | V243: 0 | W243: 0 | X243: 0 | Y243: 0 | Z243: 0 | AA243: 0 | AB243: 0
C244: =C69 -> …
B246: Источники финансирования проекта
B248: Ранее привлечено в проект
C249: Собственные средства | D249: тыс. руб.
C250: Заемное финансирование | D250: тыс. руб.
C251: Процентная ставка для ранее привлеченного финансирования | D251: %
B253: Финансирование в течение срока действия СПИК
C254: Вложение в уставный капитал | D254: тыс. руб. | F254: =SUM(H254:AA254) -> 0
C255: Вложение в добавочный капитал | D255: тыс. руб. | F255: =SUM(H255:AA255) -> 0
C257: =F260&" "&F258&" "&"№"&F259 -> №
... 139 more rows

Sheet График инвестирования
E1: ="Лист: " & RIGHT(CELL("filename",A1),LEN(CELL("filename",A1))-SEARCH("]",CELL("filename",A1))) -> Лист: График инвестирования | J1: Проверка: | L1: =IF(AND(F50="Верно",F51="Верно",F52="Верно",F53="Верно"), "Верно", "Имеются некорректные данные") -> Имеются некорректные данные
C2: Наименование расхода | D2: Ед. изм. | E2: Ранее понесенные расходы | F2: Итоговое значение | H2: =Предпосылки!H2 -> 2026 | I2: =Предпосылки!I2 -> 2027 | J2: =Предпосылки!J2 -> 2028 | K2: =Предпосылки!K2 -> 2029 | L2: =Предпосылки!L2 -> 2030 | M2: =Предпосылки!M2 -> 2031 | N2: =Предпосылки!N2 -> 2032 | O2: =Предпосылки!O2 -> 2033 | P2: =Предпосылки!P2 -> 2034 | Q2: =Предпосылки!Q2 -> 2035 | R2: =Предпосылки!R2 -> 2036 | S2: =Предпосылки!S2 -> 2037 | T2: =Предпосылки!T2 -> 2038 | U2: =Предпосылки!U2 -> 2039 | V2: =Предпосылки!V2 -> 2040 | W2: =Предпосылки!W2 -> 2041 | X2: =Предпосылки!X2 -> 2042 | Y2: =Предпосылки!Y2 -> 2043 | Z2: =Предпосылки!Z2 -> 2044 | AA2: =Предпосылки!AA2 -> 2045 | AB2: =Предпосылки!AB2 -> 2046
H3: 1 | I3: 2 | J3: 3 | K3: 4 | L3: 5 | M3: 6 | N3: 7 | O3: 8 | P3: 9 | Q3: 10 | R3: 11 | S3: 12 | T3: 13 | U3: 14 | V3: 15 | W3: 16 | X3: 17 | Y3: 18 | Z3: 19 | AA3: 20 | AB3: 21
B5: График инвестирования (расходования)
B7: 1. | C7: Расходы на приобретение или долгосрочную аренду земельных участков под создание новых производственных мощностей | D7: тыс. руб. | E7: =SUM(E8:E9) -> 0 | F7: =SUM(H7:AB7,E7) -> 0 | H7: =SUM(H8:H9) -> 0 | I7: =SUM(I8:I9) -> 0 | J7: 0 | K7: 0 | L7: 0 | M7: 0 | N7: 0 | O7: 0 | P7: 0 | Q7: 0 | R7: 0 | S7: 0 | T7: 0 | U7: 0 | V7: 0 | W7: 0 | X7: 0 | Y7: 0 | Z7: 0 | AA7: 0 | AB7: =SUM(AB8:AB9) -> 0
B8: 1.1. | C8: Приобретение | D8: тыс. руб. | F8: =SUM(H8:AA8,E8) -> 0
B9: 1.2. | C9: Аренда | D9: тыс. руб. | F9: =SUM(H9:AA9,E9) -> 0
B10: 2. | C10: Расходы на разработку проектной документации | D10: тыс. руб. | E10: =SUM(E11:E12) -> 0 | F10: =SUM(H10:AB10,E10) -> 0 | H10: =SUM(H11:H12) -> 0 | I10: =SUM(I11:I12) -> 0 | J10: 0 | K10: 0 | L10: 0 | M10: 0 | N10: 0 | O10: 0 | P10: 0 | Q10: 0 | R10: 0 | S10: 0 | T10: 0 | U10: 0 | V10: 0 | W10: 0 | X10: 0 | Y10: 0 | Z10: 0 | AA10: 0 | AB10: 0
B11: 2.1. | C11: Оборудование | D11: тыс. руб. | F11: =SUM(H11:AA11,E11) -> 0
B12: 2.2. | C12: Здание | D12: тыс. руб. | F12: 0
B13: 3. | C13: Расходы на строительство или реконструкцию производственных зданий и сооружений | D13: тыс. руб. | E13: =SUM(E14:E15,) -> 0 | F13: 0 | H13: =SUM(H14:H15) -> 0 | I13: =SUM(I14:I15) -> 0 | J13: 0 | K13: 0 | L13: 0 | M13: 0 | N13: 0 | O13: 0 | P13: 0 | Q13: 0 | R13: 0 | S13: 0 | T13: 0 | U13: 0 | V13: 0 | W13: 0 | X13: 0 | Y13: 0 | Z13: 0 | AA13: 0 | AB13: 0
B14: 3.1. | C14: Здания | D14: тыс. руб. | F14: 0
B15: … | D15: тыс. руб. | F15: 0
B16: 4. | C16: Расходы на приобретение, сооружение, изготовление, доставку, расконсервацию и модернизацию основных средств, в том числе: | D16: тыс. руб. | E16: =SUM(E17,E21,E25) -> 0 | F16: =SUM(H16:AA16,E16) -> 0 | H16: =SUM(H17,H21,H25) -> 0 | I16: 0 | J16: 0 | K16: 0 | L16: 0 | M16: 0 | N16: 0 | O16: 0 | P16: 0 | Q16: 0 | R16: 0 | S16: 0 | T16: 0 | U16: 0 | V16: 0 | W16: 0 | X16: 0 | Y16: 0 | Z16: 0 | AA16: 0 | AB16: 0
B17: 4.1. | C17: на приобретение, сооружение, изготовление основных средств | D17: тыс. руб. | E17: =SUM(E18:E20) -> 0 | F17: 0 | H17: =SUM(H18:H20) -> 0 | I17: 0 | J17: 0 | K17: 0 | L17: 0 | M17: 0 | N17: 0 | O17: 0 | P17: 0 | Q17: 0 | R17: 0 | S17: 0 | T17: 0 | U17: 0 | V17: 0 | W17: 0 | X17: 0 | Y17: 0 | Z17: 0 | AA17: 0 | AB17: 0
B18: 4.1.1. | C18: Оборудование | F18: 0
B19: 4.1.2. | C19: Здания | F19: 0
B20: 4.1.3. | C20: Транспортные средства | F20: 0
B21: 4.2. | C21: на таможенные пошлины и таможенные сборы | D21: тыс. руб. | E21: =SUM(E22:E24) -> 0 | F21: 0 | H21: =SUM(H22:H23) -> 0 | I21: =SUM(I22:I23) -> 0 | J21: 0 | K21: 0 | L21: 0 | M21: 0 | N21: 0 | O21: 0 | P21: 0 | Q21: 0 | R21: 0 | S21: 0 | T21: 0 | U21: 0 | V21: 0 | W21: 0 | X21: 0 | Y21: 0 | Z21: 0 | AA21: 0 | AB21: 0
B22: 4.2.1. | C22: Оборудование | F22: 0
B23: 4.2.2. | C23: Здания | F23: 0
B24: 4.2.3. | C24: Транспортные средства | F24: 0
B25: 4.3. | C25: на строительно-монтажные и пусконаладочные работы | E25: =SUM(E26:E28) -> 0 | F25: 0 | H25: =SUM(H26:H27) -> 0 | I25: =SUM(I26:I27) -> 0 | J25: 0 | K25: 0 | L25: 0 | M25: 0 | N25: 0 | O25: 0 | P25: 0 | Q25: 0 | R25: 0 | S25: 0 | T25: 0 | U25: 0 | V25: 0 | W25: 0 | X25: 0 | Y25: 0 | Z25: 0 | AA25: 0 | AB25: 0
B26: 4.3.1. | C26: Оборудование | F26: 0
B27: 4.3.2. | C27: Здания | F27: 0
B28: 4.3.3. | C28: Транспортные средства | F28: 0
B29: 5. | C29: Расходы на выполнение научно-исследовательских, опытно-конструкторских и технологических работ, проведение клинических испытаний | D29: тыс. руб. | E29: =SUM(E30:E31) -> 0 | F29: 0 | H29: =SUM(H30:H31) -> 0 | I29: =SUM(I30:I31) -> 0 | J29: 0 | K29: 0 | L29: 0 | M29: 0 | N29: 0 | O29: 0 | P29: 0 | Q29: 0 | R29: 0 | S29: 0 | T29: 0 | U29: 0 | V29: 0 | W29: 0 | X29: 0 | Y29: 0 | Z29: 0 | AA29: 0 | AB29: =SUM(AB30:AB31) -> 0
B30: 5.1. | C30: НМА | D30: тыс. руб. | F30: 0
B31: … | D31: тыс. руб. | F31: 0
B32: 6. | C32: Расходы на приобретение исключительных прав на результаты интеллектуальной деятельности или прав на использование результатов интеллектуальной деятельности, прав на конструкторскую, техническую документацию | D32: тыс. руб. | E32: =SUM(E33:E34) -> 0 | F32: 0 | H32: =SUM(H33:H34) -> 0 | I32: =SUM(I33:I34) -> 0 | J32: 0 | K32: 0 | L32: 0 | M32: 0 | N32: 0 | O32: 0 | P32: 0 | Q32: 0 | R32: 0 | S32: 0 | T32: 0 | U32: 0 | V32: 0 | W32: 0 | X32: 0 | Y32: 0 | Z32: 0 | AA32: 0 | AB32: =SUM(AB33:AB34) -> 0
B33: 6.1. | C33: НМА | D33: тыс. руб. | F33: 0
B34: … | D34: тыс. руб. | F34: 0
C35: Итого | D35: тыс. руб. | E35: =SUM(E7,E10,E13,E16,E29,E32) -> 0 | F35: 0 | H35: =SUM(H7,H10,H13,H16,H29,H32) -> 0 | I35: 0 | J35: 0 | K35: 0 | L35: 0 | M35: 0 | N35: 0 | O35: 0 | P35: 0 | Q35: 0 | R35: 0 | S35: 0 | T35: 0 | U35: 0 | V35: 0 | W35: 0 | X35: 0 | Y35: 0 | Z35: 0 | AA35: 0 | AB35: 0
B37: Приложение к СПИК
B39: 1. | C39: Расходы на приобретение или долгосрочную аренду земельных участков под создание новых производственных мощностей | D39: тыс. руб. | F39: =F7 -> 0 | H39: =IF($E$35=0,H7, TEXT(SUM(H7,$E7),"# ##0")&"/"&TEXT(E7, "# ##0")) -> 0 | I39: =I7 -> 0 | J39: 0 | K39: 0 | L39: 0 | M39: 0 | N39: 0 | O39: 0 | P39: 0 | Q39: 0 | R39: 0 | S39: 0 | T39: 0 | U39: 0 | V39: 0 | W39: 0 | X39: 0 | Y39: 0 | Z39: 0 | AA39: 0 | AB39: 0
B40: 2. | C40: Расходы на разработку проектной документации | D40: тыс. руб. | F40: =F10 -> 0 | H40: =IF($E$35=0,H10, TEXT(SUM(H10,$E10),"# ##0")&"/"&TEXT(E10,"# ##0")) -> 0 | I40: =I10 -> 0 | J40: 0 | K40: 0 | L40: 0 | M40: 0 | N40: 0 | O40: 0 | P40: 0 | Q40: 0 | R40: 0 | S40: 0 | T40: 0 | U40: 0 | V40: 0 | W40: 0 | X40: 0 | Y40: 0 | Z40: 0 | AA40: 0 | AB40: 0
B41: 3. | C41: Расходы на строительство или реконструкцию производственных зданий и сооружений | D41: тыс. руб. | F41: =F13 -> 0 | H41: =IF($E$35=0,H13, TEXT(SUM(H13,$E13),"# ##0")&"/"&TEXT(E13,"# ##0")) -> 0 | I41: =I13 -> 0 | J41: 0 | K41: 0 | L41: 0 | M41: 0 | N41: 0 | O41: 0 | P41: 0 | Q41: 0 | R41: 0 | S41: 0 | T41: 0 | U41: 0 | V41: 0 | W41: 0 | X41: 0 | Y41: 0 | Z41: 0 | AA41: 0 | AB41: 0
B42: 4. | C42: Расходы на приобретение, сооружение, изготовление, доставку, расконсервацию и модернизацию оборудования, в том числе: | D42: тыс. руб. | F42: =F16 -> 0 | H42: =IF($E$35=0,H16, TEXT(SUM(H16,$E16),"# ##0")&"/"&TEXT(E16,"# ##0")) -> 0 | I42: =I16 -> 0 | J42: 0 | K42: 0 | L42: 0 | M42: 0 | N42: 0 | O42: 0 | P42: 0 | Q42: 0 | R42: 0 | S42: 0 | T42: 0 | U42: 0 | V42: 0 | W42: 0 | X42: 0 | Y42: 0 | Z42: 0 | AA42: 0 | AB42: 0
B43: 4.1. | C43: на приобретение, сооружение, изготовление оборудования | D43: тыс. руб. | F43: =F17 -> 0 | H43: =IF($E$35=0,H17, TEXT(SUM(H17,$E17),"# ##0")&"/"&TEXT(E17,"# ##0")) -> 0 | I43: =I17 -> 0 | J43: 0 | K43: 0 | L43: 0 | M43: 0 | N43: 0 | O43: 0 | P43: 0 | Q43: 0 | R43: 0 | S43: 0 | T43: 0 | U43: 0 | V43: 0 | W43: 0 | X43: 0 | Y43: 0 | Z43: 0 | AA43: 0 | AB43: 0
B44: 4.2. | C44: на таможенные пошлины и таможенные сборы | D44: тыс. руб. | F44: =F21 -> 0 | H44: =IF($E$35=0,H21, TEXT(SUM(H21,$E21),"# ##0")&"/"&TEXT(E21,"# ##0")) -> 0 | I44: =I21 -> 0 | J44: =J21 -> 0 | K44: =K21 -> 0 | L44: 0 | M44: 0 | N44: 0 | O44: 0 | P44: 0 | Q44: 0 | R44: 0 | S44: 0 | T44: 0 | U44: 0 | V44: 0 | W44: 0 | X44: 0 | Y44: 0 | Z44: 0 | AA44: 0 | AB44: 0
B45: 4.3. | C45: на строительно-монтажные (в отношении оборудования) и пусконаладочные работы | D45: тыс. руб. | F45: =F25 -> 0 | H45: =IF($E$35=0,H25, TEXT(SUM(H25,$E25),"# ##0")&"/"&TEXT(E25,"# ##0")) -> 0 | I45: =I25 -> 0 | J45: 0 | K45: 0 | L45: 0 | M45: 0 | N45: 0 | O45: 0 | P45: 0 | Q45: 0 | R45: 0 | S45: 0 | T45: 0 | U45: 0 | V45: 0 | W45: 0 | X45: 0 | Y45: 0 | Z45: 0 | AA45: 0 | AB45: 0
B46: 5. | C46: Расходы на выполнение научно-исследовательских, опытно-конструкторских и технологических работ, проведение клинических испытаний | D46: тыс. руб. | F46: =F29 -> 0 | H46: =IF($E$35=0,H29, TEXT(SUM(H29,$E29),"# ##0")&"/"&TEXT(E29,"# ##0")) -> 0 | I46: =I29 -> 0 | J46: 0 | K46: 0 | L46: 0 | M46: 0 | N46: 0 | O46: 0 | P46: 0 | Q46: 0 | R46: 0 | S46: 0 | T46: 0 | U46: 0 | V46: 0 | W46: 0 | X46: 0 | Y46: =Y29 -> 0 | Z46: =Z29 -> 0 | AA46: =AA29 -> 0 | AB46: =AB29 -> 0
B47: 6. | C47: Расходы на приобретение исключительных прав на результаты интеллектуальной деятельности или прав на использование результатов интеллектуальной деятельности, прав на конструкторскую, техническую документацию | D47: тыс. руб. | F47: =F32 -> 0 | H47: =IF($E$35=0,H32, TEXT(SUM(H32,$E32),"# ##0")&"/"&TEXT(E32,"# ##0")) -> 0 | I47: =I32 -> 0 | J47: =J32 -> 0 | K47: =K32 -> 0 | L47: 0 | M47: 0 | N47: 0 | O47: 0 | P47: 0 | Q47: 0 | R47: 0 | S47: 0 | T47: 0 | U47: 0 | V47: 0 | W47: 0 | X47: 0 | Y47: 0 | Z47: 0 | AA47: 0 | AB47: 0
C48: ИТОГО | D48: тыс. руб. | F48: =F35 -> 0 | H48: =IF($E$35=0,H35, TEXT(SUM(H35,$E35),"# ##0")&"/"&TEXT(E35,"# ##0")) -> 0 | I48: =I35 -> 0 | J48: =J35 -> 0 | K48: =K35 -> 0 | L48: 0 | M48: 0 | N48: 0 | O48: 0 | P48: 0 | Q48: 0 | R48: 0 | S48: 0 | T48: 0 | U48: 0 | V48: 0 | W48: 0 | X48: 0 | Y48: 0 | Z48: 0 | AA48: 0 | AB48: 0
C50: Проверка равенства ранее понесенных расходов | F50: =IF(E35=Предпосылки!F180,"Верно","Ошибка") -> Верно
C51: Проверка минимального объема инвестиций 750 млн руб. | F51: =IF(F35>=750000,"Верно","Ошибка") -> Ошибка
C52: Проверка осуществления инвестиций по обязательному направлению расходования | F52: =IF(F16>0,"Верно","Ошибка") -> Ошибка
C53: Проверка предельной величины затрат на НИОКР и получение прав на РИД | F53: =IF(SUM(F29,F32)<=25%*F35,"Верно","Ошибка") -> Верно

Sheet График финансирования
E1: ="Лист: " & RIGHT(CELL("filename",A1),LEN(CELL("filename",A1))-SEARCH("]",CELL("filename",A1))) -> Лист: График финансирования | I1: Проверка: | K1: =IF(AND(F19="Верно",F21="Верно"), "Верно", "Имеются некорректные данные") -> Верно
C2: Наименование | D2: Ед. изм. | E2: Источник | F2: Итоговое значение | H2: =Предпосылки!H2 -> 2026 | I2: =Предпосылки!I2 -> 2027 | J2: =Предпосылки!J2 -> 2028 | K2: =Предпосылки!K2 -> 2029 | L2: =Предпосылки!L2 -> 2030 | M2: =Предпосылки!M2 -> 2031 | N2: =Предпосылки!N2 -> 2032 | O2: =Предпосылки!O2 -> 2033 | P2: =Предпосылки!P2 -> 2034 | Q2: =Предпосылки!Q2 -> 2035 | R2: =Предпосылки!R2 -> 2036 | S2: =Предпосылки!S2 -> 2037 | T2: =Предпосылки!T2 -> 2038 | U2: =Предпосылки!U2 -> 2039 | V2: =Предпосылки!V2 -> 2040 | W2: =Предпосылки!W2 -> 2041 | X2: =Предпосылки!X2 -> 2042 | Y2: =Предпосылки!Y2 -> 2043 | Z2: =Предпосылки!Z2 -> 2044 | AA2: =Предпосылки!AA2 -> 2045 | AB2: =Предпосылки!AB2 -> 2046
H3: 1 | I3: 2 | J3: 3 | K3: 4 | L3: 5 | M3: 6 | N3: 7 | O3: 8 | P3: 9 | Q3: 10 | R3: 11 | S3: 12 | T3: 13 | U3: 14 | V3: 15 | W3: 16 | X3: 17 | Y3: 18 | Z3: 19 | AA3: 20 | AB3: 21
B5: Источники финансирования проекта
C7: Собственные средства | D7: тыс. руб. | F7: =SUM(H7:AB7) -> 0
C8: Заемные средства | D8: тыс. руб. | F8: =SUM(H8:AB8) -> 0
C9: Бюджетные средства | D9: тыс. руб. | F9: =SUM(H9:AB9) -> 0
C10: Итого финансирование | D10: тыс. руб. | F10: =SUM(H10:AB10) -> 0 | H10: =SUM(H7:H9) -> 0 | I10: =SUM(I7:I9) -> 0 | J10: 0 | K10: 0 | L10: 0 | M10: 0 | N10: 0 | O10: 0 | P10: 0 | Q10: 0 | R10: 0 | S10: 0 | T10: 0 | U10: 0 | V10: 0 | W10: 0 | X10: 0 | Y10: 0 | Z10: 0 | AA10: 0 | AB10: 0
B12: График финансирования
C14: Объем капитальных затрат | D14: тыс. руб. | F14: ='График инвестирования'!F35 -> 0 | H14: ='График инвестирования'!H48 -> 0 | I14: ='График инвестирования'!I48 -> 0 | J14: ='График инвестирования'!J48 -> 0 | K14: ='График инвестирования'!K48 -> 0 | L14: ='График инвестирования'!L48 -> 0 | M14: ='График инвестирования'!M48 -> 0 | N14: ='График инвестирования'!N48 -> 0 | O14: ='График инвестирования'!O48 -> 0 | P14: ='График инвестирования'!P48 -> 0 | Q14: ='График инвестирования'!Q48 -> 0 | R14: ='График инвестирования'!R48 -> 0 | S14: ='График инвестирования'!S48 -> 0 | T14: ='График инвестирования'!T48 -> 0 | U14: ='График инвестирования'!U48 -> 0 | V14: ='График инвестирования'!V48 -> 0 | W14: ='График инвестирования'!W48 -> 0 | X14: ='График инвестирования'!X48 -> 0 | Y14: ='График инвестирования'!Y48 -> 0 | Z14: ='График инвестирования'!Z48 -> 0 | AA14: ='График инвестирования'!AA48 -> 0 | AB14: ='График инвестирования'!AB48 -> 0
C15: Источник средств (Собственные/Заемные/Бюджетные) | D15: тыс. руб. | F15: =IF(F10=0,0, IF(F7/F10=1,"Собственные средства", IF(F8/F10=1,"Заемные средства", IF(F9/F10=1,"Бюджетные средства", TEXT(F7,"# ##0")&"/"&TEXT(F8,"# ##0")&"/"&TEXT(F9,"# ##0"))))) -> 0 | H15: =IF(H10=0,0, IF(H7/H10=1,"Собственные средства", IF(H8/H10=1,"Заемные средства", IF(H9/H10=1,"Бюджетные средства", TEXT(H7,"# ##0")&"/"&TEXT(H8,"# ##0")&"/"&TEXT(H9,"# ##0"))))) -> 0 | I15: =IF(I10=0,0, IF(I7/I10=1,"Собственные средства", IF(I8/I10=1,"Заемные средства", IF(I9/I10=1,"Бюджетные средства", TEXT(I7,"# ##0")&"/"&TEXT(I8,"# ##0")&"/"&TEXT(I9,"# ##0"))))) -> 0 | J15: 0 | K15: 0 | L15: 0 | M15: 0 | N15: 0 | O15: 0 | P15: 0 | Q15: 0 | R15: 0 | S15: 0 | T15: 0 | U15: 0 | V15: 0 | W15: 0 | X15: 0 | Y15: 0 | Z15: 0 | AA15: 0 | AB15: 0
B17: Проверки
C19: Проверка достаточности финансирования для покрытия капитальных вложений | F19: =IF(F10>='График инвестирования'!F35,"Верно","Ошибка") -> Верно | H19: =IF(SUM($H$10:H10)>=SUM('График инвестирования'!$H$35:H35),"Верно", "Ошибка") -> Верно | I19: =IF(SUM($H$10:I10)>=SUM('График инвестирования'!$H$35:I35),"Верно", "Ошибка") -> Верно | J19: =IF(SUM($H$10:J10)>=SUM('График инвестирования'!$H$35:J35),"Верно", "Ошибка") -> Верно | K19: =IF(SUM($H$10:K10)>=SUM('График инвестирования'!$H$35:K35),"Верно", "Ошибка") -> Верно | L19: =IF(SUM($H$10:L10)>=SUM('График инвестирования'!$H$35:L35),"Верно", "Ошибка") -> Верно | M19: =IF(SUM($H$10:M10)>=SUM('График инвестирования'!$H$35:M35),"Верно", "Ошибка") -> Верно | N19: =IF(SUM($H$10:N10)>=SUM('График инвестирования'!$H$35:N35),"Верно", "Ошибка") -> Верно | O19: =IF(SUM($H$10:O10)>=SUM('График инвестирования'!$H$35:O35),"Верно", "Ошибка") -> Верно | P19: =IF(SUM($H$10:P10)>=SUM('График инвестирования'!$H$35:P35),"Верно", "Ошибка") -> Верно | Q19: =IF(SUM($H$10:Q10)>=SUM('График инвестирования'!$H$35:Q35),"Верно", "Ошибка") -> Верно | R19: =IF(SUM($H$10:R10)>=SUM('График инвестирования'!$H$35:R35),"Верно", "Ошибка") -> Верно | S19: =IF(SUM($H$10:S10)>=SUM('График инвестирования'!$H$35:S35),"Верно", "Ошибка") -> Верно | T19: =IF(SUM($H$10:T10)>=SUM('График инвестирования'!$H$35:T35),"Верно", "Ошибка") -> Верно | U19: =IF(SUM($H$10:U10)>=SUM('График инвестирования'!$H$35:U35),"Верно", "Ошибка") -> Верно | V19: =IF(SUM($H$10:V10)>=SUM('График инвестирования'!$H$35:V35),"Верно", "Ошибка") -> Верно | W19: =IF(SUM($H$10:W10)>=SUM('График инвестирования'!$H$35:W35),"Верно", "Ошибка") -> Верно | X19: =IF(SUM($H$10:X10)>=SUM('График инвестирования'!$H$35:X35),"Верно", "Ошибка") -> Верно | Y19: =IF(SUM($H$10:Y10)>=SUM('График инвестирования'!$H$35:Y35),"Верно", "Ошибка") -> Верно | Z19: =IF(SUM($H$10:Z10)>=SUM('График инвестирования'!$H$35:Z35),"Верно", "Ошибка") -> Верно | AA19: =IF(SUM($H$10:AA10)>=SUM('График инвестирования'!$H$35:AA35),"Верно", "Ошибка") -> Верно | AB19: =IF(SUM($H$10:AB10)>=SUM('График инвестирования'!$H$35:AB35),"Верно", "Ошибка") -> Верно
C21: Проверка соответствия Графика финансирования структуре финансирования проекта в целом | F21: =IF(AND(F22="Верно", F23="Верно", F24="Верно"),"Верно","Ошибка") -> Верно
C22: Собственные средства | F22: =IF(F7<=Результаты!F52,"Верно","Ошибка") -> Верно
C23: Заемные средства | F23: =IF(F8<=Результаты!F53,"Верно","Ошибка") -> Верно
C24: Бюджетные средства | F24: =IF(F9<=Результаты!F54,"Верно","Ошибка") -> Верно

Sheet График локализации
E1: ="Лист: " & RIGHT(CELL("filename",A1),LEN(CELL("filename",A1))-SEARCH("]",CELL("filename",A1))) & " (График производственных и технологических операций)" -> Лист: График локализации (График производственных и технологических операций)
C2: Наименование | D2: Ед. изм. | E2: Источник | F2: Максимально возможное количество баллов | H2: =Предпосылки!H2 -> 2026 | I2: =Предпосылки!I2 -> 2027 | J2: =Предпосылки!J2 -> 2028 | K2: =Предпосылки!K2 -> 2029 | L2: =Предпосылки!L2 -> 2030 | M2: =Предпосылки!M2 -> 2031 | N2: =Предпосылки!N2 -> 2032 | O2: =Предпосылки!O2 -> 2033 | P2: =Предпосылки!P2 -> 2034 | Q2: =Предпосылки!Q2 -> 2035 | R2: =Предпосылки!R2 -> 2036 | S2: =Предпосылки!S2 -> 2037 | T2: =Предпосылки!T2 -> 2038 | U2: =Предпосылки!U2 -> 2039 | V2: =Предпосылки!V2 -> 2040 | W2: =Предпосылки!W2 -> 2041 | X2: =Предпосылки!X2 -> 2042 | Y2: =Предпосылки!Y2 -> 2043 | Z2: =Предпосылки!Z2 -> 2044 | AA2: =Предпосылки!AA2 -> 2045 | AB2: =Предпосылки!AB2 -> 2046
H3: 1 | I3: 2 | J3: 3 | K3: 4 | L3: 5 | M3: 6 | N3: 7 | O3: 8 | P3: 9 | Q3: 10 | R3: 11 | S3: 12 | T3: 13 | U3: 14 | V3: 15 | W3: 16 | X3: 17 | Y3: 18 | Z3: 19 | AA3: 20 | AB3: 21
C5: ИНСТРУКЦИЯ
C6: Таблица №1 - заполняется в случае, если к локализации продукции предъявляются требования по адвалорной доле (доле стоимости иностранных комплектующих в цене реализации продукции) | E6: ПП РФ 719 от 17.07.2015 / Соглашение о Правилах определения страны происхождения товаров в СНГ
C7: Таблица №2 - заполняется в случае, если к локализации продукции предъявляются требования по количеству баллов локализации | E7: ПП РФ 719 от 17.07.2015 / Соглашение о Правилах определения страны происхождения товаров в СНГ
C8: Таблица №3- заполняется в случае, если к локализации продукции предъявляются требования по доле от максимально возможного количества баллов локализации | E8: ПП РФ 719 от 17.07.2015 / Соглашение о Правилах определения страны происхождения товаров в СНГ
C9: Если к производимой проудкции предъявляются требования только по осуществлению определенных производственных и технологических операций, то заполнять приведенные ниже таблицы не требуется. | E9: ПП РФ 719 от 17.07.2015 / Соглашение о Правилах определения страны происхождения товаров в СНГ
C11: РАСЧЕТЫ
C13: Доля стоимости иностранных комлпектующих в цене промышленной продукции (Таблица №1)
C15: Стоимость используемых материалов и компонентов иностранного происхождения
C16: =Предпосылки!C35 -> Продукция 1 | D16: тыс. руб.
C17: =Предпосылки!C36 -> Продукция 2 | D17: тыс. руб.
C20: =Предпосылки!C37 -> … | D20: тыс. руб.
C22: Цена продажи промышленной продукци
C23: =C16 -> Продукция 1 | D23: =D16 -> тыс. руб. | H23: =Предпосылки!H35 -> 0 | I23: =Предпосылки!I35 -> 0 | J23: =Предпосылки!J35 -> 0 | K23: =Предпосылки!K35 -> 0 | L23: =Предпосылки!L35 -> 0 | M23: =Предпосылки!M35 -> 0 | N23: =Предпосылки!N35 -> 0 | O23: =Предпосылки!O35 -> 0 | P23: =Предпосылки!P35 -> 0 | Q23: =Предпосылки!Q35 -> 0 | R23: =Предпосылки!R35 -> 0 | S23: =Предпосылки!S35 -> 0 | T23: =Предпосылки!T35 -> 0 | U23: =Предпосылки!U35 -> 0 | V23: =Предпосылки!V35 -> 0 | W23: =Предпосылки!W35 -> 0 | X23: =Предпосылки!X35 -> 0 | Y23: =Предпосылки!Y35 -> 0 | Z23: =Предпосылки!Z35 -> 0 | AA23: =Предпосылки!AA35 -> 0 | AB23: =Предпосылки!AB35 -> 0
C24: =C17 -> Продукция 2 | D24: =D17 -> тыс. руб. | H24: =Предпосылки!H36 -> 0 | I24: =Предпосылки!I36 -> 0 | J24: =Предпосылки!J36 -> 0 | K24: =Предпосылки!K36 -> 0 | L24: =Предпосылки!L36 -> 0 | M24: =Предпосылки!M36 -> 0 | N24: =Предпосылки!N36 -> 0 | O24: =Предпосылки!O36 -> 0 | P24: =Предпосылки!P36 -> 0 | Q24: =Предпосылки!Q36 -> 0 | R24: =Предпосылки!R36 -> 0 | S24: =Предпосылки!S36 -> 0 | T24: =Предпосылки!T36 -> 0 | U24: =Предпосылки!U36 -> 0 | V24: =Предпосылки!V36 -> 0 | W24: =Предпосылки!W36 -> 0 | X24: =Предпосылки!X36 -> 0 | Y24: =Предпосылки!Y36 -> 0 | Z24: =Предпосылки!Z36 -> 0 | AA24: =Предпосылки!AA36 -> 0 | AB24: =Предпосылки!AB36 -> 0
C25: =C20 -> … | D25: тыс. руб. | H25: =Предпосылки!H37 -> 0 | I25: =Предпосылки!I37 -> 0 | J25: =Предпосылки!J37 -> 0 | K25: =Предпосылки!K37 -> 0 | L25: =Предпосылки!L37 -> 0 | M25: =Предпосылки!M37 -> 0 | N25: =Предпосылки!N37 -> 0 | O25: =Предпосылки!O37 -> 0 | P25: =Предпосылки!P37 -> 0 | Q25: =Предпосылки!Q37 -> 0 | R25: =Предпосылки!R37 -> 0 | S25: =Предпосылки!S37 -> 0 | T25: =Предпосылки!T37 -> 0 | U25: =Предпосылки!U37 -> 0 | V25: =Предпосылки!V37 -> 0 | W25: =Предпосылки!W37 -> 0 | X25: =Предпосылки!X37 -> 0 | Y25: =Предпосылки!Y37 -> 0 | Z25: =Предпосылки!Z37 -> 0 | AA25: =Предпосылки!AA37 -> 0 | AB25: =Предпосылки!AB37 -> 0
C27: Доля стоимости иностранных комплектующих в цене промышленной продукции
C28: =C23 -> Продукция 1 | D28: % | H28: =IFERROR(H16/H23,0) -> 0 | I28: 0 | J28: 0 | K28: 0 | L28: 0 | M28: 0 | N28: 0 | O28: 0 | P28: 0 | Q28: 0 | R28: 0 | S28: 0 | T28: 0 | U28: 0 | V28: 0 | W28: 0 | X28: 0 | Y28: 0 | Z28: 0 | AA28: 0 | AB28: 0
C29: =C24 -> Продукция 2 | D29: % | H29: =IFERROR(H17/H24,0) -> 0 | I29: 0 | J29: 0 | K29: 0 | L29: 0 | M29: 0 | N29: 0 | O29: 0 | P29: 0 | Q29: 0 | R29: 0 | S29: 0 | T29: 0 | U29: 0 | V29: 0 | W29: 0 | X29: 0 | Y29: 0 | Z29: 0 | AA29: 0 | AB29: 0
C30: =C25 -> … | D30: % | H30: =IFERROR(H20/H25,0) -> 0 | I30: =IFERROR(I20/I25,0) -> 0 | J30: 0 | K30: 0 | L30: 0 | M30: 0 | N30: 0 | O30: 0 | P30: 0 | Q30: 0 | R30: 0 | S30: 0 | T30: 0 | U30: 0 | V30: 0 | W30: 0 | X30: 0 | Y30: 0 | Z30: 0 | AA30: 0 | AB30: 0
C32: Баллы локализации (Таблица №2)
C34: =Предпосылки!C35 -> Продукция 1
C35: Технологическая операция 1 | D35: баллы
C36: Технологическая операция 2 | D36: баллы
C37: … | D37: баллы
C38: Итого баллы локализации | D38: баллы | F38: =SUM(F35:F37) -> 0 | H38: =SUM(H35:H37) -> 0 | I38: =SUM(I35:I37) -> 0 | J38: 0 | K38: =SUM(K35:K37) -> 0 | L38: 0 | M38: 0 | N38: 0 | O38: 0 | P38: 0 | Q38: 0 | R38: 0 | S38: 0 | T38: 0 | U38: 0 | V38: 0 | W38: 0 | X38: 0 | Y38: 0 | Z38: 0 | AA38: 0 | AB38: 0
C40: =Предпосылки!C36 -> Продукция 2
C41: Технологическая операция 1 | D41: баллы
C42: Технологическая операция 2 | D42: баллы
C43: … | D43: баллы
C44: Итого баллы локализации | D44: баллы | F44: =SUM(F41:F43) -> 0 | H44: =SUM(H41:H43) -> 0 | I44: =SUM(I41:I43) -> 0 | J44: 0 | K44: 0 | L44: 0 | M44: 0 | N44: 0 | O44: 0 | P44: 0 | Q44: 0 | R44: 0 | S44: 0 | T44: 0 | U44: 0 | V44: 0 | W44: 0 | X44: 0 | Y44: 0 | Z44: 0 | AA44: 0 | AB44: 0
C46: ИТОГО БАЛЛЫ ЛОКАЛИЗАЦИИ
C47: =C34 -> Продукция 1 | D47: баллы | H47: =H38 -> 0 | I47: 0 | J47: 0 | K47: 0 | L47: 0 | M47: 0 | N47: 0 | O47: 0 | P47: 0 | Q47: 0 | R47: 0 | S47: 0 | T47: 0 | U47: 0 | V47: 0 | W47: 0 | X47: 0 | Y47: 0 | Z47: 0 | AA47: 0 | AB47: 0
C48: =C40 -> Продукция 2 | D48: баллы | H48: =H44 -> 0 | I48: 0 | J48: 0 | K48: 0 | L48: 0 | M48: 0 | N48: 0 | O48: 0 | P48: 0 | Q48: 0 | R48: 0 | S48: 0 | T48: 0 | U48: 0 | V48: 0 | W48: 0 | X48: 0 | Y48: 0 | Z48: 0 | AA48: 0 | AB48: 0
C50: Процент от максимально возможного количества баллов локализации (Таблица №3)
C52: =C34 -> Продукция 1 | H52: =IFERROR(H47/$F$38,0) -> 0 | I52: =IFERROR(I47/$F$38,0) -> 0 | J52: 0 | K52: 0 | L52: 0 | M52: 0 | N52: 0 | O52: 0 | P52: 0 | Q52: 0 | R52: 0 | S52: 0 | T52: 0 | U52: 0 | V52: 0 | W52: 0 | X52: 0 | Y52: 0 | Z52: 0 | AA52: 0 | AB52: 0
C53: =C40 -> Продукция 2 | H53: =IFERROR(H48/$F$44,0) -> 0 | I53: =IFERROR(I48/$F$44,0) -> 0 | J53: 0 | K53: 0 | L53: 0 | M53: 0 | N53: 0 | O53: 0 | P53: 0 | Q53: 0 | R53: 0 | S53: 0 | T53: 0 | U53: 0 | V53: 0 | W53: 0 | X53: 0 | Y53: 0 | Z53: 0 | AA53: 0 | AB53: 0

Sheet Текущая деятельность
E1: ="Лист: " & RIGHT(CELL("filename",A1),LEN(CELL("filename",A1))-SEARCH("]",CELL("filename",A1))) -> Лист: Текущая деятельность
C2: Показатель | D2: 2023 | E2: 2024 | F2: 2025 | G2: 1 кв. 2025 | H2: 1 кв. 2026
B5: ИНСТРУКЦИЯ
C6: На данном листе требуется привести фактические финансовые показатели предприятия в соответствии с прилагаемой к заявлению бухгалтерской (финансовой) отчетностью.
C8: Периоды отражения данных в ячейках D2:H3 заполняются инвестором самостоятельно в зависимости от периодов в приложенных бухгалтерских отчетностях.
B12: РАСЧЕТЫ
B14: Отчетность Инвестора
C16: Выручка, тыс. руб.
C17: Чистая прибыль, тыс. руб.
C18: Рентабельность по чистой прибыли, % | D18: =IFERROR(D17/D16,0) -> 0 | E18: =IFERROR(E17/E16,0) -> 0 | F18: =IFERROR(F17/F16,0) -> 0 | G18: =IFERROR(G17/G16,0) -> 0 | H18: =IFERROR(H17/H16,0) -> 0
C19: ROA | D19: =IFERROR(D17/D34,0) -> 0 | E19: =IFERROR(E17/E34,0) -> 0 | F19: =IFERROR(F17/F34,0) -> 0 | G19: =IFERROR(G17/G34,0) -> 0 | H19: =IFERROR(H17/H34,0) -> 0
C20: ROE | D20: =IFERROR(D17/D36,0) -> 0 | E20: =IFERROR(E17/E36,0) -> 0 | F20: =IFERROR(F17/F36,0) -> 0 | G20: =IFERROR(G17/G36,0) -> 0 | H20: =IFERROR(H17/H36,0) -> 0
C21: Темп роста дебиторской задолженности, % | D21: =IFERROR((D32-C32)/C32,0) -> 0 | E21: =IFERROR((E32-D32)/D32,0) -> 0 | F21: =IFERROR((F32-E32)/E32,0) -> 0 | G21: - | H21: =IFERROR((H32-G32)/G32,0) -> 0
C22: Темп роста заемных средств, % | D22: =IFERROR((D39-C39)/C39,0) -> 0 | E22: =IFERROR((E39-D39)/D39,0) -> 0 | F22: =IFERROR((F39-E39)/E39,0) -> 0 | G22: - | H22: =IFERROR((H39-G39)/G39,0) -> 0
C23: Темп роста кредиторской задолженности, % | D23: =IFERROR((D42-C42)/C42,0) -> 0 | E23: =IFERROR((E42-D42)/D42,0) -> 0 | F23: =IFERROR((F42-E42)/E42,0) -> 0 | G23: - | H23: =IFERROR((H42-G42)/G42,0) -> 0
C24: Темп роста выручки, % | D24: =IFERROR((D16-C16)/C16,0) -> 0 | E24: =IFERROR((E16-D16)/D16,0) -> 0 | F24: =IFERROR((F16-E16)/E16,0) -> 0 | G24: - | H24: =IFERROR((H16-G16)/G16,0) -> 0
C25: Темп роста прибыли от продаж, % | D25: =IFERROR((D45-C45)/C45,0) -> 0 | E25: =IFERROR((E45-D45)/D45,0) -> 0 | F25: =IFERROR((F45-E45)/E45,0) -> 0 | H25: =IFERROR((H45-G45)/G45,0) -> 0
C26: Соотношение СК и ЗК | D26: =IFERROR(D36/D38,0) -> 0 | E26: =IFERROR(E36/E38,0) -> 0 | F26: =IFERROR(F36/F38,0) -> 0 | G26: =IFERROR(G36/G38,0) -> 0 | H26: =IFERROR(H36/H38,0) -> 0
C27: Чистые активы, тыс. руб. | D27: =D36-D35+D43 -> 0 | E27: =E36-E35+E43 -> 0 | F27: =F36-F35+F43 -> 0 | G27: =G36-G35+G43 -> 0 | H27: =H36-H35+H43 -> 0
C28: Денежный поток, тыс. руб. (сальдо денежных потоков за отчетный период)
C30: Основные средства
C31: Запасы
C32: ДЗ
C33: Денежные средства
C34: АКТИВЫ БАЛАНС
C35: Задолженность по вкладам в УК
C36: СК (Капитал и резервы)
C37: Долгосрочные обязательства
C38: ЗК (раздел 4 и 5 Баланса) | D38: =D34-D36 -> 0 | E38: =E34-E36 -> 0 | F38: =F34-F36 -> 0 | G38: =G34-G36 -> 0 | H38: =H34-H36 -> 0
C39: Заемные средства | D39: =SUM(D40:D41) -> 0 | E39: =SUM(E40:E41) -> 0 | F39: =SUM(F40:F41) -> 0 | G39: =SUM(G40:G41) -> 0 | H39: =SUM(H40:H41) -> 0
C40: Долгосрочные заемные средства
C41: Краткосрочные заемные средства
C42: КЗ
C43: Доходы будущих периодов
C45: Прибыль от продаж
C47: Доля основных средств | D47: =IFERROR(D30/D34,0) -> 0 | E47: =IFERROR(E30/E34,0) -> 0 | F47: =IFERROR(F30/F34,0) -> 0 | G47: =IFERROR(G30/G34,0) -> 0 | H47: =IFERROR(H30/H34,0) -> 0
C48: Доля запасов | D48: =IFERROR(D31/D34,0) -> 0 | E48: =IFERROR(E31/E34,0) -> 0 | F48: =IFERROR(F31/F34,0) -> 0 | G48: =IFERROR(G31/G34,0) -> 0 | H48: =IFERROR(H31/H34,0) -> 0
C49: Доля денежных средств | D49: =IFERROR(D33/D34,0) -> 0 | E49: =IFERROR(E33/E34,0) -> 0 | F49: =IFERROR(F33/F34,0) -> 0 | G49: =IFERROR(G33/G34,0) -> 0 | H49: =IFERROR(H33/H34,0) -> 0
C50: Доля ДЗ | D50: =IFERROR(D32/D34,0) -> 0 | E50: =IFERROR(E32/E34,0) -> 0 | F50: =IFERROR(F32/F34,0) -> 0 | G50: =IFERROR(G32/G34,0) -> 0 | H50: =IFERROR(H32/H34,0) -> 0
C51: Доля КЗ | D51: =IFERROR(D42/D34,0) -> 0 | E51: =IFERROR(E42/E34,0) -> 0 | F51: =IFERROR(F42/F34,0) -> 0 | G51: =IFERROR(G42/G34,0) -> 0 | H51: =IFERROR(H42/H34,0) -> 0
C52: Доля заемных средств | D52: =IFERROR(D39/D34,0) -> 0 | E52: =IFERROR(E39/E34,0) -> 0 | F52: =IFERROR(F39/F34,0) -> 0 | G52: =IFERROR(G39/G34,0) -> 0 | H52: =IFERROR(H39/H34,0) -> 0

Sheet WACC
A2: Расчет ставки дисконтирования
B4: Категория | C4: Сокращение | D4: Значение | E4: Источник
B5: Безрисковая ставка в рублях | C5: Rf (RUB) | D5: 0.1154 | E5: Кривая бескупонной доходности 15 лет (cbr.ru)
B6: Коэффициент бета без учета структуры капитала | C6: βunlev | D6: =C79 -> 1.07 | E6: Отрасль: Machinery / A. Damodaran: Levered and Unlevered Betas by Industry for Emerging market
B7: Соотношение заемного и собственного капитала инвестиционного проекта | C7: D/E | D7: =IFERROR(SUM(Предпосылки!F250,G57:G58)/SUM(Предпосылки!F249,Предпосылки!F254:F255),0) -> 0 | E7: Данные инвестиционного проекта
B8: Доля заемного капитала | C8: Wd | D8: =IFERROR(SUM(Предпосылки!F250,G57:G58)/SUM(Предпосылки!F249,Предпосылки!F254:F255,Предпосылки!F250,G57:G58),0) -> 0 | E8: D/E / (1 + D/E)
B9: Доля собственного капитала | C9: We | D9: =1-D8 -> 1 | E9: 1 - Wd
B10: Коэффициент бета с учетом структуры капитала | C10: βrelev | D10: =D6*(1+D7) -> 1.07 | E10: βunlev * (1 + D/E)
B11: Премия за риск инвестирования в акции (долларовая ставка) | C11: ERP (USD) | D11: 0.0594 | E11: A. Damodaran: Risk Premiums for Other Markets
B12: Премия за риск инвестирования в акции (рублевая ставка) | C12: ERP (RUB) | D12: =(1+D11)*(1+D16)/(1+D17)-1 -> 0.0790594382 | E12: (1+ERP)*(1+CPI(RUB))/(1+CPI(USD))-1
B13: Премия за размер | C13: SP | D13: 0.03 | E13: Допущение
B14: Премия за специфический риск компании (долларовая ставка) | C14: SRP | D14: 0 | E14: Допущение
B15: Стоимость собственного капитала в долларах США | C15: Ke (RUB) | D15: =D5+D10*D12+D13+D14 -> 0.2299935989 | E15: Rf + βrelev * ERP + SP + SRP
B16: Индекс потребительских цен, Российская Федерация | C16: CPI (RUB) | D16: =G42 -> 0.03790972959 | E16: Прогноз ВЭБ.РФ
B17: Индекс потребительских цен, США | C17: CPI (USD) | D17: =F42 -> 0.019 | E17: Прогноз ВЭБ.РФ
B18: Доналоговая стоимость долга | C18: Kd (RUB) | D18: =IFERROR( (SUMPRODUCT(F57:F58,G57:G58)+Предпосылки!F251*Предпосылки!F250) /SUM(G57:G58,Предпосылки!F250), 0) -> 0 | E18: Долговое финансирование проекта, средневзвешенная ставка
B19: Ставка налога на прибыль | C19: t | D19: 0.25 | E19: Налоговый кодекс РФ
B20: Средневзвешенная стоимость капитала | C20: WACC (RUB) | D20: =D15*D9+(1-D19)*D18*D8 -> 0.2299935989 | E20: Ke (RUB) * We + (1 - t) * Kd (RUB) * Wd
A23: Справочная информация
B25: Коэффициент бета без учеты структуры капитала (unlevered beta) | E25: Премия за размер
B26: Источник: А. Дамодаран: Итоговые беты для отраслей (развивающиеся рынки) - обновление: 01.2025 | E26: Источник: Duff and Phelps, 2020 Valuation Handbook
B28: Industry Name | C28: Unlevered beta | E28: Размер компании | F28: Минимальная рыночная капитализация (млн. долл. США) | G28: Максимальная рыночная капитализация (млн. долл. США) | H28: Премия за размер
B29: Advertising | C29: 1.3 | E29: Крупные | F29: 13100 | G29: 1061355 | H29: 0
B30: Aerospace/Defense | C30: 0.91 | E30: Средние | F30: 2686 | G30: 13100 | H30: 0.008
B31: Air Transport | C31: 0.76 | E31: Малые | F31: 516 | G31: 2686 | H31: 0.0142
B32: Apparel | C32: 0.61 | E32: Микро | F32: 2 | G32: 516 | H32: 0.0316
B33: Auto & Truck | C33: 1.18
B34: Auto Parts | C34: 1.16
B35: Bank (Money Center) | C35: 0.28 | E35: Индекс потребительских цен (CPI)
B36: Banks (Regional) | C36: 0.11 | E36: Источник: прогноз ВЭБ.РФ
B37: Beverage (Alcoholic) | C37: 1
B38: Beverage (Soft) | C38: 0.37 | F38: Индекс потребительских цен США, % дек. г/г | G38: Индекс потребительских цен, % дек/дек
B39: Broadcasting | C39: 0.85 | E39: 2023 | F39: 0.045 | G39: 0.06137113407
B40: Brokerage & Investment Banking | C40: 0.34 | E40: 2024 | F40: 0.035 | G40: 0.04228494375
B41: Building Materials | C41: 0.88 | E41: 2025 | F41: 0.025 | G41: 0.04155975257
B42: Business & Consumer Services | C42: 0.94 | E42: 2026 | F42: 0.019 | G42: 0.03790972959
B43: Cable TV | C43: 0.89 | E43: 2027 | F43: 0.019 | G43: 0.0377059204
B44: Chemical (Basic) | C44: 0.85 | E44: 2028 | F44: 0.019 | G44: 0.03705058003
B45: Chemical (Diversified) | C45: 0.88 | E45: 2029 | F45: 0.019 | G45: 0.03603635475
B46: Chemical (Specialty) | C46: 0.88 | E46: 2030 | F46: 0.019 | G46: 0.03508097711
B47: Coal & Related Energy | C47: 0.81 | E47: 2031 | F47: 0.019 | G47: 0.03489451402
B48: Computer Services | C48: 0.99 | E48: 2032 | F48: 0.019 | G48: 0.03425236918
B49: Computers/Peripherals | C49: 1.19 | E49: 2033 | F49: 0.019 | G49: 0.03405176695
B50: Construction Supplies | C50: 0.72 | E50: 2034 | F50: 0.019 | G50: 0.03372323542
B51: Diversified | C51: 0.42 | E51: 2035 | F51: 0.019 | G51: 0.03383928625
B52: Drugs (Biotechnology) | C52: 1.37 | E52: среднее значение | F52: =AVERAGE(F39:F51) -> 0.02269230769 | G52: =AVERAGE(G39:G51) -> 0.03844312031
B53: Drugs (Pharmaceutical) | C53: 0.93
B54: Education | C54: 0.69 | E54: Параметры займов
B55: Electrical Equipment | C55: 1.05
B56: Electronics (Consumer & Office) | C56: 0.99 | E56: Заем | F56: Ставка | G56: Сумма займа
B57: Electronics (General) | C57: 1.27 | E57: =Предпосылки!C257 -> № | F57: =Предпосылки!F266 -> 0 | G57: =Предпосылки!F263 -> 0
B58: Engineering/Construction | C58: 0.45 | E58: =Предпосылки!C268 -> № | F58: =Предпосылки!F277 -> 0 | G58: =Предпосылки!F274 -> 0
B59: Entertainment | C59: 1.15
B60: Environmental & Waste Services | C60: 0.7
B61: Farming/Agriculture | C61: 0.52
B62: Financial Svcs. (Non-bank & Insurance) | C62: 0.32
B63: Food Processing | C63: 0.59
B64: Food Wholesalers | C64: 0.36
B65: Furn/Home Furnishings | C65: 0.87
B66: Green & Renewable Energy | C66: 0.56
B67: Healthcare Products | C67: 1.16
B68: Healthcare Support Services | C68: 0.62
B69: Heathcare Information and Technology | C69: 1.36
B70: Homebuilding | C70: 0.47
B71: Hospitals/Healthcare Facilities | C71: 0.69
B72: Hotel/Gaming | C72: 0.54
B73: Household Products | C73: 0.84
B74: Information Services | C74: 1.03
B75: Insurance (General) | C75: 0.34
B76: Insurance (Life) | C76: 0.6
B77: Insurance (Prop/Cas.) | C77: 0.37
B78: Investments & Asset Management | C78: 0.28
B79: Machinery | C79: 1.07
B80: Metals & Mining | C80: 1.09
B81: Office Equipment & Services | C81: 0.65
B82: Oil/Gas (Integrated) | C82: 0.89
B83: Oil/Gas (Production and Exploration) | C83: 0.86
B84: Oil/Gas Distribution | C84: 0.45
B85: Oilfield Svcs/Equip. | C85: 0.64
B86: Packaging & Container | C86: 0.63
B87: Paper/Forest Products | C87: 0.47
B88: Power | C88: 0.4
B89: Precious Metals | C89: 1.02
B90: Publishing & Newspapers | C90: 0.86
B91: R.E.I.T. | C91: 0.38
B92: Real Estate (Development) | C92: 0.37
B93: Real Estate (General/Diversified) | C93: 0.51
B94: Real Estate (Operations & Services) | C94: 0.51
B95: Recreation | C95: 0.86
B96: Reinsurance | C96: 0.91
B97: Restaurant/Dining | C97: 0.85
B98: Retail (Automotive) | C98: 0.5
B99: Retail (Building Supply) | C99: 0.57
B100: Retail (Distributors) | C100: 0.41
B101: Retail (General) | C101: 0.89
B102: Retail (Grocery and Food) | C102: 0.64
B103: Retail (Online) | C103: 0.63
B104: Retail (Special Lines) | C104: 0.84
B105: Rubber& Tires | C105: 0.72
B106: Semiconductor | C106: 1.58
B107: Semiconductor Equip | C107: 1.86
B108: Shipbuilding & Marine | C108: 0.65
B109: Shoe | C109: 0.52
B110: Software (Entertainment) | C110: 1.53
B111: Software (Internet) | C111: 1.13
B112: Software (System & Application) | C112: 1.53
B113: Steel | C113: 0.81
B114: Telecom (Wireless) | C114: 0.75
B115: Telecom. Equipment | C115: 1.19
B116: Telecom. Services | C116: 0.6
B117: Tobacco | C117: 0.28
B118: Transportation | C118: 0.66
B119: Transportation (Railroads) | C119: 0.75
B120: Trucking | C120: 0.27
B121: Utility (General) | C121: 0.5
B122: Utility (Water) | C122: 0.37
B123: Total Market | C123: 0.68
B124: Total Market (without financials) | C124: 0.82

Sheet Для БП
E1: ="Лист: " & RIGHT(CELL("filename",A1),LEN(CELL("filename",A1))-SEARCH("]",CELL("filename",A1))) -> Лист: Для БП
B2: Информация, требуемая для отражения в бизнес-плане в соответствии с п. 16 Правил
C4: Планируемый размер ежегодной проектной операционной прибыли в течение реализации инвестиционного проекта (пп. "з")
D6: =D11 -> Ед. изм. | E6: =Предпосылки!H2 -> 2026 | F6: =Предпосылки!I2 -> 2027 | G6: =Предпосылки!J2 -> 2028 | H6: =Предпосылки!K2 -> 2029 | I6: =Предпосылки!L2 -> 2030 | J6: =Предпосылки!M2 -> 2031 | K6: =Предпосылки!N2 -> 2032 | L6: =Предпосылки!O2 -> 2033 | M6: =Предпосылки!P2 -> 2034 | N6: =Предпосылки!Q2 -> 2035 | O6: =Предпосылки!R2 -> 2036 | P6: =Предпосылки!S2 -> 2037 | Q6: =Предпосылки!T2 -> 2038 | R6: =Предпосылки!U2 -> 2039 | S6: =Предпосылки!V2 -> 2040 | T6: =Предпосылки!W2 -> 2041 | U6: =Предпосылки!X2 -> 2042 | V6: =Предпосылки!Y2 -> 2043 | W6: =Предпосылки!Z2 -> 2044 | X6: =Предпосылки!AA2 -> 2045 | Y6: =Предпосылки!AB2 -> 2046
C7: ='Отчетность (СПИК)'!B75 -> Проектная операционная прибыль | D7: ='Отчетность (СПИК)'!D75 -> тыс. руб. | E7: ='Отчетность (СПИК)'!H75 -> 0 | F7: ='Отчетность (СПИК)'!I75 -> 0 | G7: ='Отчетность (СПИК)'!J75 -> 0 | H7: ='Отчетность (СПИК)'!K75 -> 0 | I7: ='Отчетность (СПИК)'!L75 -> 0 | J7: ='Отчетность (СПИК)'!M75 -> 0 | K7: ='Отчетность (СПИК)'!N75 -> 0 | L7: ='Отчетность (СПИК)'!O75 -> 0 | M7: ='Отчетность (СПИК)'!P75 -> 0 | N7: ='Отчетность (СПИК)'!Q75 -> 0 | O7: ='Отчетность (СПИК)'!R75 -> 0 | P7: ='Отчетность (СПИК)'!S75 -> 0 | Q7: ='Отчетность (СПИК)'!T75 -> 0 | R7: ='Отчетность (СПИК)'!U75 -> 0 | S7: ='Отчетность (СПИК)'!V75 -> 0 | T7: ='Отчетность (СПИК)'!W75 -> 0 | U7: ='Отчетность (СПИК)'!X75 -> 0 | V7: ='Отчетность (СПИК)'!Y75 -> 0 | W7: ='Отчетность (СПИК)'!Z75 -> 0 | X7: ='Отчетность (СПИК)'!AA75 -> 0 | Y7: ='Отчетность (СПИК)'!AB75 -> 0
C9: Общая планируемая стоимость реализации инвестционного проекта (пп. "м")
D11: Ед. изм. | E11: Сумма
C12: Объем инвестиций | D12: ='График инвестирования'!D35 -> тыс. руб. | E12: ='График инвестирования'!F35 -> 0
C14: Планируемый объем финансирования с выделением источников финансирования (пп. "н")
D16: =Результаты!E51 -> Доля, % | E16: =Результаты!F51 -> Сумма, тыс. руб
C17: =Результаты!C52 -> Собственные средства | D17: =Результаты!E52 -> 0 | E17: =Результаты!F52 -> 0
C18: =Результаты!C53 -> Заемные средства | D18: =Результаты!E53 -> 0 | E18: =Результаты!F53 -> 0
C19: =Результаты!C54 -> Бюджетные инвестиции | D19: =Результаты!E54 -> 0 | E19: =Результаты!F54 -> 0
C20: =Результаты!C55 -> Итого | D20: =Результаты!E55 -> 0 | E20: =Результаты!F55 -> 0
C22: Планируемые основные показатели инвестиционного проекта (пп. "о")
C24: Показатель | D24: Ед. изм. | E24: Со СПИК | F24: Без СПИК
C25: NPV (чистая приведенная стоимость) | D25: =RIGHTB(Результаты!C60, LEN(Результаты!C60) - FIND(",", Результаты!C60)) -> тыс. руб. | E25: =Результаты!E60 -> 0 | F25: =Результаты!F60 -> 0
C26: IRR (внутренняя норма доходности) | D26: =RIGHTB(Результаты!C61, LEN(Результаты!C61) - FIND(",", Результаты!C61)) -> % | E26: =IFERROR(Результаты!E61,"-") -> - | F26: =IFERROR(Результаты!F61,"-") -> -
C27: DPBP (дисконтированный период окупаемости) | D27: =RIGHTB(Результаты!C64, LEN(Результаты!C64) - FIND(",", Результаты!C64)) -> лет | E27: =Результаты!E64 -> 15 | F27: =Результаты!F64 -> 15
C28: Ставка дисконтирования | D28: =RIGHTB(Результаты!C67, LEN(Результаты!C67) - FIND(",", Результаты!C67)) -> % | E28: =Результаты!E67 -> 0.2299935989
C29: Количество создаваемых рабочих мест | D29: чел. | E29: =Результаты!F47 -> 0
D32: =D6 -> Ед. изм. | E32: =E6 -> 2026 | F32: 2027 | G32: 2028 | H32: 2029 | I32: 2030 | J32: 2031 | K32: 2032 | L32: 2033 | M32: 2034 | N32: 2035 | O32: 2036 | P32: 2037 | Q32: 2038 | R32: 2039 | S32: 2040 | T32: 2041 | U32: 2042 | V32: 2043 | W32: 2044 | X32: 2045 | Y32: 2046
C33: BNPV бюджетная эффективность | D33: ='Эффективность (СПИК)'!D72 -> тыс. руб. | E33: ='Эффективность (СПИК)'!H69 -> 0 | F33: ='Эффективность (СПИК)'!I69 -> 0 | G33: ='Эффективность (СПИК)'!J69 -> 0 | H33: ='Эффективность (СПИК)'!K69 -> 0 | I33: ='Эффективность (СПИК)'!L69 -> 0 | J33: ='Эффективность (СПИК)'!M69 -> 0 | K33: ='Эффективность (СПИК)'!N69 -> 0 | L33: ='Эффективность (СПИК)'!O69 -> 0 | M33: ='Эффективность (СПИК)'!P69 -> 0 | N33: ='Эффективность (СПИК)'!Q69 -> 0 | O33: ='Эффективность (СПИК)'!R69 -> 0 | P33: ='Эффективность (СПИК)'!S69 -> 0 | Q33: ='Эффективность (СПИК)'!T69 -> 0 | R33: ='Эффективность (СПИК)'!U69 -> 0 | S33: ='Эффективность (СПИК)'!V69 -> 0 | T33: ='Эффективность (СПИК)'!W69 -> 0 | U33: ='Эффективность (СПИК)'!X69 -> 0 | V33: ='Эффективность (СПИК)'!Y69 -> 0 | W33: ='Эффективность (СПИК)'!Z69 -> 0 | X33: ='Эффективность (СПИК)'!AA69 -> 0 | Y33: ='Эффективность (СПИК)'!AB69 -> 0
C34: Средняя заработная плата | D34: ='Операционные затраты'!D38 -> тыс. руб. | E34: =IFERROR('Операционные затраты'!H53/Предпосылки!H124,0) -> 0 | F34: =IFERROR('Операционные затраты'!I53/Предпосылки!I124,0) -> 0 | G34: =IFERROR('Операционные затраты'!J53/Предпосылки!J124,0) -> 0 | H34: =IFERROR('Операционные затраты'!K53/Предпосылки!K124,0) -> 0 | I34: =IFERROR('Операционные затраты'!L53/Предпосылки!L124,0) -> 0 | J34: =IFERROR('Операционные затраты'!M53/Предпосылки!M124,0) -> 0 | K34: =IFERROR('Операционные затраты'!N53/Предпосылки!N124,0) -> 0 | L34: =IFERROR('Операционные затраты'!O53/Предпосылки!O124,0) -> 0 | M34: =IFERROR('Операционные затраты'!P53/Предпосылки!P124,0) -> 0 | N34: =IFERROR('Операционные затраты'!Q53/Предпосылки!Q124,0) -> 0 | O34: =IFERROR('Операционные затраты'!R53/Предпосылки!R124,0) -> 0 | P34: =IFERROR('Операционные затраты'!S53/Предпосылки!S124,0) -> 0 | Q34: =IFERROR('Операционные затраты'!T53/Предпосылки!T124,0) -> 0 | R34: =IFERROR('Операционные затраты'!U53/Предпосылки!U124,0) -> 0 | S34: =IFERROR('Операционные затраты'!V53/Предпосылки!V124,0) -> 0 | T34: =IFERROR('Операционные затраты'!W53/Предпосылки!W124,0) -> 0 | U34: =IFERROR('Операционные затраты'!X53/Предпосылки!X124,0) -> 0 | V34: =IFERROR('Операционные затраты'!Y53/Предпосылки!Y124,0) -> 0 | W34: =IFERROR('Операционные затраты'!Z53/Предпосылки!Z124,0) -> 0 | X34: =IFERROR('Операционные затраты'!AA53/Предпосылки!AA124,0) -> 0 | Y34: =IFERROR('Операционные затраты'!AB53/Предпосылки!AB124,0) -> 0
C36: Динамика целевых результатов (показателей) инвестиционного проекта (пп. "р")
D38: =D24 -> Ед. изм. | E38: =E6 -> 2026 | F38: =F6 -> 2027 | G38: 2028 | H38: 2029 | I38: 2030 | J38: 2031 | K38: 2032 | L38: 2033 | M38: 2034 | N38: 2035 | O38: 2036 | P38: 2037 | Q38: 2038 | R38: 2039 | S38: 2040 | T38: 2041 | U38: 2042 | V38: 2043 | W38: 2044 | X38: 2045 | Y38: 2046
C39: Объем произведенной промышленной продукции в денежном выражении: | D39: =Результаты!D19 -> тыс. руб. | E39: =Результаты!H18 -> 0 | F39: =Результаты!I18 -> 0 | G39: =Результаты!J18 -> 0 | H39: =Результаты!K18 -> 0 | I39: =Результаты!L18 -> 0 | J39: =Результаты!M18 -> 0 | K39: =Результаты!N18 -> 0 | L39: =Результаты!O18 -> 0 | M39: =Результаты!P18 -> 0 | N39: =Результаты!Q18 -> 0 | O39: =Результаты!R18 -> 0 | P39: =Результаты!S18 -> 0 | Q39: =Результаты!T18 -> 0 | R39: =Результаты!U18 -> 0 | S39: =Результаты!V18 -> 0 | T39: =Результаты!W18 -> 0 | U39: =Результаты!X18 -> 0 | V39: =Результаты!Y18 -> 0 | W39: =Результаты!Z18 -> 0 | X39: =Результаты!AA18 -> 0 | Y39: =Результаты!AB18 -> 0
C40: Объем произведенной промышленной продукции в натуральном выражении: | D40: =Результаты!D23 -> ед. | E40: =Результаты!H22 -> 0 | F40: =Результаты!I22 -> 0 | G40: =Результаты!J22 -> 0 | H40: =Результаты!K22 -> 0 | I40: =Результаты!L22 -> 0 | J40: =Результаты!M22 -> 0 | K40: =Результаты!N22 -> 0 | L40: =Результаты!O22 -> 0 | M40: =Результаты!P22 -> 0 | N40: =Результаты!Q22 -> 0 | O40: =Результаты!R22 -> 0 | P40: =Результаты!S22 -> 0 | Q40: =Результаты!T22 -> 0 | R40: =Результаты!U22 -> 0 | S40: =Результаты!V22 -> 0 | T40: =Результаты!W22 -> 0 | U40: =Результаты!X22 -> 0 | V40: =Результаты!Y22 -> 0 | W40: =Результаты!Z22 -> 0 | X40: =Результаты!AA22 -> 0 | Y40: =Результаты!AB22 -> 0
C41: Объем реализованной промышленной продукции в денежном выражении: | D41: =Результаты!D27 -> тыс. руб. | E41: =Результаты!H26 -> 0 | F41: =Результаты!I26 -> 0 | G41: =Результаты!J26 -> 0 | H41: =Результаты!K26 -> 0 | I41: =Результаты!L26 -> 0 | J41: =Результаты!M26 -> 0 | K41: =Результаты!N26 -> 0 | L41: =Результаты!O26 -> 0 | M41: =Результаты!P26 -> 0 | N41: =Результаты!Q26 -> 0 | O41: =Результаты!R26 -> 0 | P41: =Результаты!S26 -> 0 | Q41: =Результаты!T26 -> 0 | R41: =Результаты!U26 -> 0 | S41: =Результаты!V26 -> 0 | T41: =Результаты!W26 -> 0 | U41: =Результаты!X26 -> 0 | V41: =Результаты!Y26 -> 0 | W41: =Результаты!Z26 -> 0 | X41: =Результаты!AA26 -> 0 | Y41: =Результаты!AB26 -> 0
C42: Объем реализованной промышленной продукции в натуральном выражении: | D42: =Результаты!D31 -> ед. | E42: =Результаты!H30 -> 0 | F42: =Результаты!I30 -> 0 | G42: =Результаты!J30 -> 0 | H42: =Результаты!K30 -> 0 | I42: =Результаты!L30 -> 0 | J42: =Результаты!M30 -> 0 | K42: =Результаты!N30 -> 0 | L42: =Результаты!O30 -> 0 | M42: =Результаты!P30 -> 0 | N42: =Результаты!Q30 -> 0 | O42: =Результаты!R30 -> 0 | P42: =Результаты!S30 -> 0 | Q42: =Результаты!T30 -> 0 | R42: =Результаты!U30 -> 0 | S42: =Результаты!V30 -> 0 | T42: =Результаты!W30 -> 0 | U42: =Результаты!X30 -> 0 | V42: =Результаты!Y30 -> 0 | W42: =Результаты!Z30 -> 0 | X42: =Результаты!AA30 -> 0 | Y42: =Результаты!AB30 -> 0
C43: Минимальный объем налогов, сборов, страховых взносов к уплате:
C44: С учетом применения мер стимулирования деятельности в сфере промышленности, предусмотренных СПИК: | D44: =Результаты!D36 -> тыс. руб. | E44: =Результаты!H35 -> 0 | F44: =Результаты!I35 -> 0 | G44: =Результаты!J35 -> 0 | H44: =Результаты!K35 -> 0 | I44: =Результаты!L35 -> 0 | J44: =Результаты!M35 -> 0 | K44: =Результаты!N35 -> 0 | L44: =Результаты!O35 -> 0 | M44: =Результаты!P35 -> 0 | N44: =Результаты!Q35 -> 0 | O44: =Результаты!R35 -> 0 | P44: =Результаты!S35 -> 0 | Q44: =Результаты!T35 -> 0 | R44: =Результаты!U35 -> 0 | S44: =Результаты!V35 -> 0 | T44: =Результаты!W35 -> 0 | U44: =Результаты!X35 -> 0 | V44: =Результаты!Y35 -> 0 | W44: =Результаты!Z35 -> 0 | X44: =Результаты!AA35 -> 0 | Y44: =Результаты!AB35 -> 0
C45: в федеральный бюджет | D45: =Результаты!D36 -> тыс. руб. | E45: =Результаты!H36 -> 0 | F45: =Результаты!I36 -> 0 | G45: =Результаты!J36 -> 0 | H45: =Результаты!K36 -> 0 | I45: =Результаты!L36 -> 0 | J45: =Результаты!M36 -> 0 | K45: =Результаты!N36 -> 0 | L45: =Результаты!O36 -> 0 | M45: =Результаты!P36 -> 0 | N45: =Результаты!Q36 -> 0 | O45: =Результаты!R36 -> 0 | P45: =Результаты!S36 -> 0 | Q45: =Результаты!T36 -> 0 | R45: =Результаты!U36 -> 0 | S45: =Результаты!V36 -> 0 | T45: =Результаты!W36 -> 0 | U45: =Результаты!X36 -> 0 | V45: =Результаты!Y36 -> 0 | W45: =Результаты!Z36 -> 0 | X45: =Результаты!AA36 -> 0 | Y45: =Результаты!AB36 -> 0
C46: в региональный бюджет | D46: =D45 -> тыс. руб. | E46: =Результаты!H37 -> 0 | F46: =Результаты!I37 -> 0 | G46: =Результаты!J37 -> 0 | H46: =Результаты!K37 -> 0 | I46: =Результаты!L37 -> 0 | J46: =Результаты!M37 -> 0 | K46: =Результаты!N37 -> 0 | L46: =Результаты!O37 -> 0 | M46: =Результаты!P37 -> 0 | N46: =Результаты!Q37 -> 0 | O46: =Результаты!R37 -> 0 | P46: =Результаты!S37 -> 0 | Q46: =Результаты!T37 -> 0 | R46: =Результаты!U37 -> 0 | S46: =Результаты!V37 -> 0 | T46: =Результаты!W37 -> 0 | U46: =Результаты!X37 -> 0 | V46: =Результаты!Y37 -> 0 | W46: =Результаты!Z37 -> 0 | X46: =Результаты!AA37 -> 0 | Y46: =Результаты!AB37 -> 0
C47: в местный бюджет | D47: =D46 -> тыс. руб. | E47: =Результаты!H38 -> 0 | F47: =Результаты!I38 -> 0 | G47: =Результаты!J38 -> 0 | H47: =Результаты!K38 -> 0 | I47: =Результаты!L38 -> 0 | J47: =Результаты!M38 -> 0 | K47: =Результаты!N38 -> 0 | L47: =Результаты!O38 -> 0 | M47: =Результаты!P38 -> 0 | N47: =Результаты!Q38 -> 0 | O47: =Результаты!R38 -> 0 | P47: =Результаты!S38 -> 0 | Q47: =Результаты!T38 -> 0 | R47: =Результаты!U38 -> 0 | S47: =Результаты!V38 -> 0 | T47: =Результаты!W38 -> 0 | U47: =Результаты!X38 -> 0 | V47: =Результаты!Y38 -> 0 | W47: =Результаты!Z38 -> 0 | X47: =Результаты!AA38 -> 0 | Y47: =Результаты!AB38 -> 0
C48: страховые взносы | D48: =D47 -> тыс. руб. | E48: =Результаты!H39 -> 0 | F48: =Результаты!I39 -> 0 | G48: =Результаты!J39 -> 0 | H48: =Результаты!K39 -> 0 | I48: =Результаты!L39 -> 0 | J48: =Результаты!M39 -> 0 | K48: =Результаты!N39 -> 0 | L48: =Результаты!O39 -> 0 | M48: =Результаты!P39 -> 0 | N48: =Результаты!Q39 -> 0 | O48: =Результаты!R39 -> 0 | P48: =Результаты!S39 -> 0 | Q48: =Результаты!T39 -> 0 | R48: =Результаты!U39 -> 0 | S48: =Результаты!V39 -> 0 | T48: =Результаты!W39 -> 0 | U48: =Результаты!X39 -> 0 | V48: =Результаты!Y39 -> 0 | W48: =Результаты!Z39 -> 0 | X48: =Результаты!AA39 -> 0 | Y48: =Результаты!AB39 -> 0
C49: Без учета применения мер стимулирования деятельности в сфере промышленности, предусмотренных СПИК: | D49: =Результаты!D42 -> тыс. руб. | E49: =Результаты!H41 -> 0 | F49: =Результаты!I41 -> 0 | G49: =Результаты!J41 -> 0 | H49: =Результаты!K41 -> 0 | I49: =Результаты!L41 -> 0 | J49: =Результаты!M41 -> 0 | K49: =Результаты!N41 -> 0 | L49: =Результаты!O41 -> 0 | M49: =Результаты!P41 -> 0 | N49: =Результаты!Q41 -> 0 | O49: =Результаты!R41 -> 0 | P49: =Результаты!S41 -> 0 | Q49: =Результаты!T41 -> 0 | R49: =Результаты!U41 -> 0 | S49: =Результаты!V41 -> 0 | T49: =Результаты!W41 -> 0 | U49: =Результаты!X41 -> 0 | V49: =Результаты!Y41 -> 0 | W49: =Результаты!Z41 -> 0 | X49: =Результаты!AA41 -> 0 | Y49: =Результаты!AB41 -> 0
C50: в федеральный бюджет | D50: =Результаты!D42 -> тыс. руб. | E50: =Результаты!H42 -> 0 | F50: =Результаты!I42 -> 0 | G50: =Результаты!J42 -> 0 | H50: =Результаты!K42 -> 0 | I50: =Результаты!L42 -> 0 | J50: =Результаты!M42 -> 0 | K50: =Результаты!N42 -> 0 | L50: =Результаты!O42 -> 0 | M50: =Результаты!P42 -> 0 | N50: =Результаты!Q42 -> 0 | O50: =Результаты!R42 -> 0 | P50: =Результаты!S42 -> 0 | Q50: =Результаты!T42 -> 0 | R50: =Результаты!U42 -> 0 | S50: =Результаты!V42 -> 0 | T50: =Результаты!W42 -> 0 | U50: =Результаты!X42 -> 0 | V50: =Результаты!Y42 -> 0 | W50: =Результаты!Z42 -> 0 | X50: =Результаты!AA42 -> 0 | Y50: =Результаты!AB42 -> 0
C51: в региональный бюджет | D51: =Результаты!D43 -> тыс. руб. | E51: =Результаты!H43 -> 0 | F51: =Результаты!I43 -> 0 | G51: =Результаты!J43 -> 0 | H51: =Результаты!K43 -> 0 | I51: =Результаты!L43 -> 0 | J51: =Результаты!M43 -> 0 | K51: =Результаты!N43 -> 0 | L51: =Результаты!O43 -> 0 | M51: =Результаты!P43 -> 0 | N51: =Результаты!Q43 -> 0 | O51: =Результаты!R43 -> 0 | P51: =Результаты!S43 -> 0 | Q51: =Результаты!T43 -> 0 | R51: =Результаты!U43 -> 0 | S51: =Результаты!V43 -> 0 | T51: =Результаты!W43 -> 0 | U51: =Результаты!X43 -> 0 | V51: =Результаты!Y43 -> 0 | W51: =Результаты!Z43 -> 0 | X51: =Результаты!AA43 -> 0 | Y51: =Результаты!AB43 -> 0
C52: в местный бюджет | D52: =Результаты!D44 -> тыс. руб. | E52: =Результаты!H44 -> 0 | F52: =Результаты!I44 -> 0 | G52: =Результаты!J44 -> 0 | H52: =Результаты!K44 -> 0 | I52: =Результаты!L44 -> 0 | J52: =Результаты!M44 -> 0 | K52: =Результаты!N44 -> 0 | L52: =Результаты!O44 -> 0 | M52: =Результаты!P44 -> 0 | N52: =Результаты!Q44 -> 0 | O52: =Результаты!R44 -> 0 | P52: =Результаты!S44 -> 0 | Q52: =Результаты!T44 -> 0 | R52: =Результаты!U44 -> 0 | S52: =Результаты!V44 -> 0 | T52: =Результаты!W44 -> 0 | U52: =Результаты!X44 -> 0 | V52: =Результаты!Y44 -> 0 | W52: =Результаты!Z44 -> 0 | X52: =Результаты!AA44 -> 0 | Y52: =Результаты!AB44 -> 0
C53: страховые взносы | D53: =Результаты!D45 -> тыс. руб. | E53: =Результаты!H45 -> 0 | F53: =Результаты!I45 -> 0 | G53: =Результаты!J45 -> 0 | H53: =Результаты!K45 -> 0 | I53: =Результаты!L45 -> 0 | J53: =Результаты!M45 -> 0 | K53: =Результаты!N45 -> 0 | L53: =Результаты!O45 -> 0 | M53: =Результаты!P45 -> 0 | N53: =Результаты!Q45 -> 0 | O53: =Результаты!R45 -> 0 | P53: =Результаты!S45 -> 0 | Q53: =Результаты!T45 -> 0 | R53: =Результаты!U45 -> 0 | S53: =Результаты!V45 -> 0 | T53: =Результаты!W45 -> 0 | U53: =Результаты!X45 -> 0 | V53: =Результаты!Y45 -> 0 | W53: =Результаты!Z45 -> 0 | X53: =Результаты!AA45 -> 0 | Y53: =Результаты!AB45 -> 0
C54: Количество создаваемых рабочих мест | D54: =Результаты!D47 -> чел. | E54: =Результаты!H47 -> 0 | F54: =Результаты!I47 -> 0 | G54: =Результаты!J47 -> 0 | H54: =Результаты!K47 -> 0 | I54: =Результаты!L47 -> 0 | J54: =Результаты!M47 -> 0 | K54: =Результаты!N47 -> 0 | L54: =Результаты!O47 -> 0 | M54: =Результаты!P47 -> 0 | N54: =Результаты!Q47 -> 0 | O54: =Результаты!R47 -> 0 | P54: =Результаты!S47 -> 0 | Q54: =Результаты!T47 -> 0 | R54: =Результаты!U47 -> 0 | S54: =Результаты!V47 -> 0 | T54: =Результаты!W47 -> 0 | U54: =Результаты!X47 -> 0 | V54: =Результаты!Y47 -> 0 | W54: =Результаты!Z47 -> 0 | X54: =Результаты!AA47 -> 0 | Y54: =Результаты!AB47 -> 0
C56: Анализ чувствительности инвестиционного проекта (пп. "с")
C58: ='Анализ чувствительности (СПИК)'!C4 -> Изменяемый параметр | D58: ='Анализ чувствительности (СПИК)'!D4 -> Ед. изм. | E58: ='Анализ чувствительности (СПИК)'!E4 -> -0.15 | F58: ='Анализ чувствительности (СПИК)'!F4 -> -0.1 | G58: ='Анализ чувствительности (СПИК)'!G4 -> -0.05 | H58: ='Анализ чувствительности (СПИК)'!H4 -> -0.01 | I58: ='Анализ чувствительности (СПИК)'!I4 -> 0 | J58: ='Анализ чувствительности (СПИК)'!J4 -> 0.01 | K58: ='Анализ чувствительности (СПИК)'!K4 -> 0.05 | L58: ='Анализ чувствительности (СПИК)'!L4 -> 0.1 | M58: ='Анализ чувствительности (СПИК)'!M4 -> 0.15
E59: ='Анализ чувствительности (СПИК)'!E5 -> NPV | F59: ='Анализ чувствительности (СПИК)'!F5 -> 0 | G59: ='Анализ чувствительности (СПИК)'!G5 -> 0 | H59: ='Анализ чувствительности (СПИК)'!H5 -> 0 | I59: ='Анализ чувствительности (СПИК)'!I5 -> 0 | J59: ='Анализ чувствительности (СПИК)'!J5 -> 0 | K59: ='Анализ чувствительности (СПИК)'!K5 -> 0 | L59: ='Анализ чувствительности (СПИК)'!L5 -> 0 | M59: ='Анализ чувствительности (СПИК)'!M5 -> 0
C60: ='Анализ чувствительности (СПИК)'!C6 -> Изменение цен на готовую продукцию | D60: ='Анализ чувствительности (СПИК)'!D6 -> тыс. руб. | E60: ='Анализ чувствительности (СПИК)'!E6 -> 0 | F60: ='Анализ чувствительности (СПИК)'!F6 -> 0 | G60: ='Анализ чувствительности (СПИК)'!G6 -> 0 | H60: ='Анализ чувствительности (СПИК)'!H6 -> 0 | I60: ='Анализ чувствительности (СПИК)'!I6 -> 0 | J60: ='Анализ чувствительности (СПИК)'!J6 -> 0 | K60: ='Анализ чувствительности (СПИК)'!K6 -> 0 | L60: ='Анализ чувствительности (СПИК)'!L6 -> 0 | M60: ='Анализ чувствительности (СПИК)'!M6 -> 0
C61: ='Анализ чувствительности (СПИК)'!C7 -> Изменение объёма производства и реализации | D61: ='Анализ чувствительности (СПИК)'!D7 -> тыс. руб. | E61: ='Анализ чувствительности (СПИК)'!E7 -> 0 | F61: ='Анализ чувствительности (СПИК)'!F7 -> 0 | G61: ='Анализ чувствительности (СПИК)'!G7 -> 0 | H61: ='Анализ чувствительности (СПИК)'!H7 -> 0 | I61: ='Анализ чувствительности (СПИК)'!I7 -> 0 | J61: ='Анализ чувствительности (СПИК)'!J7 -> 0 | K61: ='Анализ чувствительности (СПИК)'!K7 -> 0 | L61: ='Анализ чувствительности (СПИК)'!L7 -> 0 | M61: ='Анализ чувствительности (СПИК)'!M7 -> 0
C62: ='Анализ чувствительности (СПИК)'!C8 -> Изменение цен на сырье и материалы | D62: ='Анализ чувствительности (СПИК)'!D8 -> тыс. руб. | E62: ='Анализ чувствительности (СПИК)'!E8 -> 0 | F62: ='Анализ чувствительности (СПИК)'!F8 -> 0 | G62: ='Анализ чувствительности (СПИК)'!G8 -> 0 | H62: ='Анализ чувствительности (СПИК)'!H8 -> 0 | I62: ='Анализ чувствительности (СПИК)'!I8 -> 0 | J62: ='Анализ чувствительности (СПИК)'!J8 -> 0 | K62: ='Анализ чувствительности (СПИК)'!K8 -> 0 | L62: ='Анализ чувствительности (СПИК)'!L8 -> 0 | M62: ='Анализ чувствительности (СПИК)'!M8 -> 0
C63: ='Анализ чувствительности (СПИК)'!C9 -> Изменение курса валюты (при наличии в модели) | D63: ='Анализ чувствительности (СПИК)'!D9 -> тыс. руб. | E63: ='Анализ чувствительности (СПИК)'!E9 -> 0 | F63: ='Анализ чувствительности (СПИК)'!F9 -> 0 | G63: ='Анализ чувствительности (СПИК)'!G9 -> 0 | H63: ='Анализ чувствительности (СПИК)'!H9 -> 0 | I63: ='Анализ чувствительности (СПИК)'!I9 -> 0 | J63: ='Анализ чувствительности (СПИК)'!J9 -> 0 | K63: ='Анализ чувствительности (СПИК)'!K9 -> 0 | L63: ='Анализ чувствительности (СПИК)'!L9 -> 0 | M63: ='Анализ чувствительности (СПИК)'!M9 -> 0
C64: ='Анализ чувствительности (СПИК)'!C10 -> Изменение ставки дисконтирования | D64: ='Анализ чувствительности (СПИК)'!D10 -> тыс. руб. | E64: ='Анализ чувствительности (СПИК)'!E10 -> 0 | F64: ='Анализ чувствительности (СПИК)'!F10 -> 0 | G64: ='Анализ чувствительности (СПИК)'!G10 -> 0 | H64: ='Анализ чувствительности (СПИК)'!H10 -> 0 | I64: ='Анализ чувствительности (СПИК)'!I10 -> 0 | J64: ='Анализ чувствительности (СПИК)'!J10 -> 0 | K64: ='Анализ чувствительности (СПИК)'!K10 -> 0 | L64: ='Анализ чувствительности (СПИК)'!L10 -> 0 | M64: ='Анализ чувствительности (СПИК)'!M10 -> 0
E65: ='Анализ чувствительности (СПИК)'!E11 -> IRR | F65: ='Анализ чувствительности (СПИК)'!F11 -> 0 | G65: ='Анализ чувствительности (СПИК)'!G11 -> 0 | H65: ='Анализ чувствительности (СПИК)'!H11 -> 0 | I65: ='Анализ чувствительности (СПИК)'!I11 -> 0 | J65: ='Анализ чувствительности (СПИК)'!J11 -> 0 | K65: ='Анализ чувствительности (СПИК)'!K11 -> 0 | L65: ='Анализ чувствительности (СПИК)'!L11 -> 0 | M65: ='Анализ чувствительности (СПИК)'!M11 -> 0
C66: ='Анализ чувствительности (СПИК)'!C12 -> Изменение цен на готовую продукцию | D66: ='Анализ чувствительности (СПИК)'!D12 -> % | E66: ='Анализ чувствительности (СПИК)'!E12 -> 0 | F66: ='Анализ чувствительности (СПИК)'!F12 -> 0 | G66: ='Анализ чувствительности (СПИК)'!G12 -> 0 | H66: ='Анализ чувствительности (СПИК)'!H12 -> 0 | I66: ='Анализ чувствительности (СПИК)'!I12 -> 0 | J66: ='Анализ чувствительности (СПИК)'!J12 -> 0 | K66: ='Анализ чувствительности (СПИК)'!K12 -> 0 | L66: ='Анализ чувствительности (СПИК)'!L12 -> 0 | M66: ='Анализ чувствительности (СПИК)'!M12 -> 0
C67: ='Анализ чувствительности (СПИК)'!C13 -> Изменение объёма производства и реализации | D67: ='Анализ чувствительности (СПИК)'!D13 -> % | E67: ='Анализ чувствительности (СПИК)'!E13 -> 0 | F67: ='Анализ чувствительности (СПИК)'!F13 -> 0 | G67: ='Анализ чувствительности (СПИК)'!G13 -> 0 | H67: ='Анализ чувствительности (СПИК)'!H13 -> 0 | I67: ='Анализ чувствительности (СПИК)'!I13 -> 0 | J67: ='Анализ чувствительности (СПИК)'!J13 -> 0 | K67: ='Анализ чувствительности (СПИК)'!K13 -> 0 | L67: ='Анализ чувствительности (СПИК)'!L13 -> 0 | M67: ='Анализ чувствительности (СПИК)'!M13 -> 0
C68: ='Анализ чувствительности (СПИК)'!C14 -> Изменение цен на сырье и материалы | D68: ='Анализ чувствительности (СПИК)'!D14 -> % | E68: ='Анализ чувствительности (СПИК)'!E14 -> 0 | F68: ='Анализ чувствительности (СПИК)'!F14 -> 0 | G68: ='Анализ чувствительности (СПИК)'!G14 -> 0 | H68: ='Анализ чувствительности (СПИК)'!H14 -> 0 | I68: ='Анализ чувствительности (СПИК)'!I14 -> 0 | J68: ='Анализ чувствительности (СПИК)'!J14 -> 0 | K68: ='Анализ чувствительности (СПИК)'!K14 -> 0 | L68: ='Анализ чувствительности (СПИК)'!L14 -> 0 | M68: ='Анализ чувствительности (СПИК)'!M14 -> 0
C69: ='Анализ чувствительности (СПИК)'!C15 -> Изменение курса валюты (при наличии в модели) | D69: ='Анализ чувствительности (СПИК)'!D15 -> % | E69: ='Анализ чувствительности (СПИК)'!E15 -> 0 | F69: ='Анализ чувствительности (СПИК)'!F15 -> 0 | G69: ='Анализ чувствительности (СПИК)'!G15 -> 0 | H69: ='Анализ чувствительности (СПИК)'!H15 -> 0 | I69: ='Анализ чувствительности (СПИК)'!I15 -> 0 | J69: ='Анализ чувствительности (СПИК)'!J15 -> 0 | K69: ='Анализ чувствительности (СПИК)'!K15 -> 0 | L69: ='Анализ чувствительности (СПИК)'!L15 -> 0 | M69: ='Анализ чувствительности (СПИК)'!M15 -> 0
C70: ='Анализ чувствительности (СПИК)'!C16 -> Изменение ставки дисконтирования | D70: ='Анализ чувствительности (СПИК)'!D16 -> % | E70: ='Анализ чувствительности (СПИК)'!E16 -> 0 | F70: ='Анализ чувствительности (СПИК)'!F16 -> 0 | G70: ='Анализ чувствительности (СПИК)'!G16 -> 0 | H70: ='Анализ чувствительности (СПИК)'!H16 -> 0 | I70: ='Анализ чувствительности (СПИК)'!I16 -> 0 | J70: ='Анализ чувствительности (СПИК)'!J16 -> 0 | K70: ='Анализ чувствительности (СПИК)'!K16 -> 0 | L70: ='Анализ чувствительности (СПИК)'!L16 -> 0 | M70: ='Анализ чувствительности (СПИК)'!M16 -> 0
E71: ='Анализ чувствительности (СПИК)'!E17 -> PBP | F71: ='Анализ чувствительности (СПИК)'!F17 -> 0 | G71: ='Анализ чувствительности (СПИК)'!G17 -> 0 | H71: ='Анализ чувствительности (СПИК)'!H17 -> 0 | I71: ='Анализ чувствительности (СПИК)'!I17 -> 0 | J71: ='Анализ чувствительности (СПИК)'!J17 -> 0 | K71: ='Анализ чувствительности (СПИК)'!K17 -> 0 | L71: ='Анализ чувствительности (СПИК)'!L17 -> 0 | M71: ='Анализ чувствительности (СПИК)'!M17 -> 0
C72: ='Анализ чувствительности (СПИК)'!C18 -> Изменение цен на готовую продукцию | D72: ='Анализ чувствительности (СПИК)'!D18 -> лет | E72: ='Анализ чувствительности (СПИК)'!E18 -> 15 | F72: ='Анализ чувствительности (СПИК)'!F18 -> 15 | G72: ='Анализ чувствительности (СПИК)'!G18 -> 15 | H72: ='Анализ чувствительности (СПИК)'!H18 -> 15 | I72: ='Анализ чувствительности (СПИК)'!I18 -> 15 | J72: ='Анализ чувствительности (СПИК)'!J18 -> 15 | K72: ='Анализ чувствительности (СПИК)'!K18 -> 15 | L72: ='Анализ чувствительности (СПИК)'!L18 -> 15 | M72: ='Анализ чувствительности (СПИК)'!M18 -> 15
C73: ='Анализ чувствительности (СПИК)'!C19 -> Изменение объёма производства и реализации | D73: ='Анализ чувствительности (СПИК)'!D19 -> лет | E73: ='Анализ чувствительности (СПИК)'!E19 -> 15 | F73: ='Анализ чувствительности (СПИК)'!F19 -> 15 | G73: ='Анализ чувствительности (СПИК)'!G19 -> 15 | H73: ='Анализ чувствительности (СПИК)'!H19 -> 15 | I73: ='Анализ чувствительности (СПИК)'!I19 -> 15 | J73: ='Анализ чувствительности (СПИК)'!J19 -> 15 | K73: ='Анализ чувствительности (СПИК)'!K19 -> 15 | L73: ='Анализ чувствительности (СПИК)'!L19 -> 15 | M73: ='Анализ чувствительности (СПИК)'!M19 -> 15
C74: ='Анализ чувствительности (СПИК)'!C20 -> Изменение цен на сырье и материалы | D74: ='Анализ чувствительности (СПИК)'!D20 -> лет | E74: ='Анализ чувствительности (СПИК)'!E20 -> 15 | F74: ='Анализ чувствительности (СПИК)'!F20 -> 15 | G74: ='Анализ чувствительности (СПИК)'!G20 -> 15 | H74: ='Анализ чувствительности (СПИК)'!H20 -> 15 | I74: ='Анализ чувствительности (СПИК)'!I20 -> 15 | J74: ='Анализ чувствительности (СПИК)'!J20 -> 15 | K74: ='Анализ чувствительности (СПИК)'!K20 -> 15 | L74: ='Анализ чувствительности (СПИК)'!L20 -> 15 | M74: ='Анализ чувствительности (СПИК)'!M20 -> 15
C75: ='Анализ чувствительности (СПИК)'!C21 -> Изменение курса валюты (при наличии в модели) | D75: ='Анализ чувствительности (СПИК)'!D21 -> лет | E75: ='Анализ чувствительности (СПИК)'!E21 -> 15 | F75: ='Анализ чувствительности (СПИК)'!F21 -> 15 | G75: ='Анализ чувствительности (СПИК)'!G21 -> 15 | H75: ='Анализ чувствительности (СПИК)'!H21 -> 15 | I75: ='Анализ чувствительности (СПИК)'!I21 -> 15 | J75: ='Анализ чувствительности (СПИК)'!J21 -> 15 | K75: ='Анализ чувствительности (СПИК)'!K21 -> 15 | L75: ='Анализ чувствительности (СПИК)'!L21 -> 15 | M75: ='Анализ чувствительности (СПИК)'!M21 -> 15
C76: ='Анализ чувствительности (СПИК)'!C22 -> Изменение ставки дисконтирования | D76: ='Анализ чувствительности (СПИК)'!D22 -> лет | E76: ='Анализ чувствительности (СПИК)'!E22 -> 15 | F76: ='Анализ чувствительности (СПИК)'!F22 -> 15 | G76: ='Анализ чувствительности (СПИК)'!G22 -> 15 | H76: ='Анализ чувствительности (СПИК)'!H22 -> 15 | I76: ='Анализ чувствительности (СПИК)'!I22 -> 15 | J76: ='Анализ чувствительности (СПИК)'!J22 -> 15 | K76: ='Анализ чувствительности (СПИК)'!K22 -> 15 | L76: ='Анализ чувствительности (СПИК)'!L22 -> 15 | M76: ='Анализ чувствительности (СПИК)'!M22 -> 15
E77: ='Анализ чувствительности (СПИК)'!E23 -> DPBP | F77: ='Анализ чувствительности (СПИК)'!F23 -> 0 | G77: ='Анализ чувствительности (СПИК)'!G23 -> 0 | H77: ='Анализ чувствительности (СПИК)'!H23 -> 0 | I77: ='Анализ чувствительности (СПИК)'!I23 -> 0 | J77: ='Анализ чувствительности (СПИК)'!J23 -> 0 | K77: ='Анализ чувствительности (СПИК)'!K23 -> 0 | L77: ='Анализ чувствительности (СПИК)'!L23 -> 0 | M77: ='Анализ чувствительности (СПИК)'!M23 -> 0
C78: ='Анализ чувствительности (СПИК)'!C24 -> Изменение цен на готовую продукцию | D78: ='Анализ чувствительности (СПИК)'!D24 -> лет | E78: ='Анализ чувствительности (СПИК)'!E24 -> 15 | F78: ='Анализ чувствительности (СПИК)'!F24 -> 15 | G78: ='Анализ чувствительности (СПИК)'!G24 -> 15 | H78: ='Анализ чувствительности (СПИК)'!H24 -> 15 | I78: ='Анализ чувствительности (СПИК)'!I24 -> 15 | J78: ='Анализ чувствительности (СПИК)'!J24 -> 15 | K78: ='Анализ чувствительности (СПИК)'!K24 -> 15 | L78: ='Анализ чувствительности (СПИК)'!L24 -> 15 | M78: ='Анализ чувствительности (СПИК)'!M24 -> 15
C79: ='Анализ чувствительности (СПИК)'!C25 -> Изменение объёма производства и реализации | D79: ='Анализ чувствительности (СПИК)'!D25 -> лет | E79: ='Анализ чувствительности (СПИК)'!E25 -> 15 | F79: ='Анализ чувствительности (СПИК)'!F25 -> 15 | G79: ='Анализ чувствительности (СПИК)'!G25 -> 15 | H79: ='Анализ чувствительности (СПИК)'!H25 -> 15 | I79: ='Анализ чувствительности (СПИК)'!I25 -> 15 | J79: ='Анализ чувствительности (СПИК)'!J25 -> 15 | K79: ='Анализ чувствительности (СПИК)'!K25 -> 15 | L79: ='Анализ чувствительности (СПИК)'!L25 -> 15 | M79: ='Анализ чувствительности (СПИК)'!M25 -> 15
C80: ='Анализ чувствительности (СПИК)'!C26 -> Изменение цен на сырье и материалы | D80: ='Анализ чувствительности (СПИК)'!D26 -> лет | E80: ='Анализ чувствительности (СПИК)'!E26 -> 15 | F80: ='Анализ чувствительности (СПИК)'!F26 -> 15 | G80: ='Анализ чувствительности (СПИК)'!G26 -> 15 | H80: ='Анализ чувствительности (СПИК)'!H26 -> 15 | I80: ='Анализ чувствительности (СПИК)'!I26 -> 15 | J80: ='Анализ чувствительности (СПИК)'!J26 -> 15 | K80: ='Анализ чувствительности (СПИК)'!K26 -> 15 | L80: ='Анализ чувствительности (СПИК)'!L26 -> 15 | M80: ='Анализ чувствительности (СПИК)'!M26 -> 15
C81: ='Анализ чувствительности (СПИК)'!C27 -> Изменение курса валюты (при наличии в модели) | D81: ='Анализ чувствительности (СПИК)'!D27 -> лет | E81: ='Анализ чувствительности (СПИК)'!E27 -> 15 | F81: ='Анализ чувствительности (СПИК)'!F27 -> 15 | G81: ='Анализ чувствительности (СПИК)'!G27 -> 15 | H81: ='Анализ чувствительности (СПИК)'!H27 -> 15 | I81: ='Анализ чувствительности (СПИК)'!I27 -> 15 | J81: ='Анализ чувствительности (СПИК)'!J27 -> 15 | K81: ='Анализ чувствительности (СПИК)'!K27 -> 15 | L81: ='Анализ чувствительности (СПИК)'!L27 -> 15 | M81: ='Анализ чувствительности (СПИК)'!M27 -> 15
C82: ='Анализ чувствительности (СПИК)'!C28 -> Изменение ставки дисконтирования | D82: ='Анализ чувствительности (СПИК)'!D28 -> лет | E82: ='Анализ чувствительности (СПИК)'!E28 -> 15 | F82: ='Анализ чувствительности (СПИК)'!F28 -> 15 | G82: ='Анализ чувствительности (СПИК)'!G28 -> 15 | H82: ='Анализ чувствительности (СПИК)'!H28 -> 15 | I82: ='Анализ чувствительности (СПИК)'!I28 -> 15 | J82: ='Анализ чувствительности (СПИК)'!J28 -> 15 | K82: ='Анализ чувствительности (СПИК)'!K28 -> 15 | L82: ='Анализ чувствительности (СПИК)'!L28 -> 15 | M82: ='Анализ чувствительности (СПИК)'!M28 -> 15
E83: ='Анализ чувствительности (СПИК)'!E29 -> BNPV | F83: ='Анализ чувствительности (СПИК)'!F29 -> 0 | G83: ='Анализ чувствительности (СПИК)'!G29 -> 0 | H83: ='Анализ чувствительности (СПИК)'!H29 -> 0 | I83: ='Анализ чувствительности (СПИК)'!I29 -> 0 | J83: ='Анализ чувствительности (СПИК)'!J29 -> 0 | K83: ='Анализ чувствительности (СПИК)'!K29 -> 0 | L83: ='Анализ чувствительности (СПИК)'!L29 -> 0 | M83: ='Анализ чувствительности (СПИК)'!M29 -> 0
C84: ='Анализ чувствительности (СПИК)'!C30 -> Изменение цен на готовую продукцию | D84: ='Анализ чувствительности (СПИК)'!D30 -> тыс. руб. | E84: ='Анализ чувствительности (СПИК)'!E30 -> 0 | F84: ='Анализ чувствительности (СПИК)'!F30 -> 0 | G84: ='Анализ чувствительности (СПИК)'!G30 -> 0 | H84: ='Анализ чувствительности (СПИК)'!H30 -> 0 | I84: ='Анализ чувствительности (СПИК)'!I30 -> 0 | J84: ='Анализ чувствительности (СПИК)'!J30 -> 0 | K84: ='Анализ чувствительности (СПИК)'!K30 -> 0 | L84: ='Анализ чувствительности (СПИК)'!L30 -> 0 | M84: ='Анализ чувствительности (СПИК)'!M30 -> 0
C85: ='Анализ чувствительности (СПИК)'!C31 -> Изменение объёма производства и реализации | D85: ='Анализ чувствительности (СПИК)'!D31 -> тыс. руб. | E85: ='Анализ чувствительности (СПИК)'!E31 -> 0 | F85: ='Анализ чувствительности (СПИК)'!F31 -> 0 | G85: ='Анализ чувствительности (СПИК)'!G31 -> 0 | H85: ='Анализ чувствительности (СПИК)'!H31 -> 0 | I85: ='Анализ чувствительности (СПИК)'!I31 -> 0 | J85: ='Анализ чувствительности (СПИК)'!J31 -> 0 | K85: ='Анализ чувствительности (СПИК)'!K31 -> 0 | L85: ='Анализ чувствительности (СПИК)'!L31 -> 0 | M85: ='Анализ чувствительности (СПИК)'!M31 -> 0
C86: ='Анализ чувствительности (СПИК)'!C32 -> Изменение цен на сырье и материалы | D86: ='Анализ чувствительности (СПИК)'!D32 -> тыс. руб. | E86: ='Анализ чувствительности (СПИК)'!E32 -> 0 | F86: ='Анализ чувствительности (СПИК)'!F32 -> 0 | G86: ='Анализ чувствительности (СПИК)'!G32 -> 0 | H86: ='Анализ чувствительности (СПИК)'!H32 -> 0 | I86: ='Анализ чувствительности (СПИК)'!I32 -> 0 | J86: ='Анализ чувствительности (СПИК)'!J32 -> 0 | K86: ='Анализ чувствительности (СПИК)'!K32 -> 0 | L86: ='Анализ чувствительности (СПИК)'!L32 -> 0 | M86: ='Анализ чувствительности (СПИК)'!M32 -> 0
C87: ='Анализ чувствительности (СПИК)'!C33 -> Изменение курса валюты (при наличии в модели) | D87: ='Анализ чувствительности (СПИК)'!D33 -> тыс. руб. | E87: ='Анализ чувствительности (СПИК)'!E33 -> 0 | F87: ='Анализ чувствительности (СПИК)'!F33 -> 0 | G87: ='Анализ чувствительности (СПИК)'!G33 -> 0 | H87: ='Анализ чувствительности (СПИК)'!H33 -> 0 | I87: ='Анализ чувствительности (СПИК)'!I33 -> 0 | J87: ='Анализ чувствительности (СПИК)'!J33 -> 0 | K87: ='Анализ чувствительности (СПИК)'!K33 -> 0 | L87: ='Анализ чувствительности (СПИК)'!L33 -> 0 | M87: ='Анализ чувствительности (СПИК)'!M33 -> 0
C88: ='Анализ чувствительности (СПИК)'!C34 -> Изменение ставки дисконтирования | D88: ='Анализ чувствительности (СПИК)'!D34 -> тыс. руб. | E88: ='Анализ чувствительности (СПИК)'!E34 -> 0 | F88: ='Анализ чувствительности (СПИК)'!F34 -> 0 | G88: ='Анализ чувствительности (СПИК)'!G34 -> 0 | H88: ='Анализ чувствительности (СПИК)'!H34 -> 0 | I88: ='Анализ чувствительности (СПИК)'!I34 -> 0 | J88: ='Анализ чувствительности (СПИК)'!J34 -> 0 | K88: ='Анализ чувствительности (СПИК)'!K34 -> 0 | L88: ='Анализ чувствительности (СПИК)'!L34 -> 0 | M88: ='Анализ чувствительности (СПИК)'!M34 -> 0

Sheet DataBook
B2: На данном листе инвестор может сделать свои расчеты и интегрировать в ФЭМ на лист "Предпосылки"

Sheet Капитальные вложения
E1: ="Лист: " & RIGHT(CELL("filename",A1),LEN(CELL("filename",A1))-SEARCH("]",CELL("filename",A1))) -> Лист: Капитальные вложения | J1: Проверка: | L1: =IF(F13=AD43, "Верно", "Имеются некорректные данные") -> Верно
C2: Параметр | D2: Ед. изм. | E2: Источник | F2: Итоговое значение | H2: =Предпосылки!H2 -> 2026 | I2: =Предпосылки!I2 -> 2027 | J2: =Предпосылки!J2 -> 2028 | K2: =Предпосылки!K2 -> 2029 | L2: =Предпосылки!L2 -> 2030 | M2: =Предпосылки!M2 -> 2031 | N2: =Предпосылки!N2 -> 2032 | O2: =Предпосылки!O2 -> 2033 | P2: =Предпосылки!P2 -> 2034 | Q2: =Предпосылки!Q2 -> 2035 | R2: =Предпосылки!R2 -> 2036 | S2: =Предпосылки!S2 -> 2037 | T2: =Предпосылки!T2 -> 2038 | U2: =Предпосылки!U2 -> 2039 | V2: =Предпосылки!V2 -> 2040 | W2: =Предпосылки!W2 -> 2041 | X2: =Предпосылки!X2 -> 2042 | Y2: =Предпосылки!Y2 -> 2043 | Z2: =Предпосылки!Z2 -> 2044 | AA2: =Предпосылки!AA2 -> 2045 | AB2: =Предпосылки!AB2 -> 2046
H3: 1 | I3: 2 | J3: 3 | K3: 4 | L3: 5 | M3: 6 | N3: 7 | O3: 8 | P3: 9 | Q3: 10 | R3: 11 | S3: 12 | T3: 13 | U3: 14 | V3: 15 | W3: 16 | X3: 17 | Y3: 18 | Z3: 19 | AA3: 20 | AB3: 21
B5: Капитальные вложения (без НДС)
C7: Здания и сооружения | D7: тыс. руб. | F7: =SUM(H7:AA7) -> 0 | H7: =SUM(Предпосылки!H195,Предпосылки!H204) -> 0 | I7: =SUM(Предпосылки!I195,Предпосылки!I204) -> 0 | J7: =SUM(Предпосылки!J195,Предпосылки!J204) -> 0 | K7: =SUM(Предпосылки!K195,Предпосылки!K204) -> 0 | L7: =SUM(Предпосылки!L195,Предпосылки!L204) -> 0 | M7: =SUM(Предпосылки!M195,Предпосылки!M204) -> 0 | N7: =SUM(Предпосылки!N195,Предпосылки!N204) -> 0 | O7: =SUM(Предпосылки!O195,Предпосылки!O204) -> 0 | P7: =SUM(Предпосылки!P195,Предпосылки!P204) -> 0 | Q7: =SUM(Предпосылки!Q195,Предпосылки!Q204) -> 0 | R7: =SUM(Предпосылки!R195,Предпосылки!R204) -> 0 | S7: =SUM(Предпосылки!S195,Предпосылки!S204) -> 0 | T7: =SUM(Предпосылки!T195,Предпосылки!T204) -> 0 | U7: =SUM(Предпосылки!U195,Предпосылки!U204) -> 0 | V7: =SUM(Предпосылки!V195,Предпосылки!V204) -> 0 | W7: =SUM(Предпосылки!W195,Предпосылки!W204) -> 0 | X7: =SUM(Предпосылки!X195,Предпосылки!X204) -> 0 | Y7: =SUM(Предпосылки!Y195,Предпосылки!Y204) -> 0 | Z7: =SUM(Предпосылки!Z195,Предпосылки!Z204) -> 0 | AA7: =SUM(Предпосылки!AA195,Предпосылки!AA204) -> 0 | AB7: =SUM(Предпосылки!AB195,Предпосылки!AB204) -> 0
C8: Машины и оборудование | D8: тыс. руб. | F8: 0 | H8: =SUM(Предпосылки!H196,Предпосылки!H205) -> 0 | I8: =SUM(Предпосылки!I196,Предпосылки!I205) -> 0 | J8: =SUM(Предпосылки!J196,Предпосылки!J205) -> 0 | K8: =SUM(Предпосылки!K196,Предпосылки!K205) -> 0 | L8: =SUM(Предпосылки!L196,Предпосылки!L205) -> 0 | M8: =SUM(Предпосылки!M196,Предпосылки!M205) -> 0 | N8: =SUM(Предпосылки!N196,Предпосылки!N205) -> 0 | O8: =SUM(Предпосылки!O196,Предпосылки!O205) -> 0 | P8: =SUM(Предпосылки!P196,Предпосылки!P205) -> 0 | Q8: =SUM(Предпосылки!Q196,Предпосылки!Q205) -> 0 | R8: =SUM(Предпосылки!R196,Предпосылки!R205) -> 0 | S8: =SUM(Предпосылки!S196,Предпосылки!S205) -> 0 | T8: =SUM(Предпосылки!T196,Предпосылки!T205) -> 0 | U8: =SUM(Предпосылки!U196,Предпосылки!U205) -> 0 | V8: =SUM(Предпосылки!V196,Предпосылки!V205) -> 0 | W8: =SUM(Предпосылки!W196,Предпосылки!W205) -> 0 | X8: =SUM(Предпосылки!X196,Предпосылки!X205) -> 0 | Y8: =SUM(Предпосылки!Y196,Предпосылки!Y205) -> 0 | Z8: =SUM(Предпосылки!Z196,Предпосылки!Z205) -> 0 | AA8: =SUM(Предпосылки!AA196,Предпосылки!AA205) -> 0 | AB8: =SUM(Предпосылки!AB196,Предпосылки!AB205) -> 0
C9: Земля | D9: тыс. руб. | F9: 0 | H9: =SUM(Предпосылки!H197,Предпосылки!H206) -> 0 | I9: =SUM(Предпосылки!I197,Предпосылки!I206) -> 0 | J9: =SUM(Предпосылки!J197,Предпосылки!J206) -> 0 | K9: =SUM(Предпосылки!K197,Предпосылки!K206) -> 0 | L9: =SUM(Предпосылки!L197,Предпосылки!L206) -> 0 | M9: =SUM(Предпосылки!M197,Предпосылки!M206) -> 0 | N9: =SUM(Предпосылки!N197,Предпосылки!N206) -> 0 | O9: =SUM(Предпосылки!O197,Предпосылки!O206) -> 0 | P9: =SUM(Предпосылки!P197,Предпосылки!P206) -> 0 | Q9: =SUM(Предпосылки!Q197,Предпосылки!Q206) -> 0 | R9: =SUM(Предпосылки!R197,Предпосылки!R206) -> 0 | S9: =SUM(Предпосылки!S197,Предпосылки!S206) -> 0 | T9: =SUM(Предпосылки!T197,Предпосылки!T206) -> 0 | U9: =SUM(Предпосылки!U197,Предпосылки!U206) -> 0 | V9: =SUM(Предпосылки!V197,Предпосылки!V206) -> 0 | W9: =SUM(Предпосылки!W197,Предпосылки!W206) -> 0 | X9: =SUM(Предпосылки!X197,Предпосылки!X206) -> 0 | Y9: =SUM(Предпосылки!Y197,Предпосылки!Y206) -> 0 | Z9: =SUM(Предпосылки!Z197,Предпосылки!Z206) -> 0 | AA9: =SUM(Предпосылки!AA197,Предпосылки!AA206) -> 0 | AB9: =SUM(Предпосылки!AB197,Предпосылки!AB206) -> 0
C10: Транспортные средства | D10: тыс. руб. | F10: 0 | H10: =SUM(Предпосылки!H198,Предпосылки!H207) -> 0 | I10: =SUM(Предпосылки!I198,Предпосылки!I207) -> 0 | J10: =SUM(Предпосылки!J198,Предпосылки!J207) -> 0 | K10: =SUM(Предпосылки!K198,Предпосылки!K207) -> 0 | L10: =SUM(Предпосылки!L198,Предпосылки!L207) -> 0 | M10: =SUM(Предпосылки!M198,Предпосылки!M207) -> 0 | N10: =SUM(Предпосылки!N198,Предпосылки!N207) -> 0 | O10: =SUM(Предпосылки!O198,Предпосылки!O207) -> 0 | P10: =SUM(Предпосылки!P198,Предпосылки!P207) -> 0 | Q10: =SUM(Предпосылки!Q198,Предпосылки!Q207) -> 0 | R10: =SUM(Предпосылки!R198,Предпосылки!R207) -> 0 | S10: =SUM(Предпосылки!S198,Предпосылки!S207) -> 0 | T10: =SUM(Предпосылки!T198,Предпосылки!T207) -> 0 | U10: =SUM(Предпосылки!U198,Предпосылки!U207) -> 0 | V10: =SUM(Предпосылки!V198,Предпосылки!V207) -> 0 | W10: =SUM(Предпосылки!W198,Предпосылки!W207) -> 0 | X10: =SUM(Предпосылки!X198,Предпосылки!X207) -> 0 | Y10: =SUM(Предпосылки!Y198,Предпосылки!Y207) -> 0 | Z10: =SUM(Предпосылки!Z198,Предпосылки!Z207) -> 0 | AA10: =SUM(Предпосылки!AA198,Предпосылки!AA207) -> 0 | AB10: =SUM(Предпосылки!AB198,Предпосылки!AB207) -> 0
C11: Нематериальные активы с определенным СПИ | D11: тыс. руб. | F11: 0 | H11: =SUM(Предпосылки!H199,Предпосылки!H208) -> 0 | I11: =SUM(Предпосылки!I199,Предпосылки!I208) -> 0 | J11: =SUM(Предпосылки!J199,Предпосылки!J208) -> 0 | K11: =SUM(Предпосылки!K199,Предпосылки!K208) -> 0 | L11: =SUM(Предпосылки!L199,Предпосылки!L208) -> 0 | M11: =SUM(Предпосылки!M199,Предпосылки!M208) -> 0 | N11: =SUM(Предпосылки!N199,Предпосылки!N208) -> 0 | O11: =SUM(Предпосылки!O199,Предпосылки!O208) -> 0 | P11: =SUM(Предпосылки!P199,Предпосылки!P208) -> 0 | Q11: =SUM(Предпосылки!Q199,Предпосылки!Q208) -> 0 | R11: =SUM(Предпосылки!R199,Предпосылки!R208) -> 0 | S11: =SUM(Предпосылки!S199,Предпосылки!S208) -> 0 | T11: =SUM(Предпосылки!T199,Предпосылки!T208) -> 0 | U11: =SUM(Предпосылки!U199,Предпосылки!U208) -> 0 | V11: =SUM(Предпосылки!V199,Предпосылки!V208) -> 0 | W11: =SUM(Предпосылки!W199,Предпосылки!W208) -> 0 | X11: =SUM(Предпосылки!X199,Предпосылки!X208) -> 0 | Y11: =SUM(Предпосылки!Y199,Предпосылки!Y208) -> 0 | Z11: =SUM(Предпосылки!Z199,Предпосылки!Z208) -> 0 | AA11: =SUM(Предпосылки!AA199,Предпосылки!AA208) -> 0 | AB11: =SUM(Предпосылки!AB199,Предпосылки!AB208) -> 0
C12: Нематериальные активы с неопределенным СПИ (не амортизируются) | D12: тыс. руб. | F12: 0 | H12: =SUM(Предпосылки!H200,Предпосылки!H209) -> 0 | I12: =SUM(Предпосылки!I200,Предпосылки!I209) -> 0 | J12: =SUM(Предпосылки!J200,Предпосылки!J209) -> 0 | K12: =SUM(Предпосылки!K200,Предпосылки!K209) -> 0 | L12: =SUM(Предпосылки!L200,Предпосылки!L209) -> 0 | M12: =SUM(Предпосылки!M200,Предпосылки!M209) -> 0 | N12: =SUM(Предпосылки!N200,Предпосылки!N209) -> 0 | O12: =SUM(Предпосылки!O200,Предпосылки!O209) -> 0 | P12: =SUM(Предпосылки!P200,Предпосылки!P209) -> 0 | Q12: =SUM(Предпосылки!Q200,Предпосылки!Q209) -> 0 | R12: =SUM(Предпосылки!R200,Предпосылки!R209) -> 0 | S12: =SUM(Предпосылки!S200,Предпосылки!S209) -> 0 | T12: =SUM(Предпосылки!T200,Предпосылки!T209) -> 0 | U12: =SUM(Предпосылки!U200,Предпосылки!U209) -> 0 | V12: =SUM(Предпосылки!V200,Предпосылки!V209) -> 0 | W12: =SUM(Предпосылки!W200,Предпосылки!W209) -> 0 | X12: =SUM(Предпосылки!X200,Предпосылки!X209) -> 0 | Y12: =SUM(Предпосылки!Y200,Предпосылки!Y209) -> 0 | Z12: =SUM(Предпосылки!Z200,Предпосылки!Z209) -> 0 | AA12: =SUM(Предпосылки!AA200,Предпосылки!AA209) -> 0 | AB12: =SUM(Предпосылки!AB200,Предпосылки!AB209) -> 0
C13: Итого | D13: тыс. руб. | F13: =SUM(F7:F12) -> 0 | H13: =SUM(H7:H12) -> 0 | I13: 0 | J13: 0 | K13: 0 | L13: 0 | M13: 0 | N13: 0 | O13: 0 | P13: 0 | Q13: 0 | R13: 0 | S13: 0 | T13: 0 | U13: 0 | V13: 0 | W13: 0 | X13: 0 | Y13: 0 | Z13: 0 | AA13: 0 | AB13: 0
B15: Капитальные вложения (с НДС)
C17: =C7 -> Здания и сооружения | D17: тыс. руб. | F17: =SUM(H17:AA17) -> 0 | H17: =H7*(One+Предпосылки!H$294) -> 0 | I17: =I7*(One+Предпосылки!I$294) -> 0 | J17: =J7*(One+Предпосылки!J$294) -> 0 | K17: =K7*(One+Предпосылки!K$294) -> 0 | L17: =L7*(One+Предпосылки!L$294) -> 0 | M17: =M7*(One+Предпосылки!M$294) -> 0 | N17: =N7*(One+Предпосылки!N$294) -> 0 | O17: =O7*(One+Предпосылки!O$294) -> 0 | P17: =P7*(One+Предпосылки!P$294) -> 0 | Q17: =Q7*(One+Предпосылки!Q$294) -> 0 | R17: =R7*(One+Предпосылки!R$294) -> 0 | S17: =S7*(One+Предпосылки!S$294) -> 0 | T17: =T7*(One+Предпосылки!T$294) -> 0 | U17: =U7*(One+Предпосылки!U$294) -> 0 | V17: =V7*(One+Предпосылки!V$294) -> 0 | W17: =W7*(One+Предпосылки!W$294) -> 0 | X17: =X7*(One+Предпосылки!X$294) -> 0 | Y17: =Y7*(One+Предпосылки!Y$294) -> 0 | Z17: =Z7*(One+Предпосылки!Z$294) -> 0 | AA17: =AA7*(One+Предпосылки!AA$294) -> 0 | AB17: =AB7*(One+Предпосылки!AB$294) -> 0
C18: Машины и оборудование | D18: тыс. руб. | F18: 0 | H18: =H8*(One+Предпосылки!H$294) -> 0 | I18: =I8*(One+Предпосылки!I$294) -> 0 | J18: =J8*(One+Предпосылки!J$294) -> 0 | K18: =K8*(One+Предпосылки!K$294) -> 0 | L18: =L8*(One+Предпосылки!L$294) -> 0 | M18: =M8*(One+Предпосылки!M$294) -> 0 | N18: =N8*(One+Предпосылки!N$294) -> 0 | O18: =O8*(One+Предпосылки!O$294) -> 0 | P18: =P8*(One+Предпосылки!P$294) -> 0 | Q18: =Q8*(One+Предпосылки!Q$294) -> 0 | R18: =R8*(One+Предпосылки!R$294) -> 0 | S18: =S8*(One+Предпосылки!S$294) -> 0 | T18: =T8*(One+Предпосылки!T$294) -> 0 | U18: =U8*(One+Предпосылки!U$294) -> 0 | V18: =V8*(One+Предпосылки!V$294) -> 0 | W18: =W8*(One+Предпосылки!W$294) -> 0 | X18: =X8*(One+Предпосылки!X$294) -> 0 | Y18: =Y8*(One+Предпосылки!Y$294) -> 0 | Z18: =Z8*(One+Предпосылки!Z$294) -> 0 | AA18: =AA8*(One+Предпосылки!AA$294) -> 0 | AB18: =AB8*(One+Предпосылки!AB$294) -> 0
C19: Земля | D19: тыс. руб. | F19: 0 | H19: =H9*(One+Предпосылки!H$294) -> 0 | I19: =I9*(One+Предпосылки!I$294) -> 0 | J19: =J9*(One+Предпосылки!J$294) -> 0 | K19: =K9*(One+Предпосылки!K$294) -> 0 | L19: =L9*(One+Предпосылки!L$294) -> 0 | M19: =M9*(One+Предпосылки!M$294) -> 0 | N19: =N9*(One+Предпосылки!N$294) -> 0 | O19: =O9*(One+Предпосылки!O$294) -> 0 | P19: =P9*(One+Предпосылки!P$294) -> 0 | Q19: =Q9*(One+Предпосылки!Q$294) -> 0 | R19: =R9*(One+Предпосылки!R$294) -> 0 | S19: =S9*(One+Предпосылки!S$294) -> 0 | T19: =T9*(One+Предпосылки!T$294) -> 0 | U19: =U9*(One+Предпосылки!U$294) -> 0 | V19: =V9*(One+Предпосылки!V$294) -> 0 | W19: =W9*(One+Предпосылки!W$294) -> 0 | X19: =X9*(One+Предпосылки!X$294) -> 0 | Y19: =Y9*(One+Предпосылки!Y$294) -> 0 | Z19: =Z9*(One+Предпосылки!Z$294) -> 0 | AA19: =AA9*(One+Предпосылки!AA$294) -> 0 | AB19: =AB9*(One+Предпосылки!AB$294) -> 0
C20: Транспортные средства | D20: тыс. руб. | F20: 0 | H20: =H10*(One+Предпосылки!H$294) -> 0 | I20: =I10*(One+Предпосылки!I$294) -> 0 | J20: =J10*(One+Предпосылки!J$294) -> 0 | K20: =K10*(One+Предпосылки!K$294) -> 0 | L20: =L10*(One+Предпосылки!L$294) -> 0 | M20: =M10*(One+Предпосылки!M$294) -> 0 | N20: =N10*(One+Предпосылки!N$294) -> 0 | O20: =O10*(One+Предпосылки!O$294) -> 0 | P20: =P10*(One+Предпосылки!P$294) -> 0 | Q20: =Q10*(One+Предпосылки!Q$294) -> 0 | R20: =R10*(One+Предпосылки!R$294) -> 0 | S20: =S10*(One+Предпосылки!S$294) -> 0 | T20: =T10*(One+Предпосылки!T$294) -> 0 | U20: =U10*(One+Предпосылки!U$294) -> 0 | V20: =V10*(One+Предпосылки!V$294) -> 0 | W20: =W10*(One+Предпосылки!W$294) -> 0 | X20: =X10*(One+Предпосылки!X$294) -> 0 | Y20: =Y10*(One+Предпосылки!Y$294) -> 0 | Z20: =Z10*(One+Предпосылки!Z$294) -> 0 | AA20: =AA10*(One+Предпосылки!AA$294) -> 0 | AB20: =AB10*(One+Предпосылки!AB$294) -> 0
C21: Нематериальные активы с определенным СПИ | D21: тыс. руб. | F21: 0 | H21: =H11*(One+Предпосылки!H$294) -> 0 | I21: =I11*(One+Предпосылки!I$294) -> 0 | J21: =J11*(One+Предпосылки!J$294) -> 0 | K21: =K11*(One+Предпосылки!K$294) -> 0 | L21: =L11*(One+Предпосылки!L$294) -> 0 | M21: =M11*(One+Предпосылки!M$294) -> 0 | N21: =N11*(One+Предпосылки!N$294) -> 0 | O21: =O11*(One+Предпосылки!O$294) -> 0 | P21: =P11*(One+Предпосылки!P$294) -> 0 | Q21: =Q11*(One+Предпосылки!Q$294) -> 0 | R21: =R11*(One+Предпосылки!R$294) -> 0 | S21: =S11*(One+Предпосылки!S$294) -> 0 | T21: =T11*(One+Предпосылки!T$294) -> 0 | U21: =U11*(One+Предпосылки!U$294) -> 0 | V21: =V11*(One+Предпосылки!V$294) -> 0 | W21: =W11*(One+Предпосылки!W$294) -> 0 | X21: =X11*(One+Предпосылки!X$294) -> 0 | Y21: =Y11*(One+Предпосылки!Y$294) -> 0 | Z21: =Z11*(One+Предпосылки!Z$294) -> 0 | AA21: =AA11*(One+Предпосылки!AA$294) -> 0 | AB21: =AB11*(One+Предпосылки!AB$294) -> 0
C22: Нематериальные активы с неопределенным СПИ (не амортизируются) | D22: тыс. руб. | F22: 0 | H22: =H12*(One+Предпосылки!H$294) -> 0 | I22: =I12*(One+Предпосылки!I$294) -> 0 | J22: =J12*(One+Предпосылки!J$294) -> 0 | K22: =K12*(One+Предпосылки!K$294) -> 0 | L22: =L12*(One+Предпосылки!L$294) -> 0 | M22: =M12*(One+Предпосылки!M$294) -> 0 | N22: =N12*(One+Предпосылки!N$294) -> 0 | O22: =O12*(One+Предпосылки!O$294) -> 0 | P22: =P12*(One+Предпосылки!P$294) -> 0 | Q22: =Q12*(One+Предпосылки!Q$294) -> 0 | R22: =R12*(One+Предпосылки!R$294) -> 0 | S22: =S12*(One+Предпосылки!S$294) -> 0 | T22: =T12*(One+Предпосылки!T$294) -> 0 | U22: =U12*(One+Предпосылки!U$294) -> 0 | V22: =V12*(One+Предпосылки!V$294) -> 0 | W22: =W12*(One+Предпосылки!W$294) -> 0 | X22: =X12*(One+Предпосылки!X$294) -> 0 | Y22: =Y12*(One+Предпосылки!Y$294) -> 0 | Z22: =Z12*(One+Предпосылки!Z$294) -> 0 | AA22: =AA12*(One+Предпосылки!AA$294) -> 0 | AB22: =AB12*(One+Предпосылки!AB$294) -> 0
C23: Итого | D23: тыс. руб. | F23: =SUM(F17:F22) -> 0 | H23: =SUM(H17:H22) -> 0 | I23: 0 | J23: 0 | K23: 0 | L23: 0 | M23: 0 | N23: 0 | O23: 0 | P23: 0 | Q23: 0 | R23: 0 | S23: 0 | T23: 0 | U23: 0 | V23: 0 | W23: 0 | X23: 0 | Y23: 0 | Z23: 0 | AA23: 0 | AB23: 0
B25: Расчеты по капитальным вложениям
C27: Оплата капитальных вложений | D27: тыс. руб. | F27: =SUM(H27:AA27) -> 0 | H27: =H23*Предпосылки!$F$432 -> 0 | I27: =I23*Предпосылки!$F$432 -> 0 | J27: =J23*Предпосылки!$F$432 -> 0 | K27: =K23*Предпосылки!$F$432 -> 0 | L27: =L23*Предпосылки!$F$432 -> 0 | M27: =M23*Предпосылки!$F$432 -> 0 | N27: =N23*Предпосылки!$F$432 -> 0 | O27: =O23*Предпосылки!$F$432 -> 0 | P27: =P23*Предпосылки!$F$432 -> 0 | Q27: =Q23*Предпосылки!$F$432 -> 0 | R27: =R23*Предпосылки!$F$432 -> 0 | S27: =S23*Предпосылки!$F$432 -> 0 | T27: =T23*Предпосылки!$F$432 -> 0 | U27: =U23*Предпосылки!$F$432 -> 0 | V27: =V23*Предпосылки!$F$432 -> 0 | W27: =W23*Предпосылки!$F$432 -> 0 | X27: =X23*Предпосылки!$F$432 -> 0 | Y27: =Y23*Предпосылки!$F$432 -> 0 | Z27: =Z23*Предпосылки!$F$432 -> 0 | AA27: =AA23*Предпосылки!$F$432 -> 0 | AB27: =AB23*Предпосылки!$F$432 -> 0
B29: Входящий НДС по капитальным вложениям
C31: Входящий НДС по капитальным вложениям | D31: тыс. руб. | H31: =H23-H13 -> 0 | I31: =I23-I13 -> 0 | J31: 0 | K31: =K23-K13 -> 0 | L31: 0 | M31: 0 | N31: 0 | O31: 0 | P31: 0 | Q31: 0 | R31: 0 | S31: 0 | T31: 0 | U31: 0 | V31: 0 | W31: 0 | X31: 0 | Y31: 0 | Z31: 0 | AA31: 0 | AB31: 0
B33: Расчет амортизации
B35: Принятие объектов капитальных вложений на баланс (без НДС)
C37: =C17 -> Здания и сооружения | D37: тыс. руб. | H37: =Предпосылки!H213 -> 0 | I37: =Предпосылки!I213 -> 0 | J37: =Предпосылки!J213 -> 0 | K37: =Предпосылки!K213 -> 0 | L37: =Предпосылки!L213 -> 0 | M37: =Предпосылки!M213 -> 0 | N37: =Предпосылки!N213 -> 0 | O37: =Предпосылки!O213 -> 0 | P37: =Предпосылки!P213 -> 0 | Q37: =Предпосылки!Q213 -> 0 | R37: =Предпосылки!R213 -> 0 | S37: =Предпосылки!S213 -> 0 | T37: =Предпосылки!T213 -> 0 | U37: =Предпосылки!U213 -> 0 | V37: =Предпосылки!V213 -> 0 | W37: =Предпосылки!W213 -> 0 | X37: =Предпосылки!X213 -> 0 | Y37: =Предпосылки!Y213 -> 0 | Z37: =Предпосылки!Z213 -> 0 | AA37: =Предпосылки!AA213 -> 0 | AB37: =Предпосылки!AB213 -> 0 | AD37: =SUM(H37:AB37) -> 0
C38: Машины и оборудование | D38: тыс. руб. | H38: =Предпосылки!H214 -> 0 | I38: =Предпосылки!I214 -> 0 | J38: =Предпосылки!J214 -> 0 | K38: =Предпосылки!K214 -> 0 | L38: =Предпосылки!L214 -> 0 | M38: =Предпосылки!M214 -> 0 | N38: =Предпосылки!N214 -> 0 | O38: =Предпосылки!O214 -> 0 | P38: =Предпосылки!P214 -> 0 | Q38: =Предпосылки!Q214 -> 0 | R38: =Предпосылки!R214 -> 0 | S38: =Предпосылки!S214 -> 0 | T38: =Предпосылки!T214 -> 0 | U38: =Предпосылки!U214 -> 0 | V38: =Предпосылки!V214 -> 0 | W38: =Предпосылки!W214 -> 0 | X38: =Предпосылки!X214 -> 0 | Y38: =Предпосылки!Y214 -> 0 | Z38: =Предпосылки!Z214 -> 0 | AA38: =Предпосылки!AA214 -> 0 | AB38: =Предпосылки!AB214 -> 0 | AD38: =SUM(H38:AB38) -> 0
C39: Земля | D39: тыс. руб. | H39: =Предпосылки!H215 -> 0 | I39: =Предпосылки!I215 -> 0 | J39: =Предпосылки!J215 -> 0 | K39: =Предпосылки!K215 -> 0 | L39: =Предпосылки!L215 -> 0 | M39: =Предпосылки!M215 -> 0 | N39: =Предпосылки!N215 -> 0 | O39: =Предпосылки!O215 -> 0 | P39: =Предпосылки!P215 -> 0 | Q39: =Предпосылки!Q215 -> 0 | R39: =Предпосылки!R215 -> 0 | S39: =Предпосылки!S215 -> 0 | T39: =Предпосылки!T215 -> 0 | U39: =Предпосылки!U215 -> 0 | V39: =Предпосылки!V215 -> 0 | W39: =Предпосылки!W215 -> 0 | X39: =Предпосылки!X215 -> 0 | Y39: =Предпосылки!Y215 -> 0 | Z39: =Предпосылки!Z215 -> 0 | AA39: =Предпосылки!AA215 -> 0 | AB39: =Предпосылки!AB215 -> 0 | AD39: 0
C40: Транспортные средства | D40: тыс. руб. | H40: =Предпосылки!H216 -> 0 | I40: =Предпосылки!I216 -> 0 | J40: =Предпосылки!J216 -> 0 | K40: =Предпосылки!K216 -> 0 | L40: =Предпосылки!L216 -> 0 | M40: =Предпосылки!M216 -> 0 | N40: =Предпосылки!N216 -> 0 | O40: =Предпосылки!O216 -> 0 | P40: =Предпосылки!P216 -> 0 | Q40: =Предпосылки!Q216 -> 0 | R40: =Предпосылки!R216 -> 0 | S40: =Предпосылки!S216 -> 0 | T40: =Предпосылки!T216 -> 0 | U40: =Предпосылки!U216 -> 0 | V40: =Предпосылки!V216 -> 0 | W40: =Предпосылки!W216 -> 0 | X40: =Предпосылки!X216 -> 0 | Y40: =Предпосылки!Y216 -> 0 | Z40: =Предпосылки!Z216 -> 0 | AA40: =Предпосылки!AA216 -> 0 | AB40: =Предпосылки!AB216 -> 0 | AD40: 0
C41: Нематериальные активы с определенным СПИ | D41: тыс. руб. | H41: =Предпосылки!H217 -> 0 | I41: =Предпосылки!I217 -> 0 | J41: =Предпосылки!J217 -> 0 | K41: =Предпосылки!K217 -> 0 | L41: =Предпосылки!L217 -> 0 | M41: =Предпосылки!M217 -> 0 | N41: =Предпосылки!N217 -> 0 | O41: =Предпосылки!O217 -> 0 | P41: =Предпосылки!P217 -> 0 | Q41: =Предпосылки!Q217 -> 0 | R41: =Предпосылки!R217 -> 0 | S41: =Предпосылки!S217 -> 0 | T41: =Предпосылки!T217 -> 0 | U41: =Предпосылки!U217 -> 0 | V41: =Предпосылки!V217 -> 0 | W41: =Предпосылки!W217 -> 0 | X41: =Предпосылки!X217 -> 0 | Y41: =Предпосылки!Y217 -> 0 | Z41: =Предпосылки!Z217 -> 0 | AA41: =Предпосылки!AA217 -> 0 | AB41: =Предпосылки!AB217 -> 0 | AD41: 0
C42: Нематериальные активы с неопределенным СПИ (не амортизируются) | D42: тыс. руб. | H42: =Предпосылки!H218 -> 0 | I42: =Предпосылки!I218 -> 0 | J42: =Предпосылки!J218 -> 0 | K42: =Предпосылки!K218 -> 0 | L42: =Предпосылки!L218 -> 0 | M42: =Предпосылки!M218 -> 0 | N42: =Предпосылки!N218 -> 0 | O42: =Предпосылки!O218 -> 0 | P42: =Предпосылки!P218 -> 0 | Q42: =Предпосылки!Q218 -> 0 | R42: =Предпосылки!R218 -> 0 | S42: =Предпосылки!S218 -> 0 | T42: =Предпосылки!T218 -> 0 | U42: =Предпосылки!U218 -> 0 | V42: =Предпосылки!V218 -> 0 | W42: =Предпосылки!W218 -> 0 | X42: =Предпосылки!X218 -> 0 | Y42: =Предпосылки!Y218 -> 0 | Z42: =Предпосылки!Z218 -> 0 | AA42: =Предпосылки!AA218 -> 0 | AB42: =Предпосылки!AB218 -> 0 | AD42: 0
C43: Итого | D43: тыс. руб. | H43: =SUM(H37:H42) -> 0 | I43: 0 | J43: 0 | K43: 0 | L43: 0 | M43: 0 | N43: 0 | O43: 0 | P43: 0 | Q43: 0 | R43: 0 | S43: 0 | T43: 0 | U43: 0 | V43: 0 | W43: 0 | X43: 0 | Y43: 0 | Z43: 0 | AA43: 0 | AB43: 0 | AD43: =SUM(AD37:AD42) -> 0
B45: Расчет незавершенного производства
C46: Незавершенное производство на начало периода | D46: тыс. руб. | H46: =G49 -> 0 | I46: =H49 -> 0 | J46: 0 | K46: 0 | L46: 0 | M46: 0 | N46: 0 | O46: 0 | P46: 0 | Q46: 0 | R46: 0 | S46: 0 | T46: 0 | U46: 0 | V46: 0 | W46: 0 | X46: 0 | Y46: 0 | Z46: 0 | AA46: 0 | AB46: 0
C47: Поступление | D47: тыс. руб. | H47: =H13 -> 0 | I47: =I13 -> 0 | J47: 0 | K47: 0 | L47: 0 | M47: 0 | N47: 0 | O47: 0 | P47: 0 | Q47: 0 | R47: 0 | S47: 0 | T47: 0 | U47: 0 | V47: 0 | W47: 0 | X47: 0 | Y47: 0 | Z47: 0 | AA47: 0 | AB47: 0
C48: Перевод в основные средства (-) | D48: тыс. руб. | H48: =-Предпосылки!H219 -> 0 | I48: =-Предпосылки!I219 -> 0 | J48: =-Предпосылки!J219 -> 0 | K48: =-Предпосылки!K219 -> 0 | L48: =-Предпосылки!L219 -> 0 | M48: =-Предпосылки!M219 -> 0 | N48: =-Предпосылки!N219 -> 0 | O48: =-Предпосылки!O219 -> 0 | P48: =-Предпосылки!P219 -> 0 | Q48: =-Предпосылки!Q219 -> 0 | R48: =-Предпосылки!R219 -> 0 | S48: =-Предпосылки!S219 -> 0 | T48: =-Предпосылки!T219 -> 0 | U48: =-Предпосылки!U219 -> 0 | V48: =-Предпосылки!V219 -> 0 | W48: =-Предпосылки!W219 -> 0 | X48: =-Предпосылки!X219 -> 0 | Y48: =-Предпосылки!Y219 -> 0 | Z48: =-Предпосылки!Z219 -> 0 | AA48: =-Предпосылки!AA219 -> 0 | AB48: =-Предпосылки!AB219 -> 0
C49: Незавершенное производство на конец периода | D49: тыс. руб. | H49: =SUM(H46:H48) -> 0 | I49: 0 | J49: 0 | K49: 0 | L49: 0 | M49: 0 | N49: 0 | O49: 0 | P49: 0 | Q49: 0 | R49: 0 | S49: 0 | T49: 0 | U49: 0 | V49: 0 | W49: 0 | X49: 0 | Y49: 0 | Z49: 0 | AA49: 0 | AB49: 0
B51: Итоговая амортизация за период | D51: тыс. руб. | H51: =SUM(H59,H90,H121,H152) -> 0 | I51: =SUM(I59,I90,I121,I152) -> 0 | J51: 0 | K51: 0 | L51: 0 | M51: 0 | N51: 0 | O51: 0 | P51: 0 | Q51: 0 | R51: 0 | S51: 0 | T51: 0 | U51: 0 | V51: 0 | W51: 0 | X51: 0 | Y51: 0 | Z51: 0 | AA51: 0 | AB51: 0
C52: Итоговая амортизация производственных активов | D52: тыс. руб. | H52: =H51 -> 0 | I52: =I51 -> 0 | J52: 0 | K52: 0 | L52: 0 | M52: 0 | N52: 0 | O52: 0 | P52: 0 | Q52: 0 | R52: 0 | S52: 0 | T52: 0 | U52: 0 | V52: 0 | W52: 0 | X52: 0 | Y52: 0 | Z52: 0 | AA52: 0 | AB52: 0
C53: Итоговая амортизация активов, напрямую не участвующих в производстве продукции (амортизация, относимая на сч. 26 "Общехозяйственные расходы") | D53: тыс. руб. | H53: =H51-H52 -> 0 | I53: =I51-I52 -> 0 | J53: 0 | K53: 0 | L53: 0 | M53: 0 | N53: 0 | O53: 0 | P53: 0 | Q53: 0 | R53: 0 | S53: 0 | T53: 0 | U53: 0 | V53: =V51-V52 -> 0 | W53: =W51-W52 -> 0 | X53: 0 | Y53: 0 | Z53: 0 | AA53: 0 | AB53: 0
B55: Здания и сооружения
C57: Ставка амортизации | D57: % | F57: =Предпосылки!F228 -> 0.05
C59: Амортизация | D59: тыс. руб. | H59: =SUM(H60:H79) -> 0 | I59: =SUM(I60:I79) -> 0 | J59: 0 | K59: 0 | L59: 0 | M59: 0 | N59: 0 | O59: 0 | P59: 0 | Q59: 0 | R59: 0 | S59: 0 | T59: 0 | U59: 0 | V59: 0 | W59: 0 | X59: 0 | Y59: 0 | Z59: 0 | AA59: 0 | AB59: 0
C60: =INDEX(H$2:AA$2,,$E60) -> 2026 | D60: тыс. руб. | E60: 1 | F60: =OFFSET($G$37,,E60) -> 0 | H60: =IF($C60>H$2,0,IF($C60=H$2,0.5,1)*MIN($F60*$F$57,$F60-SUM($G60:G60))) -> 0 | I60: =IF($C60>I$2,0,IF($C60=I$2,0.5,1)*MIN($F60*$F$57,$F60-SUM($G60:H60))) -> 0 | J60: =IF($C60>J$2,0,IF($C60=J$2,0.5,1)*MIN($F60*$F$57,$F60-SUM($G60:I60))) -> 0 | K60: =IF($C60>K$2,0,IF($C60=K$2,0.5,1)*MIN($F60*$F$57,$F60-SUM($G60:J60))) -> 0 | L60: =IF($C60>L$2,0,IF($C60=L$2,0.5,1)*MIN($F60*$F$57,$F60-SUM($G60:K60))) -> 0 | M60: =IF($C60>M$2,0,IF($C60=M$2,0.5,1)*MIN($F60*$F$57,$F60-SUM($G60:L60))) -> 0 | N60: =IF($C60>N$2,0,IF($C60=N$2,0.5,1)*MIN($F60*$F$57,$F60-SUM($G60:M60))) -> 0 | O60: =IF($C60>O$2,0,IF($C60=O$2,0.5,1)*MIN($F60*$F$57,$F60-SUM($G60:N60))) -> 0 | P60: =IF($C60>P$2,0,IF($C60=P$2,0.5,1)*MIN($F60*$F$57,$F60-SUM($G60:O60))) -> 0 | Q60: =IF($C60>Q$2,0,IF($C60=Q$2,0.5,1)*MIN($F60*$F$57,$F60-SUM($G60:P60))) -> 0 | R60: =IF($C60>R$2,0,IF($C60=R$2,0.5,1)*MIN($F60*$F$57,$F60-SUM($G60:Q60))) -> 0 | S60: =IF($C60>S$2,0,IF($C60=S$2,0.5,1)*MIN($F60*$F$57,$F60-SUM($G60:R60))) -> 0 | T60: =IF($C60>T$2,0,IF($C60=T$2,0.5,1)*MIN($F60*$F$57,$F60-SUM($G60:S60))) -> 0 | U60: =IF($C60>U$2,0,IF($C60=U$2,0.5,1)*MIN($F60*$F$57,$F60-SUM($G60:T60))) -> 0 | V60: =IF($C60>V$2,0,IF($C60=V$2,0.5,1)*MIN($F60*$F$57,$F60-SUM($G60:U60))) -> 0 | W60: =IF($C60>W$2,0,IF($C60=W$2,0.5,1)*MIN($F60*$F$57,$F60-SUM($G60:V60))) -> 0 | X60: =IF($C60>X$2,0,IF($C60=X$2,0.5,1)*MIN($F60*$F$57,$F60-SUM($G60:W60))) -> 0 | Y60: =IF($C60>Y$2,0,IF($C60=Y$2,0.5,1)*MIN($F60*$F$57,$F60-SUM($G60:X60))) -> 0 | Z60: =IF($C60>Z$2,0,IF($C60=Z$2,0.5,1)*MIN($F60*$F$57,$F60-SUM($G60:Y60))) -> 0 | AA60: =IF($C60>AA$2,0,IF($C60=AA$2,0.5,1)*MIN($F60*$F$57,$F60-SUM($G60:Z60))) -> 0 | AB60: =IF($C60>AB$2,0,IF($C60=AB$2,0.5,1)*MIN($F60*$F$57,$F60-SUM($G60:AA60))) -> 0
C61: =INDEX(H$2:AA$2,,$E61) -> 2027 | D61: тыс. руб. | E61: 2 | F61: =OFFSET($G$37,,E61) -> 0 | H61: =IF($C61>H$2,0,IF($C61=H$2,0.5,1)*MIN($F61*$F$57,$F61-SUM($G61:G61))) -> 0 | I61: =IF($C61>I$2,0,IF($C61=I$2,0.5,1)*MIN($F61*$F$57,$F61-SUM($G61:H61))) -> 0 | J61: =IF($C61>J$2,0,IF($C61=J$2,0.5,1)*MIN($F61*$F$57,$F61-SUM($G61:I61))) -> 0 | K61: =IF($C61>K$2,0,IF($C61=K$2,0.5,1)*MIN($F61*$F$57,$F61-SUM($G61:J61))) -> 0 | L61: =IF($C61>L$2,0,IF($C61=L$2,0.5,1)*MIN($F61*$F$57,$F61-SUM($G61:K61))) -> 0 | M61: =IF($C61>M$2,0,IF($C61=M$2,0.5,1)*MIN($F61*$F$57,$F61-SUM($G61:L61))) -> 0 | N61: =IF($C61>N$2,0,IF($C61=N$2,0.5,1)*MIN($F61*$F$57,$F61-SUM($G61:M61))) -> 0 | O61: =IF($C61>O$2,0,IF($C61=O$2,0.5,1)*MIN($F61*$F$57,$F61-SUM($G61:N61))) -> 0 | P61: =IF($C61>P$2,0,IF($C61=P$2,0.5,1)*MIN($F61*$F$57,$F61-SUM($G61:O61))) -> 0 | Q61: =IF($C61>Q$2,0,IF($C61=Q$2,0.5,1)*MIN($F61*$F$57,$F61-SUM($G61:P61))) -> 0 | R61: =IF($C61>R$2,0,IF($C61=R$2,0.5,1)*MIN($F61*$F$57,$F61-SUM($G61:Q61))) -> 0 | S61: =IF($C61>S$2,0,IF($C61=S$2,0.5,1)*MIN($F61*$F$57,$F61-SUM($G61:R61))) -> 0 | T61: =IF($C61>T$2,0,IF($C61=T$2,0.5,1)*MIN($F61*$F$57,$F61-SUM($G61:S61))) -> 0 | U61: =IF($C61>U$2,0,IF($C61=U$2,0.5,1)*MIN($F61*$F$57,$F61-SUM($G61:T61))) -> 0 | V61: =IF($C61>V$2,0,IF($C61=V$2,0.5,1)*MIN($F61*$F$57,$F61-SUM($G61:U61))) -> 0 | W61: =IF($C61>W$2,0,IF($C61=W$2,0.5,1)*MIN($F61*$F$57,$F61-SUM($G61:V61))) -> 0 | X61: =IF($C61>X$2,0,IF($C61=X$2,0.5,1)*MIN($F61*$F$57,$F61-SUM($G61:W61))) -> 0 | Y61: =IF($C61>Y$2,0,IF($C61=Y$2,0.5,1)*MIN($F61*$F$57,$F61-SUM($G61:X61))) -> 0 | Z61: =IF($C61>Z$2,0,IF($C61=Z$2,0.5,1)*MIN($F61*$F$57,$F61-SUM($G61:Y61))) -> 0 | AA61: =IF($C61>AA$2,0,IF($C61=AA$2,0.5,1)*MIN($F61*$F$57,$F61-SUM($G61:Z61))) -> 0 | AB61: =IF($C61>AB$2,0,IF($C61=AB$2,0.5,1)*MIN($F61*$F$57,$F61-SUM($G61:AA61))) -> 0
C62: 2028 | D62: тыс. руб. | E62: 3 | F62: 0 | H62: =IF($C62>H$2,0,IF($C62=H$2,0.5,1)*MIN($F62*$F$57,$F62-SUM($G62:G62))) -> 0 | I62: =IF($C62>I$2,0,IF($C62=I$2,0.5,1)*MIN($F62*$F$57,$F62-SUM($G62:H62))) -> 0 | J62: =IF($C62>J$2,0,IF($C62=J$2,0.5,1)*MIN($F62*$F$57,$F62-SUM($G62:I62))) -> 0 | K62: =IF($C62>K$2,0,IF($C62=K$2,0.5,1)*MIN($F62*$F$57,$F62-SUM($G62:J62))) -> 0 | L62: =IF($C62>L$2,0,IF($C62=L$2,0.5,1)*MIN($F62*$F$57,$F62-SUM($G62:K62))) -> 0 | M62: =IF($C62>M$2,0,IF($C62=M$2,0.5,1)*MIN($F62*$F$57,$F62-SUM($G62:L62))) -> 0 | N62: =IF($C62>N$2,0,IF($C62=N$2,0.5,1)*MIN($F62*$F$57,$F62-SUM($G62:M62))) -> 0 | O62: =IF($C62>O$2,0,IF($C62=O$2,0.5,1)*MIN($F62*$F$57,$F62-SUM($G62:N62))) -> 0 | P62: =IF($C62>P$2,0,IF($C62=P$2,0.5,1)*MIN($F62*$F$57,$F62-SUM($G62:O62))) -> 0 | Q62: =IF($C62>Q$2,0,IF($C62=Q$2,0.5,1)*MIN($F62*$F$57,$F62-SUM($G62:P62))) -> 0 | R62: =IF($C62>R$2,0,IF($C62=R$2,0.5,1)*MIN($F62*$F$57,$F62-SUM($G62:Q62))) -> 0 | S62: =IF($C62>S$2,0,IF($C62=S$2,0.5,1)*MIN($F62*$F$57,$F62-SUM($G62:R62))) -> 0 | T62: =IF($C62>T$2,0,IF($C62=T$2,0.5,1)*MIN($F62*$F$57,$F62-SUM($G62:S62))) -> 0 | U62: =IF($C62>U$2,0,IF($C62=U$2,0.5,1)*MIN($F62*$F$57,$F62-SUM($G62:T62))) -> 0 | V62: =IF($C62>V$2,0,IF($C62=V$2,0.5,1)*MIN($F62*$F$57,$F62-SUM($G62:U62))) -> 0 | W62: =IF($C62>W$2,0,IF($C62=W$2,0.5,1)*MIN($F62*$F$57,$F62-SUM($G62:V62))) -> 0 | X62: =IF($C62>X$2,0,IF($C62=X$2,0.5,1)*MIN($F62*$F$57,$F62-SUM($G62:W62))) -> 0 | Y62: =IF($C62>Y$2,0,IF($C62=Y$2,0.5,1)*MIN($F62*$F$57,$F62-SUM($G62:X62))) -> 0 | Z62: =IF($C62>Z$2,0,IF($C62=Z$2,0.5,1)*MIN($F62*$F$57,$F62-SUM($G62:Y62))) -> 0 | AA62: =IF($C62>AA$2,0,IF($C62=AA$2,0.5,1)*MIN($F62*$F$57,$F62-SUM($G62:Z62))) -> 0 | AB62: =IF($C62>AB$2,0,IF($C62=AB$2,0.5,1)*MIN($F62*$F$57,$F62-SUM($G62:AA62))) -> 0
C63: 2029 | D63: тыс. руб. | E63: 4 | F63: 0 | H63: =IF($C63>H$2,0,IF($C63=H$2,0.5,1)*MIN($F63*$F$57,$F63-SUM($G63:G63))) -> 0 | I63: =IF($C63>I$2,0,IF($C63=I$2,0.5,1)*MIN($F63*$F$57,$F63-SUM($G63:H63))) -> 0 | J63: =IF($C63>J$2,0,IF($C63=J$2,0.5,1)*MIN($F63*$F$57,$F63-SUM($G63:I63))) -> 0 | K63: =IF($C63>K$2,0,IF($C63=K$2,0.5,1)*MIN($F63*$F$57,$F63-SUM($G63:J63))) -> 0 | L63: =IF($C63>L$2,0,IF($C63=L$2,0.5,1)*MIN($F63*$F$57,$F63-SUM($G63:K63))) -> 0 | M63: =IF($C63>M$2,0,IF($C63=M$2,0.5,1)*MIN($F63*$F$57,$F63-SUM($G63:L63))) -> 0 | N63: =IF($C63>N$2,0,IF($C63=N$2,0.5,1)*MIN($F63*$F$57,$F63-SUM($G63:M63))) -> 0 | O63: =IF($C63>O$2,0,IF($C63=O$2,0.5,1)*MIN($F63*$F$57,$F63-SUM($G63:N63))) -> 0 | P63: =IF($C63>P$2,0,IF($C63=P$2,0.5,1)*MIN($F63*$F$57,$F63-SUM($G63:O63))) -> 0 | Q63: =IF($C63>Q$2,0,IF($C63=Q$2,0.5,1)*MIN($F63*$F$57,$F63-SUM($G63:P63))) -> 0 | R63: =IF($C63>R$2,0,IF($C63=R$2,0.5,1)*MIN($F63*$F$57,$F63-SUM($G63:Q63))) -> 0 | S63: =IF($C63>S$2,0,IF($C63=S$2,0.5,1)*MIN($F63*$F$57,$F63-SUM($G63:R63))) -> 0 | T63: =IF($C63>T$2,0,IF($C63=T$2,0.5,1)*MIN($F63*$F$57,$F63-SUM($G63:S63))) -> 0 | U63: =IF($C63>U$2,0,IF($C63=U$2,0.5,1)*MIN($F63*$F$57,$F63-SUM($G63:T63))) -> 0 | V63: =IF($C63>V$2,0,IF($C63=V$2,0.5,1)*MIN($F63*$F$57,$F63-SUM($G63:U63))) -> 0 | W63: =IF($C63>W$2,0,IF($C63=W$2,0.5,1)*MIN($F63*$F$57,$F63-SUM($G63:V63))) -> 0 | X63: =IF($C63>X$2,0,IF($C63=X$2,0.5,1)*MIN($F63*$F$57,$F63-SUM($G63:W63))) -> 0 | Y63: =IF($C63>Y$2,0,IF($C63=Y$2,0.5,1)*MIN($F63*$F$57,$F63-SUM($G63:X63))) -> 0 | Z63: =IF($C63>Z$2,0,IF($C63=Z$2,0.5,1)*MIN($F63*$F$57,$F63-SUM($G63:Y63))) -> 0 | AA63: =IF($C63>AA$2,0,IF($C63=AA$2,0.5,1)*MIN($F63*$F$57,$F63-SUM($G63:Z63))) -> 0 | AB63: =IF($C63>AB$2,0,IF($C63=AB$2,0.5,1)*MIN($F63*$F$57,$F63-SUM($G63:AA63))) -> 0
C64: 2030 | D64: тыс. руб. | E64: 5 | F64: 0 | H64: =IF($C64>H$2,0,IF($C64=H$2,0.5,1)*MIN($F64*$F$57,$F64-SUM($G64:G64))) -> 0 | I64: =IF($C64>I$2,0,IF($C64=I$2,0.5,1)*MIN($F64*$F$57,$F64-SUM($G64:H64))) -> 0 | J64: =IF($C64>J$2,0,IF($C64=J$2,0.5,1)*MIN($F64*$F$57,$F64-SUM($G64:I64))) -> 0 | K64: =IF($C64>K$2,0,IF($C64=K$2,0.5,1)*MIN($F64*$F$57,$F64-SUM($G64:J64))) -> 0 | L64: =IF($C64>L$2,0,IF($C64=L$2,0.5,1)*MIN($F64*$F$57,$F64-SUM($G64:K64))) -> 0 | M64: =IF($C64>M$2,0,IF($C64=M$2,0.5,1)*MIN($F64*$F$57,$F64-SUM($G64:L64))) -> 0 | N64: =IF($C64>N$2,0,IF($C64=N$2,0.5,1)*MIN($F64*$F$57,$F64-SUM($G64:M64))) -> 0 | O64: =IF($C64>O$2,0,IF($C64=O$2,0.5,1)*MIN($F64*$F$57,$F64-SUM($G64:N64))) -> 0 | P64: =IF($C64>P$2,0,IF($C64=P$2,0.5,1)*MIN($F64*$F$57,$F64-SUM($G64:O64))) -> 0 | Q64: =IF($C64>Q$2,0,IF($C64=Q$2,0.5,1)*MIN($F64*$F$57,$F64-SUM($G64:P64))) -> 0 | R64: =IF($C64>R$2,0,IF($C64=R$2,0.5,1)*MIN($F64*$F$57,$F64-SUM($G64:Q64))) -> 0 | S64: =IF($C64>S$2,0,IF($C64=S$2,0.5,1)*MIN($F64*$F$57,$F64-SUM($G64:R64))) -> 0 | T64: =IF($C64>T$2,0,IF($C64=T$2,0.5,1)*MIN($F64*$F$57,$F64-SUM($G64:S64))) -> 0 | U64: =IF($C64>U$2,0,IF($C64=U$2,0.5,1)*MIN($F64*$F$57,$F64-SUM($G64:T64))) -> 0 | V64: =IF($C64>V$2,0,IF($C64=V$2,0.5,1)*MIN($F64*$F$57,$F64-SUM($G64:U64))) -> 0 | W64: =IF($C64>W$2,0,IF($C64=W$2,0.5,1)*MIN($F64*$F$57,$F64-SUM($G64:V64))) -> 0 | X64: =IF($C64>X$2,0,IF($C64=X$2,0.5,1)*MIN($F64*$F$57,$F64-SUM($G64:W64))) -> 0 | Y64: =IF($C64>Y$2,0,IF($C64=Y$2,0.5,1)*MIN($F64*$F$57,$F64-SUM($G64:X64))) -> 0 | Z64: =IF($C64>Z$2,0,IF($C64=Z$2,0.5,1)*MIN($F64*$F$57,$F64-SUM($G64:Y64))) -> 0 | AA64: =IF($C64>AA$2,0,IF($C64=AA$2,0.5,1)*MIN($F64*$F$57,$F64-SUM($G64:Z64))) -> 0 | AB64: =IF($C64>AB$2,0,IF($C64=AB$2,0.5,1)*MIN($F64*$F$57,$F64-SUM($G64:AA64))) -> 0
C65: 2031 | D65: тыс. руб. | E65: 6 | F65: 0 | H65: =IF($C65>H$2,0,IF($C65=H$2,0.5,1)*MIN($F65*$F$57,$F65-SUM($G65:G65))) -> 0 | I65: =IF($C65>I$2,0,IF($C65=I$2,0.5,1)*MIN($F65*$F$57,$F65-SUM($G65:H65))) -> 0 | J65: =IF($C65>J$2,0,IF($C65=J$2,0.5,1)*MIN($F65*$F$57,$F65-SUM($G65:I65))) -> 0 | K65: =IF($C65>K$2,0,IF($C65=K$2,0.5,1)*MIN($F65*$F$57,$F65-SUM($G65:J65))) -> 0 | L65: =IF($C65>L$2,0,IF($C65=L$2,0.5,1)*MIN($F65*$F$57,$F65-SUM($G65:K65))) -> 0 | M65: =IF($C65>M$2,0,IF($C65=M$2,0.5,1)*MIN($F65*$F$57,$F65-SUM($G65:L65))) -> 0 | N65: =IF($C65>N$2,0,IF($C65=N$2,0.5,1)*MIN($F65*$F$57,$F65-SUM($G65:M65))) -> 0 | O65: =IF($C65>O$2,0,IF($C65=O$2,0.5,1)*MIN($F65*$F$57,$F65-SUM($G65:N65))) -> 0 | P65: =IF($C65>P$2,0,IF($C65=P$2,0.5,1)*MIN($F65*$F$57,$F65-SUM($G65:O65))) -> 0 | Q65: =IF($C65>Q$2,0,IF($C65=Q$2,0.5,1)*MIN($F65*$F$57,$F65-SUM($G65:P65))) -> 0 | R65: =IF($C65>R$2,0,IF($C65=R$2,0.5,1)*MIN($F65*$F$57,$F65-SUM($G65:Q65))) -> 0 | S65: =IF($C65>S$2,0,IF($C65=S$2,0.5,1)*MIN($F65*$F$57,$F65-SUM($G65:R65))) -> 0 | T65: =IF($C65>T$2,0,IF($C65=T$2,0.5,1)*MIN($F65*$F$57,$F65-SUM($G65:S65))) -> 0 | U65: =IF($C65>U$2,0,IF($C65=U$2,0.5,1)*MIN($F65*$F$57,$F65-SUM($G65:T65))) -> 0 | V65: =IF($C65>V$2,0,IF($C65=V$2,0.5,1)*MIN($F65*$F$57,$F65-SUM($G65:U65))) -> 0 | W65: =IF($C65>W$2,0,IF($C65=W$2,0.5,1)*MIN($F65*$F$57,$F65-SUM($G65:V65))) -> 0 | X65: =IF($C65>X$2,0,IF($C65=X$2,0.5,1)*MIN($F65*$F$57,$F65-SUM($G65:W65))) -> 0 | Y65: =IF($C65>Y$2,0,IF($C65=Y$2,0.5,1)*MIN($F65*$F$57,$F65-SUM($G65:X65))) -> 0 | Z65: =IF($C65>Z$2,0,IF($C65=Z$2,0.5,1)*MIN($F65*$F$57,$F65-SUM($G65:Y65))) -> 0 | AA65: =IF($C65>AA$2,0,IF($C65=AA$2,0.5,1)*MIN($F65*$F$57,$F65-SUM($G65:Z65))) -> 0 | AB65: =IF($C65>AB$2,0,IF($C65=AB$2,0.5,1)*MIN($F65*$F$57,$F65-SUM($G65:AA65))) -> 0
C66: 2032 | D66: тыс. руб. | E66: 7 | F66: 0 | H66: =IF($C66>H$2,0,IF($C66=H$2,0.5,1)*MIN($F66*$F$57,$F66-SUM($G66:G66))) -> 0 | I66: =IF($C66>I$2,0,IF($C66=I$2,0.5,1)*MIN($F66*$F$57,$F66-SUM($G66:H66))) -> 0 | J66: =IF($C66>J$2,0,IF($C66=J$2,0.5,1)*MIN($F66*$F$57,$F66-SUM($G66:I66))) -> 0 | K66: =IF($C66>K$2,0,IF($C66=K$2,0.5,1)*MIN($F66*$F$57,$F66-SUM($G66:J66))) -> 0 | L66: =IF($C66>L$2,0,IF($C66=L$2,0.5,1)*MIN($F66*$F$57,$F66-SUM($G66:K66))) -> 0 | M66: =IF($C66>M$2,0,IF($C66=M$2,0.5,1)*MIN($F66*$F$57,$F66-SUM($G66:L66))) -> 0 | N66: =IF($C66>N$2,0,IF($C66=N$2,0.5,1)*MIN($F66*$F$57,$F66-SUM($G66:M66))) -> 0 | O66: =IF($C66>O$2,0,IF($C66=O$2,0.5,1)*MIN($F66*$F$57,$F66-SUM($G66:N66))) -> 0 | P66: =IF($C66>P$2,0,IF($C66=P$2,0.5,1)*MIN($F66*$F$57,$F66-SUM($G66:O66))) -> 0 | Q66: =IF($C66>Q$2,0,IF($C66=Q$2,0.5,1)*MIN($F66*$F$57,$F66-SUM($G66:P66))) -> 0 | R66: =IF($C66>R$2,0,IF($C66=R$2,0.5,1)*MIN($F66*$F$57,$F66-SUM($G66:Q66))) -> 0 | S66: =IF($C66>S$2,0,IF($C66=S$2,0.5,1)*MIN($F66*$F$57,$F66-SUM($G66:R66))) -> 0 | T66: =IF($C66>T$2,0,IF($C66=T$2,0.5,1)*MIN($F66*$F$57,$F66-SUM($G66:S66))) -> 0 | U66: =IF($C66>U$2,0,IF($C66=U$2,0.5,1)*MIN($F66*$F$57,$F66-SUM($G66:T66))) -> 0 | V66: =IF($C66>V$2,0,IF($C66=V$2,0.5,1)*MIN($F66*$F$57,$F66-SUM($G66:U66))) -> 0 | W66: =IF($C66>W$2,0,IF($C66=W$2,0.5,1)*MIN($F66*$F$57,$F66-SUM($G66:V66))) -> 0 | X66: =IF($C66>X$2,0,IF($C66=X$2,0.5,1)*MIN($F66*$F$57,$F66-SUM($G66:W66))) -> 0 | Y66: =IF($C66>Y$2,0,IF($C66=Y$2,0.5,1)*MIN($F66*$F$57,$F66-SUM($G66:X66))) -> 0 | Z66: =IF($C66>Z$2,0,IF($C66=Z$2,0.5,1)*MIN($F66*$F$57,$F66-SUM($G66:Y66))) -> 0 | AA66: =IF($C66>AA$2,0,IF($C66=AA$2,0.5,1)*MIN($F66*$F$57,$F66-SUM($G66:Z66))) -> 0 | AB66: =IF($C66>AB$2,0,IF($C66=AB$2,0.5,1)*MIN($F66*$F$57,$F66-SUM($G66:AA66))) -> 0
C67: 2033 | D67: тыс. руб. | E67: 8 | F67: 0 | H67: =IF($C67>H$2,0,IF($C67=H$2,0.5,1)*MIN($F67*$F$57,$F67-SUM($G67:G67))) -> 0 | I67: =IF($C67>I$2,0,IF($C67=I$2,0.5,1)*MIN($F67*$F$57,$F67-SUM($G67:H67))) -> 0 | J67: =IF($C67>J$2,0,IF($C67=J$2,0.5,1)*MIN($F67*$F$57,$F67-SUM($G67:I67))) -> 0 | K67: =IF($C67>K$2,0,IF($C67=K$2,0.5,1)*MIN($F67*$F$57,$F67-SUM($G67:J67))) -> 0 | L67: =IF($C67>L$2,0,IF($C67=L$2,0.5,1)*MIN($F67*$F$57,$F67-SUM($G67:K67))) -> 0 | M67: =IF($C67>M$2,0,IF($C67=M$2,0.5,1)*MIN($F67*$F$57,$F67-SUM($G67:L67))) -> 0 | N67: =IF($C67>N$2,0,IF($C67=N$2,0.5,1)*MIN($F67*$F$57,$F67-SUM($G67:M67))) -> 0 | O67: =IF($C67>O$2,0,IF($C67=O$2,0.5,1)*MIN($F67*$F$57,$F67-SUM($G67:N67))) -> 0 | P67: =IF($C67>P$2,0,IF($C67=P$2,0.5,1)*MIN($F67*$F$57,$F67-SUM($G67:O67))) -> 0 | Q67: =IF($C67>Q$2,0,IF($C67=Q$2,0.5,1)*MIN($F67*$F$57,$F67-SUM($G67:P67))) -> 0 | R67: =IF($C67>R$2,0,IF($C67=R$2,0.5,1)*MIN($F67*$F$57,$F67-SUM($G67:Q67))) -> 0 | S67: =IF($C67>S$2,0,IF($C67=S$2,0.5,1)*MIN($F67*$F$57,$F67-SUM($G67:R67))) -> 0 | T67: =IF($C67>T$2,0,IF($C67=T$2,0.5,1)*MIN($F67*$F$57,$F67-SUM($G67:S67))) -> 0 | U67: =IF($C67>U$2,0,IF($C67=U$2,0.5,1)*MIN($F67*$F$57,$F67-SUM($G67:T67))) -> 0 | V67: =IF($C67>V$2,0,IF($C67=V$2,0.5,1)*MIN($F67*$F$57,$F67-SUM($G67:U67))) -> 0 | W67: =IF($C67>W$2,0,IF($C67=W$2,0.5,1)*MIN($F67*$F$57,$F67-SUM($G67:V67))) -> 0 | X67: =IF($C67>X$2,0,IF($C67=X$2,0.5,1)*MIN($F67*$F$57,$F67-SUM($G67:W67))) -> 0 | Y67: =IF($C67>Y$2,0,IF($C67=Y$2,0.5,1)*MIN($F67*$F$57,$F67-SUM($G67:X67))) -> 0 | Z67: =IF($C67>Z$2,0,IF($C67=Z$2,0.5,1)*MIN($F67*$F$57,$F67-SUM($G67:Y67))) -> 0 | AA67: =IF($C67>AA$2,0,IF($C67=AA$2,0.5,1)*MIN($F67*$F$57,$F67-SUM($G67:Z67))) -> 0 | AB67: =IF($C67>AB$2,0,IF($C67=AB$2,0.5,1)*MIN($F67*$F$57,$F67-SUM($G67:AA67))) -> 0
C68: 2034 | D68: тыс. руб. | E68: 9 | F68: 0 | H68: =IF($C68>H$2,0,IF($C68=H$2,0.5,1)*MIN($F68*$F$57,$F68-SUM($G68:G68))) -> 0 | I68: =IF($C68>I$2,0,IF($C68=I$2,0.5,1)*MIN($F68*$F$57,$F68-SUM($G68:H68))) -> 0 | J68: =IF($C68>J$2,0,IF($C68=J$2,0.5,1)*MIN($F68*$F$57,$F68-SUM($G68:I68))) -> 0 | K68: =IF($C68>K$2,0,IF($C68=K$2,0.5,1)*MIN($F68*$F$57,$F68-SUM($G68:J68))) -> 0 | L68: =IF($C68>L$2,0,IF($C68=L$2,0.5,1)*MIN($F68*$F$57,$F68-SUM($G68:K68))) -> 0 | M68: =IF($C68>M$2,0,IF($C68=M$2,0.5,1)*MIN($F68*$F$57,$F68-SUM($G68:L68))) -> 0 | N68: =IF($C68>N$2,0,IF($C68=N$2,0.5,1)*MIN($F68*$F$57,$F68-SUM($G68:M68))) -> 0 | O68: =IF($C68>O$2,0,IF($C68=O$2,0.5,1)*MIN($F68*$F$57,$F68-SUM($G68:N68))) -> 0 | P68: =IF($C68>P$2,0,IF($C68=P$2,0.5,1)*MIN($F68*$F$57,$F68-SUM($G68:O68))) -> 0 | Q68: =IF($C68>Q$2,0,IF($C68=Q$2,0.5,1)*MIN($F68*$F$57,$F68-SUM($G68:P68))) -> 0 | R68: =IF($C68>R$2,0,IF($C68=R$2,0.5,1)*MIN($F68*$F$57,$F68-SUM($G68:Q68))) -> 0 | S68: =IF($C68>S$2,0,IF($C68=S$2,0.5,1)*MIN($F68*$F$57,$F68-SUM($G68:R68))) -> 0 | T68: =IF($C68>T$2,0,IF($C68=T$2,0.5,1)*MIN($F68*$F$57,$F68-SUM($G68:S68))) -> 0 | U68: =IF($C68>U$2,0,IF($C68=U$2,0.5,1)*MIN($F68*$F$57,$F68-SUM($G68:T68))) -> 0 | V68: =IF($C68>V$2,0,IF($C68=V$2,0.5,1)*MIN($F68*$F$57,$F68-SUM($G68:U68))) -> 0 | W68: =IF($C68>W$2,0,IF($C68=W$2,0.5,1)*MIN($F68*$F$57,$F68-SUM($G68:V68))) -> 0 | X68: =IF($C68>X$2,0,IF($C68=X$2,0.5,1)*MIN($F68*$F$57,$F68-SUM($G68:W68))) -> 0 | Y68: =IF($C68>Y$2,0,IF($C68=Y$2,0.5,1)*MIN($F68*$F$57,$F68-SUM($G68:X68))) -> 0 | Z68: =IF($C68>Z$2,0,IF($C68=Z$2,0.5,1)*MIN($F68*$F$57,$F68-SUM($G68:Y68))) -> 0 | AA68: =IF($C68>AA$2,0,IF($C68=AA$2,0.5,1)*MIN($F68*$F$57,$F68-SUM($G68:Z68))) -> 0 | AB68: =IF($C68>AB$2,0,IF($C68=AB$2,0.5,1)*MIN($F68*$F$57,$F68-SUM($G68:AA68))) -> 0
C69: 2035 | D69: тыс. руб. | E69: 10 | F69: 0 | H69: =IF($C69>H$2,0,IF($C69=H$2,0.5,1)*MIN($F69*$F$57,$F69-SUM($G69:G69))) -> 0 | I69: =IF($C69>I$2,0,IF($C69=I$2,0.5,1)*MIN($F69*$F$57,$F69-SUM($G69:H69))) -> 0 | J69: =IF($C69>J$2,0,IF($C69=J$2,0.5,1)*MIN($F69*$F$57,$F69-SUM($G69:I69))) -> 0 | K69: =IF($C69>K$2,0,IF($C69=K$2,0.5,1)*MIN($F69*$F$57,$F69-SUM($G69:J69))) -> 0 | L69: =IF($C69>L$2,0,IF($C69=L$2,0.5,1)*MIN($F69*$F$57,$F69-SUM($G69:K69))) -> 0 | M69: =IF($C69>M$2,0,IF($C69=M$2,0.5,1)*MIN($F69*$F$57,$F69-SUM($G69:L69))) -> 0 | N69: =IF($C69>N$2,0,IF($C69=N$2,0.5,1)*MIN($F69*$F$57,$F69-SUM($G69:M69))) -> 0 | O69: =IF($C69>O$2,0,IF($C69=O$2,0.5,1)*MIN($F69*$F$57,$F69-SUM($G69:N69))) -> 0 | P69: =IF($C69>P$2,0,IF($C69=P$2,0.5,1)*MIN($F69*$F$57,$F69-SUM($G69:O69))) -> 0 | Q69: =IF($C69>Q$2,0,IF($C69=Q$2,0.5,1)*MIN($F69*$F$57,$F69-SUM($G69:P69))) -> 0 | R69: =IF($C69>R$2,0,IF($C69=R$2,0.5,1)*MIN($F69*$F$57,$F69-SUM($G69:Q69))) -> 0 | S69: =IF($C69>S$2,0,IF($C69=S$2,0.5,1)*MIN($F69*$F$57,$F69-SUM($G69:R69))) -> 0 | T69: =IF($C69>T$2,0,IF($C69=T$2,0.5,1)*MIN($F69*$F$57,$F69-SUM($G69:S69))) -> 0 | U69: =IF($C69>U$2,0,IF($C69=U$2,0.5,1)*MIN($F69*$F$57,$F69-SUM($G69:T69))) -> 0 | V69: =IF($C69>V$2,0,IF($C69=V$2,0.5,1)*MIN($F69*$F$57,$F69-SUM($G69:U69))) -> 0 | W69: =IF($C69>W$2,0,IF($C69=W$2,0.5,1)*MIN($F69*$F$57,$F69-SUM($G69:V69))) -> 0 | X69: =IF($C69>X$2,0,IF($C69=X$2,0.5,1)*MIN($F69*$F$57,$F69-SUM($G69:W69))) -> 0 | Y69: =IF($C69>Y$2,0,IF($C69=Y$2,0.5,1)*MIN($F69*$F$57,$F69-SUM($G69:X69))) -> 0 | Z69: =IF($C69>Z$2,0,IF($C69=Z$2,0.5,1)*MIN($F69*$F$57,$F69-SUM($G69:Y69))) -> 0 | AA69: =IF($C69>AA$2,0,IF($C69=AA$2,0.5,1)*MIN($F69*$F$57,$F69-SUM($G69:Z69))) -> 0 | AB69: =IF($C69>AB$2,0,IF($C69=AB$2,0.5,1)*MIN($F69*$F$57,$F69-SUM($G69:AA69))) -> 0
C70: 2036 | D70: тыс. руб. | E70: 11 | F70: 0 | H70: =IF($C70>H$2,0,IF($C70=H$2,0.5,1)*MIN($F70*$F$57,$F70-SUM($G70:G70))) -> 0 | I70: =IF($C70>I$2,0,IF($C70=I$2,0.5,1)*MIN($F70*$F$57,$F70-SUM($G70:H70))) -> 0 | J70: =IF($C70>J$2,0,IF($C70=J$2,0.5,1)*MIN($F70*$F$57,$F70-SUM($G70:I70))) -> 0 | K70: =IF($C70>K$2,0,IF($C70=K$2,0.5,1)*MIN($F70*$F$57,$F70-SUM($G70:J70))) -> 0 | L70: =IF($C70>L$2,0,IF($C70=L$2,0.5,1)*MIN($F70*$F$57,$F70-SUM($G70:K70))) -> 0 | M70: =IF($C70>M$2,0,IF($C70=M$2,0.5,1)*MIN($F70*$F$57,$F70-SUM($G70:L70))) -> 0 | N70: =IF($C70>N$2,0,IF($C70=N$2,0.5,1)*MIN($F70*$F$57,$F70-SUM($G70:M70))) -> 0 | O70: =IF($C70>O$2,0,IF($C70=O$2,0.5,1)*MIN($F70*$F$57,$F70-SUM($G70:N70))) -> 0 | P70: =IF($C70>P$2,0,IF($C70=P$2,0.5,1)*MIN($F70*$F$57,$F70-SUM($G70:O70))) -> 0 | Q70: =IF($C70>Q$2,0,IF($C70=Q$2,0.5,1)*MIN($F70*$F$57,$F70-SUM($G70:P70))) -> 0 | R70: =IF($C70>R$2,0,IF($C70=R$2,0.5,1)*MIN($F70*$F$57,$F70-SUM($G70:Q70))) -> 0 | S70: =IF($C70>S$2,0,IF($C70=S$2,0.5,1)*MIN($F70*$F$57,$F70-SUM($G70:R70))) -> 0 | T70: =IF($C70>T$2,0,IF($C70=T$2,0.5,1)*MIN($F70*$F$57,$F70-SUM($G70:S70))) -> 0 | U70: =IF($C70>U$2,0,IF($C70=U$2,0.5,1)*MIN($F70*$F$57,$F70-SUM($G70:T70))) -> 0 | V70: =IF($C70>V$2,0,IF($C70=V$2,0.5,1)*MIN($F70*$F$57,$F70-SUM($G70:U70))) -> 0 | W70: =IF($C70>W$2,0,IF($C70=W$2,0.5,1)*MIN($F70*$F$57,$F70-SUM($G70:V70))) -> 0 | X70: =IF($C70>X$2,0,IF($C70=X$2,0.5,1)*MIN($F70*$F$57,$F70-SUM($G70:W70))) -> 0 | Y70: =IF($C70>Y$2,0,IF($C70=Y$2,0.5,1)*MIN($F70*$F$57,$F70-SUM($G70:X70))) -> 0 | Z70: =IF($C70>Z$2,0,IF($C70=Z$2,0.5,1)*MIN($F70*$F$57,$F70-SUM($G70:Y70))) -> 0 | AA70: =IF($C70>AA$2,0,IF($C70=AA$2,0.5,1)*MIN($F70*$F$57,$F70-SUM($G70:Z70))) -> 0 | AB70: =IF($C70>AB$2,0,IF($C70=AB$2,0.5,1)*MIN($F70*$F$57,$F70-SUM($G70:AA70))) -> 0
C71: 2037 | D71: тыс. руб. | E71: 12 | F71: 0 | H71: =IF($C71>H$2,0,IF($C71=H$2,0.5,1)*MIN($F71*$F$57,$F71-SUM($G71:G71))) -> 0 | I71: =IF($C71>I$2,0,IF($C71=I$2,0.5,1)*MIN($F71*$F$57,$F71-SUM($G71:H71))) -> 0 | J71: =IF($C71>J$2,0,IF($C71=J$2,0.5,1)*MIN($F71*$F$57,$F71-SUM($G71:I71))) -> 0 | K71: =IF($C71>K$2,0,IF($C71=K$2,0.5,1)*MIN($F71*$F$57,$F71-SUM($G71:J71))) -> 0 | L71: =IF($C71>L$2,0,IF($C71=L$2,0.5,1)*MIN($F71*$F$57,$F71-SUM($G71:K71))) -> 0 | M71: =IF($C71>M$2,0,IF($C71=M$2,0.5,1)*MIN($F71*$F$57,$F71-SUM($G71:L71))) -> 0 | N71: =IF($C71>N$2,0,IF($C71=N$2,0.5,1)*MIN($F71*$F$57,$F71-SUM($G71:M71))) -> 0 | O71: =IF($C71>O$2,0,IF($C71=O$2,0.5,1)*MIN($F71*$F$57,$F71-SUM($G71:N71))) -> 0 | P71: =IF($C71>P$2,0,IF($C71=P$2,0.5,1)*MIN($F71*$F$57,$F71-SUM($G71:O71))) -> 0 | Q71: =IF($C71>Q$2,0,IF($C71=Q$2,0.5,1)*MIN($F71*$F$57,$F71-SUM($G71:P71))) -> 0 | R71: =IF($C71>R$2,0,IF($C71=R$2,0.5,1)*MIN($F71*$F$57,$F71-SUM($G71:Q71))) -> 0 | S71: =IF($C71>S$2,0,IF($C71=S$2,0.5,1)*MIN($F71*$F$57,$F71-SUM($G71:R71))) -> 0 | T71: =IF($C71>T$2,0,IF($C71=T$2,0.5,1)*MIN($F71*$F$57,$F71-SUM($G71:S71))) -> 0 | U71: =IF($C71>U$2,0,IF($C71=U$2,0.5,1)*MIN($F71*$F$57,$F71-SUM($G71:T71))) -> 0 | V71: =IF($C71>V$2,0,IF($C71=V$2,0.5,1)*MIN($F71*$F$57,$F71-SUM($G71:U71))) -> 0 | W71: =IF($C71>W$2,0,IF($C71=W$2,0.5,1)*MIN($F71*$F$57,$F71-SUM($G71:V71))) -> 0 | X71: =IF($C71>X$2,0,IF($C71=X$2,0.5,1)*MIN($F71*$F$57,$F71-SUM($G71:W71))) -> 0 | Y71: =IF($C71>Y$2,0,IF($C71=Y$2,0.5,1)*MIN($F71*$F$57,$F71-SUM($G71:X71))) -> 0 | Z71: =IF($C71>Z$2,0,IF($C71=Z$2,0.5,1)*MIN($F71*$F$57,$F71-SUM($G71:Y71))) -> 0 | AA71: =IF($C71>AA$2,0,IF($C71=AA$2,0.5,1)*MIN($F71*$F$57,$F71-SUM($G71:Z71))) -> 0 | AB71: =IF($C71>AB$2,0,IF($C71=AB$2,0.5,1)*MIN($F71*$F$57,$F71-SUM($G71:AA71))) -> 0
C72: 2038 | D72: тыс. руб. | E72: 13 | F72: 0 | H72: =IF($C72>H$2,0,IF($C72=H$2,0.5,1)*MIN($F72*$F$57,$F72-SUM($G72:G72))) -> 0 | I72: =IF($C72>I$2,0,IF($C72=I$2,0.5,1)*MIN($F72*$F$57,$F72-SUM($G72:H72))) -> 0 | J72: =IF($C72>J$2,0,IF($C72=J$2,0.5,1)*MIN($F72*$F$57,$F72-SUM($G72:I72))) -> 0 | K72: =IF($C72>K$2,0,IF($C72=K$2,0.5,1)*MIN($F72*$F$57,$F72-SUM($G72:J72))) -> 0 | L72: =IF($C72>L$2,0,IF($C72=L$2,0.5,1)*MIN($F72*$F$57,$F72-SUM($G72:K72))) -> 0 | M72: =IF($C72>M$2,0,IF($C72=M$2,0.5,1)*MIN($F72*$F$57,$F72-SUM($G72:L72))) -> 0 | N72: =IF($C72>N$2,0,IF($C72=N$2,0.5,1)*MIN($F72*$F$57,$F72-SUM($G72:M72))) -> 0 | O72: =IF($C72>O$2,0,IF($C72=O$2,0.5,1)*MIN($F72*$F$57,$F72-SUM($G72:N72))) -> 0 | P72: =IF($C72>P$2,0,IF($C72=P$2,0.5,1)*MIN($F72*$F$57,$F72-SUM($G72:O72))) -> 0 | Q72: =IF($C72>Q$2,0,IF($C72=Q$2,0.5,1)*MIN($F72*$F$57,$F72-SUM($G72:P72))) -> 0 | R72: =IF($C72>R$2,0,IF($C72=R$2,0.5,1)*MIN($F72*$F$57,$F72-SUM($G72:Q72))) -> 0 | S72: =IF($C72>S$2,0,IF($C72=S$2,0.5,1)*MIN($F72*$F$57,$F72-SUM($G72:R72))) -> 0 | T72: =IF($C72>T$2,0,IF($C72=T$2,0.5,1)*MIN($F72*$F$57,$F72-SUM($G72:S72))) -> 0 | U72: =IF($C72>U$2,0,IF($C72=U$2,0.5,1)*MIN($F72*$F$57,$F72-SUM($G72:T72))) -> 0 | V72: =IF($C72>V$2,0,IF($C72=V$2,0.5,1)*MIN($F72*$F$57,$F72-SUM($G72:U72))) -> 0 | W72: =IF($C72>W$2,0,IF($C72=W$2,0.5,1)*MIN($F72*$F$57,$F72-SUM($G72:V72))) -> 0 | X72: =IF($C72>X$2,0,IF($C72=X$2,0.5,1)*MIN($F72*$F$57,$F72-SUM($G72:W72))) -> 0 | Y72: =IF($C72>Y$2,0,IF($C72=Y$2,0.5,1)*MIN($F72*$F$57,$F72-SUM($G72:X72))) -> 0 | Z72: =IF($C72>Z$2,0,IF($C72=Z$2,0.5,1)*MIN($F72*$F$57,$F72-SUM($G72:Y72))) -> 0 | AA72: =IF($C72>AA$2,0,IF($C72=AA$2,0.5,1)*MIN($F72*$F$57,$F72-SUM($G72:Z72))) -> 0 | AB72: =IF($C72>AB$2,0,IF($C72=AB$2,0.5,1)*MIN($F72*$F$57,$F72-SUM($G72:AA72))) -> 0
C73: 2039 | D73: тыс. руб. | E73: 14 | F73: 0 | H73: =IF($C73>H$2,0,IF($C73=H$2,0.5,1)*MIN($F73*$F$57,$F73-SUM($G73:G73))) -> 0 | I73: =IF($C73>I$2,0,IF($C73=I$2,0.5,1)*MIN($F73*$F$57,$F73-SUM($G73:H73))) -> 0 | J73: =IF($C73>J$2,0,IF($C73=J$2,0.5,1)*MIN($F73*$F$57,$F73-SUM($G73:I73))) -> 0 | K73: =IF($C73>K$2,0,IF($C73=K$2,0.5,1)*MIN($F73*$F$57,$F73-SUM($G73:J73))) -> 0 | L73: =IF($C73>L$2,0,IF($C73=L$2,0.5,1)*MIN($F73*$F$57,$F73-SUM($G73:K73))) -> 0 | M73: =IF($C73>M$2,0,IF($C73=M$2,0.5,1)*MIN($F73*$F$57,$F73-SUM($G73:L73))) -> 0 | N73: =IF($C73>N$2,0,IF($C73=N$2,0.5,1)*MIN($F73*$F$57,$F73-SUM($G73:M73))) -> 0 | O73: =IF($C73>O$2,0,IF($C73=O$2,0.5,1)*MIN($F73*$F$57,$F73-SUM($G73:N73))) -> 0 | P73: =IF($C73>P$2,0,IF($C73=P$2,0.5,1)*MIN($F73*$F$57,$F73-SUM($G73:O73))) -> 0 | Q73: =IF($C73>Q$2,0,IF($C73=Q$2,0.5,1)*MIN($F73*$F$57,$F73-SUM($G73:P73))) -> 0 | R73: =IF($C73>R$2,0,IF($C73=R$2,0.5,1)*MIN($F73*$F$57,$F73-SUM($G73:Q73))) -> 0 | S73: =IF($C73>S$2,0,IF($C73=S$2,0.5,1)*MIN($F73*$F$57,$F73-SUM($G73:R73))) -> 0 | T73: =IF($C73>T$2,0,IF($C73=T$2,0.5,1)*MIN($F73*$F$57,$F73-SUM($G73:S73))) -> 0 | U73: =IF($C73>U$2,0,IF($C73=U$2,0.5,1)*MIN($F73*$F$57,$F73-SUM($G73:T73))) -> 0 | V73: =IF($C73>V$2,0,IF($C73=V$2,0.5,1)*MIN($F73*$F$57,$F73-SUM($G73:U73))) -> 0 | W73: =IF($C73>W$2,0,IF($C73=W$2,0.5,1)*MIN($F73*$F$57,$F73-SUM($G73:V73))) -> 0 | X73: =IF($C73>X$2,0,IF($C73=X$2,0.5,1)*MIN($F73*$F$57,$F73-SUM($G73:W73))) -> 0 | Y73: =IF($C73>Y$2,0,IF($C73=Y$2,0.5,1)*MIN($F73*$F$57,$F73-SUM($G73:X73))) -> 0 | Z73: =IF($C73>Z$2,0,IF($C73=Z$2,0.5,1)*MIN($F73*$F$57,$F73-SUM($G73:Y73))) -> 0 | AA73: =IF($C73>AA$2,0,IF($C73=AA$2,0.5,1)*MIN($F73*$F$57,$F73-SUM($G73:Z73))) -> 0 | AB73: =IF($C73>AB$2,0,IF($C73=AB$2,0.5,1)*MIN($F73*$F$57,$F73-SUM($G73:AA73))) -> 0
C74: 2040 | D74: тыс. руб. | E74: 15 | F74: 0 | H74: =IF($C74>H$2,0,IF($C74=H$2,0.5,1)*MIN($F74*$F$57,$F74-SUM($G74:G74))) -> 0 | I74: =IF($C74>I$2,0,IF($C74=I$2,0.5,1)*MIN($F74*$F$57,$F74-SUM($G74:H74))) -> 0 | J74: =IF($C74>J$2,0,IF($C74=J$2,0.5,1)*MIN($F74*$F$57,$F74-SUM($G74:I74))) -> 0 | K74: =IF($C74>K$2,0,IF($C74=K$2,0.5,1)*MIN($F74*$F$57,$F74-SUM($G74:J74))) -> 0 | L74: =IF($C74>L$2,0,IF($C74=L$2,0.5,1)*MIN($F74*$F$57,$F74-SUM($G74:K74))) -> 0 | M74: =IF($C74>M$2,0,IF($C74=M$2,0.5,1)*MIN($F74*$F$57,$F74-SUM($G74:L74))) -> 0 | N74: =IF($C74>N$2,0,IF($C74=N$2,0.5,1)*MIN($F74*$F$57,$F74-SUM($G74:M74))) -> 0 | O74: =IF($C74>O$2,0,IF($C74=O$2,0.5,1)*MIN($F74*$F$57,$F74-SUM($G74:N74))) -> 0 | P74: =IF($C74>P$2,0,IF($C74=P$2,0.5,1)*MIN($F74*$F$57,$F74-SUM($G74:O74))) -> 0 | Q74: =IF($C74>Q$2,0,IF($C74=Q$2,0.5,1)*MIN($F74*$F$57,$F74-SUM($G74:P74))) -> 0 | R74: =IF($C74>R$2,0,IF($C74=R$2,0.5,1)*MIN($F74*$F$57,$F74-SUM($G74:Q74))) -> 0 | S74: =IF($C74>S$2,0,IF($C74=S$2,0.5,1)*MIN($F74*$F$57,$F74-SUM($G74:R74))) -> 0 | T74: =IF($C74>T$2,0,IF($C74=T$2,0.5,1)*MIN($F74*$F$57,$F74-SUM($G74:S74))) -> 0 | U74: =IF($C74>U$2,0,IF($C74=U$2,0.5,1)*MIN($F74*$F$57,$F74-SUM($G74:T74))) -> 0 | V74: =IF($C74>V$2,0,IF($C74=V$2,0.5,1)*MIN($F74*$F$57,$F74-SUM($G74:U74))) -> 0 | W74: =IF($C74>W$2,0,IF($C74=W$2,0.5,1)*MIN($F74*$F$57,$F74-SUM($G74:V74))) -> 0 | X74: =IF($C74>X$2,0,IF($C74=X$2,0.5,1)*MIN($F74*$F$57,$F74-SUM($G74:W74))) -> 0 | Y74: =IF($C74>Y$2,0,IF($C74=Y$2,0.5,1)*MIN($F74*$F$57,$F74-SUM($G74:X74))) -> 0 | Z74: =IF($C74>Z$2,0,IF($C74=Z$2,0.5,1)*MIN($F74*$F$57,$F74-SUM($G74:Y74))) -> 0 | AA74: =IF($C74>AA$2,0,IF($C74=AA$2,0.5,1)*MIN($F74*$F$57,$F74-SUM($G74:Z74))) -> 0 | AB74: =IF($C74>AB$2,0,IF($C74=AB$2,0.5,1)*MIN($F74*$F$57,$F74-SUM($G74:AA74))) -> 0
C75: 2041 | D75: тыс. руб. | E75: 16 | F75: 0 | H75: =IF($C75>H$2,0,IF($C75=H$2,0.5,1)*MIN($F75*$F$57,$F75-SUM($G75:G75))) -> 0 | I75: =IF($C75>I$2,0,IF($C75=I$2,0.5,1)*MIN($F75*$F$57,$F75-SUM($G75:H75))) -> 0 | J75: =IF($C75>J$2,0,IF($C75=J$2,0.5,1)*MIN($F75*$F$57,$F75-SUM($G75:I75))) -> 0 | K75: =IF($C75>K$2,0,IF($C75=K$2,0.5,1)*MIN($F75*$F$57,$F75-SUM($G75:J75))) -> 0 | L75: =IF($C75>L$2,0,IF($C75=L$2,0.5,1)*MIN($F75*$F$57,$F75-SUM($G75:K75))) -> 0 | M75: =IF($C75>M$2,0,IF($C75=M$2,0.5,1)*MIN($F75*$F$57,$F75-SUM($G75:L75))) -> 0 | N75: =IF($C75>N$2,0,IF($C75=N$2,0.5,1)*MIN($F75*$F$57,$F75-SUM($G75:M75))) -> 0 | O75: =IF($C75>O$2,0,IF($C75=O$2,0.5,1)*MIN($F75*$F$57,$F75-SUM($G75:N75))) -> 0 | P75: =IF($C75>P$2,0,IF($C75=P$2,0.5,1)*MIN($F75*$F$57,$F75-SUM($G75:O75))) -> 0 | Q75: =IF($C75>Q$2,0,IF($C75=Q$2,0.5,1)*MIN($F75*$F$57,$F75-SUM($G75:P75))) -> 0 | R75: =IF($C75>R$2,0,IF($C75=R$2,0.5,1)*MIN($F75*$F$57,$F75-SUM($G75:Q75))) -> 0 | S75: =IF($C75>S$2,0,IF($C75=S$2,0.5,1)*MIN($F75*$F$57,$F75-SUM($G75:R75))) -> 0 | T75: =IF($C75>T$2,0,IF($C75=T$2,0.5,1)*MIN($F75*$F$57,$F75-SUM($G75:S75))) -> 0 | U75: =IF($C75>U$2,0,IF($C75=U$2,0.5,1)*MIN($F75*$F$57,$F75-SUM($G75:T75))) -> 0 | V75: =IF($C75>V$2,0,IF($C75=V$2,0.5,1)*MIN($F75*$F$57,$F75-SUM($G75:U75))) -> 0 | W75: =IF($C75>W$2,0,IF($C75=W$2,0.5,1)*MIN($F75*$F$57,$F75-SUM($G75:V75))) -> 0 | X75: =IF($C75>X$2,0,IF($C75=X$2,0.5,1)*MIN($F75*$F$57,$F75-SUM($G75:W75))) -> 0 | Y75: =IF($C75>Y$2,0,IF($C75=Y$2,0.5,1)*MIN($F75*$F$57,$F75-SUM($G75:X75))) -> 0 | Z75: =IF($C75>Z$2,0,IF($C75=Z$2,0.5,1)*MIN($F75*$F$57,$F75-SUM($G75:Y75))) -> 0 | AA75: =IF($C75>AA$2,0,IF($C75=AA$2,0.5,1)*MIN($F75*$F$57,$F75-SUM($G75:Z75))) -> 0 | AB75: =IF($C75>AB$2,0,IF($C75=AB$2,0.5,1)*MIN($F75*$F$57,$F75-SUM($G75:AA75))) -> 0
C76: 2042 | D76: тыс. руб. | E76: 17 | F76: 0 | H76: =IF($C76>H$2,0,IF($C76=H$2,0.5,1)*MIN($F76*$F$57,$F76-SUM($G76:G76))) -> 0 | I76: =IF($C76>I$2,0,IF($C76=I$2,0.5,1)*MIN($F76*$F$57,$F76-SUM($G76:H76))) -> 0 | J76: =IF($C76>J$2,0,IF($C76=J$2,0.5,1)*MIN($F76*$F$57,$F76-SUM($G76:I76))) -> 0 | K76: =IF($C76>K$2,0,IF($C76=K$2,0.5,1)*MIN($F76*$F$57,$F76-SUM($G76:J76))) -> 0 | L76: =IF($C76>L$2,0,IF($C76=L$2,0.5,1)*MIN($F76*$F$57,$F76-SUM($G76:K76))) -> 0 | M76: =IF($C76>M$2,0,IF($C76=M$2,0.5,1)*MIN($F76*$F$57,$F76-SUM($G76:L76))) -> 0 | N76: =IF($C76>N$2,0,IF($C76=N$2,0.5,1)*MIN($F76*$F$57,$F76-SUM($G76:M76))) -> 0 | O76: =IF($C76>O$2,0,IF($C76=O$2,0.5,1)*MIN($F76*$F$57,$F76-SUM($G76:N76))) -> 0 | P76: =IF($C76>P$2,0,IF($C76=P$2,0.5,1)*MIN($F76*$F$57,$F76-SUM($G76:O76))) -> 0 | Q76: =IF($C76>Q$2,0,IF($C76=Q$2,0.5,1)*MIN($F76*$F$57,$F76-SUM($G76:P76))) -> 0 | R76: =IF($C76>R$2,0,IF($C76=R$2,0.5,1)*MIN($F76*$F$57,$F76-SUM($G76:Q76))) -> 0 | S76: =IF($C76>S$2,0,IF($C76=S$2,0.5,1)*MIN($F76*$F$57,$F76-SUM($G76:R76))) -> 0 | T76: =IF($C76>T$2,0,IF($C76=T$2,0.5,1)*MIN($F76*$F$57,$F76-SUM($G76:S76))) -> 0 | U76: =IF($C76>U$2,0,IF($C76=U$2,0.5,1)*MIN($F76*$F$57,$F76-SUM($G76:T76))) -> 0 | V76: =IF($C76>V$2,0,IF($C76=V$2,0.5,1)*MIN($F76*$F$57,$F76-SUM($G76:U76))) -> 0 | W76: =IF($C76>W$2,0,IF($C76=W$2,0.5,1)*MIN($F76*$F$57,$F76-SUM($G76:V76))) -> 0 | X76: =IF($C76>X$2,0,IF($C76=X$2,0.5,1)*MIN($F76*$F$57,$F76-SUM($G76:W76))) -> 0 | Y76: =IF($C76>Y$2,0,IF($C76=Y$2,0.5,1)*MIN($F76*$F$57,$F76-SUM($G76:X76))) -> 0 | Z76: =IF($C76>Z$2,0,IF($C76=Z$2,0.5,1)*MIN($F76*$F$57,$F76-SUM($G76:Y76))) -> 0 | AA76: =IF($C76>AA$2,0,IF($C76=AA$2,0.5,1)*MIN($F76*$F$57,$F76-SUM($G76:Z76))) -> 0 | AB76: =IF($C76>AB$2,0,IF($C76=AB$2,0.5,1)*MIN($F76*$F$57,$F76-SUM($G76:AA76))) -> 0
C77: 2043 | D77: тыс. руб. | E77: 18 | F77: 0 | H77: =IF($C77>H$2,0,IF($C77=H$2,0.5,1)*MIN($F77*$F$57,$F77-SUM($G77:G77))) -> 0 | I77: =IF($C77>I$2,0,IF($C77=I$2,0.5,1)*MIN($F77*$F$57,$F77-SUM($G77:H77))) -> 0 | J77: =IF($C77>J$2,0,IF($C77=J$2,0.5,1)*MIN($F77*$F$57,$F77-SUM($G77:I77))) -> 0 | K77: =IF($C77>K$2,0,IF($C77=K$2,0.5,1)*MIN($F77*$F$57,$F77-SUM($G77:J77))) -> 0 | L77: =IF($C77>L$2,0,IF($C77=L$2,0.5,1)*MIN($F77*$F$57,$F77-SUM($G77:K77))) -> 0 | M77: =IF($C77>M$2,0,IF($C77=M$2,0.5,1)*MIN($F77*$F$57,$F77-SUM($G77:L77))) -> 0 | N77: =IF($C77>N$2,0,IF($C77=N$2,0.5,1)*MIN($F77*$F$57,$F77-SUM($G77:M77))) -> 0 | O77: =IF($C77>O$2,0,IF($C77=O$2,0.5,1)*MIN($F77*$F$57,$F77-SUM($G77:N77))) -> 0 | P77: =IF($C77>P$2,0,IF($C77=P$2,0.5,1)*MIN($F77*$F$57,$F77-SUM($G77:O77))) -> 0 | Q77: =IF($C77>Q$2,0,IF($C77=Q$2,0.5,1)*MIN($F77*$F$57,$F77-SUM($G77:P77))) -> 0 | R77: =IF($C77>R$2,0,IF($C77=R$2,0.5,1)*MIN($F77*$F$57,$F77-SUM($G77:Q77))) -> 0 | S77: =IF($C77>S$2,0,IF($C77=S$2,0.5,1)*MIN($F77*$F$57,$F77-SUM($G77:R77))) -> 0 | T77: =IF($C77>T$2,0,IF($C77=T$2,0.5,1)*MIN($F77*$F$57,$F77-SUM($G77:S77))) -> 0 | U77: =IF($C77>U$2,0,IF($C77=U$2,0.5,1)*MIN($F77*$F$57,$F77-SUM($G77:T77))) -> 0 | V77: =IF($C77>V$2,0,IF($C77=V$2,0.5,1)*MIN($F77*$F$57,$F77-SUM($G77:U77))) -> 0 | W77: =IF($C77>W$2,0,IF($C77=W$2,0.5,1)*MIN($F77*$F$57,$F77-SUM($G77:V77))) -> 0 | X77: =IF($C77>X$2,0,IF($C77=X$2,0.5,1)*MIN($F77*$F$57,$F77-SUM($G77:W77))) -> 0 | Y77: =IF($C77>Y$2,0,IF($C77=Y$2,0.5,1)*MIN($F77*$F$57,$F77-SUM($G77:X77))) -> 0 | Z77: =IF($C77>Z$2,0,IF($C77=Z$2,0.5,1)*MIN($F77*$F$57,$F77-SUM($G77:Y77))) -> 0 | AA77: =IF($C77>AA$2,0,IF($C77=AA$2,0.5,1)*MIN($F77*$F$57,$F77-SUM($G77:Z77))) -> 0 | AB77: =IF($C77>AB$2,0,IF($C77=AB$2,0.5,1)*MIN($F77*$F$57,$F77-SUM($G77:AA77))) -> 0
C78: 2044 | D78: тыс. руб. | E78: 19 | F78: 0 | H78: =IF($C78>H$2,0,IF($C78=H$2,0.5,1)*MIN($F78*$F$57,$F78-SUM($G78:G78))) -> 0 | I78: =IF($C78>I$2,0,IF($C78=I$2,0.5,1)*MIN($F78*$F$57,$F78-SUM($G78:H78))) -> 0 | J78: =IF($C78>J$2,0,IF($C78=J$2,0.5,1)*MIN($F78*$F$57,$F78-SUM($G78:I78))) -> 0 | K78: =IF($C78>K$2,0,IF($C78=K$2,0.5,1)*MIN($F78*$F$57,$F78-SUM($G78:J78))) -> 0 | L78: =IF($C78>L$2,0,IF($C78=L$2,0.5,1)*MIN($F78*$F$57,$F78-SUM($G78:K78))) -> 0 | M78: =IF($C78>M$2,0,IF($C78=M$2,0.5,1)*MIN($F78*$F$57,$F78-SUM($G78:L78))) -> 0 | N78: =IF($C78>N$2,0,IF($C78=N$2,0.5,1)*MIN($F78*$F$57,$F78-SUM($G78:M78))) -> 0 | O78: =IF($C78>O$2,0,IF($C78=O$2,0.5,1)*MIN($F78*$F$57,$F78-SUM($G78:N78))) -> 0 | P78: =IF($C78>P$2,0,IF($C78=P$2,0.5,1)*MIN($F78*$F$57,$F78-SUM($G78:O78))) -> 0 | Q78: =IF($C78>Q$2,0,IF($C78=Q$2,0.5,1)*MIN($F78*$F$57,$F78-SUM($G78:P78))) -> 0 | R78: =IF($C78>R$2,0,IF($C78=R$2,0.5,1)*MIN($F78*$F$57,$F78-SUM($G78:Q78))) -> 0 | S78: =IF($C78>S$2,0,IF($C78=S$2,0.5,1)*MIN($F78*$F$57,$F78-SUM($G78:R78))) -> 0 | T78: =IF($C78>T$2,0,IF($C78=T$2,0.5,1)*MIN($F78*$F$57,$F78-SUM($G78:S78))) -> 0 | U78: =IF($C78>U$2,0,IF($C78=U$2,0.5,1)*MIN($F78*$F$57,$F78-SUM($G78:T78))) -> 0 | V78: =IF($C78>V$2,0,IF($C78=V$2,0.5,1)*MIN($F78*$F$57,$F78-SUM($G78:U78))) -> 0 | W78: =IF($C78>W$2,0,IF($C78=W$2,0.5,1)*MIN($F78*$F$57,$F78-SUM($G78:V78))) -> 0 | X78: =IF($C78>X$2,0,IF($C78=X$2,0.5,1)*MIN($F78*$F$57,$F78-SUM($G78:W78))) -> 0 | Y78: =IF($C78>Y$2,0,IF($C78=Y$2,0.5,1)*MIN($F78*$F$57,$F78-SUM($G78:X78))) -> 0 | Z78: =IF($C78>Z$2,0,IF($C78=Z$2,0.5,1)*MIN($F78*$F$57,$F78-SUM($G78:Y78))) -> 0 | AA78: =IF($C78>AA$2,0,IF($C78=AA$2,0.5,1)*MIN($F78*$F$57,$F78-SUM($G78:Z78))) -> 0 | AB78: =IF($C78>AB$2,0,IF($C78=AB$2,0.5,1)*MIN($F78*$F$57,$F78-SUM($G78:AA78))) -> 0
C79: 2045 | D79: тыс. руб. | E79: 20 | F79: 0 | H79: =IF($C79>H$2,0,IF($C79=H$2,0.5,1)*MIN($F79*$F$57,$F79-SUM($G79:G79))) -> 0 | I79: =IF($C79>I$2,0,IF($C79=I$2,0.5,1)*MIN($F79*$F$57,$F79-SUM($G79:H79))) -> 0 | J79: =IF($C79>J$2,0,IF($C79=J$2,0.5,1)*MIN($F79*$F$57,$F79-SUM($G79:I79))) -> 0 | K79: =IF($C79>K$2,0,IF($C79=K$2,0.5,1)*MIN($F79*$F$57,$F79-SUM($G79:J79))) -> 0 | L79: =IF($C79>L$2,0,IF($C79=L$2,0.5,1)*MIN($F79*$F$57,$F79-SUM($G79:K79))) -> 0 | M79: =IF($C79>M$2,0,IF($C79=M$2,0.5,1)*MIN($F79*$F$57,$F79-SUM($G79:L79))) -> 0 | N79: =IF($C79>N$2,0,IF($C79=N$2,0.5,1)*MIN($F79*$F$57,$F79-SUM($G79:M79))) -> 0 | O79: =IF($C79>O$2,0,IF($C79=O$2,0.5,1)*MIN($F79*$F$57,$F79-SUM($G79:N79))) -> 0 | P79: =IF($C79>P$2,0,IF($C79=P$2,0.5,1)*MIN($F79*$F$57,$F79-SUM($G79:O79))) -> 0 | Q79: =IF($C79>Q$2,0,IF($C79=Q$2,0.5,1)*MIN($F79*$F$57,$F79-SUM($G79:P79))) -> 0 | R79: =IF($C79>R$2,0,IF($C79=R$2,0.5,1)*MIN($F79*$F$57,$F79-SUM($G79:Q79))) -> 0 | S79: =IF($C79>S$2,0,IF($C79=S$2,0.5,1)*MIN($F79*$F$57,$F79-SUM($G79:R79))) -> 0 | T79: =IF($C79>T$2,0,IF($C79=T$2,0.5,1)*MIN($F79*$F$57,$F79-SUM($G79:S79))) -> 0 | U79: =IF($C79>U$2,0,IF($C79=U$2,0.5,1)*MIN($F79*$F$57,$F79-SUM($G79:T79))) -> 0 | V79: =IF($C79>V$2,0,IF($C79=V$2,0.5,1)*MIN($F79*$F$57,$F79-SUM($G79:U79))) -> 0 | W79: =IF($C79>W$2,0,IF($C79=W$2,0.5,1)*MIN($F79*$F$57,$F79-SUM($G79:V79))) -> 0 | X79: =IF($C79>X$2,0,IF($C79=X$2,0.5,1)*MIN($F79*$F$57,$F79-SUM($G79:W79))) -> 0 | Y79: =IF($C79>Y$2,0,IF($C79=Y$2,0.5,1)*MIN($F79*$F$57,$F79-SUM($G79:X79))) -> 0 | Z79: =IF($C79>Z$2,0,IF($C79=Z$2,0.5,1)*MIN($F79*$F$57,$F79-SUM($G79:Y79))) -> 0 | AA79: =IF($C79>AA$2,0,IF($C79=AA$2,0.5,1)*MIN($F79*$F$57,$F79-SUM($G79:Z79))) -> 0 | AB79: =IF($C79>AB$2,0,IF($C79=AB$2,0.5,1)*MIN($F79*$F$57,$F79-SUM($G79:AA79))) -> 0
C81: Первоначальная стоимость активов | D81: тыс. руб. | H81: =G81+H37 -> 0 | I81: 0 | J81: 0 | K81: 0 | L81: 0 | M81: 0 | N81: 0 | O81: 0 | P81: 0 | Q81: 0 | R81: 0 | S81: 0 | T81: 0 | U81: 0 | V81: 0 | W81: 0 | X81: 0 | Y81: 0 | Z81: 0 | AA81: 0 | AB81: 0
C82: Амортизация за период | D82: тыс. руб. | H82: =H59 -> 0 | I82: =I59 -> 0 | J82: 0 | K82: 0 | L82: 0 | M82: 0 | N82: 0 | O82: 0 | P82: 0 | Q82: 0 | R82: 0 | S82: 0 | T82: 0 | U82: 0 | V82: 0 | W82: 0 | X82: 0 | Y82: 0 | Z82: 0 | AA82: 0 | AB82: 0
C83: Накопленная амортизация | D83: тыс. руб. | H83: =G83+H82 -> 0 | I83: =H83+I82 -> 0 | J83: 0 | K83: 0 | L83: 0 | M83: 0 | N83: 0 | O83: 0 | P83: 0 | Q83: 0 | R83: 0 | S83: 0 | T83: 0 | U83: 0 | V83: 0 | W83: =V83+W82 -> 0 | X83: 0 | Y83: 0 | Z83: 0 | AA83: 0 | AB83: 0
C84: Остаточная стоимость активов | D84: тыс. руб. | H84: =H81-H83 -> 0 | I84: =I81-I83 -> 0 | J84: 0 | K84: 0 | L84: 0 | M84: 0 | N84: 0 | O84: 0 | P84: 0 | Q84: 0 | R84: 0 | S84: 0 | T84: 0 | U84: 0 | V84: 0 | W84: 0 | X84: 0 | Y84: 0 | Z84: 0 | AA84: 0 | AB84: 0
B86: Машины и оборудование
C88: Ставка амортизации | D88: % | F88: =Предпосылки!F229 -> 0.1
C90: Амортизация | D90: тыс. руб. | H90: =SUM(H91:H110) -> 0 | I90: =SUM(I91:I110) -> 0 | J90: 0 | K90: 0 | L90: 0 | M90: 0 | N90: 0 | O90: 0 | P90: 0 | Q90: 0 | R90: 0 | S90: 0 | T90: 0 | U90: 0 | V90: 0 | W90: 0 | X90: 0 | Y90: 0 | Z90: 0 | AA90: 0 | AB90: 0
C91: =INDEX(H$2:AA$2,,$E91) -> 2026 | D91: тыс. руб. | E91: 1 | F91: =OFFSET($G$38,,E91) -> 0 | H91: =IF($C91>H$2,0,IF($C91=H$2,0.5,1)*MIN($F91*$F$88,$F91-SUM($G91:G91))) -> 0 | I91: =IF($C91>I$2,0,IF($C91=I$2,0.5,1)*MIN($F91*$F$88,$F91-SUM($G91:H91))) -> 0 | J91: =IF($C91>J$2,0,IF($C91=J$2,0.5,1)*MIN($F91*$F$88,$F91-SUM($G91:I91))) -> 0 | K91: =IF($C91>K$2,0,IF($C91=K$2,0.5,1)*MIN($F91*$F$88,$F91-SUM($G91:J91))) -> 0 | L91: =IF($C91>L$2,0,IF($C91=L$2,0.5,1)*MIN($F91*$F$88,$F91-SUM($G91:K91))) -> 0 | M91: =IF($C91>M$2,0,IF($C91=M$2,0.5,1)*MIN($F91*$F$88,$F91-SUM($G91:L91))) -> 0 | N91: =IF($C91>N$2,0,IF($C91=N$2,0.5,1)*MIN($F91*$F$88,$F91-SUM($G91:M91))) -> 0 | O91: =IF($C91>O$2,0,IF($C91=O$2,0.5,1)*MIN($F91*$F$88,$F91-SUM($G91:N91))) -> 0 | P91: =IF($C91>P$2,0,IF($C91=P$2,0.5,1)*MIN($F91*$F$88,$F91-SUM($G91:O91))) -> 0 | Q91: =IF($C91>Q$2,0,IF($C91=Q$2,0.5,1)*MIN($F91*$F$88,$F91-SUM($G91:P91))) -> 0 | R91: =IF($C91>R$2,0,IF($C91=R$2,0.5,1)*MIN($F91*$F$88,$F91-SUM($G91:Q91))) -> 0 | S91: =IF($C91>S$2,0,IF($C91=S$2,0.5,1)*MIN($F91*$F$88,$F91-SUM($G91:R91))) -> 0 | T91: =IF($C91>T$2,0,IF($C91=T$2,0.5,1)*MIN($F91*$F$88,$F91-SUM($G91:S91))) -> 0 | U91: =IF($C91>U$2,0,IF($C91=U$2,0.5,1)*MIN($F91*$F$88,$F91-SUM($G91:T91))) -> 0 | V91: =IF($C91>V$2,0,IF($C91=V$2,0.5,1)*MIN($F91*$F$88,$F91-SUM($G91:U91))) -> 0 | W91: =IF($C91>W$2,0,IF($C91=W$2,0.5,1)*MIN($F91*$F$88,$F91-SUM($G91:V91))) -> 0 | X91: =IF($C91>X$2,0,IF($C91=X$2,0.5,1)*MIN($F91*$F$88,$F91-SUM($G91:W91))) -> 0 | Y91: =IF($C91>Y$2,0,IF($C91=Y$2,0.5,1)*MIN($F91*$F$88,$F91-SUM($G91:X91))) -> 0 | Z91: =IF($C91>Z$2,0,IF($C91=Z$2,0.5,1)*MIN($F91*$F$88,$F91-SUM($G91:Y91))) -> 0 | AA91: =IF($C91>AA$2,0,IF($C91=AA$2,0.5,1)*MIN($F91*$F$88,$F91-SUM($G91:Z91))) -> 0 | AB91: =IF($C91>AB$2,0,IF($C91=AB$2,0.5,1)*MIN($F91*$F$88,$F91-SUM($G91:AA91))) -> 0
C92: =INDEX(H$2:AA$2,,$E92) -> 2027 | D92: тыс. руб. | E92: 2 | F92: =OFFSET($G$38,,E92) -> 0 | H92: =IF($C92>H$2,0,IF($C92=H$2,0.5,1)*MIN($F92*$F$88,$F92-SUM($G92:G92))) -> 0 | I92: =IF($C92>I$2,0,IF($C92=I$2,0.5,1)*MIN($F92*$F$88,$F92-SUM($G92:H92))) -> 0 | J92: =IF($C92>J$2,0,IF($C92=J$2,0.5,1)*MIN($F92*$F$88,$F92-SUM($G92:I92))) -> 0 | K92: =IF($C92>K$2,0,IF($C92=K$2,0.5,1)*MIN($F92*$F$88,$F92-SUM($G92:J92))) -> 0 | L92: =IF($C92>L$2,0,IF($C92=L$2,0.5,1)*MIN($F92*$F$88,$F92-SUM($G92:K92))) -> 0 | M92: =IF($C92>M$2,0,IF($C92=M$2,0.5,1)*MIN($F92*$F$88,$F92-SUM($G92:L92))) -> 0 | N92: =IF($C92>N$2,0,IF($C92=N$2,0.5,1)*MIN($F92*$F$88,$F92-SUM($G92:M92))) -> 0 | O92: =IF($C92>O$2,0,IF($C92=O$2,0.5,1)*MIN($F92*$F$88,$F92-SUM($G92:N92))) -> 0 | P92: =IF($C92>P$2,0,IF($C92=P$2,0.5,1)*MIN($F92*$F$88,$F92-SUM($G92:O92))) -> 0 | Q92: =IF($C92>Q$2,0,IF($C92=Q$2,0.5,1)*MIN($F92*$F$88,$F92-SUM($G92:P92))) -> 0 | R92: =IF($C92>R$2,0,IF($C92=R$2,0.5,1)*MIN($F92*$F$88,$F92-SUM($G92:Q92))) -> 0 | S92: =IF($C92>S$2,0,IF($C92=S$2,0.5,1)*MIN($F92*$F$88,$F92-SUM($G92:R92))) -> 0 | T92: =IF($C92>T$2,0,IF($C92=T$2,0.5,1)*MIN($F92*$F$88,$F92-SUM($G92:S92))) -> 0 | U92: =IF($C92>U$2,0,IF($C92=U$2,0.5,1)*MIN($F92*$F$88,$F92-SUM($G92:T92))) -> 0 | V92: =IF($C92>V$2,0,IF($C92=V$2,0.5,1)*MIN($F92*$F$88,$F92-SUM($G92:U92))) -> 0 | W92: =IF($C92>W$2,0,IF($C92=W$2,0.5,1)*MIN($F92*$F$88,$F92-SUM($G92:V92))) -> 0 | X92: =IF($C92>X$2,0,IF($C92=X$2,0.5,1)*MIN($F92*$F$88,$F92-SUM($G92:W92))) -> 0 | Y92: =IF($C92>Y$2,0,IF($C92=Y$2,0.5,1)*MIN($F92*$F$88,$F92-SUM($G92:X92))) -> 0 | Z92: =IF($C92>Z$2,0,IF($C92=Z$2,0.5,1)*MIN($F92*$F$88,$F92-SUM($G92:Y92))) -> 0 | AA92: =IF($C92>AA$2,0,IF($C92=AA$2,0.5,1)*MIN($F92*$F$88,$F92-SUM($G92:Z92))) -> 0 | AB92: =IF($C92>AB$2,0,IF($C92=AB$2,0.5,1)*MIN($F92*$F$88,$F92-SUM($G92:AA92))) -> 0
C93: 2028 | D93: тыс. руб. | E93: 3 | F93: 0 | H93: =IF($C93>H$2,0,IF($C93=H$2,0.5,1)*MIN($F93*$F$88,$F93-SUM($G93:G93))) -> 0 | I93: =IF($C93>I$2,0,IF($C93=I$2,0.5,1)*MIN($F93*$F$88,$F93-SUM($G93:H93))) -> 0 | J93: =IF($C93>J$2,0,IF($C93=J$2,0.5,1)*MIN($F93*$F$88,$F93-SUM($G93:I93))) -> 0 | K93: =IF($C93>K$2,0,IF($C93=K$2,0.5,1)*MIN($F93*$F$88,$F93-SUM($G93:J93))) -> 0 | L93: =IF($C93>L$2,0,IF($C93=L$2,0.5,1)*MIN($F93*$F$88,$F93-SUM($G93:K93))) -> 0 | M93: =IF($C93>M$2,0,IF($C93=M$2,0.5,1)*MIN($F93*$F$88,$F93-SUM($G93:L93))) -> 0 | N93: =IF($C93>N$2,0,IF($C93=N$2,0.5,1)*MIN($F93*$F$88,$F93-SUM($G93:M93))) -> 0 | O93: =IF($C93>O$2,0,IF($C93=O$2,0.5,1)*MIN($F93*$F$88,$F93-SUM($G93:N93))) -> 0 | P93: =IF($C93>P$2,0,IF($C93=P$2,0.5,1)*MIN($F93*$F$88,$F93-SUM($G93:O93))) -> 0 | Q93: =IF($C93>Q$2,0,IF($C93=Q$2,0.5,1)*MIN($F93*$F$88,$F93-SUM($G93:P93))) -> 0 | R93: =IF($C93>R$2,0,IF($C93=R$2,0.5,1)*MIN($F93*$F$88,$F93-SUM($G93:Q93))) -> 0 | S93: =IF($C93>S$2,0,IF($C93=S$2,0.5,1)*MIN($F93*$F$88,$F93-SUM($G93:R93))) -> 0 | T93: =IF($C93>T$2,0,IF($C93=T$2,0.5,1)*MIN($F93*$F$88,$F93-SUM($G93:S93))) -> 0 | U93: =IF($C93>U$2,0,IF($C93=U$2,0.5,1)*MIN($F93*$F$88,$F93-SUM($G93:T93))) -> 0 | V93: =IF($C93>V$2,0,IF($C93=V$2,0.5,1)*MIN($F93*$F$88,$F93-SUM($G93:U93))) -> 0 | W93: =IF($C93>W$2,0,IF($C93=W$2,0.5,1)*MIN($F93*$F$88,$F93-SUM($G93:V93))) -> 0 | X93: =IF($C93>X$2,0,IF($C93=X$2,0.5,1)*MIN($F93*$F$88,$F93-SUM($G93:W93))) -> 0 | Y93: =IF($C93>Y$2,0,IF($C93=Y$2,0.5,1)*MIN($F93*$F$88,$F93-SUM($G93:X93))) -> 0 | Z93: =IF($C93>Z$2,0,IF($C93=Z$2,0.5,1)*MIN($F93*$F$88,$F93-SUM($G93:Y93))) -> 0 | AA93: =IF($C93>AA$2,0,IF($C93=AA$2,0.5,1)*MIN($F93*$F$88,$F93-SUM($G93:Z93))) -> 0 | AB93: =IF($C93>AB$2,0,IF($C93=AB$2,0.5,1)*MIN($F93*$F$88,$F93-SUM($G93:AA93))) -> 0
C94: 2029 | D94: тыс. руб. | E94: 4 | F94: 0 | H94: =IF($C94>H$2,0,IF($C94=H$2,0.5,1)*MIN($F94*$F$88,$F94-SUM($G94:G94))) -> 0 | I94: =IF($C94>I$2,0,IF($C94=I$2,0.5,1)*MIN($F94*$F$88,$F94-SUM($G94:H94))) -> 0 | J94: =IF($C94>J$2,0,IF($C94=J$2,0.5,1)*MIN($F94*$F$88,$F94-SUM($G94:I94))) -> 0 | K94: =IF($C94>K$2,0,IF($C94=K$2,0.5,1)*MIN($F94*$F$88,$F94-SUM($G94:J94))) -> 0 | L94: =IF($C94>L$2,0,IF($C94=L$2,0.5,1)*MIN($F94*$F$88,$F94-SUM($G94:K94))) -> 0 | M94: =IF($C94>M$2,0,IF($C94=M$2,0.5,1)*MIN($F94*$F$88,$F94-SUM($G94:L94))) -> 0 | N94: =IF($C94>N$2,0,IF($C94=N$2,0.5,1)*MIN($F94*$F$88,$F94-SUM($G94:M94))) -> 0 | O94: =IF($C94>O$2,0,IF($C94=O$2,0.5,1)*MIN($F94*$F$88,$F94-SUM($G94:N94))) -> 0 | P94: =IF($C94>P$2,0,IF($C94=P$2,0.5,1)*MIN($F94*$F$88,$F94-SUM($G94:O94))) -> 0 | Q94: =IF($C94>Q$2,0,IF($C94=Q$2,0.5,1)*MIN($F94*$F$88,$F94-SUM($G94:P94))) -> 0 | R94: =IF($C94>R$2,0,IF($C94=R$2,0.5,1)*MIN($F94*$F$88,$F94-SUM($G94:Q94))) -> 0 | S94: =IF($C94>S$2,0,IF($C94=S$2,0.5,1)*MIN($F94*$F$88,$F94-SUM($G94:R94))) -> 0 | T94: =IF($C94>T$2,0,IF($C94=T$2,0.5,1)*MIN($F94*$F$88,$F94-SUM($G94:S94))) -> 0 | U94: =IF($C94>U$2,0,IF($C94=U$2,0.5,1)*MIN($F94*$F$88,$F94-SUM($G94:T94))) -> 0 | V94: =IF($C94>V$2,0,IF($C94=V$2,0.5,1)*MIN($F94*$F$88,$F94-SUM($G94:U94))) -> 0 | W94: =IF($C94>W$2,0,IF($C94=W$2,0.5,1)*MIN($F94*$F$88,$F94-SUM($G94:V94))) -> 0 | X94: =IF($C94>X$2,0,IF($C94=X$2,0.5,1)*MIN($F94*$F$88,$F94-SUM($G94:W94))) -> 0 | Y94: =IF($C94>Y$2,0,IF($C94=Y$2,0.5,1)*MIN($F94*$F$88,$F94-SUM($G94:X94))) -> 0 | Z94: =IF($C94>Z$2,0,IF($C94=Z$2,0.5,1)*MIN($F94*$F$88,$F94-SUM($G94:Y94))) -> 0 | AA94: =IF($C94>AA$2,0,IF($C94=AA$2,0.5,1)*MIN($F94*$F$88,$F94-SUM($G94:Z94))) -> 0 | AB94: =IF($C94>AB$2,0,IF($C94=AB$2,0.5,1)*MIN($F94*$F$88,$F94-SUM($G94:AA94))) -> 0
C95: 2030 | D95: тыс. руб. | E95: 5 | F95: 0 | H95: =IF($C95>H$2,0,IF($C95=H$2,0.5,1)*MIN($F95*$F$88,$F95-SUM($G95:G95))) -> 0 | I95: =IF($C95>I$2,0,IF($C95=I$2,0.5,1)*MIN($F95*$F$88,$F95-SUM($G95:H95))) -> 0 | J95: =IF($C95>J$2,0,IF($C95=J$2,0.5,1)*MIN($F95*$F$88,$F95-SUM($G95:I95))) -> 0 | K95: =IF($C95>K$2,0,IF($C95=K$2,0.5,1)*MIN($F95*$F$88,$F95-SUM($G95:J95))) -> 0 | L95: =IF($C95>L$2,0,IF($C95=L$2,0.5,1)*MIN($F95*$F$88,$F95-SUM($G95:K95))) -> 0 | M95: =IF($C95>M$2,0,IF($C95=M$2,0.5,1)*MIN($F95*$F$88,$F95-SUM($G95:L95))) -> 0 | N95: =IF($C95>N$2,0,IF($C95=N$2,0.5,1)*MIN($F95*$F$88,$F95-SUM($G95:M95))) -> 0 | O95: =IF($C95>O$2,0,IF($C95=O$2,0.5,1)*MIN($F95*$F$88,$F95-SUM($G95:N95))) -> 0 | P95: =IF($C95>P$2,0,IF($C95=P$2,0.5,1)*MIN($F95*$F$88,$F95-SUM($G95:O95))) -> 0 | Q95: =IF($C95>Q$2,0,IF($C95=Q$2,0.5,1)*MIN($F95*$F$88,$F95-SUM($G95:P95))) -> 0 | R95: =IF($C95>R$2,0,IF($C95=R$2,0.5,1)*MIN($F95*$F$88,$F95-SUM($G95:Q95))) -> 0 | S95: =IF($C95>S$2,0,IF($C95=S$2,0.5,1)*MIN($F95*$F$88,$F95-SUM($G95:R95))) -> 0 | T95: =IF($C95>T$2,0,IF($C95=T$2,0.5,1)*MIN($F95*$F$88,$F95-SUM($G95:S95))) -> 0 | U95: =IF($C95>U$2,0,IF($C95=U$2,0.5,1)*MIN($F95*$F$88,$F95-SUM($G95:T95))) -> 0 | V95: =IF($C95>V$2,0,IF($C95=V$2,0.5,1)*MIN($F95*$F$88,$F95-SUM($G95:U95))) -> 0 | W95: =IF($C95>W$2,0,IF($C95=W$2,0.5,1)*MIN($F95*$F$88,$F95-SUM($G95:V95))) -> 0 | X95: =IF($C95>X$2,0,IF($C95=X$2,0.5,1)*MIN($F95*$F$88,$F95-SUM($G95:W95))) -> 0 | Y95: =IF($C95>Y$2,0,IF($C95=Y$2,0.5,1)*MIN($F95*$F$88,$F95-SUM($G95:X95))) -> 0 | Z95: =IF($C95>Z$2,0,IF($C95=Z$2,0.5,1)*MIN($F95*$F$88,$F95-SUM($G95:Y95))) -> 0 | AA95: =IF($C95>AA$2,0,IF($C95=AA$2,0.5,1)*MIN($F95*$F$88,$F95-SUM($G95:Z95))) -> 0 | AB95: =IF($C95>AB$2,0,IF($C95=AB$2,0.5,1)*MIN($F95*$F$88,$F95-SUM($G95:AA95))) -> 0
C96: 2031 | D96: тыс. руб. | E96: 6 | F96: 0 | H96: =IF($C96>H$2,0,IF($C96=H$2,0.5,1)*MIN($F96*$F$88,$F96-SUM($G96:G96))) -> 0 | I96: =IF($C96>I$2,0,IF($C96=I$2,0.5,1)*MIN($F96*$F$88,$F96-SUM($G96:H96))) -> 0 | J96: =IF($C96>J$2,0,IF($C96=J$2,0.5,1)*MIN($F96*$F$88,$F96-SUM($G96:I96))) -> 0 | K96: =IF($C96>K$2,0,IF($C96=K$2,0.5,1)*MIN($F96*$F$88,$F96-SUM($G96:J96))) -> 0 | L96: =IF($C96>L$2,0,IF($C96=L$2,0.5,1)*MIN($F96*$F$88,$F96-SUM($G96:K96))) -> 0 | M96: =IF($C96>M$2,0,IF($C96=M$2,0.5,1)*MIN($F96*$F$88,$F96-SUM($G96:L96))) -> 0 | N96: =IF($C96>N$2,0,IF($C96=N$2,0.5,1)*MIN($F96*$F$88,$F96-SUM($G96:M96))) -> 0 | O96: =IF($C96>O$2,0,IF($C96=O$2,0.5,1)*MIN($F96*$F$88,$F96-SUM($G96:N96))) -> 0 | P96: =IF($C96>P$2,0,IF($C96=P$2,0.5,1)*MIN($F96*$F$88,$F96-SUM($G96:O96))) -> 0 | Q96: =IF($C96>Q$2,0,IF($C96=Q$2,0.5,1)*MIN($F96*$F$88,$F96-SUM($G96:P96))) -> 0 | R96: =IF($C96>R$2,0,IF($C96=R$2,0.5,1)*MIN($F96*$F$88,$F96-SUM($G96:Q96))) -> 0 | S96: =IF($C96>S$2,0,IF($C96=S$2,0.5,1)*MIN($F96*$F$88,$F96-SUM($G96:R96))) -> 0 | T96: =IF($C96>T$2,0,IF($C96=T$2,0.5,1)*MIN($F96*$F$88,$F96-SUM($G96:S96))) -> 0 | U96: =IF($C96>U$2,0,IF($C96=U$2,0.5,1)*MIN($F96*$F$88,$F96-SUM($G96:T96))) -> 0 | V96: =IF($C96>V$2,0,IF($C96=V$2,0.5,1)*MIN($F96*$F$88,$F96-SUM($G96:U96))) -> 0 | W96: =IF($C96>W$2,0,IF($C96=W$2,0.5,1)*MIN($F96*$F$88,$F96-SUM($G96:V96))) -> 0 | X96: =IF($C96>X$2,0,IF($C96=X$2,0.5,1)*MIN($F96*$F$88,$F96-SUM($G96:W96))) -> 0 | Y96: =IF($C96>Y$2,0,IF($C96=Y$2,0.5,1)*MIN($F96*$F$88,$F96-SUM($G96:X96))) -> 0 | Z96: =IF($C96>Z$2,0,IF($C96=Z$2,0.5,1)*MIN($F96*$F$88,$F96-SUM($G96:Y96))) -> 0 | AA96: =IF($C96>AA$2,0,IF($C96=AA$2,0.5,1)*MIN($F96*$F$88,$F96-SUM($G96:Z96))) -> 0 | AB96: =IF($C96>AB$2,0,IF($C96=AB$2,0.5,1)*MIN($F96*$F$88,$F96-SUM($G96:AA96))) -> 0
C97: 2032 | D97: тыс. руб. | E97: 7 | F97: 0 | H97: =IF($C97>H$2,0,IF($C97=H$2,0.5,1)*MIN($F97*$F$88,$F97-SUM($G97:G97))) -> 0 | I97: =IF($C97>I$2,0,IF($C97=I$2,0.5,1)*MIN($F97*$F$88,$F97-SUM($G97:H97))) -> 0 | J97: =IF($C97>J$2,0,IF($C97=J$2,0.5,1)*MIN($F97*$F$88,$F97-SUM($G97:I97))) -> 0 | K97: =IF($C97>K$2,0,IF($C97=K$2,0.5,1)*MIN($F97*$F$88,$F97-SUM($G97:J97))) -> 0 | L97: =IF($C97>L$2,0,IF($C97=L$2,0.5,1)*MIN($F97*$F$88,$F97-SUM($G97:K97))) -> 0 | M97: =IF($C97>M$2,0,IF($C97=M$2,0.5,1)*MIN($F97*$F$88,$F97-SUM($G97:L97))) -> 0 | N97: =IF($C97>N$2,0,IF($C97=N$2,0.5,1)*MIN($F97*$F$88,$F97-SUM($G97:M97))) -> 0 | O97: =IF($C97>O$2,0,IF($C97=O$2,0.5,1)*MIN($F97*$F$88,$F97-SUM($G97:N97))) -> 0 | P97: =IF($C97>P$2,0,IF($C97=P$2,0.5,1)*MIN($F97*$F$88,$F97-SUM($G97:O97))) -> 0 | Q97: =IF($C97>Q$2,0,IF($C97=Q$2,0.5,1)*MIN($F97*$F$88,$F97-SUM($G97:P97))) -> 0 | R97: =IF($C97>R$2,0,IF($C97=R$2,0.5,1)*MIN($F97*$F$88,$F97-SUM($G97:Q97))) -> 0 | S97: =IF($C97>S$2,0,IF($C97=S$2,0.5,1)*MIN($F97*$F$88,$F97-SUM($G97:R97))) -> 0 | T97: =IF($C97>T$2,0,IF($C97=T$2,0.5,1)*MIN($F97*$F$88,$F97-SUM($G97:S97))) -> 0 | U97: =IF($C97>U$2,0,IF($C97=U$2,0.5,1)*MIN($F97*$F$88,$F97-SUM($G97:T97))) -> 0 | V97: =IF($C97>V$2,0,IF($C97=V$2,0.5,1)*MIN($F97*$F$88,$F97-SUM($G97:U97))) -> 0 | W97: =IF($C97>W$2,0,IF($C97=W$2,0.5,1)*MIN($F97*$F$88,$F97-SUM($G97:V97))) -> 0 | X97: =IF($C97>X$2,0,IF($C97=X$2,0.5,1)*MIN($F97*$F$88,$F97-SUM($G97:W97))) -> 0 | Y97: =IF($C97>Y$2,0,IF($C97=Y$2,0.5,1)*MIN($F97*$F$88,$F97-SUM($G97:X97))) -> 0 | Z97: =IF($C97>Z$2,0,IF($C97=Z$2,0.5,1)*MIN($F97*$F$88,$F97-SUM($G97:Y97))) -> 0 | AA97: =IF($C97>AA$2,0,IF($C97=AA$2,0.5,1)*MIN($F97*$F$88,$F97-SUM($G97:Z97))) -> 0 | AB97: =IF($C97>AB$2,0,IF($C97=AB$2,0.5,1)*MIN($F97*$F$88,$F97-SUM($G97:AA97))) -> 0
C98: 2033 | D98: тыс. руб. | E98: 8 | F98: 0 | H98: =IF($C98>H$2,0,IF($C98=H$2,0.5,1)*MIN($F98*$F$88,$F98-SUM($G98:G98))) -> 0 | I98: =IF($C98>I$2,0,IF($C98=I$2,0.5,1)*MIN($F98*$F$88,$F98-SUM($G98:H98))) -> 0 | J98: =IF($C98>J$2,0,IF($C98=J$2,0.5,1)*MIN($F98*$F$88,$F98-SUM($G98:I98))) -> 0 | K98: =IF($C98>K$2,0,IF($C98=K$2,0.5,1)*MIN($F98*$F$88,$F98-SUM($G98:J98))) -> 0 | L98: =IF($C98>L$2,0,IF($C98=L$2,0.5,1)*MIN($F98*$F$88,$F98-SUM($G98:K98))) -> 0 | M98: =IF($C98>M$2,0,IF($C98=M$2,0.5,1)*MIN($F98*$F$88,$F98-SUM($G98:L98))) -> 0 | N98: =IF($C98>N$2,0,IF($C98=N$2,0.5,1)*MIN($F98*$F$88,$F98-SUM($G98:M98))) -> 0 | O98: =IF($C98>O$2,0,IF($C98=O$2,0.5,1)*MIN($F98*$F$88,$F98-SUM($G98:N98))) -> 0 | P98: =IF($C98>P$2,0,IF($C98=P$2,0.5,1)*MIN($F98*$F$88,$F98-SUM($G98:O98))) -> 0 | Q98: =IF($C98>Q$2,0,IF($C98=Q$2,0.5,1)*MIN($F98*$F$88,$F98-SUM($G98:P98))) -> 0 | R98: =IF($C98>R$2,0,IF($C98=R$2,0.5,1)*MIN($F98*$F$88,$F98-SUM($G98:Q98))) -> 0 | S98: =IF($C98>S$2,0,IF($C98=S$2,0.5,1)*MIN($F98*$F$88,$F98-SUM($G98:R98))) -> 0 | T98: =IF($C98>T$2,0,IF($C98=T$2,0.5,1)*MIN($F98*$F$88,$F98-SUM($G98:S98))) -> 0 | U98: =IF($C98>U$2,0,IF($C98=U$2,0.5,1)*MIN($F98*$F$88,$F98-SUM($G98:T98))) -> 0 | V98: =IF($C98>V$2,0,IF($C98=V$2,0.5,1)*MIN($F98*$F$88,$F98-SUM($G98:U98))) -> 0 | W98: =IF($C98>W$2,0,IF($C98=W$2,0.5,1)*MIN($F98*$F$88,$F98-SUM($G98:V98))) -> 0 | X98: =IF($C98>X$2,0,IF($C98=X$2,0.5,1)*MIN($F98*$F$88,$F98-SUM($G98:W98))) -> 0 | Y98: =IF($C98>Y$2,0,IF($C98=Y$2,0.5,1)*MIN($F98*$F$88,$F98-SUM($G98:X98))) -> 0 | Z98: =IF($C98>Z$2,0,IF($C98=Z$2,0.5,1)*MIN($F98*$F$88,$F98-SUM($G98:Y98))) -> 0 | AA98: =IF($C98>AA$2,0,IF($C98=AA$2,0.5,1)*MIN($F98*$F$88,$F98-SUM($G98:Z98))) -> 0 | AB98: =IF($C98>AB$2,0,IF($C98=AB$2,0.5,1)*MIN($F98*$F$88,$F98-SUM($G98:AA98))) -> 0
C99: 2034 | D99: тыс. руб. | E99: 9 | F99: 0 | H99: =IF($C99>H$2,0,IF($C99=H$2,0.5,1)*MIN($F99*$F$88,$F99-SUM($G99:G99))) -> 0 | I99: =IF($C99>I$2,0,IF($C99=I$2,0.5,1)*MIN($F99*$F$88,$F99-SUM($G99:H99))) -> 0 | J99: =IF($C99>J$2,0,IF($C99=J$2,0.5,1)*MIN($F99*$F$88,$F99-SUM($G99:I99))) -> 0 | K99: =IF($C99>K$2,0,IF($C99=K$2,0.5,1)*MIN($F99*$F$88,$F99-SUM($G99:J99))) -> 0 | L99: =IF($C99>L$2,0,IF($C99=L$2,0.5,1)*MIN($F99*$F$88,$F99-SUM($G99:K99))) -> 0 | M99: =IF($C99>M$2,0,IF($C99=M$2,0.5,1)*MIN($F99*$F$88,$F99-SUM($G99:L99))) -> 0 | N99: =IF($C99>N$2,0,IF($C99=N$2,0.5,1)*MIN($F99*$F$88,$F99-SUM($G99:M99))) -> 0 | O99: =IF($C99>O$2,0,IF($C99=O$2,0.5,1)*MIN($F99*$F$88,$F99-SUM($G99:N99))) -> 0 | P99: =IF($C99>P$2,0,IF($C99=P$2,0.5,1)*MIN($F99*$F$88,$F99-SUM($G99:O99))) -> 0 | Q99: =IF($C99>Q$2,0,IF($C99=Q$2,0.5,1)*MIN($F99*$F$88,$F99-SUM($G99:P99))) -> 0 | R99: =IF($C99>R$2,0,IF($C99=R$2,0.5,1)*MIN($F99*$F$88,$F99-SUM($G99:Q99))) -> 0 | S99: =IF($C99>S$2,0,IF($C99=S$2,0.5,1)*MIN($F99*$F$88,$F99-SUM($G99:R99))) -> 0 | T99: =IF($C99>T$2,0,IF($C99=T$2,0.5,1)*MIN($F99*$F$88,$F99-SUM($G99:S99))) -> 0 | U99: =IF($C99>U$2,0,IF($C99=U$2,0.5,1)*MIN($F99*$F$88,$F99-SUM($G99:T99))) -> 0 | V99: =IF($C99>V$2,0,IF($C99=V$2,0.5,1)*MIN($F99*$F$88,$F99-SUM($G99:U99))) -> 0 | W99: =IF($C99>W$2,0,IF($C99=W$2,0.5,1)*MIN($F99*$F$88,$F99-SUM($G99:V99))) -> 0 | X99: =IF($C99>X$2,0,IF($C99=X$2,0.5,1)*MIN($F99*$F$88,$F99-SUM($G99:W99))) -> 0 | Y99: =IF($C99>Y$2,0,IF($C99=Y$2,0.5,1)*MIN($F99*$F$88,$F99-SUM($G99:X99))) -> 0 | Z99: =IF($C99>Z$2,0,IF($C99=Z$2,0.5,1)*MIN($F99*$F$88,$F99-SUM($G99:Y99))) -> 0 | AA99: =IF($C99>AA$2,0,IF($C99=AA$2,0.5,1)*MIN($F99*$F$88,$F99-SUM($G99:Z99))) -> 0 | AB99: =IF($C99>AB$2,0,IF($C99=AB$2,0.5,1)*MIN($F99*$F$88,$F99-SUM($G99:AA99))) -> 0
C100: 2035 | D100: тыс. руб. | E100: 10 | F100: 0 | H100: =IF($C100>H$2,0,IF($C100=H$2,0.5,1)*MIN($F100*$F$88,$F100-SUM($G100:G100))) -> 0 | I100: =IF($C100>I$2,0,IF($C100=I$2,0.5,1)*MIN($F100*$F$88,$F100-SUM($G100:H100))) -> 0 | J100: =IF($C100>J$2,0,IF($C100=J$2,0.5,1)*MIN($F100*$F$88,$F100-SUM($G100:I100))) -> 0 | K100: =IF($C100>K$2,0,IF($C100=K$2,0.5,1)*MIN($F100*$F$88,$F100-SUM($G100:J100))) -> 0 | L100: =IF($C100>L$2,0,IF($C100=L$2,0.5,1)*MIN($F100*$F$88,$F100-SUM($G100:K100))) -> 0 | M100: =IF($C100>M$2,0,IF($C100=M$2,0.5,1)*MIN($F100*$F$88,$F100-SUM($G100:L100))) -> 0 | N100: =IF($C100>N$2,0,IF($C100=N$2,0.5,1)*MIN($F100*$F$88,$F100-SUM($G100:M100))) -> 0 | O100: =IF($C100>O$2,0,IF($C100=O$2,0.5,1)*MIN($F100*$F$88,$F100-SUM($G100:N100))) -> 0 | P100: =IF($C100>P$2,0,IF($C100=P$2,0.5,1)*MIN($F100*$F$88,$F100-SUM($G100:O100))) -> 0 | Q100: =IF($C100>Q$2,0,IF($C100=Q$2,0.5,1)*MIN($F100*$F$88,$F100-SUM($G100:P100))) -> 0 | R100: =IF($C100>R$2,0,IF($C100=R$2,0.5,1)*MIN($F100*$F$88,$F100-SUM($G100:Q100))) -> 0 | S100: =IF($C100>S$2,0,IF($C100=S$2,0.5,1)*MIN($F100*$F$88,$F100-SUM($G100:R100))) -> 0 | T100: =IF($C100>T$2,0,IF($C100=T$2,0.5,1)*MIN($F100*$F$88,$F100-SUM($G100:S100))) -> 0 | U100: =IF($C100>U$2,0,IF($C100=U$2,0.5,1)*MIN($F100*$F$88,$F100-SUM($G100:T100))) -> 0 | V100: =IF($C100>V$2,0,IF($C100=V$2,0.5,1)*MIN($F100*$F$88,$F100-SUM($G100:U100))) -> 0 | W100: =IF($C100>W$2,0,IF($C100=W$2,0.5,1)*MIN($F100*$F$88,$F100-SUM($G100:V100))) -> 0 | X100: =IF($C100>X$2,0,IF($C100=X$2,0.5,1)*MIN($F100*$F$88,$F100-SUM($G100:W100))) -> 0 | Y100: =IF($C100>Y$2,0,IF($C100=Y$2,0.5,1)*MIN($F100*$F$88,$F100-SUM($G100:X100))) -> 0 | Z100: =IF($C100>Z$2,0,IF($C100=Z$2,0.5,1)*MIN($F100*$F$88,$F100-SUM($G100:Y100))) -> 0 | AA100: =IF($C100>AA$2,0,IF($C100=AA$2,0.5,1)*MIN($F100*$F$88,$F100-SUM($G100:Z100))) -> 0 | AB100: =IF($C100>AB$2,0,IF($C100=AB$2,0.5,1)*MIN($F100*$F$88,$F100-SUM($G100:AA100))) -> 0
C101: 2036 | D101: тыс. руб. | E101: 11 | F101: 0 | H101: =IF($C101>H$2,0,IF($C101=H$2,0.5,1)*MIN($F101*$F$88,$F101-SUM($G101:G101))) -> 0 | I101: =IF($C101>I$2,0,IF($C101=I$2,0.5,1)*MIN($F101*$F$88,$F101-SUM($G101:H101))) -> 0 | J101: =IF($C101>J$2,0,IF($C101=J$2,0.5,1)*MIN($F101*$F$88,$F101-SUM($G101:I101))) -> 0 | K101: =IF($C101>K$2,0,IF($C101=K$2,0.5,1)*MIN($F101*$F$88,$F101-SUM($G101:J101))) -> 0 | L101: =IF($C101>L$2,0,IF($C101=L$2,0.5,1)*MIN($F101*$F$88,$F101-SUM($G101:K101))) -> 0 | M101: =IF($C101>M$2,0,IF($C101=M$2,0.5,1)*MIN($F101*$F$88,$F101-SUM($G101:L101))) -> 0 | N101: =IF($C101>N$2,0,IF($C101=N$2,0.5,1)*MIN($F101*$F$88,$F101-SUM($G101:M101))) -> 0 | O101: =IF($C101>O$2,0,IF($C101=O$2,0.5,1)*MIN($F101*$F$88,$F101-SUM($G101:N101))) -> 0 | P101: =IF($C101>P$2,0,IF($C101=P$2,0.5,1)*MIN($F101*$F$88,$F101-SUM($G101:O101))) -> 0 | Q101: =IF($C101>Q$2,0,IF($C101=Q$2,0.5,1)*MIN($F101*$F$88,$F101-SUM($G101:P101))) -> 0 | R101: =IF($C101>R$2,0,IF($C101=R$2,0.5,1)*MIN($F101*$F$88,$F101-SUM($G101:Q101))) -> 0 | S101: =IF($C101>S$2,0,IF($C101=S$2,0.5,1)*MIN($F101*$F$88,$F101-SUM($G101:R101))) -> 0 | T101: =IF($C101>T$2,0,IF($C101=T$2,0.5,1)*MIN($F101*$F$88,$F101-SUM($G101:S101))) -> 0 | U101: =IF($C101>U$2,0,IF($C101=U$2,0.5,1)*MIN($F101*$F$88,$F101-SUM($G101:T101))) -> 0 | V101: =IF($C101>V$2,0,IF($C101=V$2,0.5,1)*MIN($F101*$F$88,$F101-SUM($G101:U101))) -> 0 | W101: =IF($C101>W$2,0,IF($C101=W$2,0.5,1)*MIN($F101*$F$88,$F101-SUM($G101:V101))) -> 0 | X101: =IF($C101>X$2,0,IF($C101=X$2,0.5,1)*MIN($F101*$F$88,$F101-SUM($G101:W101))) -> 0 | Y101: =IF($C101>Y$2,0,IF($C101=Y$2,0.5,1)*MIN($F101*$F$88,$F101-SUM($G101:X101))) -> 0 | Z101: =IF($C101>Z$2,0,IF($C101=Z$2,0.5,1)*MIN($F101*$F$88,$F101-SUM($G101:Y101))) -> 0 | AA101: =IF($C101>AA$2,0,IF($C101=AA$2,0.5,1)*MIN($F101*$F$88,$F101-SUM($G101:Z101))) -> 0 | AB101: =IF($C101>AB$2,0,IF($C101=AB$2,0.5,1)*MIN($F101*$F$88,$F101-SUM($G101:AA101))) -> 0
C102: 2037 | D102: тыс. руб. | E102: 12 | F102: 0 | H102: =IF($C102>H$2,0,IF($C102=H$2,0.5,1)*MIN($F102*$F$88,$F102-SUM($G102:G102))) -> 0 | I102: =IF($C102>I$2,0,IF($C102=I$2,0.5,1)*MIN($F102*$F$88,$F102-SUM($G102:H102))) -> 0 | J102: =IF($C102>J$2,0,IF($C102=J$2,0.5,1)*MIN($F102*$F$88,$F102-SUM($G102:I102))) -> 0 | K102: =IF($C102>K$2,0,IF($C102=K$2,0.5,1)*MIN($F102*$F$88,$F102-SUM($G102:J102))) -> 0 | L102: =IF($C102>L$2,0,IF($C102=L$2,0.5,1)*MIN($F102*$F$88,$F102-SUM($G102:K102))) -> 0 | M102: =IF($C102>M$2,0,IF($C102=M$2,0.5,1)*MIN($F102*$F$88,$F102-SUM($G102:L102))) -> 0 | N102: =IF($C102>N$2,0,IF($C102=N$2,0.5,1)*MIN($F102*$F$88,$F102-SUM($G102:M102))) -> 0 | O102: =IF($C102>O$2,0,IF($C102=O$2,0.5,1)*MIN($F102*$F$88,$F102-SUM($G102:N102))) -> 0 | P102: =IF($C102>P$2,0,IF($C102=P$2,0.5,1)*MIN($F102*$F$88,$F102-SUM($G102:O102))) -> 0 | Q102: =IF($C102>Q$2,0,IF($C102=Q$2,0.5,1)*MIN($F102*$F$88,$F102-SUM($G102:P102))) -> 0 | R102: =IF($C102>R$2,0,IF($C102=R$2,0.5,1)*MIN($F102*$F$88,$F102-SUM($G102:Q102))) -> 0 | S102: =IF($C102>S$2,0,IF($C102=S$2,0.5,1)*MIN($F102*$F$88,$F102-SUM($G102:R102))) -> 0 | T102: =IF($C102>T$2,0,IF($C102=T$2,0.5,1)*MIN($F102*$F$88,$F102-SUM($G102:S102))) -> 0 | U102: =IF($C102>U$2,0,IF($C102=U$2,0.5,1)*MIN($F102*$F$88,$F102-SUM($G102:T102))) -> 0 | V102: =IF($C102>V$2,0,IF($C102=V$2,0.5,1)*MIN($F102*$F$88,$F102-SUM($G102:U102))) -> 0 | W102: =IF($C102>W$2,0,IF($C102=W$2,0.5,1)*MIN($F102*$F$88,$F102-SUM($G102:V102))) -> 0 | X102: =IF($C102>X$2,0,IF($C102=X$2,0.5,1)*MIN($F102*$F$88,$F102-SUM($G102:W102))) -> 0 | Y102: =IF($C102>Y$2,0,IF($C102=Y$2,0.5,1)*MIN($F102*$F$88,$F102-SUM($G102:X102))) -> 0 | Z102: =IF($C102>Z$2,0,IF($C102=Z$2,0.5,1)*MIN($F102*$F$88,$F102-SUM($G102:Y102))) -> 0 | AA102: =IF($C102>AA$2,0,IF($C102=AA$2,0.5,1)*MIN($F102*$F$88,$F102-SUM($G102:Z102))) -> 0 | AB102: =IF($C102>AB$2,0,IF($C102=AB$2,0.5,1)*MIN($F102*$F$88,$F102-SUM($G102:AA102))) -> 0
C103: 2038 | D103: тыс. руб. | E103: 13 | F103: 0 | H103: =IF($C103>H$2,0,IF($C103=H$2,0.5,1)*MIN($F103*$F$88,$F103-SUM($G103:G103))) -> 0 | I103: =IF($C103>I$2,0,IF($C103=I$2,0.5,1)*MIN($F103*$F$88,$F103-SUM($G103:H103))) -> 0 | J103: =IF($C103>J$2,0,IF($C103=J$2,0.5,1)*MIN($F103*$F$88,$F103-SUM($G103:I103))) -> 0 | K103: =IF($C103>K$2,0,IF($C103=K$2,0.5,1)*MIN($F103*$F$88,$F103-SUM($G103:J103))) -> 0 | L103: =IF($C103>L$2,0,IF($C103=L$2,0.5,1)*MIN($F103*$F$88,$F103-SUM($G103:K103))) -> 0 | M103: =IF($C103>M$2,0,IF($C103=M$2,0.5,1)*MIN($F103*$F$88,$F103-SUM($G103:L103))) -> 0 | N103: =IF($C103>N$2,0,IF($C103=N$2,0.5,1)*MIN($F103*$F$88,$F103-SUM($G103:M103))) -> 0 | O103: =IF($C103>O$2,0,IF($C103=O$2,0.5,1)*MIN($F103*$F$88,$F103-SUM($G103:N103))) -> 0 | P103: =IF($C103>P$2,0,IF($C103=P$2,0.5,1)*MIN($F103*$F$88,$F103-SUM($G103:O103))) -> 0 | Q103: =IF($C103>Q$2,0,IF($C103=Q$2,0.5,1)*MIN($F103*$F$88,$F103-SUM($G103:P103))) -> 0 | R103: =IF($C103>R$2,0,IF($C103=R$2,0.5,1)*MIN($F103*$F$88,$F103-SUM($G103:Q103))) -> 0 | S103: =IF($C103>S$2,0,IF($C103=S$2,0.5,1)*MIN($F103*$F$88,$F103-SUM($G103:R103))) -> 0 | T103: =IF($C103>T$2,0,IF($C103=T$2,0.5,1)*MIN($F103*$F$88,$F103-SUM($G103:S103))) -> 0 | U103: =IF($C103>U$2,0,IF($C103=U$2,0.5,1)*MIN($F103*$F$88,$F103-SUM($G103:T103))) -> 0 | V103: =IF($C103>V$2,0,IF($C103=V$2,0.5,1)*MIN($F103*$F$88,$F103-SUM($G103:U103))) -> 0 | W103: =IF($C103>W$2,0,IF($C103=W$2,0.5,1)*MIN($F103*$F$88,$F103-SUM($G103:V103))) -> 0 | X103: =IF($C103>X$2,0,IF($C103=X$2,0.5,1)*MIN($F103*$F$88,$F103-SUM($G103:W103))) -> 0 | Y103: =IF($C103>Y$2,0,IF($C103=Y$2,0.5,1)*MIN($F103*$F$88,$F103-SUM($G103:X103))) -> 0 | Z103: =IF($C103>Z$2,0,IF($C103=Z$2,0.5,1)*MIN($F103*$F$88,$F103-SUM($G103:Y103))) -> 0 | AA103: =IF($C103>AA$2,0,IF($C103=AA$2,0.5,1)*MIN($F103*$F$88,$F103-SUM($G103:Z103))) -> 0 | AB103: =IF($C103>AB$2,0,IF($C103=AB$2,0.5,1)*MIN($F103*$F$88,$F103-SUM($G103:AA103))) -> 0
C104: 2039 | D104: тыс. руб. | E104: 14 | F104: 0 | H104: =IF($C104>H$2,0,IF($C104=H$2,0.5,1)*MIN($F104*$F$88,$F104-SUM($G104:G104))) -> 0 | I104: =IF($C104>I$2,0,IF($C104=I$2,0.5,1)*MIN($F104*$F$88,$F104-SUM($G104:H104))) -> 0 | J104: =IF($C104>J$2,0,IF($C104=J$2,0.5,1)*MIN($F104*$F$88,$F104-SUM($G104:I104))) -> 0 | K104: =IF($C104>K$2,0,IF($C104=K$2,0.5,1)*MIN($F104*$F$88,$F104-SUM($G104:J104))) -> 0 | L104: =IF($C104>L$2,0,IF($C104=L$2,0.5,1)*MIN($F104*$F$88,$F104-SUM($G104:K104))) -> 0 | M104: =IF($C104>M$2,0,IF($C104=M$2,0.5,1)*MIN($F104*$F$88,$F104-SUM($G104:L104))) -> 0 | N104: =IF($C104>N$2,0,IF($C104=N$2,0.5,1)*MIN($F104*$F$88,$F104-SUM($G104:M104))) -> 0 | O104: =IF($C104>O$2,0,IF($C104=O$2,0.5,1)*MIN($F104*$F$88,$F104-SUM($G104:N104))) -> 0 | P104: =IF($C104>P$2,0,IF($C104=P$2,0.5,1)*MIN($F104*$F$88,$F104-SUM($G104:O104))) -> 0 | Q104: =IF($C104>Q$2,0,IF($C104=Q$2,0.5,1)*MIN($F104*$F$88,$F104-SUM($G104:P104))) -> 0 | R104: =IF($C104>R$2,0,IF($C104=R$2,0.5,1)*MIN($F104*$F$88,$F104-SUM($G104:Q104))) -> 0 | S104: =IF($C104>S$2,0,IF($C104=S$2,0.5,1)*MIN($F104*$F$88,$F104-SUM($G104:R104))) -> 0 | T104: =IF($C104>T$2,0,IF($C104=T$2,0.5,1)*MIN($F104*$F$88,$F104-SUM($G104:S104))) -> 0 | U104: =IF($C104>U$2,0,IF($C104=U$2,0.5,1)*MIN($F104*$F$88,$F104-SUM($G104:T104))) -> 0 | V104: =IF($C104>V$2,0,IF($C104=V$2,0.5,1)*MIN($F104*$F$88,$F104-SUM($G104:U104))) -> 0 | W104: =IF($C104>W$2,0,IF($C104=W$2,0.5,1)*MIN($F104*$F$88,$F104-SUM($G104:V104))) -> 0 | X104: =IF($C104>X$2,0,IF($C104=X$2,0.5,1)*MIN($F104*$F$88,$F104-SUM($G104:W104))) -> 0 | Y104: =IF($C104>Y$2,0,IF($C104=Y$2,0.5,1)*MIN($F104*$F$88,$F104-SUM($G104:X104))) -> 0 | Z104: =IF($C104>Z$2,0,IF($C104=Z$2,0.5,1)*MIN($F104*$F$88,$F104-SUM($G104:Y104))) -> 0 | AA104: =IF($C104>AA$2,0,IF($C104=AA$2,0.5,1)*MIN($F104*$F$88,$F104-SUM($G104:Z104))) -> 0 | AB104: =IF($C104>AB$2,0,IF($C104=AB$2,0.5,1)*MIN($F104*$F$88,$F104-SUM($G104:AA104))) -> 0
C105: 2040 | D105: тыс. руб. | E105: 15 | F105: 0 | H105: =IF($C105>H$2,0,IF($C105=H$2,0.5,1)*MIN($F105*$F$88,$F105-SUM($G105:G105))) -> 0 | I105: =IF($C105>I$2,0,IF($C105=I$2,0.5,1)*MIN($F105*$F$88,$F105-SUM($G105:H105))) -> 0 | J105: =IF($C105>J$2,0,IF($C105=J$2,0.5,1)*MIN($F105*$F$88,$F105-SUM($G105:I105))) -> 0 | K105: =IF($C105>K$2,0,IF($C105=K$2,0.5,1)*MIN($F105*$F$88,$F105-SUM($G105:J105))) -> 0 | L105: =IF($C105>L$2,0,IF($C105=L$2,0.5,1)*MIN($F105*$F$88,$F105-SUM($G105:K105))) -> 0 | M105: =IF($C105>M$2,0,IF($C105=M$2,0.5,1)*MIN($F105*$F$88,$F105-SUM($G105:L105))) -> 0 | N105: =IF($C105>N$2,0,IF($C105=N$2,0.5,1)*MIN($F105*$F$88,$F105-SUM($G105:M105))) -> 0 | O105: =IF($C105>O$2,0,IF($C105=O$2,0.5,1)*MIN($F105*$F$88,$F105-SUM($G105:N105))) -> 0 | P105: =IF($C105>P$2,0,IF($C105=P$2,0.5,1)*MIN($F105*$F$88,$F105-SUM($G105:O105))) -> 0 | Q105: =IF($C105>Q$2,0,IF($C105=Q$2,0.5,1)*MIN($F105*$F$88,$F105-SUM($G105:P105))) -> 0 | R105: =IF($C105>R$2,0,IF($C105=R$2,0.5,1)*MIN($F105*$F$88,$F105-SUM($G105:Q105))) -> 0 | S105: =IF($C105>S$2,0,IF($C105=S$2,0.5,1)*MIN($F105*$F$88,$F105-SUM($G105:R105))) -> 0 | T105: =IF($C105>T$2,0,IF($C105=T$2,0.5,1)*MIN($F105*$F$88,$F105-SUM($G105:S105))) -> 0 | U105: =IF($C105>U$2,0,IF($C105=U$2,0.5,1)*MIN($F105*$F$88,$F105-SUM($G105:T105))) -> 0 | V105: =IF($C105>V$2,0,IF($C105=V$2,0.5,1)*MIN($F105*$F$88,$F105-SUM($G105:U105))) -> 0 | W105: =IF($C105>W$2,0,IF($C105=W$2,0.5,1)*MIN($F105*$F$88,$F105-SUM($G105:V105))) -> 0 | X105: =IF($C105>X$2,0,IF($C105=X$2,0.5,1)*MIN($F105*$F$88,$F105-SUM($G105:W105))) -> 0 | Y105: =IF($C105>Y$2,0,IF($C105=Y$2,0.5,1)*MIN($F105*$F$88,$F105-SUM($G105:X105))) -> 0 | Z105: =IF($C105>Z$2,0,IF($C105=Z$2,0.5,1)*MIN($F105*$F$88,$F105-SUM($G105:Y105))) -> 0 | AA105: =IF($C105>AA$2,0,IF($C105=AA$2,0.5,1)*MIN($F105*$F$88,$F105-SUM($G105:Z105))) -> 0 | AB105: =IF($C105>AB$2,0,IF($C105=AB$2,0.5,1)*MIN($F105*$F$88,$F105-SUM($G105:AA105))) -> 0
C106: 2041 | D106: тыс. руб. | E106: 16 | F106: 0 | H106: =IF($C106>H$2,0,IF($C106=H$2,0.5,1)*MIN($F106*$F$88,$F106-SUM($G106:G106))) -> 0 | I106: =IF($C106>I$2,0,IF($C106=I$2,0.5,1)*MIN($F106*$F$88,$F106-SUM($G106:H106))) -> 0 | J106: =IF($C106>J$2,0,IF($C106=J$2,0.5,1)*MIN($F106*$F$88,$F106-SUM($G106:I106))) -> 0 | K106: =IF($C106>K$2,0,IF($C106=K$2,0.5,1)*MIN($F106*$F$88,$F106-SUM($G106:J106))) -> 0 | L106: =IF($C106>L$2,0,IF($C106=L$2,0.5,1)*MIN($F106*$F$88,$F106-SUM($G106:K106))) -> 0 | M106: =IF($C106>M$2,0,IF($C106=M$2,0.5,1)*MIN($F106*$F$88,$F106-SUM($G106:L106))) -> 0 | N106: =IF($C106>N$2,0,IF($C106=N$2,0.5,1)*MIN($F106*$F$88,$F106-SUM($G106:M106))) -> 0 | O106: =IF($C106>O$2,0,IF($C106=O$2,0.5,1)*MIN($F106*$F$88,$F106-SUM($G106:N106))) -> 0 | P106: =IF($C106>P$2,0,IF($C106=P$2,0.5,1)*MIN($F106*$F$88,$F106-SUM($G106:O106))) -> 0 | Q106: =IF($C106>Q$2,0,IF($C106=Q$2,0.5,1)*MIN($F106*$F$88,$F106-SUM($G106:P106))) -> 0 | R106: =IF($C106>R$2,0,IF($C106=R$2,0.5,1)*MIN($F106*$F$88,$F106-SUM($G106:Q106))) -> 0 | S106: =IF($C106>S$2,0,IF($C106=S$2,0.5,1)*MIN($F106*$F$88,$F106-SUM($G106:R106))) -> 0 | T106: =IF($C106>T$2,0,IF($C106=T$2,0.5,1)*MIN($F106*$F$88,$F106-SUM($G106:S106))) -> 0 | U106: =IF($C106>U$2,0,IF($C106=U$2,0.5,1)*MIN($F106*$F$88,$F106-SUM($G106:T106))) -> 0 | V106: =IF($C106>V$2,0,IF($C106=V$2,0.5,1)*MIN($F106*$F$88,$F106-SUM($G106:U106))) -> 0 | W106: =IF($C106>W$2,0,IF($C106=W$2,0.5,1)*MIN($F106*$F$88,$F106-SUM($G106:V106))) -> 0 | X106: =IF($C106>X$2,0,IF($C106=X$2,0.5,1)*MIN($F106*$F$88,$F106-SUM($G106:W106))) -> 0 | Y106: =IF($C106>Y$2,0,IF($C106=Y$2,0.5,1)*MIN($F106*$F$88,$F106-SUM($G106:X106))) -> 0 | Z106: =IF($C106>Z$2,0,IF($C106=Z$2,0.5,1)*MIN($F106*$F$88,$F106-SUM($G106:Y106))) -> 0 | AA106: =IF($C106>AA$2,0,IF($C106=AA$2,0.5,1)*MIN($F106*$F$88,$F106-SUM($G106:Z106))) -> 0 | AB106: =IF($C106>AB$2,0,IF($C106=AB$2,0.5,1)*MIN($F106*$F$88,$F106-SUM($G106:AA106))) -> 0
C107: 2042 | D107: тыс. руб. | E107: 17 | F107: 0 | H107: =IF($C107>H$2,0,IF($C107=H$2,0.5,1)*MIN($F107*$F$88,$F107-SUM($G107:G107))) -> 0 | I107: =IF($C107>I$2,0,IF($C107=I$2,0.5,1)*MIN($F107*$F$88,$F107-SUM($G107:H107))) -> 0 | J107: =IF($C107>J$2,0,IF($C107=J$2,0.5,1)*MIN($F107*$F$88,$F107-SUM($G107:I107))) -> 0 | K107: =IF($C107>K$2,0,IF($C107=K$2,0.5,1)*MIN($F107*$F$88,$F107-SUM($G107:J107))) -> 0 | L107: =IF($C107>L$2,0,IF($C107=L$2,0.5,1)*MIN($F107*$F$88,$F107-SUM($G107:K107))) -> 0 | M107: =IF($C107>M$2,0,IF($C107=M$2,0.5,1)*MIN($F107*$F$88,$F107-SUM($G107:L107))) -> 0 | N107: =IF($C107>N$2,0,IF($C107=N$2,0.5,1)*MIN($F107*$F$88,$F107-SUM($G107:M107))) -> 0 | O107: =IF($C107>O$2,0,IF($C107=O$2,0.5,1)*MIN($F107*$F$88,$F107-SUM($G107:N107))) -> 0 | P107: =IF($C107>P$2,0,IF($C107=P$2,0.5,1)*MIN($F107*$F$88,$F107-SUM($G107:O107))) -> 0 | Q107: =IF($C107>Q$2,0,IF($C107=Q$2,0.5,1)*MIN($F107*$F$88,$F107-SUM($G107:P107))) -> 0 | R107: =IF($C107>R$2,0,IF($C107=R$2,0.5,1)*MIN($F107*$F$88,$F107-SUM($G107:Q107))) -> 0 | S107: =IF($C107>S$2,0,IF($C107=S$2,0.5,1)*MIN($F107*$F$88,$F107-SUM($G107:R107))) -> 0 | T107: =IF($C107>T$2,0,IF($C107=T$2,0.5,1)*MIN($F107*$F$88,$F107-SUM($G107:S107))) -> 0 | U107: =IF($C107>U$2,0,IF($C107=U$2,0.5,1)*MIN($F107*$F$88,$F107-SUM($G107:T107))) -> 0 | V107: =IF($C107>V$2,0,IF($C107=V$2,0.5,1)*MIN($F107*$F$88,$F107-SUM($G107:U107))) -> 0 | W107: =IF($C107>W$2,0,IF($C107=W$2,0.5,1)*MIN($F107*$F$88,$F107-SUM($G107:V107))) -> 0 | X107: =IF($C107>X$2,0,IF($C107=X$2,0.5,1)*MIN($F107*$F$88,$F107-SUM($G107:W107))) -> 0 | Y107: =IF($C107>Y$2,0,IF($C107=Y$2,0.5,1)*MIN($F107*$F$88,$F107-SUM($G107:X107))) -> 0 | Z107: =IF($C107>Z$2,0,IF($C107=Z$2,0.5,1)*MIN($F107*$F$88,$F107-SUM($G107:Y107))) -> 0 | AA107: =IF($C107>AA$2,0,IF($C107=AA$2,0.5,1)*MIN($F107*$F$88,$F107-SUM($G107:Z107))) -> 0 | AB107: =IF($C107>AB$2,0,IF($C107=AB$2,0.5,1)*MIN($F107*$F$88,$F107-SUM($G107:AA107))) -> 0
C108: 2043 | D108: тыс. руб. | E108: 18 | F108: 0 | H108: =IF($C108>H$2,0,IF($C108=H$2,0.5,1)*MIN($F108*$F$88,$F108-SUM($G108:G108))) -> 0 | I108: =IF($C108>I$2,0,IF($C108=I$2,0.5,1)*MIN($F108*$F$88,$F108-SUM($G108:H108))) -> 0 | J108: =IF($C108>J$2,0,IF($C108=J$2,0.5,1)*MIN($F108*$F$88,$F108-SUM($G108:I108))) -> 0 | K108: =IF($C108>K$2,0,IF($C108=K$2,0.5,1)*MIN($F108*$F$88,$F108-SUM($G108:J108))) -> 0 | L108: =IF($C108>L$2,0,IF($C108=L$2,0.5,1)*MIN($F108*$F$88,$F108-SUM($G108:K108))) -> 0 | M108: =IF($C108>M$2,0,IF($C108=M$2,0.5,1)*MIN($F108*$F$88,$F108-SUM($G108:L108))) -> 0 | N108: =IF($C108>N$2,0,IF($C108=N$2,0.5,1)*MIN($F108*$F$88,$F108-SUM($G108:M108))) -> 0 | O108: =IF($C108>O$2,0,IF($C108=O$2,0.5,1)*MIN($F108*$F$88,$F108-SUM($G108:N108))) -> 0 | P108: =IF($C108>P$2,0,IF($C108=P$2,0.5,1)*MIN($F108*$F$88,$F108-SUM($G108:O108))) -> 0 | Q108: =IF($C108>Q$2,0,IF($C108=Q$2,0.5,1)*MIN($F108*$F$88,$F108-SUM($G108:P108))) -> 0 | R108: =IF($C108>R$2,0,IF($C108=R$2,0.5,1)*MIN($F108*$F$88,$F108-SUM($G108:Q108))) -> 0 | S108: =IF($C108>S$2,0,IF($C108=S$2,0.5,1)*MIN($F108*$F$88,$F108-SUM($G108:R108))) -> 0 | T108: =IF($C108>T$2,0,IF($C108=T$2,0.5,1)*MIN($F108*$F$88,$F108-SUM($G108:S108))) -> 0 | U108: =IF($C108>U$2,0,IF($C108=U$2,0.5,1)*MIN($F108*$F$88,$F108-SUM($G108:T108))) -> 0 | V108: =IF($C108>V$2,0,IF($C108=V$2,0.5,1)*MIN($F108*$F$88,$F108-SUM($G108:U108))) -> 0 | W108: =IF($C108>W$2,0,IF($C108=W$2,0.5,1)*MIN($F108*$F$88,$F108-SUM($G108:V108))) -> 0 | X108: =IF($C108>X$2,0,IF($C108=X$2,0.5,1)*MIN($F108*$F$88,$F108-SUM($G108:W108))) -> 0 | Y108: =IF($C108>Y$2,0,IF($C108=Y$2,0.5,1)*MIN($F108*$F$88,$F108-SUM($G108:X108))) -> 0 | Z108: =IF($C108>Z$2,0,IF($C108=Z$2,0.5,1)*MIN($F108*$F$88,$F108-SUM($G108:Y108))) -> 0 | AA108: =IF($C108>AA$2,0,IF($C108=AA$2,0.5,1)*MIN($F108*$F$88,$F108-SUM($G108:Z108))) -> 0 | AB108: =IF($C108>AB$2,0,IF($C108=AB$2,0.5,1)*MIN($F108*$F$88,$F108-SUM($G108:AA108))) -> 0
C109: 2044 | D109: тыс. руб. | E109: 19 | F109: 0 | H109: =IF($C109>H$2,0,IF($C109=H$2,0.5,1)*MIN($F109*$F$88,$F109-SUM($G109:G109))) -> 0 | I109: =IF($C109>I$2,0,IF($C109=I$2,0.5,1)*MIN($F109*$F$88,$F109-SUM($G109:H109))) -> 0 | J109: =IF($C109>J$2,0,IF($C109=J$2,0.5,1)*MIN($F109*$F$88,$F109-SUM($G109:I109))) -> 0 | K109: =IF($C109>K$2,0,IF($C109=K$2,0.5,1)*MIN($F109*$F$88,$F109-SUM($G109:J109))) -> 0 | L109: =IF($C109>L$2,0,IF($C109=L$2,0.5,1)*MIN($F109*$F$88,$F109-SUM($G109:K109))) -> 0 | M109: =IF($C109>M$2,0,IF($C109=M$2,0.5,1)*MIN($F109*$F$88,$F109-SUM($G109:L109))) -> 0 | N109: =IF($C109>N$2,0,IF($C109=N$2,0.5,1)*MIN($F109*$F$88,$F109-SUM($G109:M109))) -> 0 | O109: =IF($C109>O$2,0,IF($C109=O$2,0.5,1)*MIN($F109*$F$88,$F109-SUM($G109:N109))) -> 0 | P109: =IF($C109>P$2,0,IF($C109=P$2,0.5,1)*MIN($F109*$F$88,$F109-SUM($G109:O109))) -> 0 | Q109: =IF($C109>Q$2,0,IF($C109=Q$2,0.5,1)*MIN($F109*$F$88,$F109-SUM($G109:P109))) -> 0 | R109: =IF($C109>R$2,0,IF($C109=R$2,0.5,1)*MIN($F109*$F$88,$F109-SUM($G109:Q109))) -> 0 | S109: =IF($C109>S$2,0,IF($C109=S$2,0.5,1)*MIN($F109*$F$88,$F109-SUM($G109:R109))) -> 0 | T109: =IF($C109>T$2,0,IF($C109=T$2,0.5,1)*MIN($F109*$F$88,$F109-SUM($G109:S109))) -> 0 | U109: =IF($C109>U$2,0,IF($C109=U$2,0.5,1)*MIN($F109*$F$88,$F109-SUM($G109:T109))) -> 0 | V109: =IF($C109>V$2,0,IF($C109=V$2,0.5,1)*MIN($F109*$F$88,$F109-SUM($G109:U109))) -> 0 | W109: =IF($C109>W$2,0,IF($C109=W$2,0.5,1)*MIN($F109*$F$88,$F109-SUM($G109:V109))) -> 0 | X109: =IF($C109>X$2,0,IF($C109=X$2,0.5,1)*MIN($F109*$F$88,$F109-SUM($G109:W109))) -> 0 | Y109: =IF($C109>Y$2,0,IF($C109=Y$2,0.5,1)*MIN($F109*$F$88,$F109-SUM($G109:X109))) -> 0 | Z109: =IF($C109>Z$2,0,IF($C109=Z$2,0.5,1)*MIN($F109*$F$88,$F109-SUM($G109:Y109))) -> 0 | AA109: =IF($C109>AA$2,0,IF($C109=AA$2,0.5,1)*MIN($F109*$F$88,$F109-SUM($G109:Z109))) -> 0 | AB109: =IF($C109>AB$2,0,IF($C109=AB$2,0.5,1)*MIN($F109*$F$88,$F109-SUM($G109:AA109))) -> 0
C110: 2045 | D110: тыс. руб. | E110: 20 | F110: 0 | H110: =IF($C110>H$2,0,IF($C110=H$2,0.5,1)*MIN($F110*$F$88,$F110-SUM($G110:G110))) -> 0 | I110: =IF($C110>I$2,0,IF($C110=I$2,0.5,1)*MIN($F110*$F$88,$F110-SUM($G110:H110))) -> 0 | J110: =IF($C110>J$2,0,IF($C110=J$2,0.5,1)*MIN($F110*$F$88,$F110-SUM($G110:I110))) -> 0 | K110: =IF($C110>K$2,0,IF($C110=K$2,0.5,1)*MIN($F110*$F$88,$F110-SUM($G110:J110))) -> 0 | L110: =IF($C110>L$2,0,IF($C110=L$2,0.5,1)*MIN($F110*$F$88,$F110-SUM($G110:K110))) -> 0 | M110: =IF($C110>M$2,0,IF($C110=M$2,0.5,1)*MIN($F110*$F$88,$F110-SUM($G110:L110))) -> 0 | N110: =IF($C110>N$2,0,IF($C110=N$2,0.5,1)*MIN($F110*$F$88,$F110-SUM($G110:M110))) -> 0 | O110: =IF($C110>O$2,0,IF($C110=O$2,0.5,1)*MIN($F110*$F$88,$F110-SUM($G110:N110))) -> 0 | P110: =IF($C110>P$2,0,IF($C110=P$2,0.5,1)*MIN($F110*$F$88,$F110-SUM($G110:O110))) -> 0 | Q110: =IF($C110>Q$2,0,IF($C110=Q$2,0.5,1)*MIN($F110*$F$88,$F110-SUM($G110:P110))) -> 0 | R110: =IF($C110>R$2,0,IF($C110=R$2,0.5,1)*MIN($F110*$F$88,$F110-SUM($G110:Q110))) -> 0 | S110: =IF($C110>S$2,0,IF($C110=S$2,0.5,1)*MIN($F110*$F$88,$F110-SUM($G110:R110))) -> 0 | T110: =IF($C110>T$2,0,IF($C110=T$2,0.5,1)*MIN($F110*$F$88,$F110-SUM($G110:S110))) -> 0 | U110: =IF($C110>U$2,0,IF($C110=U$2,0.5,1)*MIN($F110*$F$88,$F110-SUM($G110:T110))) -> 0 | V110: =IF($C110>V$2,0,IF($C110=V$2,0.5,1)*MIN($F110*$F$88,$F110-SUM($G110:U110))) -> 0 | W110: =IF($C110>W$2,0,IF($C110=W$2,0.5,1)*MIN($F110*$F$88,$F110-SUM($G110:V110))) -> 0 | X110: =IF($C110>X$2,0,IF($C110=X$2,0.5,1)*MIN($F110*$F$88,$F110-SUM($G110:W110))) -> 0 | Y110: =IF($C110>Y$2,0,IF($C110=Y$2,0.5,1)*MIN($F110*$F$88,$F110-SUM($G110:X110))) -> 0 | Z110: =IF($C110>Z$2,0,IF($C110=Z$2,0.5,1)*MIN($F110*$F$88,$F110-SUM($G110:Y110))) -> 0 | AA110: =IF($C110>AA$2,0,IF($C110=AA$2,0.5,1)*MIN($F110*$F$88,$F110-SUM($G110:Z110))) -> 0 | AB110: =IF($C110>AB$2,0,IF($C110=AB$2,0.5,1)*MIN($F110*$F$88,$F110-SUM($G110:AA110))) -> 0
C112: Первоначальная стоимость активов | D112: тыс. руб. | H112: =G112+H38 -> 0 | I112: 0 | J112: 0 | K112: 0 | L112: 0 | M112: 0 | N112: 0 | O112: 0 | P112: 0 | Q112: 0 | R112: 0 | S112: 0 | T112: 0 | U112: 0 | V112: 0 | W112: 0 | X112: 0 | Y112: 0 | Z112: 0 | AA112: 0 | AB112: 0
C113: Амортизация за период | D113: тыс. руб. | H113: =H90 -> 0 | I113: 0 | J113: 0 | K113: 0 | L113: 0 | M113: 0 | N113: 0 | O113: 0 | P113: 0 | Q113: 0 | R113: 0 | S113: 0 | T113: 0 | U113: 0 | V113: 0 | W113: 0 | X113: 0 | Y113: 0 | Z113: 0 | AA113: 0 | AB113: 0
C114: Накопленная амортизация | D114: тыс. руб. | H114: =G114+H113 -> 0 | I114: 0 | J114: 0 | K114: 0 | L114: 0 | M114: 0 | N114: 0 | O114: 0 | P114: 0 | Q114: 0 | R114: 0 | S114: 0 | T114: 0 | U114: 0 | V114: 0 | W114: 0 | X114: 0 | Y114: 0 | Z114: 0 | AA114: 0 | AB114: 0
C115: Остаточная стоимость активов | D115: тыс. руб. | H115: =H112-H114 -> 0 | I115: 0 | J115: 0 | K115: 0 | L115: 0 | M115: 0 | N115: 0 | O115: 0 | P115: 0 | Q115: 0 | R115: 0 | S115: 0 | T115: 0 | U115: 0 | V115: =V112-V114 -> 0 | W115: 0 | X115: 0 | Y115: 0 | Z115: 0 | AA115: 0 | AB115: 0
B117: Транспортные средства
C119: Ставка амортизации | D119: % | F119: =Предпосылки!F230 -> 0.1428571429
C121: Амортизация | D121: тыс. руб. | H121: =SUM(H122:H141) -> 0 | I121: =SUM(I122:I141) -> 0 | J121: 0 | K121: 0 | L121: 0 | M121: 0 | N121: 0 | O121: 0 | P121: 0 | Q121: 0 | R121: 0 | S121: 0 | T121: 0 | U121: 0 | V121: 0 | W121: 0 | X121: 0 | Y121: 0 | Z121: 0 | AA121: 0 | AB121: 0
C122: =INDEX(H$2:AA$2,,$E122) -> 2026 | D122: тыс. руб. | E122: 1 | F122: =OFFSET($G$40,,E122) -> 0 | H122: =IF($C122>H$2,0,IF($C122=H$2,0.5,1)*MIN($F122*$F$119,$F122-SUM($G122:G122))) -> 0 | I122: =IF($C122>I$2,0,IF($C122=I$2,0.5,1)*MIN($F122*$F$119,$F122-SUM($G122:H122))) -> 0 | J122: =IF($C122>J$2,0,IF($C122=J$2,0.5,1)*MIN($F122*$F$119,$F122-SUM($G122:I122))) -> 0 | K122: =IF($C122>K$2,0,IF($C122=K$2,0.5,1)*MIN($F122*$F$119,$F122-SUM($G122:J122))) -> 0 | L122: =IF($C122>L$2,0,IF($C122=L$2,0.5,1)*MIN($F122*$F$119,$F122-SUM($G122:K122))) -> 0 | M122: =IF($C122>M$2,0,IF($C122=M$2,0.5,1)*MIN($F122*$F$119,$F122-SUM($G122:L122))) -> 0 | N122: =IF($C122>N$2,0,IF($C122=N$2,0.5,1)*MIN($F122*$F$119,$F122-SUM($G122:M122))) -> 0 | O122: =IF($C122>O$2,0,IF($C122=O$2,0.5,1)*MIN($F122*$F$119,$F122-SUM($G122:N122))) -> 0 | P122: =IF($C122>P$2,0,IF($C122=P$2,0.5,1)*MIN($F122*$F$119,$F122-SUM($G122:O122))) -> 0 | Q122: =IF($C122>Q$2,0,IF($C122=Q$2,0.5,1)*MIN($F122*$F$119,$F122-SUM($G122:P122))) -> 0 | R122: =IF($C122>R$2,0,IF($C122=R$2,0.5,1)*MIN($F122*$F$119,$F122-SUM($G122:Q122))) -> 0 | S122: =IF($C122>S$2,0,IF($C122=S$2,0.5,1)*MIN($F122*$F$119,$F122-SUM($G122:R122))) -> 0 | T122: =IF($C122>T$2,0,IF($C122=T$2,0.5,1)*MIN($F122*$F$119,$F122-SUM($G122:S122))) -> 0 | U122: =IF($C122>U$2,0,IF($C122=U$2,0.5,1)*MIN($F122*$F$119,$F122-SUM($G122:T122))) -> 0 | V122: =IF($C122>V$2,0,IF($C122=V$2,0.5,1)*MIN($F122*$F$119,$F122-SUM($G122:U122))) -> 0 | W122: =IF($C122>W$2,0,IF($C122=W$2,0.5,1)*MIN($F122*$F$119,$F122-SUM($G122:V122))) -> 0 | X122: =IF($C122>X$2,0,IF($C122=X$2,0.5,1)*MIN($F122*$F$119,$F122-SUM($G122:W122))) -> 0 | Y122: =IF($C122>Y$2,0,IF($C122=Y$2,0.5,1)*MIN($F122*$F$119,$F122-SUM($G122:X122))) -> 0 | Z122: =IF($C122>Z$2,0,IF($C122=Z$2,0.5,1)*MIN($F122*$F$119,$F122-SUM($G122:Y122))) -> 0 | AA122: =IF($C122>AA$2,0,IF($C122=AA$2,0.5,1)*MIN($F122*$F$119,$F122-SUM($G122:Z122))) -> 0 | AB122: =IF($C122>AB$2,0,IF($C122=AB$2,0.5,1)*MIN($F122*$F$119,$F122-SUM($G122:AA122))) -> 0
C123: =INDEX(H$2:AA$2,,$E123) -> 2027 | D123: тыс. руб. | E123: 2 | F123: =OFFSET($G$40,,E123) -> 0 | H123: =IF($C123>H$2,0,IF($C123=H$2,0.5,1)*MIN($F123*$F$119,$F123-SUM($G123:G123))) -> 0 | I123: =IF($C123>I$2,0,IF($C123=I$2,0.5,1)*MIN($F123*$F$119,$F123-SUM($G123:H123))) -> 0 | J123: =IF($C123>J$2,0,IF($C123=J$2,0.5,1)*MIN($F123*$F$119,$F123-SUM($G123:I123))) -> 0 | K123: =IF($C123>K$2,0,IF($C123=K$2,0.5,1)*MIN($F123*$F$119,$F123-SUM($G123:J123))) -> 0 | L123: =IF($C123>L$2,0,IF($C123=L$2,0.5,1)*MIN($F123*$F$119,$F123-SUM($G123:K123))) -> 0 | M123: =IF($C123>M$2,0,IF($C123=M$2,0.5,1)*MIN($F123*$F$119,$F123-SUM($G123:L123))) -> 0 | N123: =IF($C123>N$2,0,IF($C123=N$2,0.5,1)*MIN($F123*$F$119,$F123-SUM($G123:M123))) -> 0 | O123: =IF($C123>O$2,0,IF($C123=O$2,0.5,1)*MIN($F123*$F$119,$F123-SUM($G123:N123))) -> 0 | P123: =IF($C123>P$2,0,IF($C123=P$2,0.5,1)*MIN($F123*$F$119,$F123-SUM($G123:O123))) -> 0 | Q123: =IF($C123>Q$2,0,IF($C123=Q$2,0.5,1)*MIN($F123*$F$119,$F123-SUM($G123:P123))) -> 0 | R123: =IF($C123>R$2,0,IF($C123=R$2,0.5,1)*MIN($F123*$F$119,$F123-SUM($G123:Q123))) -> 0 | S123: =IF($C123>S$2,0,IF($C123=S$2,0.5,1)*MIN($F123*$F$119,$F123-SUM($G123:R123))) -> 0 | T123: =IF($C123>T$2,0,IF($C123=T$2,0.5,1)*MIN($F123*$F$119,$F123-SUM($G123:S123))) -> 0 | U123: =IF($C123>U$2,0,IF($C123=U$2,0.5,1)*MIN($F123*$F$119,$F123-SUM($G123:T123))) -> 0 | V123: =IF($C123>V$2,0,IF($C123=V$2,0.5,1)*MIN($F123*$F$119,$F123-SUM($G123:U123))) -> 0 | W123: =IF($C123>W$2,0,IF($C123=W$2,0.5,1)*MIN($F123*$F$119,$F123-SUM($G123:V123))) -> 0 | X123: =IF($C123>X$2,0,IF($C123=X$2,0.5,1)*MIN($F123*$F$119,$F123-SUM($G123:W123))) -> 0 | Y123: =IF($C123>Y$2,0,IF($C123=Y$2,0.5,1)*MIN($F123*$F$119,$F123-SUM($G123:X123))) -> 0 | Z123: =IF($C123>Z$2,0,IF($C123=Z$2,0.5,1)*MIN($F123*$F$119,$F123-SUM($G123:Y123))) -> 0 | AA123: =IF($C123>AA$2,0,IF($C123=AA$2,0.5,1)*MIN($F123*$F$119,$F123-SUM($G123:Z123))) -> 0 | AB123: =IF($C123>AB$2,0,IF($C123=AB$2,0.5,1)*MIN($F123*$F$119,$F123-SUM($G123:AA123))) -> 0
C124: 2028 | D124: тыс. руб. | E124: 3 | F124: 0 | H124: =IF($C124>H$2,0,IF($C124=H$2,0.5,1)*MIN($F124*$F$119,$F124-SUM($G124:G124))) -> 0 | I124: =IF($C124>I$2,0,IF($C124=I$2,0.5,1)*MIN($F124*$F$119,$F124-SUM($G124:H124))) -> 0 | J124: =IF($C124>J$2,0,IF($C124=J$2,0.5,1)*MIN($F124*$F$119,$F124-SUM($G124:I124))) -> 0 | K124: =IF($C124>K$2,0,IF($C124=K$2,0.5,1)*MIN($F124*$F$119,$F124-SUM($G124:J124))) -> 0 | L124: =IF($C124>L$2,0,IF($C124=L$2,0.5,1)*MIN($F124*$F$119,$F124-SUM($G124:K124))) -> 0 | M124: =IF($C124>M$2,0,IF($C124=M$2,0.5,1)*MIN($F124*$F$119,$F124-SUM($G124:L124))) -> 0 | N124: =IF($C124>N$2,0,IF($C124=N$2,0.5,1)*MIN($F124*$F$119,$F124-SUM($G124:M124))) -> 0 | O124: =IF($C124>O$2,0,IF($C124=O$2,0.5,1)*MIN($F124*$F$119,$F124-SUM($G124:N124))) -> 0 | P124: =IF($C124>P$2,0,IF($C124=P$2,0.5,1)*MIN($F124*$F$119,$F124-SUM($G124:O124))) -> 0 | Q124: =IF($C124>Q$2,0,IF($C124=Q$2,0.5,1)*MIN($F124*$F$119,$F124-SUM($G124:P124))) -> 0 | R124: =IF($C124>R$2,0,IF($C124=R$2,0.5,1)*MIN($F124*$F$119,$F124-SUM($G124:Q124))) -> 0 | S124: =IF($C124>S$2,0,IF($C124=S$2,0.5,1)*MIN($F124*$F$119,$F124-SUM($G124:R124))) -> 0 | T124: =IF($C124>T$2,0,IF($C124=T$2,0.5,1)*MIN($F124*$F$119,$F124-SUM($G124:S124))) -> 0 | U124: =IF($C124>U$2,0,IF($C124=U$2,0.5,1)*MIN($F124*$F$119,$F124-SUM($G124:T124))) -> 0 | V124: =IF($C124>V$2,0,IF($C124=V$2,0.5,1)*MIN($F124*$F$119,$F124-SUM($G124:U124))) -> 0 | W124: =IF($C124>W$2,0,IF($C124=W$2,0.5,1)*MIN($F124*$F$119,$F124-SUM($G124:V124))) -> 0 | X124: =IF($C124>X$2,0,IF($C124=X$2,0.5,1)*MIN($F124*$F$119,$F124-SUM($G124:W124))) -> 0 | Y124: =IF($C124>Y$2,0,IF($C124=Y$2,0.5,1)*MIN($F124*$F$119,$F124-SUM($G124:X124))) -> 0 | Z124: =IF($C124>Z$2,0,IF($C124=Z$2,0.5,1)*MIN($F124*$F$119,$F124-SUM($G124:Y124))) -> 0 | AA124: =IF($C124>AA$2,0,IF($C124=AA$2,0.5,1)*MIN($F124*$F$119,$F124-SUM($G124:Z124))) -> 0 | AB124: =IF($C124>AB$2,0,IF($C124=AB$2,0.5,1)*MIN($F124*$F$119,$F124-SUM($G124:AA124))) -> 0
C125: 2029 | D125: тыс. руб. | E125: 4 | F125: 0 | H125: =IF($C125>H$2,0,IF($C125=H$2,0.5,1)*MIN($F125*$F$119,$F125-SUM($G125:G125))) -> 0 | I125: =IF($C125>I$2,0,IF($C125=I$2,0.5,1)*MIN($F125*$F$119,$F125-SUM($G125:H125))) -> 0 | J125: =IF($C125>J$2,0,IF($C125=J$2,0.5,1)*MIN($F125*$F$119,$F125-SUM($G125:I125))) -> 0 | K125: =IF($C125>K$2,0,IF($C125=K$2,0.5,1)*MIN($F125*$F$119,$F125-SUM($G125:J125))) -> 0 | L125: =IF($C125>L$2,0,IF($C125=L$2,0.5,1)*MIN($F125*$F$119,$F125-SUM($G125:K125))) -> 0 | M125: =IF($C125>M$2,0,IF($C125=M$2,0.5,1)*MIN($F125*$F$119,$F125-SUM($G125:L125))) -> 0 | N125: =IF($C125>N$2,0,IF($C125=N$2,0.5,1)*MIN($F125*$F$119,$F125-SUM($G125:M125))) -> 0 | O125: =IF($C125>O$2,0,IF($C125=O$2,0.5,1)*MIN($F125*$F$119,$F125-SUM($G125:N125))) -> 0 | P125: =IF($C125>P$2,0,IF($C125=P$2,0.5,1)*MIN($F125*$F$119,$F125-SUM($G125:O125))) -> 0 | Q125: =IF($C125>Q$2,0,IF($C125=Q$2,0.5,1)*MIN($F125*$F$119,$F125-SUM($G125:P125))) -> 0 | R125: =IF($C125>R$2,0,IF($C125=R$2,0.5,1)*MIN($F125*$F$119,$F125-SUM($G125:Q125))) -> 0 | S125: =IF($C125>S$2,0,IF($C125=S$2,0.5,1)*MIN($F125*$F$119,$F125-SUM($G125:R125))) -> 0 | T125: =IF($C125>T$2,0,IF($C125=T$2,0.5,1)*MIN($F125*$F$119,$F125-SUM($G125:S125))) -> 0 | U125: =IF($C125>U$2,0,IF($C125=U$2,0.5,1)*MIN($F125*$F$119,$F125-SUM($G125:T125))) -> 0 | V125: =IF($C125>V$2,0,IF($C125=V$2,0.5,1)*MIN($F125*$F$119,$F125-SUM($G125:U125))) -> 0 | W125: =IF($C125>W$2,0,IF($C125=W$2,0.5,1)*MIN($F125*$F$119,$F125-SUM($G125:V125))) -> 0 | X125: =IF($C125>X$2,0,IF($C125=X$2,0.5,1)*MIN($F125*$F$119,$F125-SUM($G125:W125))) -> 0 | Y125: =IF($C125>Y$2,0,IF($C125=Y$2,0.5,1)*MIN($F125*$F$119,$F125-SUM($G125:X125))) -> 0 | Z125: =IF($C125>Z$2,0,IF($C125=Z$2,0.5,1)*MIN($F125*$F$119,$F125-SUM($G125:Y125))) -> 0 | AA125: =IF($C125>AA$2,0,IF($C125=AA$2,0.5,1)*MIN($F125*$F$119,$F125-SUM($G125:Z125))) -> 0 | AB125: =IF($C125>AB$2,0,IF($C125=AB$2,0.5,1)*MIN($F125*$F$119,$F125-SUM($G125:AA125))) -> 0
C126: 2030 | D126: тыс. руб. | E126: 5 | F126: 0 | H126: =IF($C126>H$2,0,IF($C126=H$2,0.5,1)*MIN($F126*$F$119,$F126-SUM($G126:G126))) -> 0 | I126: =IF($C126>I$2,0,IF($C126=I$2,0.5,1)*MIN($F126*$F$119,$F126-SUM($G126:H126))) -> 0 | J126: =IF($C126>J$2,0,IF($C126=J$2,0.5,1)*MIN($F126*$F$119,$F126-SUM($G126:I126))) -> 0 | K126: =IF($C126>K$2,0,IF($C126=K$2,0.5,1)*MIN($F126*$F$119,$F126-SUM($G126:J126))) -> 0 | L126: =IF($C126>L$2,0,IF($C126=L$2,0.5,1)*MIN($F126*$F$119,$F126-SUM($G126:K126))) -> 0 | M126: =IF($C126>M$2,0,IF($C126=M$2,0.5,1)*MIN($F126*$F$119,$F126-SUM($G126:L126))) -> 0 | N126: =IF($C126>N$2,0,IF($C126=N$2,0.5,1)*MIN($F126*$F$119,$F126-SUM($G126:M126))) -> 0 | O126: =IF($C126>O$2,0,IF($C126=O$2,0.5,1)*MIN($F126*$F$119,$F126-SUM($G126:N126))) -> 0 | P126: =IF($C126>P$2,0,IF($C126=P$2,0.5,1)*MIN($F126*$F$119,$F126-SUM($G126:O126))) -> 0 | Q126: =IF($C126>Q$2,0,IF($C126=Q$2,0.5,1)*MIN($F126*$F$119,$F126-SUM($G126:P126))) -> 0 | R126: =IF($C126>R$2,0,IF($C126=R$2,0.5,1)*MIN($F126*$F$119,$F126-SUM($G126:Q126))) -> 0 | S126: =IF($C126>S$2,0,IF($C126=S$2,0.5,1)*MIN($F126*$F$119,$F126-SUM($G126:R126))) -> 0 | T126: =IF($C126>T$2,0,IF($C126=T$2,0.5,1)*MIN($F126*$F$119,$F126-SUM($G126:S126))) -> 0 | U126: =IF($C126>U$2,0,IF($C126=U$2,0.5,1)*MIN($F126*$F$119,$F126-SUM($G126:T126))) -> 0 | V126: =IF($C126>V$2,0,IF($C126=V$2,0.5,1)*MIN($F126*$F$119,$F126-SUM($G126:U126))) -> 0 | W126: =IF($C126>W$2,0,IF($C126=W$2,0.5,1)*MIN($F126*$F$119,$F126-SUM($G126:V126))) -> 0 | X126: =IF($C126>X$2,0,IF($C126=X$2,0.5,1)*MIN($F126*$F$119,$F126-SUM($G126:W126))) -> 0 | Y126: =IF($C126>Y$2,0,IF($C126=Y$2,0.5,1)*MIN($F126*$F$119,$F126-SUM($G126:X126))) -> 0 | Z126: =IF($C126>Z$2,0,IF($C126=Z$2,0.5,1)*MIN($F126*$F$119,$F126-SUM($G126:Y126))) -> 0 | AA126: =IF($C126>AA$2,0,IF($C126=AA$2,0.5,1)*MIN($F126*$F$119,$F126-SUM($G126:Z126))) -> 0 | AB126: =IF($C126>AB$2,0,IF($C126=AB$2,0.5,1)*MIN($F126*$F$119,$F126-SUM($G126:AA126))) -> 0
C127: 2031 | D127: тыс. руб. | E127: 6 | F127: 0 | H127: =IF($C127>H$2,0,IF($C127=H$2,0.5,1)*MIN($F127*$F$119,$F127-SUM($G127:G127))) -> 0 | I127: =IF($C127>I$2,0,IF($C127=I$2,0.5,1)*MIN($F127*$F$119,$F127-SUM($G127:H127))) -> 0 | J127: =IF($C127>J$2,0,IF($C127=J$2,0.5,1)*MIN($F127*$F$119,$F127-SUM($G127:I127))) -> 0 | K127: =IF($C127>K$2,0,IF($C127=K$2,0.5,1)*MIN($F127*$F$119,$F127-SUM($G127:J127))) -> 0 | L127: =IF($C127>L$2,0,IF($C127=L$2,0.5,1)*MIN($F127*$F$119,$F127-SUM($G127:K127))) -> 0 | M127: =IF($C127>M$2,0,IF($C127=M$2,0.5,1)*MIN($F127*$F$119,$F127-SUM($G127:L127))) -> 0 | N127: =IF($C127>N$2,0,IF($C127=N$2,0.5,1)*MIN($F127*$F$119,$F127-SUM($G127:M127))) -> 0 | O127: =IF($C127>O$2,0,IF($C127=O$2,0.5,1)*MIN($F127*$F$119,$F127-SUM($G127:N127))) -> 0 | P127: =IF($C127>P$2,0,IF($C127=P$2,0.5,1)*MIN($F127*$F$119,$F127-SUM($G127:O127))) -> 0 | Q127: =IF($C127>Q$2,0,IF($C127=Q$2,0.5,1)*MIN($F127*$F$119,$F127-SUM($G127:P127))) -> 0 | R127: =IF($C127>R$2,0,IF($C127=R$2,0.5,1)*MIN($F127*$F$119,$F127-SUM($G127:Q127))) -> 0 | S127: =IF($C127>S$2,0,IF($C127=S$2,0.5,1)*MIN($F127*$F$119,$F127-SUM($G127:R127))) -> 0 | T127: =IF($C127>T$2,0,IF($C127=T$2,0.5,1)*MIN($F127*$F$119,$F127-SUM($G127:S127))) -> 0 | U127: =IF($C127>U$2,0,IF($C127=U$2,0.5,1)*MIN($F127*$F$119,$F127-SUM($G127:T127))) -> 0 | V127: =IF($C127>V$2,0,IF($C127=V$2,0.5,1)*MIN($F127*$F$119,$F127-SUM($G127:U127))) -> 0 | W127: =IF($C127>W$2,0,IF($C127=W$2,0.5,1)*MIN($F127*$F$119,$F127-SUM($G127:V127))) -> 0 | X127: =IF($C127>X$2,0,IF($C127=X$2,0.5,1)*MIN($F127*$F$119,$F127-SUM($G127:W127))) -> 0 | Y127: =IF($C127>Y$2,0,IF($C127=Y$2,0.5,1)*MIN($F127*$F$119,$F127-SUM($G127:X127))) -> 0 | Z127: =IF($C127>Z$2,0,IF($C127=Z$2,0.5,1)*MIN($F127*$F$119,$F127-SUM($G127:Y127))) -> 0 | AA127: =IF($C127>AA$2,0,IF($C127=AA$2,0.5,1)*MIN($F127*$F$119,$F127-SUM($G127:Z127))) -> 0 | AB127: =IF($C127>AB$2,0,IF($C127=AB$2,0.5,1)*MIN($F127*$F$119,$F127-SUM($G127:AA127))) -> 0
C128: 2032 | D128: тыс. руб. | E128: 7 | F128: 0 | H128: =IF($C128>H$2,0,IF($C128=H$2,0.5,1)*MIN($F128*$F$119,$F128-SUM($G128:G128))) -> 0 | I128: =IF($C128>I$2,0,IF($C128=I$2,0.5,1)*MIN($F128*$F$119,$F128-SUM($G128:H128))) -> 0 | J128: =IF($C128>J$2,0,IF($C128=J$2,0.5,1)*MIN($F128*$F$119,$F128-SUM($G128:I128))) -> 0 | K128: =IF($C128>K$2,0,IF($C128=K$2,0.5,1)*MIN($F128*$F$119,$F128-SUM($G128:J128))) -> 0 | L128: =IF($C128>L$2,0,IF($C128=L$2,0.5,1)*MIN($F128*$F$119,$F128-SUM($G128:K128))) -> 0 | M128: =IF($C128>M$2,0,IF($C128=M$2,0.5,1)*MIN($F128*$F$119,$F128-SUM($G128:L128))) -> 0 | N128: =IF($C128>N$2,0,IF($C128=N$2,0.5,1)*MIN($F128*$F$119,$F128-SUM($G128:M128))) -> 0 | O128: =IF($C128>O$2,0,IF($C128=O$2,0.5,1)*MIN($F128*$F$119,$F128-SUM($G128:N128))) -> 0 | P128: =IF($C128>P$2,0,IF($C128=P$2,0.5,1)*MIN($F128*$F$119,$F128-SUM($G128:O128))) -> 0 | Q128: =IF($C128>Q$2,0,IF($C128=Q$2,0.5,1)*MIN($F128*$F$119,$F128-SUM($G128:P128))) -> 0 | R128: =IF($C128>R$2,0,IF($C128=R$2,0.5,1)*MIN($F128*$F$119,$F128-SUM($G128:Q128))) -> 0 | S128: =IF($C128>S$2,0,IF($C128=S$2,0.5,1)*MIN($F128*$F$119,$F128-SUM($G128:R128))) -> 0 | T128: =IF($C128>T$2,0,IF($C128=T$2,0.5,1)*MIN($F128*$F$119,$F128-SUM($G128:S128))) -> 0 | U128: =IF($C128>U$2,0,IF($C128=U$2,0.5,1)*MIN($F128*$F$119,$F128-SUM($G128:T128))) -> 0 | V128: =IF($C128>V$2,0,IF($C128=V$2,0.5,1)*MIN($F128*$F$119,$F128-SUM($G128:U128))) -> 0 | W128: =IF($C128>W$2,0,IF($C128=W$2,0.5,1)*MIN($F128*$F$119,$F128-SUM($G128:V128))) -> 0 | X128: =IF($C128>X$2,0,IF($C128=X$2,0.5,1)*MIN($F128*$F$119,$F128-SUM($G128:W128))) -> 0 | Y128: =IF($C128>Y$2,0,IF($C128=Y$2,0.5,1)*MIN($F128*$F$119,$F128-SUM($G128:X128))) -> 0 | Z128: =IF($C128>Z$2,0,IF($C128=Z$2,0.5,1)*MIN($F128*$F$119,$F128-SUM($G128:Y128))) -> 0 | AA128: =IF($C128>AA$2,0,IF($C128=AA$2,0.5,1)*MIN($F128*$F$119,$F128-SUM($G128:Z128))) -> 0 | AB128: =IF($C128>AB$2,0,IF($C128=AB$2,0.5,1)*MIN($F128*$F$119,$F128-SUM($G128:AA128))) -> 0
C129: 2033 | D129: тыс. руб. | E129: 8 | F129: 0 | H129: =IF($C129>H$2,0,IF($C129=H$2,0.5,1)*MIN($F129*$F$119,$F129-SUM($G129:G129))) -> 0 | I129: =IF($C129>I$2,0,IF($C129=I$2,0.5,1)*MIN($F129*$F$119,$F129-SUM($G129:H129))) -> 0 | J129: =IF($C129>J$2,0,IF($C129=J$2,0.5,1)*MIN($F129*$F$119,$F129-SUM($G129:I129))) -> 0 | K129: =IF($C129>K$2,0,IF($C129=K$2,0.5,1)*MIN($F129*$F$119,$F129-SUM($G129:J129))) -> 0 | L129: =IF($C129>L$2,0,IF($C129=L$2,0.5,1)*MIN($F129*$F$119,$F129-SUM($G129:K129))) -> 0 | M129: =IF($C129>M$2,0,IF($C129=M$2,0.5,1)*MIN($F129*$F$119,$F129-SUM($G129:L129))) -> 0 | N129: =IF($C129>N$2,0,IF($C129=N$2,0.5,1)*MIN($F129*$F$119,$F129-SUM($G129:M129))) -> 0 | O129: =IF($C129>O$2,0,IF($C129=O$2,0.5,1)*MIN($F129*$F$119,$F129-SUM($G129:N129))) -> 0 | P129: =IF($C129>P$2,0,IF($C129=P$2,0.5,1)*MIN($F129*$F$119,$F129-SUM($G129:O129))) -> 0 | Q129: =IF($C129>Q$2,0,IF($C129=Q$2,0.5,1)*MIN($F129*$F$119,$F129-SUM($G129:P129))) -> 0 | R129: =IF($C129>R$2,0,IF($C129=R$2,0.5,1)*MIN($F129*$F$119,$F129-SUM($G129:Q129))) -> 0 | S129: =IF($C129>S$2,0,IF($C129=S$2,0.5,1)*MIN($F129*$F$119,$F129-SUM($G129:R129))) -> 0 | T129: =IF($C129>T$2,0,IF($C129=T$2,0.5,1)*MIN($F129*$F$119,$F129-SUM($G129:S129))) -> 0 | U129: =IF($C129>U$2,0,IF($C129=U$2,0.5,1)*MIN($F129*$F$119,$F129-SUM($G129:T129))) -> 0 | V129: =IF($C129>V$2,0,IF($C129=V$2,0.5,1)*MIN($F129*$F$119,$F129-SUM($G129:U129))) -> 0 | W129: =IF($C129>W$2,0,IF($C129=W$2,0.5,1)*MIN($F129*$F$119,$F129-SUM($G129:V129))) -> 0 | X129: =IF($C129>X$2,0,IF($C129=X$2,0.5,1)*MIN($F129*$F$119,$F129-SUM($G129:W129))) -> 0 | Y129: =IF($C129>Y$2,0,IF($C129=Y$2,0.5,1)*MIN($F129*$F$119,$F129-SUM($G129:X129))) -> 0 | Z129: =IF($C129>Z$2,0,IF($C129=Z$2,0.5,1)*MIN($F129*$F$119,$F129-SUM($G129:Y129))) -> 0 | AA129: =IF($C129>AA$2,0,IF($C129=AA$2,0.5,1)*MIN($F129*$F$119,$F129-SUM($G129:Z129))) -> 0 | AB129: =IF($C129>AB$2,0,IF($C129=AB$2,0.5,1)*MIN($F129*$F$119,$F129-SUM($G129:AA129))) -> 0
C130: 2034 | D130: тыс. руб. | E130: 9 | F130: 0 | H130: =IF($C130>H$2,0,IF($C130=H$2,0.5,1)*MIN($F130*$F$119,$F130-SUM($G130:G130))) -> 0 | I130: =IF($C130>I$2,0,IF($C130=I$2,0.5,1)*MIN($F130*$F$119,$F130-SUM($G130:H130))) -> 0 | J130: =IF($C130>J$2,0,IF($C130=J$2,0.5,1)*MIN($F130*$F$119,$F130-SUM($G130:I130))) -> 0 | K130: =IF($C130>K$2,0,IF($C130=K$2,0.5,1)*MIN($F130*$F$119,$F130-SUM($G130:J130))) -> 0 | L130: =IF($C130>L$2,0,IF($C130=L$2,0.5,1)*MIN($F130*$F$119,$F130-SUM($G130:K130))) -> 0 | M130: =IF($C130>M$2,0,IF($C130=M$2,0.5,1)*MIN($F130*$F$119,$F130-SUM($G130:L130))) -> 0 | N130: =IF($C130>N$2,0,IF($C130=N$2,0.5,1)*MIN($F130*$F$119,$F130-SUM($G130:M130))) -> 0 | O130: =IF($C130>O$2,0,IF($C130=O$2,0.5,1)*MIN($F130*$F$119,$F130-SUM($G130:N130))) -> 0 | P130: =IF($C130>P$2,0,IF($C130=P$2,0.5,1)*MIN($F130*$F$119,$F130-SUM($G130:O130))) -> 0 | Q130: =IF($C130>Q$2,0,IF($C130=Q$2,0.5,1)*MIN($F130*$F$119,$F130-SUM($G130:P130))) -> 0 | R130: =IF($C130>R$2,0,IF($C130=R$2,0.5,1)*MIN($F130*$F$119,$F130-SUM($G130:Q130))) -> 0 | S130: =IF($C130>S$2,0,IF($C130=S$2,0.5,1)*MIN($F130*$F$119,$F130-SUM($G130:R130))) -> 0 | T130: =IF($C130>T$2,0,IF($C130=T$2,0.5,1)*MIN($F130*$F$119,$F130-SUM($G130:S130))) -> 0 | U130: =IF($C130>U$2,0,IF($C130=U$2,0.5,1)*MIN($F130*$F$119,$F130-SUM($G130:T130))) -> 0 | V130: =IF($C130>V$2,0,IF($C130=V$2,0.5,1)*MIN($F130*$F$119,$F130-SUM($G130:U130))) -> 0 | W130: =IF($C130>W$2,0,IF($C130=W$2,0.5,1)*MIN($F130*$F$119,$F130-SUM($G130:V130))) -> 0 | X130: =IF($C130>X$2,0,IF($C130=X$2,0.5,1)*MIN($F130*$F$119,$F130-SUM($G130:W130))) -> 0 | Y130: =IF($C130>Y$2,0,IF($C130=Y$2,0.5,1)*MIN($F130*$F$119,$F130-SUM($G130:X130))) -> 0 | Z130: =IF($C130>Z$2,0,IF($C130=Z$2,0.5,1)*MIN($F130*$F$119,$F130-SUM($G130:Y130))) -> 0 | AA130: =IF($C130>AA$2,0,IF($C130=AA$2,0.5,1)*MIN($F130*$F$119,$F130-SUM($G130:Z130))) -> 0 | AB130: =IF($C130>AB$2,0,IF($C130=AB$2,0.5,1)*MIN($F130*$F$119,$F130-SUM($G130:AA130))) -> 0
C131: 2035 | D131: тыс. руб. | E131: 10 | F131: 0 | H131: =IF($C131>H$2,0,IF($C131=H$2,0.5,1)*MIN($F131*$F$119,$F131-SUM($G131:G131))) -> 0 | I131: =IF($C131>I$2,0,IF($C131=I$2,0.5,1)*MIN($F131*$F$119,$F131-SUM($G131:H131))) -> 0 | J131: =IF($C131>J$2,0,IF($C131=J$2,0.5,1)*MIN($F131*$F$119,$F131-SUM($G131:I131))) -> 0 | K131: =IF($C131>K$2,0,IF($C131=K$2,0.5,1)*MIN($F131*$F$119,$F131-SUM($G131:J131))) -> 0 | L131: =IF($C131>L$2,0,IF($C131=L$2,0.5,1)*MIN($F131*$F$119,$F131-SUM($G131:K131))) -> 0 | M131: =IF($C131>M$2,0,IF($C131=M$2,0.5,1)*MIN($F131*$F$119,$F131-SUM($G131:L131))) -> 0 | N131: =IF($C131>N$2,0,IF($C131=N$2,0.5,1)*MIN($F131*$F$119,$F131-SUM($G131:M131))) -> 0 | O131: =IF($C131>O$2,0,IF($C131=O$2,0.5,1)*MIN($F131*$F$119,$F131-SUM($G131:N131))) -> 0 | P131: =IF($C131>P$2,0,IF($C131=P$2,0.5,1)*MIN($F131*$F$119,$F131-SUM($G131:O131))) -> 0 | Q131: =IF($C131>Q$2,0,IF($C131=Q$2,0.5,1)*MIN($F131*$F$119,$F131-SUM($G131:P131))) -> 0 | R131: =IF($C131>R$2,0,IF($C131=R$2,0.5,1)*MIN($F131*$F$119,$F131-SUM($G131:Q131))) -> 0 | S131: =IF($C131>S$2,0,IF($C131=S$2,0.5,1)*MIN($F131*$F$119,$F131-SUM($G131:R131))) -> 0 | T131: =IF($C131>T$2,0,IF($C131=T$2,0.5,1)*MIN($F131*$F$119,$F131-SUM($G131:S131))) -> 0 | U131: =IF($C131>U$2,0,IF($C131=U$2,0.5,1)*MIN($F131*$F$119,$F131-SUM($G131:T131))) -> 0 | V131: =IF($C131>V$2,0,IF($C131=V$2,0.5,1)*MIN($F131*$F$119,$F131-SUM($G131:U131))) -> 0 | W131: =IF($C131>W$2,0,IF($C131=W$2,0.5,1)*MIN($F131*$F$119,$F131-SUM($G131:V131))) -> 0 | X131: =IF($C131>X$2,0,IF($C131=X$2,0.5,1)*MIN($F131*$F$119,$F131-SUM($G131:W131))) -> 0 | Y131: =IF($C131>Y$2,0,IF($C131=Y$2,0.5,1)*MIN($F131*$F$119,$F131-SUM($G131:X131))) -> 0 | Z131: =IF($C131>Z$2,0,IF($C131=Z$2,0.5,1)*MIN($F131*$F$119,$F131-SUM($G131:Y131))) -> 0 | AA131: =IF($C131>AA$2,0,IF($C131=AA$2,0.5,1)*MIN($F131*$F$119,$F131-SUM($G131:Z131))) -> 0 | AB131: =IF($C131>AB$2,0,IF($C131=AB$2,0.5,1)*MIN($F131*$F$119,$F131-SUM($G131:AA131))) -> 0
C132: 2036 | D132: тыс. руб. | E132: 11 | F132: 0 | H132: =IF($C132>H$2,0,IF($C132=H$2,0.5,1)*MIN($F132*$F$119,$F132-SUM($G132:G132))) -> 0 | I132: =IF($C132>I$2,0,IF($C132=I$2,0.5,1)*MIN($F132*$F$119,$F132-SUM($G132:H132))) -> 0 | J132: =IF($C132>J$2,0,IF($C132=J$2,0.5,1)*MIN($F132*$F$119,$F132-SUM($G132:I132))) -> 0 | K132: =IF($C132>K$2,0,IF($C132=K$2,0.5,1)*MIN($F132*$F$119,$F132-SUM($G132:J132))) -> 0 | L132: =IF($C132>L$2,0,IF($C132=L$2,0.5,1)*MIN($F132*$F$119,$F132-SUM($G132:K132))) -> 0 | M132: =IF($C132>M$2,0,IF($C132=M$2,0.5,1)*MIN($F132*$F$119,$F132-SUM($G132:L132))) -> 0 | N132: =IF($C132>N$2,0,IF($C132=N$2,0.5,1)*MIN($F132*$F$119,$F132-SUM($G132:M132))) -> 0 | O132: =IF($C132>O$2,0,IF($C132=O$2,0.5,1)*MIN($F132*$F$119,$F132-SUM($G132:N132))) -> 0 | P132: =IF($C132>P$2,0,IF($C132=P$2,0.5,1)*MIN($F132*$F$119,$F132-SUM($G132:O132))) -> 0 | Q132: =IF($C132>Q$2,0,IF($C132=Q$2,0.5,1)*MIN($F132*$F$119,$F132-SUM($G132:P132))) -> 0 | R132: =IF($C132>R$2,0,IF($C132=R$2,0.5,1)*MIN($F132*$F$119,$F132-SUM($G132:Q132))) -> 0 | S132: =IF($C132>S$2,0,IF($C132=S$2,0.5,1)*MIN($F132*$F$119,$F132-SUM($G132:R132))) -> 0 | T132: =IF($C132>T$2,0,IF($C132=T$2,0.5,1)*MIN($F132*$F$119,$F132-SUM($G132:S132))) -> 0 | U132: =IF($C132>U$2,0,IF($C132=U$2,0.5,1)*MIN($F132*$F$119,$F132-SUM($G132:T132))) -> 0 | V132: =IF($C132>V$2,0,IF($C132=V$2,0.5,1)*MIN($F132*$F$119,$F132-SUM($G132:U132))) -> 0 | W132: =IF($C132>W$2,0,IF($C132=W$2,0.5,1)*MIN($F132*$F$119,$F132-SUM($G132:V132))) -> 0 | X132: =IF($C132>X$2,0,IF($C132=X$2,0.5,1)*MIN($F132*$F$119,$F132-SUM($G132:W132))) -> 0 | Y132: =IF($C132>Y$2,0,IF($C132=Y$2,0.5,1)*MIN($F132*$F$119,$F132-SUM($G132:X132))) -> 0 | Z132: =IF($C132>Z$2,0,IF($C132=Z$2,0.5,1)*MIN($F132*$F$119,$F132-SUM($G132:Y132))) -> 0 | AA132: =IF($C132>AA$2,0,IF($C132=AA$2,0.5,1)*MIN($F132*$F$119,$F132-SUM($G132:Z132))) -> 0 | AB132: =IF($C132>AB$2,0,IF($C132=AB$2,0.5,1)*MIN($F132*$F$119,$F132-SUM($G132:AA132))) -> 0
C133: 2037 | D133: тыс. руб. | E133: 12 | F133: 0 | H133: =IF($C133>H$2,0,IF($C133=H$2,0.5,1)*MIN($F133*$F$119,$F133-SUM($G133:G133))) -> 0 | I133: =IF($C133>I$2,0,IF($C133=I$2,0.5,1)*MIN($F133*$F$119,$F133-SUM($G133:H133))) -> 0 | J133: =IF($C133>J$2,0,IF($C133=J$2,0.5,1)*MIN($F133*$F$119,$F133-SUM($G133:I133))) -> 0 | K133: =IF($C133>K$2,0,IF($C133=K$2,0.5,1)*MIN($F133*$F$119,$F133-SUM($G133:J133))) -> 0 | L133: =IF($C133>L$2,0,IF($C133=L$2,0.5,1)*MIN($F133*$F$119,$F133-SUM($G133:K133))) -> 0 | M133: =IF($C133>M$2,0,IF($C133=M$2,0.5,1)*MIN($F133*$F$119,$F133-SUM($G133:L133))) -> 0 | N133: =IF($C133>N$2,0,IF($C133=N$2,0.5,1)*MIN($F133*$F$119,$F133-SUM($G133:M133))) -> 0 | O133: =IF($C133>O$2,0,IF($C133=O$2,0.5,1)*MIN($F133*$F$119,$F133-SUM($G133:N133))) -> 0 | P133: =IF($C133>P$2,0,IF($C133=P$2,0.5,1)*MIN($F133*$F$119,$F133-SUM($G133:O133))) -> 0 | Q133: =IF($C133>Q$2,0,IF($C133=Q$2,0.5,1)*MIN($F133*$F$119,$F133-SUM($G133:P133))) -> 0 | R133: =IF($C133>R$2,0,IF($C133=R$2,0.5,1)*MIN($F133*$F$119,$F133-SUM($G133:Q133))) -> 0 | S133: =IF($C133>S$2,0,IF($C133=S$2,0.5,1)*MIN($F133*$F$119,$F133-SUM($G133:R133))) -> 0 | T133: =IF($C133>T$2,0,IF($C133=T$2,0.5,1)*MIN($F133*$F$119,$F133-SUM($G133:S133))) -> 0 | U133: =IF($C133>U$2,0,IF($C133=U$2,0.5,1)*MIN($F133*$F$119,$F133-SUM($G133:T133))) -> 0 | V133: =IF($C133>V$2,0,IF($C133=V$2,0.5,1)*MIN($F133*$F$119,$F133-SUM($G133:U133))) -> 0 | W133: =IF($C133>W$2,0,IF($C133=W$2,0.5,1)*MIN($F133*$F$119,$F133-SUM($G133:V133))) -> 0 | X133: =IF($C133>X$2,0,IF($C133=X$2,0.5,1)*MIN($F133*$F$119,$F133-SUM($G133:W133))) -> 0 | Y133: =IF($C133>Y$2,0,IF($C133=Y$2,0.5,1)*MIN($F133*$F$119,$F133-SUM($G133:X133))) -> 0 | Z133: =IF($C133>Z$2,0,IF($C133=Z$2,0.5,1)*MIN($F133*$F$119,$F133-SUM($G133:Y133))) -> 0 | AA133: =IF($C133>AA$2,0,IF($C133=AA$2,0.5,1)*MIN($F133*$F$119,$F133-SUM($G133:Z133))) -> 0 | AB133: =IF($C133>AB$2,0,IF($C133=AB$2,0.5,1)*MIN($F133*$F$119,$F133-SUM($G133:AA133))) -> 0
C134: 2038 | D134: тыс. руб. | E134: 13 | F134: 0 | H134: =IF($C134>H$2,0,IF($C134=H$2,0.5,1)*MIN($F134*$F$119,$F134-SUM($G134:G134))) -> 0 | I134: =IF($C134>I$2,0,IF($C134=I$2,0.5,1)*MIN($F134*$F$119,$F134-SUM($G134:H134))) -> 0 | J134: =IF($C134>J$2,0,IF($C134=J$2,0.5,1)*MIN($F134*$F$119,$F134-SUM($G134:I134))) -> 0 | K134: =IF($C134>K$2,0,IF($C134=K$2,0.5,1)*MIN($F134*$F$119,$F134-SUM($G134:J134))) -> 0 | L134: =IF($C134>L$2,0,IF($C134=L$2,0.5,1)*MIN($F134*$F$119,$F134-SUM($G134:K134))) -> 0 | M134: =IF($C134>M$2,0,IF($C134=M$2,0.5,1)*MIN($F134*$F$119,$F134-SUM($G134:L134))) -> 0 | N134: =IF($C134>N$2,0,IF($C134=N$2,0.5,1)*MIN($F134*$F$119,$F134-SUM($G134:M134))) -> 0 | O134: =IF($C134>O$2,0,IF($C134=O$2,0.5,1)*MIN($F134*$F$119,$F134-SUM($G134:N134))) -> 0 | P134: =IF($C134>P$2,0,IF($C134=P$2,0.5,1)*MIN($F134*$F$119,$F134-SUM($G134:O134))) -> 0 | Q134: =IF($C134>Q$2,0,IF($C134=Q$2,0.5,1)*MIN($F134*$F$119,$F134-SUM($G134:P134))) -> 0 | R134: =IF($C134>R$2,0,IF($C134=R$2,0.5,1)*MIN($F134*$F$119,$F134-SUM($G134:Q134))) -> 0 | S134: =IF($C134>S$2,0,IF($C134=S$2,0.5,1)*MIN($F134*$F$119,$F134-SUM($G134:R134))) -> 0 | T134: =IF($C134>T$2,0,IF($C134=T$2,0.5,1)*MIN($F134*$F$119,$F134-SUM($G134:S134))) -> 0 | U134: =IF($C134>U$2,0,IF($C134=U$2,0.5,1)*MIN($F134*$F$119,$F134-SUM($G134:T134))) -> 0 | V134: =IF($C134>V$2,0,IF($C134=V$2,0.5,1)*MIN($F134*$F$119,$F134-SUM($G134:U134))) -> 0 | W134: =IF($C134>W$2,0,IF($C134=W$2,0.5,1)*MIN($F134*$F$119,$F134-SUM($G134:V134))) -> 0 | X134: =IF($C134>X$2,0,IF($C134=X$2,0.5,1)*MIN($F134*$F$119,$F134-SUM($G134:W134))) -> 0 | Y134: =IF($C134>Y$2,0,IF($C134=Y$2,0.5,1)*MIN($F134*$F$119,$F134-SUM($G134:X134))) -> 0 | Z134: =IF($C134>Z$2,0,IF($C134=Z$2,0.5,1)*MIN($F134*$F$119,$F134-SUM($G134:Y134))) -> 0 | AA134: =IF($C134>AA$2,0,IF($C134=AA$2,0.5,1)*MIN($F134*$F$119,$F134-SUM($G134:Z134))) -> 0 | AB134: =IF($C134>AB$2,0,IF($C134=AB$2,0.5,1)*MIN($F134*$F$119,$F134-SUM($G134:AA134))) -> 0
C135: 2039 | D135: тыс. руб. | E135: 14 | F135: 0 | H135: =IF($C135>H$2,0,IF($C135=H$2,0.5,1)*MIN($F135*$F$119,$F135-SUM($G135:G135))) -> 0 | I135: =IF($C135>I$2,0,IF($C135=I$2,0.5,1)*MIN($F135*$F$119,$F135-SUM($G135:H135))) -> 0 | J135: =IF($C135>J$2,0,IF($C135=J$2,0.5,1)*MIN($F135*$F$119,$F135-SUM($G135:I135))) -> 0 | K135: =IF($C135>K$2,0,IF($C135=K$2,0.5,1)*MIN($F135*$F$119,$F135-SUM($G135:J135))) -> 0 | L135: =IF($C135>L$2,0,IF($C135=L$2,0.5,1)*MIN($F135*$F$119,$F135-SUM($G135:K135))) -> 0 | M135: =IF($C135>M$2,0,IF($C135=M$2,0.5,1)*MIN($F135*$F$119,$F135-SUM($G135:L135))) -> 0 | N135: =IF($C135>N$2,0,IF($C135=N$2,0.5,1)*MIN($F135*$F$119,$F135-SUM($G135:M135))) -> 0 | O135: =IF($C135>O$2,0,IF($C135=O$2,0.5,1)*MIN($F135*$F$119,$F135-SUM($G135:N135))) -> 0 | P135: =IF($C135>P$2,0,IF($C135=P$2,0.5,1)*MIN($F135*$F$119,$F135-SUM($G135:O135))) -> 0 | Q135: =IF($C135>Q$2,0,IF($C135=Q$2,0.5,1)*MIN($F135*$F$119,$F135-SUM($G135:P135))) -> 0 | R135: =IF($C135>R$2,0,IF($C135=R$2,0.5,1)*MIN($F135*$F$119,$F135-SUM($G135:Q135))) -> 0 | S135: =IF($C135>S$2,0,IF($C135=S$2,0.5,1)*MIN($F135*$F$119,$F135-SUM($G135:R135))) -> 0 | T135: =IF($C135>T$2,0,IF($C135=T$2,0.5,1)*MIN($F135*$F$119,$F135-SUM($G135:S135))) -> 0 | U135: =IF($C135>U$2,0,IF($C135=U$2,0.5,1)*MIN($F135*$F$119,$F135-SUM($G135:T135))) -> 0 | V135: =IF($C135>V$2,0,IF($C135=V$2,0.5,1)*MIN($F135*$F$119,$F135-SUM($G135:U135))) -> 0 | W135: =IF($C135>W$2,0,IF($C135=W$2,0.5,1)*MIN($F135*$F$119,$F135-SUM($G135:V135))) -> 0 | X135: =IF($C135>X$2,0,IF($C135=X$2,0.5,1)*MIN($F135*$F$119,$F135-SUM($G135:W135))) -> 0 | Y135: =IF($C135>Y$2,0,IF($C135=Y$2,0.5,1)*MIN($F135*$F$119,$F135-SUM($G135:X135))) -> 0 | Z135: =IF($C135>Z$2,0,IF($C135=Z$2,0.5,1)*MIN($F135*$F$119,$F135-SUM($G135:Y135))) -> 0 | AA135: =IF($C135>AA$2,0,IF($C135=AA$2,0.5,1)*MIN($F135*$F$119,$F135-SUM($G135:Z135))) -> 0 | AB135: =IF($C135>AB$2,0,IF($C135=AB$2,0.5,1)*MIN($F135*$F$119,$F135-SUM($G135:AA135))) -> 0
C136: 2040 | D136: тыс. руб. | E136: 15 | F136: 0 | H136: =IF($C136>H$2,0,IF($C136=H$2,0.5,1)*MIN($F136*$F$119,$F136-SUM($G136:G136))) -> 0 | I136: =IF($C136>I$2,0,IF($C136=I$2,0.5,1)*MIN($F136*$F$119,$F136-SUM($G136:H136))) -> 0 | J136: =IF($C136>J$2,0,IF($C136=J$2,0.5,1)*MIN($F136*$F$119,$F136-SUM($G136:I136))) -> 0 | K136: =IF($C136>K$2,0,IF($C136=K$2,0.5,1)*MIN($F136*$F$119,$F136-SUM($G136:J136))) -> 0 | L136: =IF($C136>L$2,0,IF($C136=L$2,0.5,1)*MIN($F136*$F$119,$F136-SUM($G136:K136))) -> 0 | M136: =IF($C136>M$2,0,IF($C136=M$2,0.5,1)*MIN($F136*$F$119,$F136-SUM($G136:L136))) -> 0 | N136: =IF($C136>N$2,0,IF($C136=N$2,0.5,1)*MIN($F136*$F$119,$F136-SUM($G136:M136))) -> 0 | O136: =IF($C136>O$2,0,IF($C136=O$2,0.5,1)*MIN($F136*$F$119,$F136-SUM($G136:N136))) -> 0 | P136: =IF($C136>P$2,0,IF($C136=P$2,0.5,1)*MIN($F136*$F$119,$F136-SUM($G136:O136))) -> 0 | Q136: =IF($C136>Q$2,0,IF($C136=Q$2,0.5,1)*MIN($F136*$F$119,$F136-SUM($G136:P136))) -> 0 | R136: =IF($C136>R$2,0,IF($C136=R$2,0.5,1)*MIN($F136*$F$119,$F136-SUM($G136:Q136))) -> 0 | S136: =IF($C136>S$2,0,IF($C136=S$2,0.5,1)*MIN($F136*$F$119,$F136-SUM($G136:R136))) -> 0 | T136: =IF($C136>T$2,0,IF($C136=T$2,0.5,1)*MIN($F136*$F$119,$F136-SUM($G136:S136))) -> 0 | U136: =IF($C136>U$2,0,IF($C136=U$2,0.5,1)*MIN($F136*$F$119,$F136-SUM($G136:T136))) -> 0 | V136: =IF($C136>V$2,0,IF($C136=V$2,0.5,1)*MIN($F136*$F$119,$F136-SUM($G136:U136))) -> 0 | W136: =IF($C136>W$2,0,IF($C136=W$2,0.5,1)*MIN($F136*$F$119,$F136-SUM($G136:V136))) -> 0 | X136: =IF($C136>X$2,0,IF($C136=X$2,0.5,1)*MIN($F136*$F$119,$F136-SUM($G136:W136))) -> 0 | Y136: =IF($C136>Y$2,0,IF($C136=Y$2,0.5,1)*MIN($F136*$F$119,$F136-SUM($G136:X136))) -> 0 | Z136: =IF($C136>Z$2,0,IF($C136=Z$2,0.5,1)*MIN($F136*$F$119,$F136-SUM($G136:Y136))) -> 0 | AA136: =IF($C136>AA$2,0,IF($C136=AA$2,0.5,1)*MIN($F136*$F$119,$F136-SUM($G136:Z136))) -> 0 | AB136: =IF($C136>AB$2,0,IF($C136=AB$2,0.5,1)*MIN($F136*$F$119,$F136-SUM($G136:AA136))) -> 0
C137: 2041 | D137: тыс. руб. | E137: 16 | F137: 0 | H137: =IF($C137>H$2,0,IF($C137=H$2,0.5,1)*MIN($F137*$F$119,$F137-SUM($G137:G137))) -> 0 | I137: =IF($C137>I$2,0,IF($C137=I$2,0.5,1)*MIN($F137*$F$119,$F137-SUM($G137:H137))) -> 0 | J137: =IF($C137>J$2,0,IF($C137=J$2,0.5,1)*MIN($F137*$F$119,$F137-SUM($G137:I137))) -> 0 | K137: =IF($C137>K$2,0,IF($C137=K$2,0.5,1)*MIN($F137*$F$119,$F137-SUM($G137:J137))) -> 0 | L137: =IF($C137>L$2,0,IF($C137=L$2,0.5,1)*MIN($F137*$F$119,$F137-SUM($G137:K137))) -> 0 | M137: =IF($C137>M$2,0,IF($C137=M$2,0.5,1)*MIN($F137*$F$119,$F137-SUM($G137:L137))) -> 0 | N137: =IF($C137>N$2,0,IF($C137=N$2,0.5,1)*MIN($F137*$F$119,$F137-SUM($G137:M137))) -> 0 | O137: =IF($C137>O$2,0,IF($C137=O$2,0.5,1)*MIN($F137*$F$119,$F137-SUM($G137:N137))) -> 0 | P137: =IF($C137>P$2,0,IF($C137=P$2,0.5,1)*MIN($F137*$F$119,$F137-SUM($G137:O137))) -> 0 | Q137: =IF($C137>Q$2,0,IF($C137=Q$2,0.5,1)*MIN($F137*$F$119,$F137-SUM($G137:P137))) -> 0 | R137: =IF($C137>R$2,0,IF($C137=R$2,0.5,1)*MIN($F137*$F$119,$F137-SUM($G137:Q137))) -> 0 | S137: =IF($C137>S$2,0,IF($C137=S$2,0.5,1)*MIN($F137*$F$119,$F137-SUM($G137:R137))) -> 0 | T137: =IF($C137>T$2,0,IF($C137=T$2,0.5,1)*MIN($F137*$F$119,$F137-SUM($G137:S137))) -> 0 | U137: =IF($C137>U$2,0,IF($C137=U$2,0.5,1)*MIN($F137*$F$119,$F137-SUM($G137:T137))) -> 0 | V137: =IF($C137>V$2,0,IF($C137=V$2,0.5,1)*MIN($F137*$F$119,$F137-SUM($G137:U137))) -> 0 | W137: =IF($C137>W$2,0,IF($C137=W$2,0.5,1)*MIN($F137*$F$119,$F137-SUM($G137:V137))) -> 0 | X137: =IF($C137>X$2,0,IF($C137=X$2,0.5,1)*MIN($F137*$F$119,$F137-SUM($G137:W137))) -> 0 | Y137: =IF($C137>Y$2,0,IF($C137=Y$2,0.5,1)*MIN($F137*$F$119,$F137-SUM($G137:X137))) -> 0 | Z137: =IF($C137>Z$2,0,IF($C137=Z$2,0.5,1)*MIN($F137*$F$119,$F137-SUM($G137:Y137))) -> 0 | AA137: =IF($C137>AA$2,0,IF($C137=AA$2,0.5,1)*MIN($F137*$F$119,$F137-SUM($G137:Z137))) -> 0 | AB137: =IF($C137>AB$2,0,IF($C137=AB$2,0.5,1)*MIN($F137*$F$119,$F137-SUM($G137:AA137))) -> 0
C138: 2042 | D138: тыс. руб. | E138: 17 | F138: 0 | H138: =IF($C138>H$2,0,IF($C138=H$2,0.5,1)*MIN($F138*$F$119,$F138-SUM($G138:G138))) -> 0 | I138: =IF($C138>I$2,0,IF($C138=I$2,0.5,1)*MIN($F138*$F$119,$F138-SUM($G138:H138))) -> 0 | J138: =IF($C138>J$2,0,IF($C138=J$2,0.5,1)*MIN($F138*$F$119,$F138-SUM($G138:I138))) -> 0 | K138: =IF($C138>K$2,0,IF($C138=K$2,0.5,1)*MIN($F138*$F$119,$F138-SUM($G138:J138))) -> 0 | L138: =IF($C138>L$2,0,IF($C138=L$2,0.5,1)*MIN($F138*$F$119,$F138-SUM($G138:K138))) -> 0 | M138: =IF($C138>M$2,0,IF($C138=M$2,0.5,1)*MIN($F138*$F$119,$F138-SUM($G138:L138))) -> 0 | N138: =IF($C138>N$2,0,IF($C138=N$2,0.5,1)*MIN($F138*$F$119,$F138-SUM($G138:M138))) -> 0 | O138: =IF($C138>O$2,0,IF($C138=O$2,0.5,1)*MIN($F138*$F$119,$F138-SUM($G138:N138))) -> 0 | P138: =IF($C138>P$2,0,IF($C138=P$2,0.5,1)*MIN($F138*$F$119,$F138-SUM($G138:O138))) -> 0 | Q138: =IF($C138>Q$2,0,IF($C138=Q$2,0.5,1)*MIN($F138*$F$119,$F138-SUM($G138:P138))) -> 0 | R138: =IF($C138>R$2,0,IF($C138=R$2,0.5,1)*MIN($F138*$F$119,$F138-SUM($G138:Q138))) -> 0 | S138: =IF($C138>S$2,0,IF($C138=S$2,0.5,1)*MIN($F138*$F$119,$F138-SUM($G138:R138))) -> 0 | T138: =IF($C138>T$2,0,IF($C138=T$2,0.5,1)*MIN($F138*$F$119,$F138-SUM($G138:S138))) -> 0 | U138: =IF($C138>U$2,0,IF($C138=U$2,0.5,1)*MIN($F138*$F$119,$F138-SUM($G138:T138))) -> 0 | V138: =IF($C138>V$2,0,IF($C138=V$2,0.5,1)*MIN($F138*$F$119,$F138-SUM($G138:U138))) -> 0 | W138: =IF($C138>W$2,0,IF($C138=W$2,0.5,1)*MIN($F138*$F$119,$F138-SUM($G138:V138))) -> 0 | X138: =IF($C138>X$2,0,IF($C138=X$2,0.5,1)*MIN($F138*$F$119,$F138-SUM($G138:W138))) -> 0 | Y138: =IF($C138>Y$2,0,IF($C138=Y$2,0.5,1)*MIN($F138*$F$119,$F138-SUM($G138:X138))) -> 0 | Z138: =IF($C138>Z$2,0,IF($C138=Z$2,0.5,1)*MIN($F138*$F$119,$F138-SUM($G138:Y138))) -> 0 | AA138: =IF($C138>AA$2,0,IF($C138=AA$2,0.5,1)*MIN($F138*$F$119,$F138-SUM($G138:Z138))) -> 0 | AB138: =IF($C138>AB$2,0,IF($C138=AB$2,0.5,1)*MIN($F138*$F$119,$F138-SUM($G138:AA138))) -> 0
